Workbook

Sheet Analysis
G9: `
H12: With Sediment Management | L12: Without Sediment Management
A13: Parameters | H13: Capacity | I13: Benefits | J13: Costs | L13: Capacity | M13: Benefits | N13: Costs
A14: Total Storage Volume | E14: 3788799 | F14: [af] | H14: 2346024.341 | I14: 2808191136 | J14: -182228576.5 | L14: 2346024.341 | M14: 2779217735 | N14: -153888360
A15: Sedimentation Rate | E15: 0.68% | H15: 2343447.957 | I15: 2805107205 | J15: -29286576.52 | L15: 2320260.508 | M15: 2748696610 | N15: -946360
A16: Lost Volume | E16: 1442774.659 | F16: [af] | H16: 2340871.574 | I16: 2802023274 | J16: -29286576.52 | L16: 2294496.674 | M16: 2718175485 | N16: -946360
A17: Actual Volume | E17: 2346024.341 | F17: [af] | H17: 2338295.191 | I17: 2798939343 | J17: -29286576.52 | L17: 2268732.841 | M17: 2687654360 | N17: -946360
A18: Annual Loss of Volume | E18: =E14*E15 -> 25763.8332 | F18: [af] | H18: 2335718.808 | I18: 2795855413 | J18: -29286576.52 | L18: 2242969.008 | M18: 2657133235 | N18: -946360
A19: Annual Sediment Removal | E19: 90% | H19: 2333142.424 | I19: 2792771482 | J19: -29286576.52 | L19: 2217205.175 | M19: 2626612110 | N19: -946360
A20: Life Expectancy w/o management | E20: 93 | F20: [years] | H20: 2330566.041 | I20: 2789687551 | J20: -29286576.52 | L20: 2191441.342 | M20: 2596090985 | N20: -946360
A21: Life Expectancy w/ management | E21: 912 | F21: [years] | H21: 2327989.658 | I21: 2786603620 | J21: -29286576.52 | L21: 2165677.508 | M21: 2565569860 | N21: -946360
H22: 2325413.274 | I22: 2783519689 | J22: -29286576.52 | L22: 2139913.675 | M22: 2535048735 | N22: -946360
H23: 2322836.891 | I23: 2780435758 | J23: -29286576.52 | L23: 2114149.842 | M23: 2504527610 | N23: -946360
H24: 2320260.508 | I24: 2777351828 | J24: -29286576.52 | L24: 2088386.009 | M24: 2474006485 | N24: -946360
H25: 2317684.124 | I25: 2774267897 | J25: -29286576.52 | L25: 2062622.176 | M25: 2443485360 | N25: -946360
H26: 2315107.741 | I26: 2771183966 | J26: -29286576.52 | L26: 2036858.342 | M26: 2412964235 | N26: -946360
H27: 2312531.358 | I27: 2768100035 | J27: -29286576.52 | L27: 2011094.509 | M27: 2382443110 | N27: -946360
H28: 2309954.974 | I28: 2765016104 | J28: -29286576.52 | L28: 1985330.676 | M28: 2351921985 | N28: -946360
H29: 2307378.591 | I29: 2761932173 | J29: -29286576.52 | L29: 1959566.843 | M29: 2321400860 | N29: -946360
H30: 2304802.208 | I30: 2758848243 | J30: -29286576.52 | L30: 1933803.01 | M30: 2290879735 | N30: -946360
H31: 2302225.824 | I31: 2755764312 | J31: -29286576.52 | L31: 1908039.176 | M31: 2260358610 | N31: -946360
H32: 2299649.441 | I32: 2752680381 | J32: -29286576.52 | L32: 1882275.343 | M32: 2229837485 | N32: -946360
H33: 2297073.058 | I33: 2749596450 | J33: -29286576.52 | L33: 1856511.51 | M33: 2199316360 | N33: -946360
H34: 2294496.674 | I34: 2746512519 | J34: -29286576.52 | L34: 1830747.677 | M34: 2168795235 | N34: -946360
H35: 2291920.291 | I35: 2743428588 | J35: -29286576.52 | L35: 1804983.844 | M35: 2138274110 | N35: -946360
H36: 2289343.908 | I36: 2740344658 | J36: -29286576.52 | L36: 1779220.01 | M36: 2107752985 | N36: -946360
H37: 2286767.524 | I37: 2737260727 | J37: -29286576.52 | L37: 1753456.177 | M37: 2077231860 | N37: -946360
H38: 2284191.141 | I38: 2734176796 | J38: -29286576.52 | L38: 1727692.344 | M38: 2046710735 | N38: -946360
G39: ` | H39: 2281614.758 | I39: 2731092865 | J39: -29286576.52 | L39: 1701928.511 | M39: 2016189610 | N39: -946360
H40: 2279038.374 | I40: 2728008934 | J40: -29286576.52 | L40: 1676164.678 | M40: 1985668485 | N40: -946360
H41: 2276461.991 | I41: 2724925003 | J41: -29286576.52 | L41: 1650400.844 | M41: 1955147360 | N41: -946360
H42: 2273885.608 | I42: 2721841073 | J42: -29286576.52 | L42: 1624637.011 | M42: 1924626235 | N42: -946360
H43: 2271309.225 | I43: 2718757142 | J43: -29286576.52 | L43: 1598873.178 | M43: 1894105110 | N43: -946360
H44: 2268732.841 | I44: 2715673211 | J44: -29286576.52 | L44: 1573109.345 | M44: 1863583985 | N44: -946360
H45: 2266156.458 | I45: 2712589280 | J45: -29286576.52 | L45: 1547345.512 | M45: 1833062860 | N45: -946360
H46: 2263580.075 | I46: 2709505349 | J46: -29286576.52 | L46: 1521581.678 | M46: 1802541735 | N46: -946360
H47: 2261003.691 | I47: 2706421418 | J47: -29286576.52 | L47: 1495817.845 | M47: 1772020610 | N47: -946360
H48: 2258427.308 | I48: 2703337488 | J48: -29286576.52 | L48: 1470054.012 | M48: 1741499485 | N48: -946360
H49: 2255850.925 | I49: 2700253557 | J49: -29286576.52 | L49: 1444290.179 | M49: 1710978360 | N49: -946360
H50: 2253274.541 | I50: 2697169626 | J50: -29286576.52 | L50: 1418526.346 | M50: 1680457235 | N50: -946360
H51: 2250698.158 | I51: 2694085695 | J51: -29286576.52 | L51: 1392762.512 | M51: 1649936110 | N51: -946360
H52: 2248121.775 | I52: 2691001764 | J52: -29286576.52 | L52: 1366998.679 | M52: 1619414985 | N52: -946360
H53: 2245545.391 | I53: 2687917833 | J53: -29286576.52 | L53: 1341234.846 | M53: 1588893860 | N53: -946360
H54: 2242969.008 | I54: 2684833903 | J54: -29286576.52 | L54: 1315471.013 | M54: 1558372735 | N54: -946360
H55: 2240392.625 | I55: 2681749972 | J55: -29286576.52 | L55: 1289707.18 | M55: 1527851610 | N55: -946360
H56: 2237816.241 | I56: 2678666041 | J56: -29286576.52 | L56: 1263943.346 | M56: 1497330485 | N56: -946360
H57: 2235239.858 | I57: 2675582110 | J57: -29286576.52 | L57: 1238179.513 | M57: 1466809360 | N57: -946360
H58: 2232663.475 | I58: 2672498179 | J58: -29286576.52 | L58: 1212415.68 | M58: 1436288235 | N58: -946360
H59: 2230087.091 | I59: 2669414248 | J59: -29286576.52 | L59: 1186651.847 | M59: 1405767110 | N59: -946360
H60: 2227510.708 | I60: 2666330318 | J60: -29286576.52 | L60: 1160888.014 | M60: 1375245985 | N60: -946360
H61: 2224934.325 | I61: 2663246387 | J61: -29286576.52 | L61: 1135124.18 | M61: 1344724860 | N61: -946360
H62: 2222357.941 | I62: 2660162456 | J62: -29286576.52 | L62: 1109360.347 | M62: 1314203735 | N62: -946360
H63: 2219781.558 | I63: 2657078525 | J63: -29286576.52 | L63: 1083596.514 | M63: 1283682610 | N63: -946360
H64: 2217205.175 | I64: 2653994594 | J64: -29286576.52 | L64: 1057832.681 | M64: 1253161485 | N64: -946360
H65: 2214628.791 | I65: 2650910663 | J65: -29286576.52 | L65: 1032068.848 | M65: 1222640360 | N65: -946360
H66: 2212052.408 | I66: 2647826733 | J66: -29286576.52 | L66: 1006305.014 | M66: 1192119235 | N66: -946360
H67: 2209476.025 | I67: 2644742802 | J67: -29286576.52 | L67: 980541.1812 | M67: 1161598110 | N67: -946360
H68: 2206899.642 | I68: 2641658871 | J68: -29286576.52 | L68: 954777.348 | M68: 1131076985 | N68: -946360
H69: 2204323.258 | I69: 2638574940 | J69: -29286576.52 | L69: 929013.5148 | M69: 1100555860 | N69: -946360
H70: 2201746.875 | I70: 2635491009 | J70: -29286576.52 | L70: 903249.6816 | M70: 1070034735 | N70: -946360
H71: 2199170.492 | I71: 2632407078 | J71: -29286576.52 | L71: 877485.8484 | M71: 1039513610 | N71: -946360
H72: 2196594.108 | I72: 2629323148 | J72: -29286576.52 | L72: 851722.0152 | M72: 1008992485 | N72: -946360
H73: 2194017.725 | I73: 2626239217 | J73: -29286576.52 | L73: 825958.182 | M73: 978471360.3 | N73: -946360
H74: 2191441.342 | I74: 2623155286 | J74: -29286576.52 | L74: 800194.3488 | M74: 947950235.3 | N74: -946360
H75: 2188864.958 | I75: 2620071355 | J75: -29286576.52 | L75: 774430.5156 | M75: 917429110.3 | N75: -946360
H76: 2186288.575 | I76: 2616987424 | J76: -29286576.52 | L76: 748666.6824 | M76: 886907985.3 | N76: -946360
H77: 2183712.192 | I77: 2613903493 | J77: -29286576.52 | L77: 722902.8492 | M77: 856386860.3 | N77: -946360
H78: 2181135.808 | I78: 2610819563 | J78: -29286576.52 | L78: 697139.016 | M78: 825865735.3 | N78: -946360
H79: 2178559.425 | I79: 2607735632 | J79: -29286576.52 | L79: 671375.1828 | M79: 795344610.3 | N79: -946360
H80: 2175983.042 | I80: 2604651701 | J80: -29286576.52 | L80: 645611.3496 | M80: 764823485.3 | N80: -946360
H81: 2173406.658 | I81: 2601567770 | J81: -29286576.52 | L81: 619847.5164 | M81: 734302360.3 | N81: -946360
H82: 2170830.275 | I82: 2598483839 | J82: -29286576.52 | L82: 594083.6832 | M82: 703781235.3 | N82: -946360
H83: 2168253.892 | I83: 2595399908 | J83: -29286576.52 | L83: 568319.85 | M83: 673260110.3 | N83: -946360
H84: 2165677.508 | I84: 2592315978 | J84: -29286576.52 | L84: 542556.0168 | M84: 642738985.3 | N84: -946360
H85: 2163101.125 | I85: 2589232047 | J85: -29286576.52 | L85: 516792.1836 | M85: 612217860.3 | N85: -946360
H86: 2160524.742 | I86: 2586148116 | J86: -29286576.52 | L86: 491028.3504 | M86: 581696735.3 | N86: -946360
H87: 2157948.358 | I87: 2583064185 | J87: -29286576.52 | L87: 465264.5172 | M87: 551175610.3 | N87: -946360
H88: 2155371.975 | I88: 2579980254 | J88: -29286576.52 | L88: 439500.684 | M88: 520654485.3 | N88: -946360
H89: 2152795.592 | I89: 2576896323 | J89: -29286576.52 | L89: 413736.8508 | M89: 490133360.3 | N89: -946360
H90: 2150219.208 | I90: 2573812393 | J90: -29286576.52 | L90: 387973.0176 | M90: 459612235.3 | N90: -946360
H91: 2147642.825 | I91: 2570728462 | J91: -29286576.52 | L91: 362209.1844 | M91: 429091110.3 | N91: -946360
H92: 2145066.442 | I92: 2567644531 | J92: -29286576.52 | L92: 336445.3512 | M92: 398569985.3 | N92: -946360
H93: 2142490.059 | I93: 2564560600 | J93: -29286576.52 | L93: 310681.518 | M93: 368048860.3 | N93: -946360
H94: 2139913.675 | I94: 2561476669 | J94: -29286576.52 | L94: 284917.6848 | M94: 337527735.3 | N94: -946360
H95: 2137337.292 | I95: 2558392738 | J95: -29286576.52 | L95: 259153.8516 | M95: 307006610.3 | N95: -946360
H96: 2134760.909 | I96: 2555308808 | J96: -29286576.52 | L96: 233390.0184 | M96: 276485485.3 | N96: -946360
H97: 2132184.525 | I97: 2552224877 | J97: -29286576.52 | L97: 207626.1852 | M97: 245964360.3 | N97: -946360
H98: 2129608.142 | I98: 2549140946 | J98: -29286576.52 | L98: 181862.352 | M98: 215443235.3 | N98: -946360
H99: 2127031.759 | I99: 2546057015 | J99: -29286576.52 | L99: 156098.5188 | M99: 184922110.3 | N99: -946360
H100: 2124455.375 | I100: 2542973084 | J100: -29286576.52 | L100: 130334.6856 | M100: 154400985.3 | N100: -946360
H101: 2121878.992 | I101: 2539889153 | J101: -29286576.52 | L101: 104570.8524 | M101: 123879860.3 | N101: -946360
H102: 2119302.609 | I102: 2536805223 | J102: -29286576.52 | L102: 78807.0192 | M102: 93358735.3 | N102: -946360
H103: 2116726.225 | I103: 2533721292 | J103: -29286576.52 | L103: 53043.186 | M103: 62837610.29 | N103: -946360
H104: 2114149.842 | I104: 2530637361 | J104: -29286576.52 | L104: 27279.3528 | M104: 32316485.29 | N104: -946360
H105: 2111573.459 | I105: 2527553430 | J105: -29286576.52 | L105: 1515.5196 | M105: 1795360.294 | N105: -946360
H106: 2108997.075 | I106: 2524469499 | J106: -29286576.52
H107: 2106420.692 | I107: 2521385568 | J107: -29286576.52
H108: 2103844.309 | I108: 2518301638 | J108: -29286576.52
H109: 2101267.925 | I109: 2515217707 | J109: -29286576.52
H110: 2098691.542 | I110: 2512133776 | J110: -29286576.52
H111: 2096115.159 | I111: 2509049845 | J111: -29286576.52
H112: 2093538.775 | I112: 2505965914 | J112: -29286576.52
H113: 2090962.392 | I113: 2502881983 | J113: -29286576.52
H114: 2088386.009 | I114: 2499798053 | J114: -29286576.52
H115: 2085809.625 | I115: 2496714122 | J115: -29286576.52
H116: 2083233.242 | I116: 2493630191 | J116: -29286576.52
H117: 2080656.859 | I117: 2490546260 | J117: -29286576.52
H118: 2078080.476 | I118: 2487462329 | J118: -29286576.52
H119: 2075504.092 | I119: 2484378398 | J119: -29286576.52
H120: 2072927.709 | I120: 2481294468 | J120: -29286576.52
H121: 2070351.326 | I121: 2478210537 | J121: -29286576.52
H122: 2067774.942 | I122: 2475126606 | J122: -29286576.52
H123: 2065198.559 | I123: 2472042675 | J123: -29286576.52
H124: 2062622.176 | I124: 2468958744 | J124: -29286576.52
H125: 2060045.792 | I125: 2465874813 | J125: -29286576.52
H126: 2057469.409 | I126: 2462790883 | J126: -29286576.52
H127: 2054893.026 | I127: 2459706952 | J127: -29286576.52
H128: 2052316.642 | I128: 2456623021 | J128: -29286576.52
H129: 2049740.259 | I129: 2453539090 | J129: -29286576.52
H130: 2047163.876 | I130: 2450455159 | J130: -29286576.52
H131: 2044587.492 | I131: 2447371228 | J131: -29286576.52
H132: 2042011.109 | I132: 2444287298 | J132: -29286576.52
H133: 2039434.726 | I133: 2441203367 | J133: -29286576.52
H134: 2036858.342 | I134: 2438119436 | J134: -29286576.52
H135: 2034281.959 | I135: 2435035505 | J135: -29286576.52
H136: 2031705.576 | I136: 2431951574 | J136: -29286576.52
H137: 2029129.192 | I137: 2428867643 | J137: -29286576.52
H138: 2026552.809 | I138: 2425783713 | J138: -29286576.52
H139: 2023976.426 | I139: 2422699782 | J139: -29286576.52
H140: 2021400.042 | I140: 2419615851 | J140: -29286576.52
H141: 2018823.659 | I141: 2416531920 | J141: -29286576.52
H142: 2016247.276 | I142: 2413447989 | J142: -29286576.52
H143: 2013670.893 | I143: 2410364058 | J143: -29286576.52
H144: 2011094.509 | I144: 2407280128 | J144: -29286576.52
H145: 2008518.126 | I145: 2404196197 | J145: -29286576.52
H146: 2005941.743 | I146: 2401112266 | J146: -29286576.52
H147: 2003365.359 | I147: 2398028335 | J147: -29286576.52
H148: 2000788.976 | I148: 2394944404 | J148: -29286576.52
H149: 1998212.593 | I149: 2391860473 | J149: -29286576.52
H150: 1995636.209 | I150: 2388776543 | J150: -29286576.52
H151: 1993059.826 | I151: 2385692612 | J151: -29286576.52
H152: 1990483.443 | I152: 2382608681 | J152: -29286576.52
H153: 1987907.059 | I153: 2379524750 | J153: -29286576.52
H154: 1985330.676 | I154: 2376440819 | J154: -29286576.52
H155: 1982754.293 | I155: 2373356888 | J155: -29286576.52
H156: 1980177.909 | I156: 2370272958 | J156: -29286576.52
H157: 1977601.526 | I157: 2367189027 | J157: -29286576.52
H158: 1975025.143 | I158: 2364105096 | J158: -29286576.52
H159: 1972448.759 | I159: 2361021165 | J159: -29286576.52
H160: 1969872.376 | I160: 2357937234 | J160: -29286576.52
H161: 1967295.993 | I161: 2354853303 | J161: -29286576.52
H162: 1964719.609 | I162: 2351769372 | J162: -29286576.52
H163: 1962143.226 | I163: 2348685442 | J163: -29286576.52
H164: 1959566.843 | I164: 2345601511 | J164: -29286576.52
H165: 1956990.459 | I165: 2342517580 | J165: -29286576.52
H166: 1954414.076 | I166: 2339433649 | J166: -29286576.52
H167: 1951837.693 | I167: 2336349718 | J167: -29286576.52
H168: 1949261.31 | I168: 2333265787 | J168: -29286576.52
H169: 1946684.926 | I169: 2330181857 | J169: -29286576.52
H170: 1944108.543 | I170: 2327097926 | J170: -29286576.52
H171: 1941532.16 | I171: 2324013995 | J171: -29286576.52
H172: 1938955.776 | I172: 2320930064 | J172: -29286576.52
H173: 1936379.393 | I173: 2317846133 | J173: -29286576.52
H174: 1933803.01 | I174: 2314762202 | J174: -29286576.52
H175: 1931226.626 | I175: 2311678272 | J175: -29286576.52
H176: 1928650.243 | I176: 2308594341 | J176: -29286576.52
H177: 1926073.86 | I177: 2305510410 | J177: -29286576.52
H178: 1923497.476 | I178: 2302426479 | J178: -29286576.52
H179: 1920921.093 | I179: 2299342548 | J179: -29286576.52
H180: 1918344.71 | I180: 2296258617 | J180: -29286576.52
H181: 1915768.326 | I181: 2293174687 | J181: -29286576.52
H182: 1913191.943 | I182: 2290090756 | J182: -29286576.52
H183: 1910615.56 | I183: 2287006825 | J183: -29286576.52
H184: 1908039.176 | I184: 2283922894 | J184: -29286576.52
H185: 1905462.793 | I185: 2280838963 | J185: -29286576.52
H186: 1902886.41 | I186: 2277755032 | J186: -29286576.52
H187: 1900310.026 | I187: 2274671102 | J187: -29286576.52
H188: 1897733.643 | I188: 2271587171 | J188: -29286576.52
H189: 1895157.26 | I189: 2268503240 | J189: -29286576.52
H190: 1892580.876 | I190: 2265419309 | J190: -29286576.52
H191: 1890004.493 | I191: 2262335378 | J191: -29286576.52
H192: 1887428.11 | I192: 2259251447 | J192: -29286576.52
H193: 1884851.727 | I193: 2256167517 | J193: -29286576.52
H194: 1882275.343 | I194: 2253083586 | J194: -29286576.52
H195: 1879698.96 | I195: 2249999655 | J195: -29286576.52
H196: 1877122.577 | I196: 2246915724 | J196: -29286576.52
H197: 1874546.193 | I197: 2243831793 | J197: -29286576.52
H198: 1871969.81 | I198: 2240747862 | J198: -29286576.52
H199: 1869393.427 | I199: 2237663932 | J199: -29286576.52
H200: 1866817.043 | I200: 2234580001 | J200: -29286576.52
H201: 1864240.66 | I201: 2231496070 | J201: -29286576.52
H202: 1861664.277 | I202: 2228412139 | J202: -29286576.52
H203: 1859087.893 | I203: 2225328208 | J203: -29286576.52
H204: 1856511.51 | I204: 2222244277 | J204: -29286576.52
H205: 1853935.127 | I205: 2219160347 | J205: -29286576.52
H206: 1851358.743 | I206: 2216076416 | J206: -29286576.52
H207: 1848782.36 | I207: 2212992485 | J207: -29286576.52
H208: 1846205.977 | I208: 2209908554 | J208: -29286576.52
H209: 1843629.593 | I209: 2206824623 | J209: -29286576.52
H210: 1841053.21 | I210: 2203740692 | J210: -29286576.52
... 93 more rows

Sheet Help

Sheet Res_Info
A1: Reservoirs | B1: Storage | C1: Lost Volume | D1: Actual Volume
A2: Flaming Gorge | B2: 3788799 | C2: =B2*(Analysis!E$15)*56 -> 1442774.659 | D2: =B2-C2 -> 2346024.341
A3: Jordanelle | B3: 320300 | C3: =B3*(Analysis!E$15)*28 -> 60985.12 | D3: =B3-C3 -> 259314.88
A4: Deer Creek | B4: 152570 | C4: =B4*(Analysis!E$15)*82 -> 85073.032 | D4: 67496.968

Sheet Deer_Creek_Benefits
B1: BENEFITS
C2: With Sedimentation Management | M2: Without Management
B3: Reservoir Capacity | C3: Water Value | D3: Irrigation | E3: M&I | F3: Flood Control | G3: Recreation | H3: Hydropower | I3: Fish and Widlife | J3: Total Annual Benefits | L3: Reservoir Capacity | M3: Water Value | N3: Irrigation | O3: M&I | P3: Flood Control | Q3: Recreation | R3: Hydropower | S3: Fish and Widlife | T3: Total Annual Benefits
A4: 1 | B4: =Res_Info!D4 -> 67496.968 | C4: =B4*247 -> 16671751.1 | D4: =B4*190 -> 12824423.92 | E4: =B4*300 -> 20249090.4 | F4: =B4*100 -> 6749696.8 | G4: =B4*50 -> 3374848.4 | H4: =B4*300 -> 20249090.4 | I4: =B4*10 -> 674969.68 | J4: =SUM(C4:I4) -> 80793870.7 | L4: =Res_Info!D4 -> 67496.968 | M4: =0.95*(247*L4) -> 15838163.54 | N4: =L4*190 -> 12824423.92 | O4: =L4*300 -> 20249090.4 | P4: =L4*100 -> 6749696.8 | Q4: =L4*50 -> 3374848.4 | R4: =L4*300 -> 20249090.4 | S4: =L4*10 -> 674969.68 | T4: =SUM(M4:S4) -> 79960283.14
A5: 2 | B5: =B4-((152570*(Analysis!E$15))-((152570*(Analysis!E$15)*(Analysis!E$19)))) -> 67393.2204 | C5: =B5*247 -> 16646125.44 | D5: =B5*190 -> 12804711.88 | E5: =B5*300 -> 20217966.12 | F5: =B5*100 -> 6739322.04 | G5: =B5*50 -> 3369661.02 | H5: =B5*300 -> 20217966.12 | I5: 673932.204 | J5: =SUM(C5:I5) -> 80669684.82 | L5: =L4-(152570*(Analysis!E$15)) -> 66459.492 | M5: =0.95*(247*L5) -> 15594719.8 | N5: =L5*190 -> 12627303.48 | O5: =L5*300 -> 19937847.6 | P5: =L5*100 -> 6645949.2 | Q5: =L5*50 -> 3322974.6 | R5: =L5*300 -> 19937847.6 | S5: =L5*10 -> 664594.92 | T5: =SUM(M5:S5) -> 78731237.2
A6: 3 | B6: =B5-((152570*(Analysis!E$15))-((152570*(Analysis!E$15)*(Analysis!E$19)))) -> 67289.4728 | C6: 16620499.78 | D6: 12784999.83 | E6: 20186841.84 | F6: 6728947.28 | G6: 3364473.64 | H6: 20186841.84 | I6: 672894.728 | J6: 80545498.94 | L6: =L5-(152570*(Analysis!E$15)) -> 65422.016 | M6: =0.95*(247*L6) -> 15351276.05 | N6: =L6*190 -> 12430183.04 | O6: =L6*300 -> 19626604.8 | P6: =L6*100 -> 6542201.6 | Q6: =L6*50 -> 3271100.8 | R6: =L6*300 -> 19626604.8 | S6: =L6*10 -> 654220.16 | T6: 77502191.25
A7: 4 | B7: =B6-((152570*(Analysis!E$15))-((152570*(Analysis!E$15)*(Analysis!E$19)))) -> 67185.7252 | C7: 16594874.12 | D7: 12765287.79 | E7: 20155717.56 | F7: 6718572.52 | G7: 3359286.26 | H7: 20155717.56 | I7: 671857.252 | J7: =SUM(C7:I7) -> 80421313.06 | L7: =L6-(152570*(Analysis!E$15)) -> 64384.54 | M7: =0.95*(247*L7) -> 15107832.31 | N7: =L7*190 -> 12233062.6 | O7: =L7*300 -> 19315362 | P7: =L7*100 -> 6438454 | Q7: =L7*50 -> 3219227 | R7: =L7*300 -> 19315362 | S7: =L7*10 -> 643845.4 | T7: 76273145.31
A8: 5 | B8: =B7-((152570*(Analysis!E$15))-((152570*(Analysis!E$15)*(Analysis!E$19)))) -> 67081.9776 | C8: 16569248.47 | D8: 12745575.74 | E8: 20124593.28 | F8: 6708197.76 | G8: 3354098.88 | H8: 20124593.28 | I8: 670819.776 | J8: 80297127.19 | L8: =L7-(152570*(Analysis!E$15)) -> 63347.064 | M8: 14864388.57 | N8: 12035942.16 | O8: 19004119.2 | P8: 6334706.4 | Q8: 3167353.2 | R8: 19004119.2 | S8: 633470.64 | T8: 75044099.37
A9: 6 | B9: =B8-((152570*(Analysis!E$15))-((152570*(Analysis!E$15)*(Analysis!E$19)))) -> 66978.23 | C9: 16543622.81 | D9: 12725863.7 | E9: 20093469 | F9: 6697823 | G9: 3348911.5 | H9: 20093469 | I9: 669782.3 | J9: 80172941.31 | L9: =L8-(152570*(Analysis!E$15)) -> 62309.588 | M9: 14620944.82 | N9: 11838821.72 | O9: 18692876.4 | P9: 6230958.8 | Q9: 3115479.4 | R9: 18692876.4 | S9: 623095.88 | T9: 73815053.42
A10: 7 | B10: =B9-((152570*(Analysis!E$15))-((152570*(Analysis!E$15)*(Analysis!E$19)))) -> 66874.4824 | C10: 16517997.15 | D10: 12706151.66 | E10: 20062344.72 | F10: 6687448.24 | G10: 3343724.12 | H10: 20062344.72 | I10: 668744.824 | J10: 80048755.43 | L10: =L9-(152570*(Analysis!E$15)) -> 61272.112 | M10: 14377501.08 | N10: 11641701.28 | O10: 18381633.6 | P10: 6127211.2 | Q10: 3063605.6 | R10: 18381633.6 | S10: 612721.12 | T10: 72586007.48
A11: 8 | B11: =B10-((152570*(Analysis!E$15))-((152570*(Analysis!E$15)*(Analysis!E$19)))) -> 66770.7348 | C11: 16492371.5 | D11: 12686439.61 | E11: 20031220.44 | F11: 6677073.48 | G11: 3338536.74 | H11: 20031220.44 | I11: 667707.348 | J11: 79924569.56 | L11: =L10-(152570*(Analysis!E$15)) -> 60234.636 | M11: 14134057.34 | N11: 11444580.84 | O11: 18070390.8 | P11: 6023463.6 | Q11: 3011731.8 | R11: 18070390.8 | S11: 602346.36 | T11: 71356961.54
A12: 9 | B12: =B11-((152570*(Analysis!E$15))-((152570*(Analysis!E$15)*(Analysis!E$19)))) -> 66666.9872 | C12: 16466745.84 | D12: 12666727.57 | E12: 20000096.16 | F12: 6666698.72 | G12: 3333349.36 | H12: 20000096.16 | I12: 666669.872 | J12: 79800383.68 | L12: =L11-(152570*(Analysis!E$15)) -> 59197.16 | M12: 13890613.59 | N12: 11247460.4 | O12: 17759148 | P12: 5919716 | Q12: 2959858 | R12: 17759148 | S12: 591971.6 | T12: 70127915.59
A13: 10 | B13: =B12-((152570*(Analysis!E$15))-((152570*(Analysis!E$15)*(Analysis!E$19)))) -> 66563.2396 | C13: 16441120.18 | D13: 12647015.52 | E13: 19968971.88 | F13: 6656323.96 | G13: 3328161.98 | H13: 19968971.88 | I13: 665632.396 | J13: 79676197.8 | L13: =L12-(152570*(Analysis!E$15)) -> 58159.684 | M13: 13647169.85 | N13: 11050339.96 | O13: 17447905.2 | P13: 5815968.4 | Q13: 2907984.2 | R13: 17447905.2 | S13: 581596.84 | T13: 68898869.65
A14: 11 | B14: =B13-((152570*(Analysis!E$15))-((152570*(Analysis!E$15)*(Analysis!E$19)))) -> 66459.492 | C14: 16415494.52 | D14: 12627303.48 | E14: 19937847.6 | F14: 6645949.2 | G14: 3322974.6 | H14: 19937847.6 | I14: 664594.92 | J14: 79552011.92 | L14: =L13-(152570*(Analysis!E$15)) -> 57122.208 | M14: 13403726.11 | N14: 10853219.52 | O14: 17136662.4 | P14: 5712220.8 | Q14: 2856110.4 | R14: 17136662.4 | S14: 571222.08 | T14: 67669823.71
A15: 12 | B15: =B14-((152570*(Analysis!E$15))-((152570*(Analysis!E$15)*(Analysis!E$19)))) -> 66355.7444 | C15: 16389868.87 | D15: 12607591.44 | E15: 19906723.32 | F15: 6635574.44 | G15: 3317787.22 | H15: 19906723.32 | I15: 663557.444 | J15: 79427826.05 | L15: =L14-(152570*(Analysis!E$15)) -> 56084.732 | M15: 13160282.36 | N15: 10656099.08 | O15: 16825419.6 | P15: 5608473.2 | Q15: 2804236.6 | R15: 16825419.6 | S15: 560847.32 | T15: 66440777.76
A16: 13 | B16: =B15-((152570*(Analysis!E$15))-((152570*(Analysis!E$15)*(Analysis!E$19)))) -> 66251.9968 | C16: 16364243.21 | D16: 12587879.39 | E16: 19875599.04 | F16: 6625199.68 | G16: 3312599.84 | H16: 19875599.04 | I16: 662519.968 | J16: 79303640.17 | L16: =L15-(152570*(Analysis!E$15)) -> 55047.256 | M16: 12916838.62 | N16: 10458978.64 | O16: 16514176.8 | P16: 5504725.6 | Q16: 2752362.8 | R16: 16514176.8 | S16: 550472.56 | T16: 65211731.82
A17: 14 | B17: =B16-((152570*(Analysis!E$15))-((152570*(Analysis!E$15)*(Analysis!E$19)))) -> 66148.2492 | C17: 16338617.55 | D17: 12568167.35 | E17: 19844474.76 | F17: 6614824.92 | G17: 3307412.46 | H17: 19844474.76 | I17: 661482.492 | J17: 79179454.29 | L17: =L16-(152570*(Analysis!E$15)) -> 54009.78 | M17: 12673394.88 | N17: 10261858.2 | O17: 16202934 | P17: 5400978 | Q17: 2700489 | R17: 16202934 | S17: 540097.8 | T17: 63982685.88
A18: 15 | B18: =B17-((152570*(Analysis!E$15))-((152570*(Analysis!E$15)*(Analysis!E$19)))) -> 66044.5016 | C18: 16312991.9 | D18: 12548455.3 | E18: 19813350.48 | F18: 6604450.16 | G18: 3302225.08 | H18: 19813350.48 | I18: 660445.016 | J18: 79055268.42 | L18: =L17-(152570*(Analysis!E$15)) -> 52972.304 | M18: 12429951.13 | N18: 10064737.76 | O18: 15891691.2 | P18: 5297230.4 | Q18: 2648615.2 | R18: 15891691.2 | S18: 529723.04 | T18: 62753639.93
A19: 16 | B19: =B18-((152570*(Analysis!E$15))-((152570*(Analysis!E$15)*(Analysis!E$19)))) -> 65940.754 | C19: 16287366.24 | D19: 12528743.26 | E19: 19782226.2 | F19: 6594075.4 | G19: 3297037.7 | H19: 19782226.2 | I19: 659407.54 | J19: 78931082.54 | L19: =L18-(152570*(Analysis!E$15)) -> 51934.828 | M19: 12186507.39 | N19: 9867617.32 | O19: 15580448.4 | P19: 5193482.8 | Q19: 2596741.4 | R19: 15580448.4 | S19: 519348.28 | T19: 61524593.99
A20: 17 | B20: =B19-((152570*(Analysis!E$15))-((152570*(Analysis!E$15)*(Analysis!E$19)))) -> 65837.0064 | C20: 16261740.58 | D20: 12509031.22 | E20: 19751101.92 | F20: 6583700.64 | G20: 3291850.32 | H20: 19751101.92 | I20: 658370.064 | J20: 78806896.66 | L20: =L19-(152570*(Analysis!E$15)) -> 50897.352 | M20: 11943063.65 | N20: 9670496.88 | O20: 15269205.6 | P20: 5089735.2 | Q20: 2544867.6 | R20: 15269205.6 | S20: 508973.52 | T20: 60295548.05
A21: 18 | B21: =B20-((152570*(Analysis!E$15))-((152570*(Analysis!E$15)*(Analysis!E$19)))) -> 65733.2588 | C21: 16236114.92 | D21: 12489319.17 | E21: 19719977.64 | F21: 6573325.88 | G21: 3286662.94 | H21: 19719977.64 | I21: 657332.588 | J21: 78682710.78 | L21: =L20-(152570*(Analysis!E$15)) -> 49859.876 | M21: 11699619.9 | N21: 9473376.44 | O21: 14957962.8 | P21: 4985987.6 | Q21: 2492993.8 | R21: 14957962.8 | S21: 498598.76 | T21: 59066502.1
A22: 19 | B22: =B21-((152570*(Analysis!E$15))-((152570*(Analysis!E$15)*(Analysis!E$19)))) -> 65629.5112 | C22: 16210489.27 | D22: 12469607.13 | E22: 19688853.36 | F22: 6562951.12 | G22: 3281475.56 | H22: 19688853.36 | I22: 656295.112 | J22: 78558524.91 | L22: =L21-(152570*(Analysis!E$15)) -> 48822.4 | M22: 11456176.16 | N22: 9276256 | O22: 14646720 | P22: 4882240 | Q22: 2441120 | R22: 14646720 | S22: 488224 | T22: 57837456.16
A23: 20 | B23: =B22-((152570*(Analysis!E$15))-((152570*(Analysis!E$15)*(Analysis!E$19)))) -> 65525.7636 | C23: 16184863.61 | D23: 12449895.08 | E23: 19657729.08 | F23: 6552576.36 | G23: 3276288.18 | H23: 19657729.08 | I23: 655257.636 | J23: 78434339.03 | L23: =L22-(152570*(Analysis!E$15)) -> 47784.924 | M23: 11212732.42 | N23: 9079135.56 | O23: 14335477.2 | P23: 4778492.4 | Q23: 2389246.2 | R23: 14335477.2 | S23: 477849.24 | T23: 56608410.22
A24: 21 | B24: =B23-((152570*(Analysis!E$15))-((152570*(Analysis!E$15)*(Analysis!E$19)))) -> 65422.016 | C24: 16159237.95 | D24: 12430183.04 | E24: 19626604.8 | F24: 6542201.6 | G24: 3271100.8 | H24: 19626604.8 | I24: 654220.16 | J24: 78310153.15 | L24: =L23-(152570*(Analysis!E$15)) -> 46747.448 | M24: 10969288.67 | N24: 8882015.12 | O24: 14024234.4 | P24: 4674744.8 | Q24: 2337372.4 | R24: 14024234.4 | S24: 467474.48 | T24: 55379364.27
A25: 22 | B25: =B24-((152570*(Analysis!E$15))-((152570*(Analysis!E$15)*(Analysis!E$19)))) -> 65318.2684 | C25: 16133612.29 | D25: 12410471 | E25: 19595480.52 | F25: 6531826.84 | G25: 3265913.42 | H25: 19595480.52 | I25: 653182.684 | J25: 78185967.27 | L25: =L24-(152570*(Analysis!E$15)) -> 45709.972 | M25: 10725844.93 | N25: 8684894.68 | O25: 13712991.6 | P25: 4570997.2 | Q25: 2285498.6 | R25: 13712991.6 | S25: 457099.72 | T25: 54150318.33
A26: 23 | B26: =B25-((152570*(Analysis!E$15))-((152570*(Analysis!E$15)*(Analysis!E$19)))) -> 65214.5208 | C26: 16107986.64 | D26: 12390758.95 | E26: 19564356.24 | F26: 6521452.08 | G26: 3260726.04 | H26: 19564356.24 | I26: 652145.208 | J26: 78061781.4 | L26: =L25-(152570*(Analysis!E$15)) -> 44672.496 | M26: 10482401.19 | N26: 8487774.24 | O26: 13401748.8 | P26: 4467249.6 | Q26: 2233624.8 | R26: 13401748.8 | S26: 446724.96 | T26: 52921272.39
A27: 24 | B27: =B26-((152570*(Analysis!E$15))-((152570*(Analysis!E$15)*(Analysis!E$19)))) -> 65110.7732 | C27: 16082360.98 | D27: 12371046.91 | E27: 19533231.96 | F27: 6511077.32 | G27: 3255538.66 | H27: 19533231.96 | I27: 651107.732 | J27: 77937595.52 | L27: =L26-(152570*(Analysis!E$15)) -> 43635.02 | M27: 10238957.44 | N27: 8290653.8 | O27: 13090506 | P27: 4363502 | Q27: 2181751 | R27: 13090506 | S27: 436350.2 | T27: 51692226.44
A28: 25 | B28: =B27-((152570*(Analysis!E$15))-((152570*(Analysis!E$15)*(Analysis!E$19)))) -> 65007.0256 | C28: 16056735.32 | D28: 12351334.86 | E28: 19502107.68 | F28: 6500702.56 | G28: 3250351.28 | H28: 19502107.68 | I28: 650070.256 | J28: 77813409.64 | L28: =L27-(152570*(Analysis!E$15)) -> 42597.544 | M28: 9995513.7 | N28: 8093533.36 | O28: 12779263.2 | P28: 4259754.4 | Q28: 2129877.2 | R28: 12779263.2 | S28: 425975.44 | T28: 50463180.5
A29: 26 | B29: =B28-((152570*(Analysis!E$15))-((152570*(Analysis!E$15)*(Analysis!E$19)))) -> 64903.278 | C29: 16031109.67 | D29: 12331622.82 | E29: 19470983.4 | F29: 6490327.8 | G29: 3245163.9 | H29: 19470983.4 | I29: 649032.78 | J29: 77689223.77 | L29: =L28-(152570*(Analysis!E$15)) -> 41560.068 | M29: 9752069.956 | N29: 7896412.92 | O29: 12468020.4 | P29: 4156006.8 | Q29: 2078003.4 | R29: 12468020.4 | S29: 415600.68 | T29: 49234134.56
A30: 27 | B30: =B29-((152570*(Analysis!E$15))-((152570*(Analysis!E$15)*(Analysis!E$19)))) -> 64799.5304 | C30: 16005484.01 | D30: 12311910.78 | E30: 19439859.12 | F30: 6479953.04 | G30: 3239976.52 | H30: 19439859.12 | I30: 647995.304 | J30: 77565037.89 | L30: =L29-(152570*(Analysis!E$15)) -> 40522.592 | M30: 9508626.213 | N30: 7699292.48 | O30: 12156777.6 | P30: 4052259.2 | Q30: 2026129.6 | R30: 12156777.6 | S30: 405225.92 | T30: 48005088.61
A31: 28 | B31: =B30-((152570*(Analysis!E$15))-((152570*(Analysis!E$15)*(Analysis!E$19)))) -> 64695.7828 | C31: 15979858.35 | D31: 12292198.73 | E31: 19408734.84 | F31: 6469578.28 | G31: 3234789.14 | H31: 19408734.84 | I31: 646957.828 | J31: 77440852.01 | L31: =L30-(152570*(Analysis!E$15)) -> 39485.116 | M31: 9265182.469 | N31: 7502172.04 | O31: 11845534.8 | P31: 3948511.6 | Q31: 1974255.8 | R31: 11845534.8 | S31: 394851.16 | T31: 46776042.67
A32: 29 | B32: =B31-((152570*(Analysis!E$15))-((152570*(Analysis!E$15)*(Analysis!E$19)))) -> 64592.0352 | C32: 15954232.69 | D32: 12272486.69 | E32: 19377610.56 | F32: 6459203.52 | G32: 3229601.76 | H32: 19377610.56 | I32: 645920.352 | J32: 77316666.13 | L32: =L31-(152570*(Analysis!E$15)) -> 38447.64 | M32: 9021738.726 | N32: 7305051.6 | O32: 11534292 | P32: 3844764 | Q32: 1922382 | R32: 11534292 | S32: 384476.4 | T32: 45546996.73
A33: 30 | B33: =B32-((152570*(Analysis!E$15))-((152570*(Analysis!E$15)*(Analysis!E$19)))) -> 64488.2876 | C33: 15928607.04 | D33: 12252774.64 | E33: 19346486.28 | F33: 6448828.76 | G33: 3224414.38 | H33: 19346486.28 | I33: 644882.876 | J33: 77192480.26 | L33: =L32-(152570*(Analysis!E$15)) -> 37410.164 | M33: 8778294.983 | N33: 7107931.16 | O33: 11223049.2 | P33: 3741016.4 | Q33: 1870508.2 | R33: 11223049.2 | S33: 374101.64 | T33: 44317950.78
A34: 31 | B34: =B33-((152570*(Analysis!E$15))-((152570*(Analysis!E$15)*(Analysis!E$19)))) -> 64384.54 | C34: 15902981.38 | D34: 12233062.6 | E34: 19315362 | F34: 6438454 | G34: 3219227 | H34: 19315362 | I34: 643845.4 | J34: 77068294.38 | L34: =L33-(152570*(Analysis!E$15)) -> 36372.688 | M34: 8534851.239 | N34: 6910810.72 | O34: 10911806.4 | P34: 3637268.8 | Q34: 1818634.4 | R34: 10911806.4 | S34: 363726.88 | T34: 43088904.84
A35: 32 | B35: =B34-((152570*(Analysis!E$15))-((152570*(Analysis!E$15)*(Analysis!E$19)))) -> 64280.7924 | C35: 15877355.72 | D35: 12213350.56 | E35: 19284237.72 | F35: 6428079.24 | G35: 3214039.62 | H35: 19284237.72 | I35: 642807.924 | J35: 76944108.5 | L35: =L34-(152570*(Analysis!E$15)) -> 35335.212 | M35: 8291407.496 | N35: 6713690.28 | O35: 10600563.6 | P35: 3533521.2 | Q35: 1766760.6 | R35: 10600563.6 | S35: 353352.12 | T35: 41859858.9
A36: 33 | B36: =B35-((152570*(Analysis!E$15))-((152570*(Analysis!E$15)*(Analysis!E$19)))) -> 64177.0448 | C36: 15851730.07 | D36: 12193638.51 | E36: 19253113.44 | F36: 6417704.48 | G36: 3208852.24 | H36: 19253113.44 | I36: =B36*10 -> 641770.448 | J36: 76819922.63 | L36: =L35-(152570*(Analysis!E$15)) -> 34297.736 | M36: 8047963.752 | N36: 6516569.84 | O36: 10289320.8 | P36: 3429773.6 | Q36: 1714886.8 | R36: 10289320.8 | S36: 342977.36 | T36: 40630812.95
A37: 34 | B37: =B36-((152570*(Analysis!E$15))-((152570*(Analysis!E$15)*(Analysis!E$19)))) -> 64073.2972 | C37: 15826104.41 | D37: 12173926.47 | E37: 19221989.16 | F37: 6407329.72 | G37: 3203664.86 | H37: 19221989.16 | I37: 640732.972 | J37: 76695736.75 | L37: =L36-(152570*(Analysis!E$15)) -> 33260.26 | M37: 7804520.009 | N37: 6319449.4 | O37: 9978078 | P37: 3326026 | Q37: 1663013 | R37: 9978078 | S37: 332602.6 | T37: 39401767.01
A38: 35 | B38: =B37-((152570*(Analysis!E$15))-((152570*(Analysis!E$15)*(Analysis!E$19)))) -> 63969.5496 | C38: 15800478.75 | D38: 12154214.42 | E38: 19190864.88 | F38: 6396954.96 | G38: 3198477.48 | H38: 19190864.88 | I38: 639695.496 | J38: 76571550.87 | L38: =L37-(152570*(Analysis!E$15)) -> 32222.784 | M38: 7561076.266 | N38: 6122328.96 | O38: 9666835.2 | P38: 3222278.4 | Q38: 1611139.2 | R38: 9666835.2 | S38: 322227.84 | T38: 38172721.07
A39: 36 | B39: =B38-((152570*(Analysis!E$15))-((152570*(Analysis!E$15)*(Analysis!E$19)))) -> 63865.802 | C39: 15774853.09 | D39: 12134502.38 | E39: 19159740.6 | F39: 6386580.2 | G39: 3193290.1 | H39: 19159740.6 | I39: 638658.02 | J39: 76447364.99 | L39: =L38-(152570*(Analysis!E$15)) -> 31185.308 | M39: 7317632.522 | N39: 5925208.52 | O39: 9355592.4 | P39: 3118530.8 | Q39: 1559265.4 | R39: 9355592.4 | S39: 311853.08 | T39: 36943675.12
A40: 37 | B40: =B39-((152570*(Analysis!E$15))-((152570*(Analysis!E$15)*(Analysis!E$19)))) -> 63762.0544 | C40: 15749227.44 | D40: 12114790.34 | E40: 19128616.32 | F40: 6376205.44 | G40: 3188102.72 | H40: 19128616.32 | I40: 637620.544 | J40: 76323179.12 | L40: =L39-(152570*(Analysis!E$15)) -> 30147.832 | M40: 7074188.779 | N40: 5728088.08 | O40: 9044349.6 | P40: 3014783.2 | Q40: 1507391.6 | R40: 9044349.6 | S40: 301478.32 | T40: 35714629.18
A41: 38 | B41: =B40-((152570*(Analysis!E$15))-((152570*(Analysis!E$15)*(Analysis!E$19)))) -> 63658.3068 | C41: 15723601.78 | D41: 12095078.29 | E41: 19097492.04 | F41: 6365830.68 | G41: 3182915.34 | H41: 19097492.04 | I41: 636583.068 | J41: 76198993.24 | L41: =L40-(152570*(Analysis!E$15)) -> 29110.356 | M41: 6830745.035 | N41: 5530967.64 | O41: 8733106.8 | P41: 2911035.6 | Q41: 1455517.8 | R41: 8733106.8 | S41: 291103.56 | T41: 34485583.24
A42: 39 | B42: =B41-((152570*(Analysis!E$15))-((152570*(Analysis!E$15)*(Analysis!E$19)))) -> 63554.5592 | C42: 15697976.12 | D42: 12075366.25 | E42: 19066367.76 | F42: 6355455.92 | G42: 3177727.96 | H42: 19066367.76 | I42: 635545.592 | J42: 76074807.36 | L42: =L41-(152570*(Analysis!E$15)) -> 28072.88 | M42: 6587301.292 | N42: 5333847.2 | O42: 8421864 | P42: 2807288 | Q42: 1403644 | R42: 8421864 | S42: 280728.8 | T42: 33256537.29
A43: 40 | B43: =B42-((152570*(Analysis!E$15))-((152570*(Analysis!E$15)*(Analysis!E$19)))) -> 63450.8116 | C43: 15672350.47 | D43: 12055654.2 | E43: 19035243.48 | F43: 6345081.16 | G43: 3172540.58 | H43: 19035243.48 | I43: 634508.116 | J43: 75950621.49 | L43: =L42-(152570*(Analysis!E$15)) -> 27035.404 | M43: 6343857.549 | N43: 5136726.76 | O43: 8110621.2 | P43: 2703540.4 | Q43: 1351770.2 | R43: 8110621.2 | S43: 270354.04 | T43: 32027491.35
A44: 41 | B44: =B43-((152570*(Analysis!E$15))-((152570*(Analysis!E$15)*(Analysis!E$19)))) -> 63347.064 | C44: 15646724.81 | D44: 12035942.16 | E44: 19004119.2 | F44: 6334706.4 | G44: 3167353.2 | H44: 19004119.2 | I44: 633470.64 | J44: 75826435.61 | L44: =L43-(152570*(Analysis!E$15)) -> 25997.928 | M44: 6100413.805 | N44: 4939606.32 | O44: 7799378.4 | P44: 2599792.8 | Q44: 1299896.4 | R44: 7799378.4 | S44: 259979.28 | T44: 30798445.41
A45: 42 | B45: =B44-((152570*(Analysis!E$15))-((152570*(Analysis!E$15)*(Analysis!E$19)))) -> 63243.3164 | C45: 15621099.15 | D45: 12016230.12 | E45: 18972994.92 | F45: 6324331.64 | G45: 3162165.82 | H45: 18972994.92 | I45: 632433.164 | J45: 75702249.73 | L45: =L44-(152570*(Analysis!E$15)) -> 24960.452 | M45: 5856970.062 | N45: 4742485.88 | O45: 7488135.6 | P45: 2496045.2 | Q45: 1248022.6 | R45: 7488135.6 | S45: 249604.52 | T45: 29569399.46
A46: 43 | B46: =B45-((152570*(Analysis!E$15))-((152570*(Analysis!E$15)*(Analysis!E$19)))) -> 63139.5688 | C46: 15595473.49 | D46: 11996518.07 | E46: 18941870.64 | F46: 6313956.88 | G46: 3156978.44 | H46: 18941870.64 | I46: 631395.688 | J46: 75578063.85 | L46: =L45-(152570*(Analysis!E$15)) -> 23922.976 | M46: 5613526.318 | N46: 4545365.44 | O46: 7176892.8 | P46: 2392297.6 | Q46: 1196148.8 | R46: 7176892.8 | S46: 239229.76 | T46: 28340353.52
A47: 44 | B47: =B46-((152570*(Analysis!E$15))-((152570*(Analysis!E$15)*(Analysis!E$19)))) -> 63035.8212 | C47: 15569847.84 | D47: 11976806.03 | E47: 18910746.36 | F47: 6303582.12 | G47: 3151791.06 | H47: 18910746.36 | I47: 630358.212 | J47: 75453877.98 | L47: =L46-(152570*(Analysis!E$15)) -> 22885.5 | M47: 5370082.575 | N47: 4348245 | O47: 6865650 | P47: 2288550 | Q47: 1144275 | R47: 6865650 | S47: 228855 | T47: 27111307.57
A48: 45 | B48: =B47-((152570*(Analysis!E$15))-((152570*(Analysis!E$15)*(Analysis!E$19)))) -> 62932.0736 | C48: 15544222.18 | D48: 11957093.98 | E48: 18879622.08 | F48: 6293207.36 | G48: 3146603.68 | H48: 18879622.08 | I48: 629320.736 | J48: 75329692.1 | L48: =L47-(152570*(Analysis!E$15)) -> 21848.024 | M48: 5126638.832 | N48: 4151124.56 | O48: 6554407.2 | P48: 2184802.4 | Q48: 1092401.2 | R48: 6554407.2 | S48: 218480.24 | T48: 25882261.63
A49: 46 | B49: =B48-((152570*(Analysis!E$15))-((152570*(Analysis!E$15)*(Analysis!E$19)))) -> 62828.326 | C49: 15518596.52 | D49: 11937381.94 | E49: 18848497.8 | F49: 6282832.6 | G49: 3141416.3 | H49: 18848497.8 | I49: 628283.26 | J49: 75205506.22 | L49: =L48-(152570*(Analysis!E$15)) -> 20810.548 | M49: 4883195.088 | N49: 3954004.12 | O49: 6243164.4 | P49: 2081054.8 | Q49: 1040527.4 | R49: 6243164.4 | S49: 208105.48 | T49: 24653215.69
A50: 47 | B50: =B49-((152570*(Analysis!E$15))-((152570*(Analysis!E$15)*(Analysis!E$19)))) -> 62724.5784 | C50: 15492970.86 | D50: 11917669.9 | E50: 18817373.52 | F50: 6272457.84 | G50: 3136228.92 | H50: 18817373.52 | I50: 627245.784 | J50: 75081320.34 | L50: =L49-(152570*(Analysis!E$15)) -> 19773.072 | M50: 4639751.345 | N50: 3756883.68 | O50: 5931921.6 | P50: 1977307.2 | Q50: 988653.6 | R50: 5931921.6 | S50: 197730.72 | T50: 23424169.74
A51: 48 | B51: =B50-((152570*(Analysis!E$15))-((152570*(Analysis!E$15)*(Analysis!E$19)))) -> 62620.8308 | C51: 15467345.21 | D51: 11897957.85 | E51: 18786249.24 | F51: 6262083.08 | G51: 3131041.54 | H51: 18786249.24 | I51: 626208.308 | J51: 74957134.47 | L51: =L50-(152570*(Analysis!E$15)) -> 18735.596 | M51: 4396307.601 | N51: 3559763.24 | O51: 5620678.8 | P51: 1873559.6 | Q51: 936779.8 | R51: 5620678.8 | S51: 187355.96 | T51: 22195123.8
A52: 49 | B52: =B51-((152570*(Analysis!E$15))-((152570*(Analysis!E$15)*(Analysis!E$19)))) -> 62517.0832 | C52: 15441719.55 | D52: 11878245.81 | E52: 18755124.96 | F52: 6251708.32 | G52: 3125854.16 | H52: 18755124.96 | I52: 625170.832 | J52: 74832948.59 | L52: =L51-(152570*(Analysis!E$15)) -> 17698.12 | M52: 4152863.858 | N52: 3362642.8 | O52: 5309436 | P52: 1769812 | Q52: 884906 | R52: 5309436 | S52: 176981.2 | T52: 20966077.86
A53: 50 | B53: =B52-((152570*(Analysis!E$15))-((152570*(Analysis!E$15)*(Analysis!E$19)))) -> 62413.3356 | C53: 15416093.89 | D53: 11858533.76 | E53: 18724000.68 | F53: 6241333.56 | G53: 3120666.78 | H53: 18724000.68 | I53: 624133.356 | J53: 74708762.71 | L53: =L52-(152570*(Analysis!E$15)) -> 16660.644 | M53: 3909420.115 | N53: 3165522.36 | O53: 4998193.2 | P53: 1666064.4 | Q53: 833032.2 | R53: 4998193.2 | S53: 166606.44 | T53: 19737031.91
A54: 51 | B54: =B53-((152570*(Analysis!E$15))-((152570*(Analysis!E$15)*(Analysis!E$19)))) -> 62309.588 | C54: 15390468.24 | D54: 11838821.72 | E54: 18692876.4 | F54: 6230958.8 | G54: 3115479.4 | H54: 18692876.4 | I54: 623095.88 | J54: 74584576.84 | L54: =L53-(152570*(Analysis!E$15)) -> 15623.168 | M54: 3665976.371 | N54: 2968401.92 | O54: 4686950.4 | P54: 1562316.8 | Q54: 781158.4 | R54: 4686950.4 | S54: 156231.68 | T54: 18507985.97
A55: 52 | B55: =B54-((152570*(Analysis!E$15))-((152570*(Analysis!E$15)*(Analysis!E$19)))) -> 62205.8404 | C55: 15364842.58 | D55: 11819109.68 | E55: 18661752.12 | F55: 6220584.04 | G55: 3110292.02 | H55: 18661752.12 | I55: 622058.404 | J55: 74460390.96 | L55: =L54-(152570*(Analysis!E$15)) -> 14585.692 | M55: 3422532.628 | N55: 2771281.48 | O55: 4375707.6 | P55: 1458569.2 | Q55: 729284.6 | R55: 4375707.6 | S55: 145856.92 | T55: 17278940.03
A56: 53 | B56: =B55-((152570*(Analysis!E$15))-((152570*(Analysis!E$15)*(Analysis!E$19)))) -> 62102.0928 | C56: 15339216.92 | D56: 11799397.63 | E56: 18630627.84 | F56: 6210209.28 | G56: 3105104.64 | H56: 18630627.84 | I56: 621020.928 | J56: 74336205.08 | L56: =L55-(152570*(Analysis!E$15)) -> 13548.216 | M56: 3179088.884 | N56: 2574161.04 | O56: 4064464.8 | P56: 1354821.6 | Q56: 677410.8 | R56: 4064464.8 | S56: 135482.16 | T56: 16049894.08
A57: 54 | B57: =B56-((152570*(Analysis!E$15))-((152570*(Analysis!E$15)*(Analysis!E$19)))) -> 61998.3452 | C57: 15313591.26 | D57: 11779685.59 | E57: 18599503.56 | F57: 6199834.52 | G57: 3099917.26 | H57: 18599503.56 | I57: 619983.452 | J57: 74212019.2 | L57: =L56-(152570*(Analysis!E$15)) -> 12510.74 | M57: 2935645.141 | N57: 2377040.6 | O57: 3753222 | P57: 1251074 | Q57: 625537 | R57: 3753222 | S57: 125107.4 | T57: 14820848.14
A58: 55 | B58: =B57-((152570*(Analysis!E$15))-((152570*(Analysis!E$15)*(Analysis!E$19)))) -> 61894.5976 | C58: 15287965.61 | D58: 11759973.54 | E58: 18568379.28 | F58: 6189459.76 | G58: 3094729.88 | H58: 18568379.28 | I58: 618945.976 | J58: 74087833.33 | L58: =L57-(152570*(Analysis!E$15)) -> 11473.264 | M58: 2692201.398 | N58: 2179920.16 | O58: 3441979.2 | P58: 1147326.4 | Q58: 573663.2 | R58: 3441979.2 | S58: 114732.64 | T58: 13591802.2
A59: 56 | B59: =B58-((152570*(Analysis!E$15))-((152570*(Analysis!E$15)*(Analysis!E$19)))) -> 61790.85 | C59: 15262339.95 | D59: 11740261.5 | E59: 18537255 | F59: 6179085 | G59: 3089542.5 | H59: 18537255 | I59: 617908.5 | J59: 73963647.45 | L59: =L58-(152570*(Analysis!E$15)) -> 10435.788 | M59: 2448757.654 | N59: 1982799.72 | O59: 3130736.4 | P59: 1043578.8 | Q59: 521789.4 | R59: 3130736.4 | S59: 104357.88 | T59: 12362756.25
A60: 57 | B60: =B59-((152570*(Analysis!E$15))-((152570*(Analysis!E$15)*(Analysis!E$19)))) -> 61687.1024 | C60: 15236714.29 | D60: 11720549.46 | E60: 18506130.72 | F60: 6168710.24 | G60: 3084355.12 | H60: 18506130.72 | I60: 616871.024 | J60: 73839461.57 | L60: =L59-(152570*(Analysis!E$15)) -> 9398.312 | M60: 2205313.911 | N60: 1785679.28 | O60: 2819493.6 | P60: 939831.2 | Q60: 469915.6 | R60: 2819493.6 | S60: 93983.12 | T60: 11133710.31
A61: 58 | B61: =B60-((152570*(Analysis!E$15))-((152570*(Analysis!E$15)*(Analysis!E$19)))) -> 61583.3548 | C61: 15211088.64 | D61: 11700837.41 | E61: 18475006.44 | F61: 6158335.48 | G61: 3079167.74 | H61: 18475006.44 | I61: 615833.548 | J61: 73715275.7 | L61: =L60-(152570*(Analysis!E$15)) -> 8360.836 | M61: 1961870.167 | N61: 1588558.84 | O61: 2508250.8 | P61: 836083.6 | Q61: 418041.8 | R61: 2508250.8 | S61: 83608.36 | T61: 9904664.367
A62: 59 | B62: =B61-((152570*(Analysis!E$15))-((152570*(Analysis!E$15)*(Analysis!E$19)))) -> 61479.6072 | C62: 15185462.98 | D62: 11681125.37 | E62: 18443882.16 | F62: 6147960.72 | G62: 3073980.36 | H62: 18443882.16 | I62: 614796.072 | J62: 73591089.82 | L62: =L61-(152570*(Analysis!E$15)) -> 7323.36 | M62: 1718426.424 | N62: 1391438.4 | O62: 2197008 | P62: 732336 | Q62: 366168 | R62: 2197008 | S62: 73233.6 | T62: 8675618.424
A63: 60 | B63: =B62-((152570*(Analysis!E$15))-((152570*(Analysis!E$15)*(Analysis!E$19)))) -> 61375.8596 | C63: 15159837.32 | D63: 11661413.32 | E63: 18412757.88 | F63: 6137585.96 | G63: 3068792.98 | H63: 18412757.88 | I63: 613758.596 | J63: 73466903.94 | L63: =L62-(152570*(Analysis!E$15)) -> 6285.884 | M63: 1474982.681 | N63: 1194317.96 | O63: 1885765.2 | P63: 628588.4 | Q63: 314294.2 | R63: 1885765.2 | S63: 62858.84 | T63: 7446572.481
A64: 61 | B64: =B63-((152570*(Analysis!E$15))-((152570*(Analysis!E$15)*(Analysis!E$19)))) -> 61272.112 | C64: 15134211.66 | D64: 11641701.28 | E64: 18381633.6 | F64: 6127211.2 | G64: 3063605.6 | H64: 18381633.6 | I64: 612721.12 | J64: 73342718.06 | L64: =L63-(152570*(Analysis!E$15)) -> 5248.408 | M64: 1231538.937 | N64: 997197.52 | O64: 1574522.4 | P64: 524840.8 | Q64: 262420.4 | R64: 1574522.4 | S64: 52484.08 | T64: 6217526.537
A65: 62 | B65: =B64-((152570*(Analysis!E$15))-((152570*(Analysis!E$15)*(Analysis!E$19)))) -> 61168.3644 | C65: 15108586.01 | D65: 11621989.24 | E65: 18350509.32 | F65: 6116836.44 | G65: 3058418.22 | H65: 18350509.32 | I65: 611683.644 | J65: 73218532.19 | L65: =L64-(152570*(Analysis!E$15)) -> 4210.932 | M65: 988095.1938 | N65: 800077.08 | O65: 1263279.6 | P65: 421093.2 | Q65: 210546.6 | R65: 1263279.6 | S65: 42109.32 | T65: 4988480.594
A66: 63 | B66: =B65-((152570*(Analysis!E$15))-((152570*(Analysis!E$15)*(Analysis!E$19)))) -> 61064.6168 | C66: 15082960.35 | D66: 11602277.19 | E66: 18319385.04 | F66: 6106461.68 | G66: 3053230.84 | H66: 18319385.04 | I66: 610646.168 | J66: 73094346.31 | L66: =L65-(152570*(Analysis!E$15)) -> 3173.456 | M66: 744651.4504 | N66: 602956.64 | O66: 952036.8 | P66: 317345.6 | Q66: 158672.8 | R66: 952036.8 | S66: 31734.56 | T66: 3759434.65
A67: 64 | B67: =B66-((152570*(Analysis!E$15))-((152570*(Analysis!E$15)*(Analysis!E$19)))) -> 60960.8692 | C67: 15057334.69 | D67: 11582565.15 | E67: 18288260.76 | F67: 6096086.92 | G67: 3048043.46 | H67: 18288260.76 | I67: 609608.692 | J67: 72970160.43 | L67: =L66-(152570*(Analysis!E$15)) -> 2135.98 | M67: 501207.707 | N67: 405836.2 | O67: 640794 | P67: 213598 | Q67: 106799 | R67: 640794 | S67: 21359.8 | T67: 2530388.707
A68: 65 | B68: =B67-((152570*(Analysis!E$15))-((152570*(Analysis!E$15)*(Analysis!E$19)))) -> 60857.1216 | C68: 15031709.04 | D68: 11562853.1 | E68: 18257136.48 | F68: 6085712.16 | G68: 3042856.08 | H68: 18257136.48 | I68: =B68*10 -> 608571.216 | J68: 72845974.56 | L68: =L67-(152570*(Analysis!E$15)) -> 1098.504 | M68: 257763.9636 | N68: 208715.76 | O68: 329551.2 | P68: 109850.4 | Q68: 54925.2 | R68: 329551.2 | S68: 10985.04 | T68: 1301342.764
A69: 66 | B69: =B68-((152570*(Analysis!E$15))-((152570*(Analysis!E$15)*(Analysis!E$19)))) -> 60753.374 | C69: =B69*247 -> 15006083.38 | D69: =B69*190 -> 11543141.06 | E69: =B69*300 -> 18226012.2 | F69: =B69*100 -> 6075337.4 | G69: =B69*50 -> 3037668.7 | H69: =B69*300 -> 18226012.2 | I69: 607533.74 | J69: =SUM(C69:I69) -> 72721788.68 | L69: =L68-(152570*(Analysis!E$15)) -> 61.028 | M69: 14320.2202 | N69: 11595.32 | O69: 18308.4 | P69: 6102.8 | Q69: 3051.4 | R69: 18308.4 | S69: 610.28 | T69: =SUM(M69:S69) -> 72296.8202
A70: 67 | B70: =B69-((152570*(Analysis!E$15))-((152570*(Analysis!E$15)*(Analysis!E$19)))) -> 60649.6264 | C70: 14980457.72 | D70: 11523429.02 | E70: 18194887.92 | F70: 6064962.64 | G70: 3032481.32 | H70: 18194887.92 | I70: 606496.264 | J70: 72597602.8 | L70: =L69-(152570*(Analysis!E$15)) -> -976.448 | M70: -229123.5232 | N70: -185525.12 | O70: -292934.4 | P70: -97644.8 | Q70: -48822.4 | R70: -292934.4 | S70: -9764.48 | T70: -1156749.123
A71: 68 | B71: =B70-((152570*(Analysis!E$15))-((152570*(Analysis!E$15)*(Analysis!E$19)))) -> 60545.8788 | C71: 14954832.06 | D71: 11503716.97 | E71: 18163763.64 | F71: 6054587.88 | G71: 3027293.94 | H71: 18163763.64 | I71: 605458.788 | J71: 72473416.92 | L71: =L70-(152570*(Analysis!E$15)) -> -2013.924 | M71: =0.95*(247*L71) -> -472567.2666 | N71: =L71*190 -> -382645.56 | O71: =L71*300 -> -604177.2 | P71: =L71*100 -> -201392.4 | Q71: =L71*50 -> -100696.2 | R71: =L71*300 -> -604177.2 | S71: =L71*10 -> -20139.24 | T71: -2385795.067
A72: 69 | B72: =B71-((152570*(Analysis!E$15))-((152570*(Analysis!E$15)*(Analysis!E$19)))) -> 60442.1312 | C72: 14929206.41 | D72: 11484004.93 | E72: 18132639.36 | F72: 6044213.12 | G72: 3022106.56 | H72: 18132639.36 | I72: 604421.312 | J72: 72349231.05 | L72: =L71-(152570*(Analysis!E$15)) -> -3051.4 | M72: -716011.01 | N72: -579766 | O72: -915420 | P72: -305140 | Q72: -152570 | R72: -915420 | S72: -30514 | T72: -3614841.01
A73: 70 | B73: =B72-((152570*(Analysis!E$15))-((152570*(Analysis!E$15)*(Analysis!E$19)))) -> 60338.3836 | C73: 14903580.75 | D73: 11464292.88 | E73: 18101515.08 | F73: 6033838.36 | G73: 3016919.18 | H73: 18101515.08 | I73: 603383.836 | J73: 72225045.17 | L73: =L72-(152570*(Analysis!E$15)) -> -4088.876 | M73: -959454.7534 | N73: -776886.44 | O73: -1226662.8 | P73: -408887.6 | Q73: -204443.8 | R73: -1226662.8 | S73: -40888.76 | T73: -4843886.953
A74: 71 | B74: =B73-((152570*(Analysis!E$15))-((152570*(Analysis!E$15)*(Analysis!E$19)))) -> 60234.636 | C74: 14877955.09 | D74: 11444580.84 | E74: 18070390.8 | F74: 6023463.6 | G74: 3011731.8 | H74: 18070390.8 | I74: 602346.36 | J74: 72100859.29 | L74: =L73-(152570*(Analysis!E$15)) -> -5126.352 | M74: -1202898.497 | N74: -974006.88 | O74: -1537905.6 | P74: -512635.2 | Q74: -256317.6 | R74: -1537905.6 | S74: -51263.52 | T74: -6072932.897
A75: 72 | B75: =B74-((152570*(Analysis!E$15))-((152570*(Analysis!E$15)*(Analysis!E$19)))) -> 60130.8884 | C75: 14852329.43 | D75: 11424868.8 | E75: 18039266.52 | F75: 6013088.84 | G75: 3006544.42 | H75: 18039266.52 | I75: 601308.884 | J75: 71976673.41 | L75: =L74-(152570*(Analysis!E$15)) -> -6163.828 | M75: -1446342.24 | N75: -1171127.32 | O75: -1849148.4 | P75: -616382.8 | Q75: -308191.4 | R75: -1849148.4 | S75: -61638.28 | T75: -7301978.84
A76: 73 | B76: =B75-((152570*(Analysis!E$15))-((152570*(Analysis!E$15)*(Analysis!E$19)))) -> 60027.1408 | C76: 14826703.78 | D76: 11405156.75 | E76: 18008142.24 | F76: 6002714.08 | G76: 3001357.04 | H76: 18008142.24 | I76: 600271.408 | J76: 71852487.54 | L76: =L75-(152570*(Analysis!E$15)) -> -7201.304 | M76: -1689785.984 | N76: -1368247.76 | O76: -2160391.2 | P76: -720130.4 | Q76: -360065.2 | R76: -2160391.2 | S76: -72013.04 | T76: -8531024.784
A77: 74 | B77: =B76-((152570*(Analysis!E$15))-((152570*(Analysis!E$15)*(Analysis!E$19)))) -> 59923.3932 | C77: 14801078.12 | D77: 11385444.71 | E77: 17977017.96 | F77: 5992339.32 | G77: 2996169.66 | H77: 17977017.96 | I77: 599233.932 | J77: 71728301.66 | L77: =L76-(152570*(Analysis!E$15)) -> -8238.78 | M77: -1933229.727 | N77: -1565368.2 | O77: -2471634 | P77: -823878 | Q77: -411939 | R77: -2471634 | S77: -82387.8 | T77: -9760070.727
A78: 75 | B78: =B77-((152570*(Analysis!E$15))-((152570*(Analysis!E$15)*(Analysis!E$19)))) -> 59819.6456 | C78: 14775452.46 | D78: 11365732.66 | E78: 17945893.68 | F78: 5981964.56 | G78: 2990982.28 | H78: 17945893.68 | I78: 598196.456 | J78: 71604115.78 | L78: =L77-(152570*(Analysis!E$15)) -> -9276.256 | M78: -2176673.47 | N78: -1762488.64 | O78: -2782876.8 | P78: -927625.6 | Q78: -463812.8 | R78: -2782876.8 | S78: -92762.56 | T78: -10989116.67
A79: 76 | B79: =B78-((152570*(Analysis!E$15))-((152570*(Analysis!E$15)*(Analysis!E$19)))) -> 59715.898 | C79: 14749826.81 | D79: 11346020.62 | E79: 17914769.4 | F79: 5971589.8 | G79: 2985794.9 | H79: 17914769.4 | I79: 597158.98 | J79: 71479929.91 | L79: =L78-(152570*(Analysis!E$15)) -> -10313.732 | M79: -2420117.214 | N79: -1959609.08 | O79: -3094119.6 | P79: -1031373.2 | Q79: -515686.6 | R79: -3094119.6 | S79: -103137.32 | T79: -12218162.61
A80: 77 | B80: =B79-((152570*(Analysis!E$15))-((152570*(Analysis!E$15)*(Analysis!E$19)))) -> 59612.1504 | C80: 14724201.15 | D80: 11326308.58 | E80: 17883645.12 | F80: 5961215.04 | G80: 2980607.52 | H80: 17883645.12 | I80: 596121.504 | J80: 71355744.03 | L80: =L79-(152570*(Analysis!E$15)) -> -11351.208 | M80: -2663560.957 | N80: -2156729.52 | O80: -3405362.4 | P80: -1135120.8 | Q80: -567560.4 | R80: -3405362.4 | S80: -113512.08 | T80: -13447208.56
A81: 78 | B81: =B80-((152570*(Analysis!E$15))-((152570*(Analysis!E$15)*(Analysis!E$19)))) -> 59508.4028 | C81: 14698575.49 | D81: 11306596.53 | E81: 17852520.84 | F81: 5950840.28 | G81: 2975420.14 | H81: 17852520.84 | I81: 595084.028 | J81: 71231558.15 | L81: =L80-(152570*(Analysis!E$15)) -> -12388.684 | M81: -2907004.701 | N81: -2353849.96 | O81: -3716605.2 | P81: -1238868.4 | Q81: -619434.2 | R81: -3716605.2 | S81: -123886.84 | T81: -14676254.5
A82: 79 | B82: =B81-((152570*(Analysis!E$15))-((152570*(Analysis!E$15)*(Analysis!E$19)))) -> 59404.6552 | C82: 14672949.83 | D82: 11286884.49 | E82: 17821396.56 | F82: 5940465.52 | G82: 2970232.76 | H82: 17821396.56 | I82: 594046.552 | J82: 71107372.27 | L82: =L81-(152570*(Analysis!E$15)) -> -13426.16 | M82: -3150448.444 | N82: -2550970.4 | O82: -4027848 | P82: -1342616 | Q82: -671308 | R82: -4027848 | S82: -134261.6 | T82: -15905300.44
A83: 80 | B83: =B82-((152570*(Analysis!E$15))-((152570*(Analysis!E$15)*(Analysis!E$19)))) -> 59300.9076 | C83: 14647324.18 | D83: 11267172.44 | E83: 17790272.28 | F83: 5930090.76 | G83: 2965045.38 | H83: 17790272.28 | I83: 593009.076 | J83: 70983186.4 | L83: =L82-(152570*(Analysis!E$15)) -> -14463.636 | M83: -3393892.187 | N83: -2748090.84 | O83: -4339090.8 | P83: -1446363.6 | Q83: -723181.8 | R83: -4339090.8 | S83: -144636.36 | T83: -17134346.39
A84: 81 | B84: =B83-((152570*(Analysis!E$15))-((152570*(Analysis!E$15)*(Analysis!E$19)))) -> 59197.16 | C84: 14621698.52 | D84: 11247460.4 | E84: 17759148 | F84: 5919716 | G84: 2959858 | H84: 17759148 | I84: 591971.6 | J84: 70859000.52 | L84: =L83-(152570*(Analysis!E$15)) -> -15501.112 | M84: -3637335.931 | N84: -2945211.28 | O84: -4650333.6 | P84: -1550111.2 | Q84: -775055.6 | R84: -4650333.6 | S84: -155011.12 | T84: -18363392.33
A85: 82 | B85: =B84-((152570*(Analysis!E$15))-((152570*(Analysis!E$15)*(Analysis!E$19)))) -> 59093.4124 | C85: 14596072.86 | D85: 11227748.36 | E85: 17728023.72 | F85: 5909341.24 | G85: 2954670.62 | H85: 17728023.72 | I85: 590934.124 | J85: 70734814.64 | L85: =L84-(152570*(Analysis!E$15)) -> -16538.588 | M85: -3880779.674 | N85: -3142331.72 | O85: -4961576.4 | P85: -1653858.8 | Q85: -826929.4 | R85: -4961576.4 | S85: -165385.88 | T85: -19592438.27
A86: 83 | B86: =B85-((152570*(Analysis!E$15))-((152570*(Analysis!E$15)*(Analysis!E$19)))) -> 58989.6648 | C86: 14570447.21 | D86: 11208036.31 | E86: 17696899.44 | F86: 5898966.48 | G86: 2949483.24 | H86: 17696899.44 | I86: 589896.648 | J86: 70610628.77 | L86: =L85-(152570*(Analysis!E$15)) -> -17576.064 | M86: -4124223.418 | N86: -3339452.16 | O86: -5272819.2 | P86: -1757606.4 | Q86: -878803.2 | R86: -5272819.2 | S86: -175760.64 | T86: -20821484.22
A87: 84 | B87: =B86-((152570*(Analysis!E$15))-((152570*(Analysis!E$15)*(Analysis!E$19)))) -> 58885.9172 | C87: 14544821.55 | D87: 11188324.27 | E87: 17665775.16 | F87: 5888591.72 | G87: 2944295.86 | H87: 17665775.16 | I87: 588859.172 | J87: 70486442.89 | L87: =L86-(152570*(Analysis!E$15)) -> -18613.54 | M87: -4367667.161 | N87: -3536572.6 | O87: -5584062 | P87: -1861354 | Q87: -930677 | R87: -5584062 | S87: -186135.4 | T87: -22050530.16
A88: 85 | B88: =B87-((152570*(Analysis!E$15))-((152570*(Analysis!E$15)*(Analysis!E$19)))) -> 58782.1696 | C88: 14519195.89 | D88: 11168612.22 | E88: 17634650.88 | F88: 5878216.96 | G88: 2939108.48 | H88: 17634650.88 | I88: 587821.696 | J88: 70362257.01 | L88: =L87-(152570*(Analysis!E$15)) -> -19651.016 | M88: -4611110.904 | N88: -3733693.04 | O88: -5895304.8 | P88: -1965101.6 | Q88: -982550.8 | R88: -5895304.8 | S88: -196510.16 | T88: -23279576.1
A89: 86 | B89: =B88-((152570*(Analysis!E$15))-((152570*(Analysis!E$15)*(Analysis!E$19)))) -> 58678.422 | C89: 14493570.23 | D89: 11148900.18 | E89: 17603526.6 | F89: 5867842.2 | G89: 2933921.1 | H89: 17603526.6 | I89: 586784.22 | J89: 70238071.13 | L89: =L88-(152570*(Analysis!E$15)) -> -20688.492 | M89: -4854554.648 | N89: -3930813.48 | O89: -6206547.6 | P89: -2068849.2 | Q89: -1034424.6 | R89: -6206547.6 | S89: -206884.92 | T89: -24508622.05
A90: 87 | B90: =B89-((152570*(Analysis!E$15))-((152570*(Analysis!E$15)*(Analysis!E$19)))) -> 58574.6744 | C90: 14467944.58 | D90: 11129188.14 | E90: 17572402.32 | F90: 5857467.44 | G90: 2928733.72 | H90: 17572402.32 | I90: 585746.744 | J90: 70113885.26 | L90: =L89-(152570*(Analysis!E$15)) -> -21725.968 | M90: -5097998.391 | N90: -4127933.92 | O90: -6517790.4 | P90: -2172596.8 | Q90: -1086298.4 | R90: -6517790.4 | S90: -217259.68 | T90: -25737667.99
A91: 88 | B91: =B90-((152570*(Analysis!E$15))-((152570*(Analysis!E$15)*(Analysis!E$19)))) -> 58470.9268 | C91: 14442318.92 | D91: 11109476.09 | E91: 17541278.04 | F91: 5847092.68 | G91: 2923546.34 | H91: 17541278.04 | I91: 584709.268 | J91: 69989699.38 | L91: =L90-(152570*(Analysis!E$15)) -> -22763.444 | M91: -5341442.135 | N91: -4325054.36 | O91: -6829033.2 | P91: -2276344.4 | Q91: -1138172.2 | R91: -6829033.2 | S91: -227634.44 | T91: -26966713.93
A92: 89 | B92: =B91-((152570*(Analysis!E$15))-((152570*(Analysis!E$15)*(Analysis!E$19)))) -> 58367.1792 | C92: 14416693.26 | D92: 11089764.05 | E92: 17510153.76 | F92: 5836717.92 | G92: 2918358.96 | H92: 17510153.76 | I92: 583671.792 | J92: 69865513.5 | L92: =L91-(152570*(Analysis!E$15)) -> -23800.92 | M92: -5584885.878 | N92: -4522174.8 | O92: -7140276 | P92: -2380092 | Q92: -1190046 | R92: -7140276 | S92: -238009.2 | T92: -28195759.88
A93: 90 | B93: =B92-((152570*(Analysis!E$15))-((152570*(Analysis!E$15)*(Analysis!E$19)))) -> 58263.4316 | C93: 14391067.61 | D93: 11070052 | E93: 17479029.48 | F93: 5826343.16 | G93: 2913171.58 | H93: 17479029.48 | I93: 582634.316 | J93: 69741327.63 | L93: =L92-(152570*(Analysis!E$15)) -> -24838.396 | M93: -5828329.621 | N93: -4719295.24 | O93: -7451518.8 | P93: -2483839.6 | Q93: -1241919.8 | R93: -7451518.8 | S93: -248383.96 | T93: -29424805.82
A94: 91 | B94: =B93-((152570*(Analysis!E$15))-((152570*(Analysis!E$15)*(Analysis!E$19)))) -> 58159.684 | C94: 14365441.95 | D94: 11050339.96 | E94: 17447905.2 | F94: 5815968.4 | G94: 2907984.2 | H94: 17447905.2 | I94: 581596.84 | J94: 69617141.75 | L94: =L93-(152570*(Analysis!E$15)) -> -25875.872 | M94: -6071773.365 | N94: -4916415.68 | O94: -7762761.6 | P94: -2587587.2 | Q94: -1293793.6 | R94: -7762761.6 | S94: -258758.72 | T94: -30653851.76
A95: 92 | B95: =B94-((152570*(Analysis!E$15))-((152570*(Analysis!E$15)*(Analysis!E$19)))) -> 58055.9364 | C95: 14339816.29 | D95: 11030627.92 | E95: 17416780.92 | F95: 5805593.64 | G95: 2902796.82 | H95: 17416780.92 | I95: 580559.364 | J95: 69492955.87 | L95: =L94-(152570*(Analysis!E$15)) -> -26913.348 | M95: -6315217.108 | N95: -5113536.12 | O95: -8074004.4 | P95: -2691334.8 | Q95: -1345667.4 | R95: -8074004.4 | S95: -269133.48 | T95: -31882897.71
A96: 93 | B96: =B95-((152570*(Analysis!E$15))-((152570*(Analysis!E$15)*(Analysis!E$19)))) -> 57952.1888 | C96: 14314190.63 | D96: 11010915.87 | E96: 17385656.64 | F96: 5795218.88 | G96: 2897609.44 | H96: 17385656.64 | I96: 579521.888 | J96: 69368769.99 | L96: =L95-(152570*(Analysis!E$15)) -> -27950.824 | M96: -6558660.852 | N96: -5310656.56 | O96: -8385247.2 | P96: -2795082.4 | Q96: -1397541.2 | R96: -8385247.2 | S96: -279508.24 | T96: -33111943.65
A97: 94 | B97: =B96-((152570*(Analysis!E$15))-((152570*(Analysis!E$15)*(Analysis!E$19)))) -> 57848.4412 | C97: 14288564.98 | D97: 10991203.83 | E97: 17354532.36 | F97: 5784844.12 | G97: 2892422.06 | H97: 17354532.36 | I97: 578484.412 | J97: 69244584.12 | L97: =L96-(152570*(Analysis!E$15)) -> -28988.3 | M97: -6802104.595 | N97: -5507777 | O97: -8696490 | P97: -2898830 | Q97: -1449415 | R97: -8696490 | S97: -289883 | T97: -34340989.6
A98: 95 | B98: =B97-((152570*(Analysis!E$15))-((152570*(Analysis!E$15)*(Analysis!E$19)))) -> 57744.6936 | C98: 14262939.32 | D98: 10971491.78 | E98: 17323408.08 | F98: 5774469.36 | G98: 2887234.68 | H98: 17323408.08 | I98: 577446.936 | J98: 69120398.24 | L98: =L97-(152570*(Analysis!E$15)) -> -30025.776 | M98: -7045548.338 | N98: -5704897.44 | O98: -9007732.8 | P98: -3002577.6 | Q98: -1501288.8 | R98: -9007732.8 | S98: -300257.76 | T98: -35570035.54
A99: 96 | B99: =B98-((152570*(Analysis!E$15))-((152570*(Analysis!E$15)*(Analysis!E$19)))) -> 57640.946 | C99: 14237313.66 | D99: 10951779.74 | E99: 17292283.8 | F99: 5764094.6 | G99: 2882047.3 | H99: 17292283.8 | I99: 576409.46 | J99: 68996212.36 | L99: =L98-(152570*(Analysis!E$15)) -> -31063.252 | M99: -7288992.082 | N99: -5902017.88 | O99: -9318975.6 | P99: -3106325.2 | Q99: -1553162.6 | R99: -9318975.6 | S99: -310632.52 | T99: -36799081.48
A100: 97 | B100: =B99-((152570*(Analysis!E$15))-((152570*(Analysis!E$15)*(Analysis!E$19)))) -> 57537.1984 | C100: 14211688 | D100: 10932067.7 | E100: 17261159.52 | F100: 5753719.84 | G100: 2876859.92 | H100: 17261159.52 | I100: 575371.984 | J100: 68872026.48 | L100: =L99-(152570*(Analysis!E$15)) -> -32100.728 | M100: -7532435.825 | N100: -6099138.32 | O100: -9630218.4 | P100: -3210072.8 | Q100: -1605036.4 | R100: -9630218.4 | S100: -321007.28 | T100: -38028127.43
A101: 98 | B101: =B100-((152570*(Analysis!E$15))-((152570*(Analysis!E$15)*(Analysis!E$19)))) -> 57433.4508 | C101: 14186062.35 | D101: 10912355.65 | E101: 17230035.24 | F101: 5743345.08 | G101: 2871672.54 | H101: 17230035.24 | I101: 574334.508 | J101: 68747840.61 | L101: =L100-(152570*(Analysis!E$15)) -> -33138.204 | M101: -7775879.569 | N101: -6296258.76 | O101: -9941461.2 | P101: -3313820.4 | Q101: -1656910.2 | R101: -9941461.2 | S101: -331382.04 | T101: -39257173.37
A102: 99 | B102: =B101-((152570*(Analysis!E$15))-((152570*(Analysis!E$15)*(Analysis!E$19)))) -> 57329.7032 | C102: 14160436.69 | D102: 10892643.61 | E102: 17198910.96 | F102: 5732970.32 | G102: 2866485.16 | H102: 17198910.96 | I102: 573297.032 | J102: 68623654.73 | L102: =L101-(152570*(Analysis!E$15)) -> -34175.68 | M102: -8019323.312 | N102: -6493379.2 | O102: -10252704 | P102: -3417568 | Q102: -1708784 | R102: -10252704 | S102: -341756.8 | T102: -40486219.31
A103: 100 | B103: =B102-((152570*(Analysis!E$15))-((152570*(Analysis!E$15)*(Analysis!E$19)))) -> 57225.9556 | C103: 14134811.03 | D103: 10872931.56 | E103: 17167786.68 | F103: 5722595.56 | G103: 2861297.78 | H103: 17167786.68 | I103: 572259.556 | J103: 68499468.85 | L103: =L102-(152570*(Analysis!E$15)) -> -35213.156 | M103: -8262767.055 | N103: -6690499.64 | O103: -10563946.8 | P103: -3521315.6 | Q103: -1760657.8 | R103: -10563946.8 | S103: -352131.56 | T103: -41715265.26
A104: 101 | B104: =B103-((152570*(Analysis!E$15))-((152570*(Analysis!E$15)*(Analysis!E$19)))) -> 57122.208 | C104: =B104*247 -> 14109185.38 | D104: =B104*190 -> 10853219.52 | E104: =B104*300 -> 17136662.4 | F104: =B104*100 -> 5712220.8 | G104: =B104*50 -> 2856110.4 | H104: =B104*300 -> 17136662.4 | I104: =B104*10 -> 571222.08 | J104: =SUM(C104:I104) -> 68375282.98 | L104: =L103-(152570*(Analysis!E$15)) -> -36250.632 | M104: =0.95*(247*L104) -> -8506210.799 | N104: =L104*190 -> -6887620.08 | O104: =L104*300 -> -10875189.6 | P104: =L104*100 -> -3625063.2 | Q104: =L104*50 -> -1812531.6 | R104: =L104*300 -> -10875189.6 | S104: =L104*10 -> -362506.32 | T104: =SUM(M104:S104) -> -42944311.2
A105: 102 | B105: =B104-((152570*(Analysis!E$15))-((152570*(Analysis!E$15)*(Analysis!E$19)))) -> 57018.4604 | C105: 14083559.72 | D105: 10833507.48 | E105: 17105538.12 | F105: 5701846.04 | G105: 2850923.02 | H105: 17105538.12 | I105: 570184.604 | J105: 68251097.1 | L105: =L104-(152570*(Analysis!E$15)) -> -37288.108 | M105: -8749654.542 | N105: -7084740.52 | O105: -11186432.4 | P105: -3728810.8 | Q105: -1864405.4 | R105: -11186432.4 | S105: -372881.08 | T105: -44173357.14
A106: 103 | B106: =B105-((152570*(Analysis!E$15))-((152570*(Analysis!E$15)*(Analysis!E$19)))) -> 56914.7128 | C106: 14057934.06 | D106: 10813795.43 | E106: 17074413.84 | F106: 5691471.28 | G106: 2845735.64 | H106: 17074413.84 | I106: 569147.128 | J106: 68126911.22 | L106: =L105-(152570*(Analysis!E$15)) -> -38325.584 | M106: -8993098.286 | N106: -7281860.96 | O106: -11497675.2 | P106: -3832558.4 | Q106: -1916279.2 | R106: -11497675.2 | S106: -383255.84 | T106: -45402403.09
A107: 104 | B107: =B106-((152570*(Analysis!E$15))-((152570*(Analysis!E$15)*(Analysis!E$19)))) -> 56810.9652 | C107: 14032308.4 | D107: 10794083.39 | E107: 17043289.56 | F107: 5681096.52 | G107: 2840548.26 | H107: 17043289.56 | I107: 568109.652 | J107: 68002725.34 | L107: =L106-(152570*(Analysis!E$15)) -> -39363.06 | M107: -9236542.029 | N107: -7478981.4 | O107: -11808918 | P107: -3936306 | Q107: -1968153 | R107: -11808918 | S107: -393630.6 | T107: -46631449.03
A108: 105 | B108: =B107-((152570*(Analysis!E$15))-((152570*(Analysis!E$15)*(Analysis!E$19)))) -> 56707.2176 | C108: 14006682.75 | D108: 10774371.34 | E108: 17012165.28 | F108: 5670721.76 | G108: 2835360.88 | H108: 17012165.28 | I108: 567072.176 | J108: 67878539.47 | L108: =L107-(152570*(Analysis!E$15)) -> -40400.536 | M108: -9479985.772 | N108: -7676101.84 | O108: -12120160.8 | P108: -4040053.6 | Q108: -2020026.8 | R108: -12120160.8 | S108: -404005.36 | T108: -47860494.97
A109: 106 | B109: =B108-((152570*(Analysis!E$15))-((152570*(Analysis!E$15)*(Analysis!E$19)))) -> 56603.47 | C109: 13981057.09 | D109: 10754659.3 | E109: 16981041 | F109: 5660347 | G109: 2830173.5 | H109: 16981041 | I109: 566034.7 | J109: 67754353.59 | L109: =L108-(152570*(Analysis!E$15)) -> -41438.012 | M109: -9723429.516 | N109: -7873222.28 | O109: -12431403.6 | P109: -4143801.2 | Q109: -2071900.6 | R109: -12431403.6 | S109: -414380.12 | T109: -49089540.92
A110: 107 | B110: =B109-((152570*(Analysis!E$15))-((152570*(Analysis!E$15)*(Analysis!E$19)))) -> 56499.7224 | C110: 13955431.43 | D110: 10734947.26 | E110: 16949916.72 | F110: 5649972.24 | G110: 2824986.12 | H110: 16949916.72 | I110: 564997.224 | J110: 67630167.71 | L110: =L109-(152570*(Analysis!E$15)) -> -42475.488 | M110: -9966873.259 | N110: -8070342.72 | O110: -12742646.4 | P110: -4247548.8 | Q110: -2123774.4 | R110: -12742646.4 | S110: -424754.88 | T110: -50318586.86
A111: 108 | B111: =B110-((152570*(Analysis!E$15))-((152570*(Analysis!E$15)*(Analysis!E$19)))) -> 56395.9748 | C111: 13929805.78 | D111: 10715235.21 | E111: 16918792.44 | F111: 5639597.48 | G111: 2819798.74 | H111: 16918792.44 | I111: 563959.748 | J111: 67505981.84 | L111: =L110-(152570*(Analysis!E$15)) -> -43512.964 | M111: -10210317 | N111: -8267463.16 | O111: -13053889.2 | P111: -4351296.4 | Q111: -2175648.2 | R111: -13053889.2 | S111: -435129.64 | T111: -51547632.8
A112: 109 | B112: =B111-((152570*(Analysis!E$15))-((152570*(Analysis!E$15)*(Analysis!E$19)))) -> 56292.2272 | C112: 13904180.12 | D112: 10695523.17 | E112: 16887668.16 | F112: 5629222.72 | G112: 2814611.36 | H112: 16887668.16 | I112: 562922.272 | J112: 67381795.96 | L112: =L111-(152570*(Analysis!E$15)) -> -44550.44 | M112: -10453760.75 | N112: -8464583.6 | O112: -13365132 | P112: -4455044 | Q112: -2227522 | R112: -13365132 | S112: -445504.4 | T112: -52776678.75
A113: 110 | B113: =B112-((152570*(Analysis!E$15))-((152570*(Analysis!E$15)*(Analysis!E$19)))) -> 56188.4796 | C113: 13878554.46 | D113: 10675811.12 | E113: 16856543.88 | F113: 5618847.96 | G113: 2809423.98 | H113: 16856543.88 | I113: 561884.796 | J113: 67257610.08 | L113: =L112-(152570*(Analysis!E$15)) -> -45587.916 | M113: -10697204.49 | N113: -8661704.04 | O113: -13676374.8 | P113: -4558791.6 | Q113: -2279395.8 | R113: -13676374.8 | S113: -455879.16 | T113: -54005724.69
A114: 111 | B114: =B113-((152570*(Analysis!E$15))-((152570*(Analysis!E$15)*(Analysis!E$19)))) -> 56084.732 | C114: 13852928.8 | D114: 10656099.08 | E114: 16825419.6 | F114: 5608473.2 | G114: 2804236.6 | H114: 16825419.6 | I114: 560847.32 | J114: 67133424.2 | L114: =L113-(152570*(Analysis!E$15)) -> -46625.392 | M114: -10940648.23 | N114: -8858824.48 | O114: -13987617.6 | P114: -4662539.2 | Q114: -2331269.6 | R114: -13987617.6 | S114: -466253.92 | T114: -55234770.63
A115: 112 | B115: =B114-((152570*(Analysis!E$15))-((152570*(Analysis!E$15)*(Analysis!E$19)))) -> 55980.9844 | C115: 13827303.15 | D115: 10636387.04 | E115: 16794295.32 | F115: 5598098.44 | G115: 2799049.22 | H115: 16794295.32 | I115: 559809.844 | J115: 67009238.33 | L115: =L114-(152570*(Analysis!E$15)) -> -47662.868 | M115: -11184091.98 | N115: -9055944.92 | O115: -14298860.4 | P115: -4766286.8 | Q115: -2383143.4 | R115: -14298860.4 | S115: -476628.68 | T115: -56463816.58
A116: 113 | B116: =B115-((152570*(Analysis!E$15))-((152570*(Analysis!E$15)*(Analysis!E$19)))) -> 55877.2368 | C116: 13801677.49 | D116: 10616674.99 | E116: 16763171.04 | F116: 5587723.68 | G116: 2793861.84 | H116: 16763171.04 | I116: 558772.368 | J116: 66885052.45 | L116: =L115-(152570*(Analysis!E$15)) -> -48700.344 | M116: -11427535.72 | N116: -9253065.36 | O116: -14610103.2 | P116: -4870034.4 | Q116: -2435017.2 | R116: -14610103.2 | S116: -487003.44 | T116: -57692862.52
A117: 114 | B117: =B116-((152570*(Analysis!E$15))-((152570*(Analysis!E$15)*(Analysis!E$19)))) -> 55773.4892 | C117: 13776051.83 | D117: 10596962.95 | E117: 16732046.76 | F117: 5577348.92 | G117: 2788674.46 | H117: 16732046.76 | I117: 557734.892 | J117: 66760866.57 | L117: =L116-(152570*(Analysis!E$15)) -> -49737.82 | M117: -11670979.46 | N117: -9450185.8 | O117: -14921346 | P117: -4973782 | Q117: -2486891 | R117: -14921346 | S117: -497378.2 | T117: -58921908.46
A118: 115 | B118: =B117-((152570*(Analysis!E$15))-((152570*(Analysis!E$15)*(Analysis!E$19)))) -> 55669.7416 | C118: 13750426.18 | D118: 10577250.9 | E118: 16700922.48 | F118: 5566974.16 | G118: 2783487.08 | H118: 16700922.48 | I118: 556697.416 | J118: 66636680.7 | L118: =L117-(152570*(Analysis!E$15)) -> -50775.296 | M118: -11914423.21 | N118: -9647306.24 | O118: -15232588.8 | P118: -5077529.6 | Q118: -2538764.8 | R118: -15232588.8 | S118: -507752.96 | T118: -60150954.41
A119: 116 | B119: =B118-((152570*(Analysis!E$15))-((152570*(Analysis!E$15)*(Analysis!E$19)))) -> 55565.994 | C119: 13724800.52 | D119: 10557538.86 | E119: 16669798.2 | F119: 5556599.4 | G119: 2778299.7 | H119: 16669798.2 | I119: 555659.94 | J119: 66512494.82 | L119: =L118-(152570*(Analysis!E$15)) -> -51812.772 | M119: -12157866.95 | N119: -9844426.68 | O119: -15543831.6 | P119: -5181277.2 | Q119: -2590638.6 | R119: -15543831.6 | S119: -518127.72 | T119: -61380000.35
A120: 117 | B120: =B119-((152570*(Analysis!E$15))-((152570*(Analysis!E$15)*(Analysis!E$19)))) -> 55462.2464 | C120: 13699174.86 | D120: 10537826.82 | E120: 16638673.92 | F120: 5546224.64 | G120: 2773112.32 | H120: 16638673.92 | I120: 554622.464 | J120: 66388308.94 | L120: =L119-(152570*(Analysis!E$15)) -> -52850.248 | M120: -12401310.69 | N120: -10041547.12 | O120: -15855074.4 | P120: -5285024.8 | Q120: -2642512.4 | R120: -15855074.4 | S120: -528502.48 | T120: -62609046.29
A121: 118 | B121: =B120-((152570*(Analysis!E$15))-((152570*(Analysis!E$15)*(Analysis!E$19)))) -> 55358.4988 | C121: 13673549.2 | D121: 10518114.77 | E121: 16607549.64 | F121: 5535849.88 | G121: 2767924.94 | H121: 16607549.64 | I121: 553584.988 | J121: 66264123.06 | L121: =L120-(152570*(Analysis!E$15)) -> -53887.724 | M121: -12644754.44 | N121: -10238667.56 | O121: -16166317.2 | P121: -5388772.4 | Q121: -2694386.2 | R121: -16166317.2 | S121: -538877.24 | T121: -63838092.24
A122: 119 | B122: =B121-((152570*(Analysis!E$15))-((152570*(Analysis!E$15)*(Analysis!E$19)))) -> 55254.7512 | C122: 13647923.55 | D122: 10498402.73 | E122: 16576425.36 | F122: 5525475.12 | G122: 2762737.56 | H122: 16576425.36 | I122: 552547.512 | J122: 66139937.19 | L122: =L121-(152570*(Analysis!E$15)) -> -54925.2 | M122: -12888198.18 | N122: -10435788 | O122: -16477560 | P122: -5492520 | Q122: -2746260 | R122: -16477560 | S122: -549252 | T122: -65067138.18
A123: 120 | B123: =B122-((152570*(Analysis!E$15))-((152570*(Analysis!E$15)*(Analysis!E$19)))) -> 55151.0036 | C123: 13622297.89 | D123: 10478690.68 | E123: 16545301.08 | F123: 5515100.36 | G123: 2757550.18 | H123: 16545301.08 | I123: 551510.036 | J123: 66015751.31 | L123: =L122-(152570*(Analysis!E$15)) -> -55962.676 | M123: -13131641.92 | N123: -10632908.44 | O123: -16788802.8 | P123: -5596267.6 | Q123: -2798133.8 | R123: -16788802.8 | S123: -559626.76 | T123: -66296184.12
A124: 121 | B124: =B123-((152570*(Analysis!E$15))-((152570*(Analysis!E$15)*(Analysis!E$19)))) -> 55047.256 | C124: 13596672.23 | D124: 10458978.64 | E124: 16514176.8 | F124: 5504725.6 | G124: 2752362.8 | H124: 16514176.8 | I124: 550472.56 | J124: 65891565.43 | L124: =L123-(152570*(Analysis!E$15)) -> -57000.152 | M124: -13375085.67 | N124: -10830028.88 | O124: -17100045.6 | P124: -5700015.2 | Q124: -2850007.6 | R124: -17100045.6 | S124: -570001.52 | T124: -67525230.07
A125: 122 | B125: =B124-((152570*(Analysis!E$15))-((152570*(Analysis!E$15)*(Analysis!E$19)))) -> 54943.5084 | C125: 13571046.57 | D125: 10439266.6 | E125: 16483052.52 | F125: 5494350.84 | G125: 2747175.42 | H125: 16483052.52 | I125: 549435.084 | J125: 65767379.55 | L125: =L124-(152570*(Analysis!E$15)) -> -58037.628 | M125: -13618529.41 | N125: -11027149.32 | O125: -17411288.4 | P125: -5803762.8 | Q125: -2901881.4 | R125: -17411288.4 | S125: -580376.28 | T125: -68754276.01
A126: 123 | B126: =B125-((152570*(Analysis!E$15))-((152570*(Analysis!E$15)*(Analysis!E$19)))) -> 54839.7608 | C126: 13545420.92 | D126: 10419554.55 | E126: 16451928.24 | F126: 5483976.08 | G126: 2741988.04 | H126: 16451928.24 | I126: 548397.608 | J126: 65643193.68 | L126: =L125-(152570*(Analysis!E$15)) -> -59075.104 | M126: -13861973.15 | N126: -11224269.76 | O126: -17722531.2 | P126: -5907510.4 | Q126: -2953755.2 | R126: -17722531.2 | S126: -590751.04 | T126: -69983321.95
A127: 124 | B127: =B126-((152570*(Analysis!E$15))-((152570*(Analysis!E$15)*(Analysis!E$19)))) -> 54736.0132 | C127: 13519795.26 | D127: 10399842.51 | E127: 16420803.96 | F127: 5473601.32 | G127: 2736800.66 | H127: 16420803.96 | I127: 547360.132 | J127: 65519007.8 | L127: =L126-(152570*(Analysis!E$15)) -> -60112.58 | M127: -14105416.9 | N127: -11421390.2 | O127: -18033774 | P127: -6011258 | Q127: -3005629 | R127: -18033774 | S127: -601125.8 | T127: -71212367.9
A128: 125 | B128: =B127-((152570*(Analysis!E$15))-((152570*(Analysis!E$15)*(Analysis!E$19)))) -> 54632.2656 | C128: 13494169.6 | D128: 10380130.46 | E128: 16389679.68 | F128: 5463226.56 | G128: 2731613.28 | H128: 16389679.68 | I128: 546322.656 | J128: 65394821.92 | L128: =L127-(152570*(Analysis!E$15)) -> -61150.056 | M128: -14348860.64 | N128: -11618510.64 | O128: -18345016.8 | P128: -6115005.6 | Q128: -3057502.8 | R128: -18345016.8 | S128: -611500.56 | T128: -72441413.84
A129: 126 | B129: =B128-((152570*(Analysis!E$15))-((152570*(Analysis!E$15)*(Analysis!E$19)))) -> 54528.518 | C129: 13468543.95 | D129: 10360418.42 | E129: 16358555.4 | F129: 5452851.8 | G129: 2726425.9 | H129: 16358555.4 | I129: 545285.18 | J129: 65270636.05 | L129: =L128-(152570*(Analysis!E$15)) -> -62187.532 | M129: -14592304.38 | N129: -11815631.08 | O129: -18656259.6 | P129: -6218753.2 | Q129: -3109376.6 | R129: -18656259.6 | S129: -621875.32 | T129: -73670459.78
A130: 127 | B130: =B129-((152570*(Analysis!E$15))-((152570*(Analysis!E$15)*(Analysis!E$19)))) -> 54424.7704 | C130: 13442918.29 | D130: 10340706.38 | E130: 16327431.12 | F130: 5442477.04 | G130: 2721238.52 | H130: 16327431.12 | I130: 544247.704 | J130: 65146450.17 | L130: =L129-(152570*(Analysis!E$15)) -> -63225.008 | M130: -14835748.13 | N130: -12012751.52 | O130: -18967502.4 | P130: -6322500.8 | Q130: -3161250.4 | R130: -18967502.4 | S130: -632250.08 | T130: -74899505.73
A131: 128 | B131: =B130-((152570*(Analysis!E$15))-((152570*(Analysis!E$15)*(Analysis!E$19)))) -> 54321.0228 | C131: 13417292.63 | D131: 10320994.33 | E131: 16296306.84 | F131: 5432102.28 | G131: 2716051.14 | H131: 16296306.84 | I131: 543210.228 | J131: 65022264.29 | L131: =L130-(152570*(Analysis!E$15)) -> -64262.484 | M131: -15079191.87 | N131: -12209871.96 | O131: -19278745.2 | P131: -6426248.4 | Q131: -3213124.2 | R131: -19278745.2 | S131: -642624.84 | T131: -76128551.67
A132: 129 | B132: =B131-((152570*(Analysis!E$15))-((152570*(Analysis!E$15)*(Analysis!E$19)))) -> 54217.2752 | C132: 13391666.97 | D132: 10301282.29 | E132: 16265182.56 | F132: 5421727.52 | G132: 2710863.76 | H132: 16265182.56 | I132: 542172.752 | J132: 64898078.41 | L132: =L131-(152570*(Analysis!E$15)) -> -65299.96 | M132: -15322635.61 | N132: -12406992.4 | O132: -19589988 | P132: -6529996 | Q132: -3264998 | R132: -19589988 | S132: -652999.6 | T132: -77357597.61
A133: 130 | B133: =B132-((152570*(Analysis!E$15))-((152570*(Analysis!E$15)*(Analysis!E$19)))) -> 54113.5276 | C133: 13366041.32 | D133: 10281570.24 | E133: 16234058.28 | F133: 5411352.76 | G133: 2705676.38 | H133: 16234058.28 | I133: 541135.276 | J133: 64773892.54 | L133: =L132-(152570*(Analysis!E$15)) -> -66337.436 | M133: -15566079.36 | N133: -12604112.84 | O133: -19901230.8 | P133: -6633743.6 | Q133: -3316871.8 | R133: -19901230.8 | S133: -663374.36 | T133: -78586643.56
A134: 131 | B134: =B133-((152570*(Analysis!E$15))-((152570*(Analysis!E$15)*(Analysis!E$19)))) -> 54009.78 | C134: 13340415.66 | D134: 10261858.2 | E134: 16202934 | F134: 5400978 | G134: 2700489 | H134: 16202934 | I134: 540097.8 | J134: 64649706.66 | L134: =L133-(152570*(Analysis!E$15)) -> -67374.912 | M134: -15809523.1 | N134: -12801233.28 | O134: -20212473.6 | P134: -6737491.2 | Q134: -3368745.6 | R134: -20212473.6 | S134: -673749.12 | T134: -79815689.5
A135: 132 | B135: =B134-((152570*(Analysis!E$15))-((152570*(Analysis!E$15)*(Analysis!E$19)))) -> 53906.0324 | C135: 13314790 | D135: 10242146.16 | E135: 16171809.72 | F135: 5390603.24 | G135: 2695301.62 | H135: 16171809.72 | I135: 539060.324 | J135: 64525520.78 | L135: =L134-(152570*(Analysis!E$15)) -> -68412.388 | M135: -16052966.84 | N135: -12998353.72 | O135: -20523716.4 | P135: -6841238.8 | Q135: -3420619.4 | R135: -20523716.4 | S135: -684123.88 | T135: -81044735.44
A136: 133 | B136: =B135-((152570*(Analysis!E$15))-((152570*(Analysis!E$15)*(Analysis!E$19)))) -> 53802.2848 | C136: 13289164.35 | D136: 10222434.11 | E136: 16140685.44 | F136: 5380228.48 | G136: 2690114.24 | H136: 16140685.44 | I136: 538022.848 | J136: 64401334.91 | L136: =L135-(152570*(Analysis!E$15)) -> -69449.864 | M136: -16296410.59 | N136: -13195474.16 | O136: -20834959.2 | P136: -6944986.4 | Q136: -3472493.2 | R136: -20834959.2 | S136: -694498.64 | T136: -82273781.39
A137: 134 | B137: =B136-((152570*(Analysis!E$15))-((152570*(Analysis!E$15)*(Analysis!E$19)))) -> 53698.5372 | C137: 13263538.69 | D137: 10202722.07 | E137: 16109561.16 | F137: 5369853.72 | G137: 2684926.86 | H137: 16109561.16 | I137: 536985.372 | J137: 64277149.03 | L137: =L136-(152570*(Analysis!E$15)) -> -70487.34 | M137: -16539854.33 | N137: -13392594.6 | O137: -21146202 | P137: -7048734 | Q137: -3524367 | R137: -21146202 | S137: -704873.4 | T137: -83502827.33
A138: 135 | B138: =B137-((152570*(Analysis!E$15))-((152570*(Analysis!E$15)*(Analysis!E$19)))) -> 53594.7896 | C138: 13237913.03 | D138: 10183010.02 | E138: 16078436.88 | F138: 5359478.96 | G138: 2679739.48 | H138: 16078436.88 | I138: 535947.896 | J138: 64152963.15 | L138: =L137-(152570*(Analysis!E$15)) -> -71524.816 | M138: -16783298.07 | N138: -13589715.04 | O138: -21457444.8 | P138: -7152481.6 | Q138: -3576240.8 | R138: -21457444.8 | S138: -715248.16 | T138: -84731873.27
A139: 136 | B139: =B138-((152570*(Analysis!E$15))-((152570*(Analysis!E$15)*(Analysis!E$19)))) -> 53491.042 | C139: 13212287.37 | D139: 10163297.98 | E139: 16047312.6 | F139: 5349104.2 | G139: 2674552.1 | H139: 16047312.6 | I139: 534910.42 | J139: 64028777.27 | L139: =L138-(152570*(Analysis!E$15)) -> -72562.292 | M139: -17026741.82 | N139: -13786835.48 | O139: -21768687.6 | P139: -7256229.2 | Q139: -3628114.6 | R139: -21768687.6 | S139: -725622.92 | T139: -85960919.22
A140: 137 | B140: =B139-((152570*(Analysis!E$15))-((152570*(Analysis!E$15)*(Analysis!E$19)))) -> 53387.2944 | C140: 13186661.72 | D140: 10143585.94 | E140: 16016188.32 | F140: 5338729.44 | G140: 2669364.72 | H140: 16016188.32 | I140: 533872.944 | J140: 63904591.4 | L140: =L139-(152570*(Analysis!E$15)) -> -73599.768 | M140: -17270185.56 | N140: -13983955.92 | O140: -22079930.4 | P140: -7359976.8 | Q140: -3679988.4 | R140: -22079930.4 | S140: -735997.68 | T140: -87189965.16
A141: 138 | B141: =B140-((152570*(Analysis!E$15))-((152570*(Analysis!E$15)*(Analysis!E$19)))) -> 53283.5468 | C141: 13161036.06 | D141: 10123873.89 | E141: 15985064.04 | F141: 5328354.68 | G141: 2664177.34 | H141: 15985064.04 | I141: 532835.468 | J141: 63780405.52 | L141: =L140-(152570*(Analysis!E$15)) -> -74637.244 | M141: -17513629.3 | N141: -14181076.36 | O141: -22391173.2 | P141: -7463724.4 | Q141: -3731862.2 | R141: -22391173.2 | S141: -746372.44 | T141: -88419011.1
A142: 139 | B142: =B141-((152570*(Analysis!E$15))-((152570*(Analysis!E$15)*(Analysis!E$19)))) -> 53179.7992 | C142: 13135410.4 | D142: 10104161.85 | E142: 15953939.76 | F142: 5317979.92 | G142: 2658989.96 | H142: 15953939.76 | I142: 531797.992 | J142: 63656219.64 | L142: =L141-(152570*(Analysis!E$15)) -> -75674.72 | M142: -17757073.05 | N142: -14378196.8 | O142: -22702416 | P142: -7567472 | Q142: -3783736 | R142: -22702416 | S142: -756747.2 | T142: -89648057.05
A143: 140 | B143: =B142-((152570*(Analysis!E$15))-((152570*(Analysis!E$15)*(Analysis!E$19)))) -> 53076.0516 | C143: 13109784.75 | D143: 10084449.8 | E143: 15922815.48 | F143: 5307605.16 | G143: 2653802.58 | H143: 15922815.48 | I143: 530760.516 | J143: 63532033.77 | L143: =L142-(152570*(Analysis!E$15)) -> -76712.196 | M143: -18000516.79 | N143: -14575317.24 | O143: -23013658.8 | P143: -7671219.6 | Q143: -3835609.8 | R143: -23013658.8 | S143: -767121.96 | T143: -90877102.99
A144: 141 | B144: =B143-((152570*(Analysis!E$15))-((152570*(Analysis!E$15)*(Analysis!E$19)))) -> 52972.304 | C144: 13084159.09 | D144: 10064737.76 | E144: 15891691.2 | F144: 5297230.4 | G144: 2648615.2 | H144: 15891691.2 | I144: 529723.04 | J144: 63407847.89 | L144: =L143-(152570*(Analysis!E$15)) -> -77749.672 | M144: -18243960.53 | N144: -14772437.68 | O144: -23324901.6 | P144: -7774967.2 | Q144: -3887483.6 | R144: -23324901.6 | S144: -777496.72 | T144: -92106148.93
A145: 142 | B145: =B144-((152570*(Analysis!E$15))-((152570*(Analysis!E$15)*(Analysis!E$19)))) -> 52868.5564 | C145: 13058533.43 | D145: 10045025.72 | E145: 15860566.92 | F145: 5286855.64 | G145: 2643427.82 | H145: 15860566.92 | I145: 528685.564 | J145: 63283662.01 | L145: =L144-(152570*(Analysis!E$15)) -> -78787.148 | M145: -18487404.28 | N145: -14969558.12 | O145: -23636144.4 | P145: -7878714.8 | Q145: -3939357.4 | R145: -23636144.4 | S145: -787871.48 | T145: -93335194.88
A146: 143 | B146: =B145-((152570*(Analysis!E$15))-((152570*(Analysis!E$15)*(Analysis!E$19)))) -> 52764.8088 | C146: 13032907.77 | D146: 10025313.67 | E146: 15829442.64 | F146: 5276480.88 | G146: 2638240.44 | H146: 15829442.64 | I146: 527648.088 | J146: 63159476.13 | L146: =L145-(152570*(Analysis!E$15)) -> -79824.624 | M146: -18730848.02 | N146: -15166678.56 | O146: -23947387.2 | P146: -7982462.4 | Q146: -3991231.2 | R146: -23947387.2 | S146: -798246.24 | T146: -94564240.82
A147: 144 | B147: =B146-((152570*(Analysis!E$15))-((152570*(Analysis!E$15)*(Analysis!E$19)))) -> 52661.0612 | C147: 13007282.12 | D147: 10005601.63 | E147: 15798318.36 | F147: 5266106.12 | G147: 2633053.06 | H147: 15798318.36 | I147: 526610.612 | J147: 63035290.26 | L147: =L146-(152570*(Analysis!E$15)) -> -80862.1 | M147: -18974291.77 | N147: -15363799 | O147: -24258630 | P147: -8086210 | Q147: -4043105 | R147: -24258630 | S147: -808621 | T147: -95793286.77
A148: 145 | B148: =B147-((152570*(Analysis!E$15))-((152570*(Analysis!E$15)*(Analysis!E$19)))) -> 52557.3136 | C148: 12981656.46 | D148: 9985889.584 | E148: 15767194.08 | F148: 5255731.36 | G148: 2627865.68 | H148: 15767194.08 | I148: 525573.136 | J148: 62911104.38 | L148: =L147-(152570*(Analysis!E$15)) -> -81899.576 | M148: -19217735.51 | N148: -15560919.44 | O148: -24569872.8 | P148: -8189957.6 | Q148: -4094978.8 | R148: -24569872.8 | S148: -818995.76 | T148: -97022332.71
A149: 146 | B149: =B148-((152570*(Analysis!E$15))-((152570*(Analysis!E$15)*(Analysis!E$19)))) -> 52453.566 | C149: 12956030.8 | D149: 9966177.54 | E149: 15736069.8 | F149: 5245356.6 | G149: 2622678.3 | H149: 15736069.8 | I149: 524535.66 | J149: 62786918.5 | L149: =L148-(152570*(Analysis!E$15)) -> -82937.052 | M149: -19461179.25 | N149: -15758039.88 | O149: -24881115.6 | P149: -8293705.2 | Q149: -4146852.6 | R149: -24881115.6 | S149: -829370.52 | T149: -98251378.65
A150: 147 | B150: =B149-((152570*(Analysis!E$15))-((152570*(Analysis!E$15)*(Analysis!E$19)))) -> 52349.8184 | C150: 12930405.14 | D150: 9946465.496 | E150: 15704945.52 | F150: 5234981.84 | G150: 2617490.92 | H150: 15704945.52 | I150: 523498.184 | J150: 62662732.62 | L150: =L149-(152570*(Analysis!E$15)) -> -83974.528 | M150: -19704623 | N150: -15955160.32 | O150: -25192358.4 | P150: -8397452.8 | Q150: -4198726.4 | R150: -25192358.4 | S150: -839745.28 | T150: -99480424.6
A151: 148 | B151: =B150-((152570*(Analysis!E$15))-((152570*(Analysis!E$15)*(Analysis!E$19)))) -> 52246.0708 | C151: 12904779.49 | D151: 9926753.452 | E151: 15673821.24 | F151: 5224607.08 | G151: 2612303.54 | H151: 15673821.24 | I151: 522460.708 | J151: 62538546.75 | L151: =L150-(152570*(Analysis!E$15)) -> -85012.004 | M151: -19948066.74 | N151: -16152280.76 | O151: -25503601.2 | P151: -8501200.4 | Q151: -4250600.2 | R151: -25503601.2 | S151: -850120.04 | T151: -100709470.5
A152: 149 | B152: =B151-((152570*(Analysis!E$15))-((152570*(Analysis!E$15)*(Analysis!E$19)))) -> 52142.3232 | C152: 12879153.83 | D152: 9907041.408 | E152: 15642696.96 | F152: 5214232.32 | G152: 2607116.16 | H152: 15642696.96 | I152: 521423.232 | J152: 62414360.87 | L152: =L151-(152570*(Analysis!E$15)) -> -86049.48 | M152: -20191510.48 | N152: -16349401.2 | O152: -25814844 | P152: -8604948 | Q152: -4302474 | R152: -25814844 | S152: -860494.8 | T152: -101938516.5
A153: 150 | B153: =B152-((152570*(Analysis!E$15))-((152570*(Analysis!E$15)*(Analysis!E$19)))) -> 52038.5756 | C153: 12853528.17 | D153: 9887329.364 | E153: 15611572.68 | F153: 5203857.56 | G153: 2601928.78 | H153: 15611572.68 | I153: 520385.756 | J153: 62290174.99 | L153: =L152-(152570*(Analysis!E$15)) -> -87086.956 | M153: -20434954.23 | N153: -16546521.64 | O153: -26126086.8 | P153: -8708695.6 | Q153: -4354347.8 | R153: -26126086.8 | S153: -870869.56 | T153: -103167562.4
A154: 151 | B154: =B153-((152570*(Analysis!E$15))-((152570*(Analysis!E$15)*(Analysis!E$19)))) -> 51934.828 | C154: 12827902.52 | D154: 9867617.32 | E154: 15580448.4 | F154: 5193482.8 | G154: 2596741.4 | H154: 15580448.4 | I154: 519348.28 | J154: 62165989.12 | L154: =L153-(152570*(Analysis!E$15)) -> -88124.432 | M154: -20678397.97 | N154: -16743642.08 | O154: -26437329.6 | P154: -8812443.2 | Q154: -4406221.6 | R154: -26437329.6 | S154: -881244.32 | T154: -104396608.4
A155: 152 | B155: =B154-((152570*(Analysis!E$15))-((152570*(Analysis!E$15)*(Analysis!E$19)))) -> 51831.0804 | C155: 12802276.86 | D155: 9847905.276 | E155: 15549324.12 | F155: 5183108.04 | G155: 2591554.02 | H155: 15549324.12 | I155: 518310.804 | J155: 62041803.24 | L155: =L154-(152570*(Analysis!E$15)) -> -89161.908 | M155: -20921841.71 | N155: -16940762.52 | O155: -26748572.4 | P155: -8916190.8 | Q155: -4458095.4 | R155: -26748572.4 | S155: -891619.08 | T155: -105625654.3
A156: 153 | B156: =B155-((152570*(Analysis!E$15))-((152570*(Analysis!E$15)*(Analysis!E$19)))) -> 51727.3328 | C156: 12776651.2 | D156: 9828193.232 | E156: 15518199.84 | F156: 5172733.28 | G156: 2586366.64 | H156: 15518199.84 | I156: 517273.328 | J156: 61917617.36 | L156: =L155-(152570*(Analysis!E$15)) -> -90199.384 | M156: -21165285.46 | N156: -17137882.96 | O156: -27059815.2 | P156: -9019938.4 | Q156: -4509969.2 | R156: -27059815.2 | S156: -901993.84 | T156: -106854700.3
A157: 154 | B157: =B156-((152570*(Analysis!E$15))-((152570*(Analysis!E$15)*(Analysis!E$19)))) -> 51623.5852 | C157: 12751025.54 | D157: 9808481.188 | E157: 15487075.56 | F157: 5162358.52 | G157: 2581179.26 | H157: 15487075.56 | I157: 516235.852 | J157: 61793431.48 | L157: =L156-(152570*(Analysis!E$15)) -> -91236.86 | M157: -21408729.2 | N157: -17335003.4 | O157: -27371058 | P157: -9123686 | Q157: -4561843 | R157: -27371058 | S157: -912368.6 | T157: -108083746.2
A158: 155 | B158: =B157-((152570*(Analysis!E$15))-((152570*(Analysis!E$15)*(Analysis!E$19)))) -> 51519.8376 | C158: 12725399.89 | D158: 9788769.144 | E158: 15455951.28 | F158: 5151983.76 | G158: 2575991.88 | H158: 15455951.28 | I158: 515198.376 | J158: 61669245.61 | L158: =L157-(152570*(Analysis!E$15)) -> -92274.336 | M158: -21652172.94 | N158: -17532123.84 | O158: -27682300.8 | P158: -9227433.6 | Q158: -4613716.8 | R158: -27682300.8 | S158: -922743.36 | T158: -109312792.1
A159: 156 | B159: =B158-((152570*(Analysis!E$15))-((152570*(Analysis!E$15)*(Analysis!E$19)))) -> 51416.09 | C159: 12699774.23 | D159: 9769057.1 | E159: 15424827 | F159: 5141609 | G159: 2570804.5 | H159: 15424827 | I159: 514160.9 | J159: 61545059.73 | L159: =L158-(152570*(Analysis!E$15)) -> -93311.812 | M159: -21895616.69 | N159: -17729244.28 | O159: -27993543.6 | P159: -9331181.2 | Q159: -4665590.6 | R159: -27993543.6 | S159: -933118.12 | T159: -110541838.1
A160: 157 | B160: =B159-((152570*(Analysis!E$15))-((152570*(Analysis!E$15)*(Analysis!E$19)))) -> 51312.3424 | C160: 12674148.57 | D160: 9749345.056 | E160: 15393702.72 | F160: 5131234.24 | G160: 2565617.12 | H160: 15393702.72 | I160: 513123.424 | J160: 61420873.85 | L160: =L159-(152570*(Analysis!E$15)) -> -94349.288 | M160: -22139060.43 | N160: -17926364.72 | O160: -28304786.4 | P160: -9434928.8 | Q160: -4717464.4 | R160: -28304786.4 | S160: -943492.88 | T160: -111770884
A161: 158 | B161: =B160-((152570*(Analysis!E$15))-((152570*(Analysis!E$15)*(Analysis!E$19)))) -> 51208.5948 | C161: 12648522.92 | D161: 9729633.012 | E161: 15362578.44 | F161: 5120859.48 | G161: 2560429.74 | H161: 15362578.44 | I161: 512085.948 | J161: 61296687.98 | L161: =L160-(152570*(Analysis!E$15)) -> -95386.764 | M161: -22382504.17 | N161: -18123485.16 | O161: -28616029.2 | P161: -9538676.4 | Q161: -4769338.2 | R161: -28616029.2 | S161: -953867.64 | T161: -112999930
A162: 159 | B162: =B161-((152570*(Analysis!E$15))-((152570*(Analysis!E$15)*(Analysis!E$19)))) -> 51104.8472 | C162: 12622897.26 | D162: 9709920.968 | E162: 15331454.16 | F162: 5110484.72 | G162: 2555242.36 | H162: 15331454.16 | I162: 511048.472 | J162: 61172502.1 | L162: =L161-(152570*(Analysis!E$15)) -> -96424.24 | M162: -22625947.92 | N162: -18320605.6 | O162: -28927272 | P162: -9642424 | Q162: -4821212 | R162: -28927272 | S162: -964242.4 | T162: -114228975.9
A163: 160 | B163: =B162-((152570*(Analysis!E$15))-((152570*(Analysis!E$15)*(Analysis!E$19)))) -> 51001.0996 | C163: 12597271.6 | D163: 9690208.924 | E163: 15300329.88 | F163: 5100109.96 | G163: 2550054.98 | H163: 15300329.88 | I163: 510010.996 | J163: 61048316.22 | L163: =L162-(152570*(Analysis!E$15)) -> -97461.716 | M163: -22869391.66 | N163: -18517726.04 | O163: -29238514.8 | P163: -9746171.6 | Q163: -4873085.8 | R163: -29238514.8 | S163: -974617.16 | T163: -115458021.9
A164: 161 | B164: =B163-((152570*(Analysis!E$15))-((152570*(Analysis!E$15)*(Analysis!E$19)))) -> 50897.352 | C164: 12571645.94 | D164: 9670496.88 | E164: 15269205.6 | F164: 5089735.2 | G164: 2544867.6 | H164: 15269205.6 | I164: 508973.52 | J164: 60924130.34 | L164: =L163-(152570*(Analysis!E$15)) -> -98499.192 | M164: -23112835.4 | N164: -18714846.48 | O164: -29549757.6 | P164: -9849919.2 | Q164: -4924959.6 | R164: -29549757.6 | S164: -984991.92 | T164: -116687067.8
A165: 162 | B165: =B164-((152570*(Analysis!E$15))-((152570*(Analysis!E$15)*(Analysis!E$19)))) -> 50793.6044 | C165: 12546020.29 | D165: 9650784.836 | E165: 15238081.32 | F165: 5079360.44 | G165: 2539680.22 | H165: 15238081.32 | I165: 507936.044 | J165: 60799944.47 | L165: =L164-(152570*(Analysis!E$15)) -> -99536.668 | M165: -23356279.15 | N165: -18911966.92 | O165: -29861000.4 | P165: -9953666.8 | Q165: -4976833.4 | R165: -29861000.4 | S165: -995366.68 | T165: -117916113.7
A166: 163 | B166: =B165-((152570*(Analysis!E$15))-((152570*(Analysis!E$15)*(Analysis!E$19)))) -> 50689.8568 | C166: 12520394.63 | D166: 9631072.792 | E166: 15206957.04 | F166: 5068985.68 | G166: 2534492.84 | H166: 15206957.04 | I166: 506898.568 | J166: 60675758.59 | L166: =L165-(152570*(Analysis!E$15)) -> -100574.144 | M166: -23599722.89 | N166: -19109087.36 | O166: -30172243.2 | P166: -10057414.4 | Q166: -5028707.2 | R166: -30172243.2 | S166: -1005741.44 | T166: -119145159.7
A167: 164 | B167: =B166-((152570*(Analysis!E$15))-((152570*(Analysis!E$15)*(Analysis!E$19)))) -> 50586.1092 | C167: 12494768.97 | D167: 9611360.748 | E167: 15175832.76 | F167: 5058610.92 | G167: 2529305.46 | H167: 15175832.76 | I167: 505861.092 | J167: 60551572.71 | L167: =L166-(152570*(Analysis!E$15)) -> -101611.62 | M167: -23843166.63 | N167: -19306207.8 | O167: -30483486 | P167: -10161162 | Q167: -5080581 | R167: -30483486 | S167: -1016116.2 | T167: -120374205.6
A168: 165 | B168: =B167-((152570*(Analysis!E$15))-((152570*(Analysis!E$15)*(Analysis!E$19)))) -> 50482.3616 | C168: =B168*247 -> 12469143.32 | D168: =B168*190 -> 9591648.704 | E168: =B168*300 -> 15144708.48 | F168: =B168*100 -> 5048236.16 | G168: =B168*50 -> 2524118.08 | H168: =B168*300 -> 15144708.48 | I168: =B168*10 -> 504823.616 | J168: =SUM(C168:I168) -> 60427386.84 | L168: =L167-(152570*(Analysis!E$15)) -> -102649.096 | M168: =0.95*(247*L168) -> -24086610.38 | N168: =L168*190 -> -19503328.24 | O168: =L168*300 -> -30794728.8 | P168: =L168*100 -> -10264909.6 | Q168: =L168*50 -> -5132454.8 | R168: =L168*300 -> -30794728.8 | S168: =L168*10 -> -1026490.96 | T168: =SUM(M168:S168) -> -121603251.6
A169: 166 | B169: =B168-((152570*(Analysis!E$15))-((152570*(Analysis!E$15)*(Analysis!E$19)))) -> 50378.614 | C169: 12443517.66 | D169: 9571936.66 | E169: 15113584.2 | F169: 5037861.4 | G169: 2518930.7 | H169: 15113584.2 | I169: 503786.14 | J169: 60303200.96 | L169: =L168-(152570*(Analysis!E$15)) -> -103686.572 | M169: -24330054.12 | N169: -19700448.68 | O169: -31105971.6 | P169: -10368657.2 | Q169: -5184328.6 | R169: -31105971.6 | S169: -1036865.72 | T169: -122832297.5
A170: 167 | B170: =B169-((152570*(Analysis!E$15))-((152570*(Analysis!E$15)*(Analysis!E$19)))) -> 50274.8664 | C170: 12417892 | D170: 9552224.616 | E170: 15082459.92 | F170: 5027486.64 | G170: 2513743.32 | H170: 15082459.92 | I170: 502748.664 | J170: 60179015.08 | L170: =L169-(152570*(Analysis!E$15)) -> -104724.048 | M170: -24573497.86 | N170: -19897569.12 | O170: -31417214.4 | P170: -10472404.8 | Q170: -5236202.4 | R170: -31417214.4 | S170: -1047240.48 | T170: -124061343.5
A171: 168 | B171: =B170-((152570*(Analysis!E$15))-((152570*(Analysis!E$15)*(Analysis!E$19)))) -> 50171.1188 | C171: 12392266.34 | D171: 9532512.572 | E171: 15051335.64 | F171: 5017111.88 | G171: 2508555.94 | H171: 15051335.64 | I171: 501711.188 | J171: 60054829.2 | L171: =L170-(152570*(Analysis!E$15)) -> -105761.524 | M171: -24816941.61 | N171: -20094689.56 | O171: -31728457.2 | P171: -10576152.4 | Q171: -5288076.2 | R171: -31728457.2 | S171: -1057615.24 | T171: -125290389.4
A172: 169 | B172: =B171-((152570*(Analysis!E$15))-((152570*(Analysis!E$15)*(Analysis!E$19)))) -> 50067.3712 | C172: 12366640.69 | D172: 9512800.528 | E172: 15020211.36 | F172: 5006737.12 | G172: 2503368.56 | H172: 15020211.36 | I172: 500673.712 | J172: 59930643.33 | L172: =L171-(152570*(Analysis!E$15)) -> -106799 | M172: -25060385.35 | N172: -20291810 | O172: -32039700 | P172: -10679900 | Q172: -5339950 | R172: -32039700 | S172: -1067990 | T172: -126519435.3
A173: 170 | B173: =B172-((152570*(Analysis!E$15))-((152570*(Analysis!E$15)*(Analysis!E$19)))) -> 49963.6236 | C173: 12341015.03 | D173: 9493088.484 | E173: 14989087.08 | F173: 4996362.36 | G173: 2498181.18 | H173: 14989087.08 | I173: 499636.236 | J173: 59806457.45 | L173: =L172-(152570*(Analysis!E$15)) -> -107836.476 | M173: -25303829.09 | N173: -20488930.44 | O173: -32350942.8 | P173: -10783647.6 | Q173: -5391823.8 | R173: -32350942.8 | S173: -1078364.76 | T173: -127748481.3
A174: 171 | B174: =B173-((152570*(Analysis!E$15))-((152570*(Analysis!E$15)*(Analysis!E$19)))) -> 49859.876 | C174: 12315389.37 | D174: 9473376.44 | E174: 14957962.8 | F174: 4985987.6 | G174: 2492993.8 | H174: 14957962.8 | I174: 498598.76 | J174: 59682271.57 | L174: =L173-(152570*(Analysis!E$15)) -> -108873.952 | M174: -25547272.84 | N174: -20686050.88 | O174: -32662185.6 | P174: -10887395.2 | Q174: -5443697.6 | R174: -32662185.6 | S174: -1088739.52 | T174: -128977527.2
A175: 172 | B175: =B174-((152570*(Analysis!E$15))-((152570*(Analysis!E$15)*(Analysis!E$19)))) -> 49756.1284 | C175: 12289763.71 | D175: 9453664.396 | E175: 14926838.52 | F175: 4975612.84 | G175: 2487806.42 | H175: 14926838.52 | I175: 497561.284 | J175: 59558085.69 | L175: =L174-(152570*(Analysis!E$15)) -> -109911.428 | M175: -25790716.58 | N175: -20883171.32 | O175: -32973428.4 | P175: -10991142.8 | Q175: -5495571.4 | R175: -32973428.4 | S175: -1099114.28 | T175: -130206573.2
A176: 173 | B176: =B175-((152570*(Analysis!E$15))-((152570*(Analysis!E$15)*(Analysis!E$19)))) -> 49652.3808 | C176: 12264138.06 | D176: 9433952.352 | E176: 14895714.24 | F176: 4965238.08 | G176: 2482619.04 | H176: 14895714.24 | I176: 496523.808 | J176: 59433899.82 | L176: =L175-(152570*(Analysis!E$15)) -> -110948.904 | M176: -26034160.32 | N176: -21080291.76 | O176: -33284671.2 | P176: -11094890.4 | Q176: -5547445.2 | R176: -33284671.2 | S176: -1109489.04 | T176: -131435619.1
A177: 174 | B177: =B176-((152570*(Analysis!E$15))-((152570*(Analysis!E$15)*(Analysis!E$19)))) -> 49548.6332 | C177: 12238512.4 | D177: 9414240.308 | E177: 14864589.96 | F177: 4954863.32 | G177: 2477431.66 | H177: 14864589.96 | I177: 495486.332 | J177: 59309713.94 | L177: =L176-(152570*(Analysis!E$15)) -> -111986.38 | M177: -26277604.07 | N177: -21277412.2 | O177: -33595914 | P177: -11198638 | Q177: -5599319 | R177: -33595914 | S177: -1119863.8 | T177: -132664665.1
A178: 175 | B178: =B177-((152570*(Analysis!E$15))-((152570*(Analysis!E$15)*(Analysis!E$19)))) -> 49444.8856 | C178: 12212886.74 | D178: 9394528.264 | E178: 14833465.68 | F178: 4944488.56 | G178: 2472244.28 | H178: 14833465.68 | I178: 494448.856 | J178: 59185528.06 | L178: =L177-(152570*(Analysis!E$15)) -> -113023.856 | M178: -26521047.81 | N178: -21474532.64 | O178: -33907156.8 | P178: -11302385.6 | Q178: -5651192.8 | R178: -33907156.8 | S178: -1130238.56 | T178: -133893711
A179: 176 | B179: =B178-((152570*(Analysis!E$15))-((152570*(Analysis!E$15)*(Analysis!E$19)))) -> 49341.138 | C179: 12187261.09 | D179: 9374816.22 | E179: 14802341.4 | F179: 4934113.8 | G179: 2467056.9 | H179: 14802341.4 | I179: 493411.38 | J179: 59061342.19 | L179: =L178-(152570*(Analysis!E$15)) -> -114061.332 | M179: -26764491.55 | N179: -21671653.08 | O179: -34218399.6 | P179: -11406133.2 | Q179: -5703066.6 | R179: -34218399.6 | S179: -1140613.32 | T179: -135122757
A180: 177 | B180: =B179-((152570*(Analysis!E$15))-((152570*(Analysis!E$15)*(Analysis!E$19)))) -> 49237.3904 | C180: 12161635.43 | D180: 9355104.176 | E180: 14771217.12 | F180: 4923739.04 | G180: 2461869.52 | H180: 14771217.12 | I180: 492373.904 | J180: 58937156.31 | L180: =L179-(152570*(Analysis!E$15)) -> -115098.808 | M180: -27007935.3 | N180: -21868773.52 | O180: -34529642.4 | P180: -11509880.8 | Q180: -5754940.4 | R180: -34529642.4 | S180: -1150988.08 | T180: -136351802.9
A181: 178 | B181: =B180-((152570*(Analysis!E$15))-((152570*(Analysis!E$15)*(Analysis!E$19)))) -> 49133.6428 | C181: 12136009.77 | D181: 9335392.132 | E181: 14740092.84 | F181: 4913364.28 | G181: 2456682.14 | H181: 14740092.84 | I181: 491336.428 | J181: 58812970.43 | L181: =L180-(152570*(Analysis!E$15)) -> -116136.284 | M181: -27251379.04 | N181: -22065893.96 | O181: -34840885.2 | P181: -11613628.4 | Q181: -5806814.2 | R181: -34840885.2 | S181: -1161362.84 | T181: -137580848.8
A182: 179 | B182: =B181-((152570*(Analysis!E$15))-((152570*(Analysis!E$15)*(Analysis!E$19)))) -> 49029.8952 | C182: 12110384.11 | D182: 9315680.088 | E182: 14708968.56 | F182: 4902989.52 | G182: 2451494.76 | H182: 14708968.56 | I182: 490298.952 | J182: 58688784.55 | L182: =L181-(152570*(Analysis!E$15)) -> -117173.76 | M182: -27494822.78 | N182: -22263014.4 | O182: -35152128 | P182: -11717376 | Q182: -5858688 | R182: -35152128 | S182: -1171737.6 | T182: -138809894.8
A183: 180 | B183: =B182-((152570*(Analysis!E$15))-((152570*(Analysis!E$15)*(Analysis!E$19)))) -> 48926.1476 | C183: 12084758.46 | D183: 9295968.044 | E183: 14677844.28 | F183: 4892614.76 | G183: 2446307.38 | H183: 14677844.28 | I183: 489261.476 | J183: 58564598.68 | L183: =L182-(152570*(Analysis!E$15)) -> -118211.236 | M183: -27738266.53 | N183: -22460134.84 | O183: -35463370.8 | P183: -11821123.6 | Q183: -5910561.8 | R183: -35463370.8 | S183: -1182112.36 | T183: -140038940.7
A184: 181 | B184: =B183-((152570*(Analysis!E$15))-((152570*(Analysis!E$15)*(Analysis!E$19)))) -> 48822.4 | C184: 12059132.8 | D184: 9276256 | E184: 14646720 | F184: 4882240 | G184: 2441120 | H184: 14646720 | I184: 488224 | J184: 58440412.8 | L184: =L183-(152570*(Analysis!E$15)) -> -119248.712 | M184: -27981710.27 | N184: -22657255.28 | O184: -35774613.6 | P184: -11924871.2 | Q184: -5962435.6 | R184: -35774613.6 | S184: -1192487.12 | T184: -141267986.7
A185: 182 | B185: =B184-((152570*(Analysis!E$15))-((152570*(Analysis!E$15)*(Analysis!E$19)))) -> 48718.6524 | C185: 12033507.14 | D185: 9256543.956 | E185: 14615595.72 | F185: 4871865.24 | G185: 2435932.62 | H185: 14615595.72 | I185: 487186.524 | J185: 58316226.92 | L185: =L184-(152570*(Analysis!E$15)) -> -120286.188 | M185: -28225154.01 | N185: -22854375.72 | O185: -36085856.4 | P185: -12028618.8 | Q185: -6014309.4 | R185: -36085856.4 | S185: -1202861.88 | T185: -142497032.6
A186: 183 | B186: =B185-((152570*(Analysis!E$15))-((152570*(Analysis!E$15)*(Analysis!E$19)))) -> 48614.9048 | C186: 12007881.49 | D186: 9236831.912 | E186: 14584471.44 | F186: 4861490.48 | G186: 2430745.24 | H186: 14584471.44 | I186: 486149.048 | J186: 58192041.05 | L186: =L185-(152570*(Analysis!E$15)) -> -121323.664 | M186: -28468597.76 | N186: -23051496.16 | O186: -36397099.2 | P186: -12132366.4 | Q186: -6066183.2 | R186: -36397099.2 | S186: -1213236.64 | T186: -143726078.6
A187: 184 | B187: =B186-((152570*(Analysis!E$15))-((152570*(Analysis!E$15)*(Analysis!E$19)))) -> 48511.1572 | C187: 11982255.83 | D187: 9217119.868 | E187: 14553347.16 | F187: 4851115.72 | G187: 2425557.86 | H187: 14553347.16 | I187: 485111.572 | J187: 58067855.17 | L187: =L186-(152570*(Analysis!E$15)) -> -122361.14 | M187: -28712041.5 | N187: -23248616.6 | O187: -36708342 | P187: -12236114 | Q187: -6118057 | R187: -36708342 | S187: -1223611.4 | T187: -144955124.5
A188: 185 | B188: =B187-((152570*(Analysis!E$15))-((152570*(Analysis!E$15)*(Analysis!E$19)))) -> 48407.4096 | C188: 11956630.17 | D188: 9197407.824 | E188: 14522222.88 | F188: 4840740.96 | G188: 2420370.48 | H188: 14522222.88 | I188: 484074.096 | J188: 57943669.29 | L188: =L187-(152570*(Analysis!E$15)) -> -123398.616 | M188: -28955485.24 | N188: -23445737.04 | O188: -37019584.8 | P188: -12339861.6 | Q188: -6169930.8 | R188: -37019584.8 | S188: -1233986.16 | T188: -146184170.4
A189: 186 | B189: =B188-((152570*(Analysis!E$15))-((152570*(Analysis!E$15)*(Analysis!E$19)))) -> 48303.662 | C189: 11931004.51 | D189: 9177695.78 | E189: 14491098.6 | F189: 4830366.2 | G189: 2415183.1 | H189: 14491098.6 | I189: 483036.62 | J189: 57819483.41 | L189: =L188-(152570*(Analysis!E$15)) -> -124436.092 | M189: -29198928.99 | N189: -23642857.48 | O189: -37330827.6 | P189: -12443609.2 | Q189: -6221804.6 | R189: -37330827.6 | S189: -1244360.92 | T189: -147413216.4
A190: 187 | B190: =B189-((152570*(Analysis!E$15))-((152570*(Analysis!E$15)*(Analysis!E$19)))) -> 48199.9144 | C190: 11905378.86 | D190: 9157983.736 | E190: 14459974.32 | F190: 4819991.44 | G190: 2409995.72 | H190: 14459974.32 | I190: 481999.144 | J190: 57695297.54 | L190: =L189-(152570*(Analysis!E$15)) -> -125473.568 | M190: -29442372.73 | N190: -23839977.92 | O190: -37642070.4 | P190: -12547356.8 | Q190: -6273678.4 | R190: -37642070.4 | S190: -1254735.68 | T190: -148642262.3
A191: 188 | B191: =B190-((152570*(Analysis!E$15))-((152570*(Analysis!E$15)*(Analysis!E$19)))) -> 48096.1668 | C191: 11879753.2 | D191: 9138271.692 | E191: 14428850.04 | F191: 4809616.68 | G191: 2404808.34 | H191: 14428850.04 | I191: 480961.668 | J191: 57571111.66 | L191: =L190-(152570*(Analysis!E$15)) -> -126511.044 | M191: -29685816.47 | N191: -24037098.36 | O191: -37953313.2 | P191: -12651104.4 | Q191: -6325552.2 | R191: -37953313.2 | S191: -1265110.44 | T191: -149871308.3
A192: 189 | B192: =B191-((152570*(Analysis!E$15))-((152570*(Analysis!E$15)*(Analysis!E$19)))) -> 47992.4192 | C192: 11854127.54 | D192: 9118559.648 | E192: 14397725.76 | F192: 4799241.92 | G192: 2399620.96 | H192: 14397725.76 | I192: 479924.192 | J192: 57446925.78 | L192: =L191-(152570*(Analysis!E$15)) -> -127548.52 | M192: -29929260.22 | N192: -24234218.8 | O192: -38264556 | P192: -12754852 | Q192: -6377426 | R192: -38264556 | S192: -1275485.2 | T192: -151100354.2
A193: 190 | B193: =B192-((152570*(Analysis!E$15))-((152570*(Analysis!E$15)*(Analysis!E$19)))) -> 47888.6716 | C193: 11828501.89 | D193: 9098847.604 | E193: 14366601.48 | F193: 4788867.16 | G193: 2394433.58 | H193: 14366601.48 | I193: 478886.716 | J193: 57322739.91 | L193: =L192-(152570*(Analysis!E$15)) -> -128585.996 | M193: -30172703.96 | N193: -24431339.24 | O193: -38575798.8 | P193: -12858599.6 | Q193: -6429299.8 | R193: -38575798.8 | S193: -1285859.96 | T193: -152329400.2
A194: 191 | B194: =B193-((152570*(Analysis!E$15))-((152570*(Analysis!E$15)*(Analysis!E$19)))) -> 47784.924 | C194: 11802876.23 | D194: 9079135.56 | E194: 14335477.2 | F194: 4778492.4 | G194: 2389246.2 | H194: 14335477.2 | I194: 477849.24 | J194: 57198554.03 | L194: =L193-(152570*(Analysis!E$15)) -> -129623.472 | M194: -30416147.7 | N194: -24628459.68 | O194: -38887041.6 | P194: -12962347.2 | Q194: -6481173.6 | R194: -38887041.6 | S194: -1296234.72 | T194: -153558446.1
A195: 192 | B195: =B194-((152570*(Analysis!E$15))-((152570*(Analysis!E$15)*(Analysis!E$19)))) -> 47681.1764 | C195: 11777250.57 | D195: 9059423.516 | E195: 14304352.92 | F195: 4768117.64 | G195: 2384058.82 | H195: 14304352.92 | I195: 476811.764 | J195: 57074368.15 | L195: =L194-(152570*(Analysis!E$15)) -> -130660.948 | M195: -30659591.45 | N195: -24825580.12 | O195: -39198284.4 | P195: -13066094.8 | Q195: -6533047.4 | R195: -39198284.4 | S195: -1306609.48 | T195: -154787492
A196: 193 | B196: =B195-((152570*(Analysis!E$15))-((152570*(Analysis!E$15)*(Analysis!E$19)))) -> 47577.4288 | C196: 11751624.91 | D196: 9039711.472 | E196: 14273228.64 | F196: 4757742.88 | G196: 2378871.44 | H196: 14273228.64 | I196: 475774.288 | J196: 56950182.27 | L196: =L195-(152570*(Analysis!E$15)) -> -131698.424 | M196: -30903035.19 | N196: -25022700.56 | O196: -39509527.2 | P196: -13169842.4 | Q196: -6584921.2 | R196: -39509527.2 | S196: -1316984.24 | T196: -156016538
A197: 194 | B197: =B196-((152570*(Analysis!E$15))-((152570*(Analysis!E$15)*(Analysis!E$19)))) -> 47473.6812 | C197: 11725999.26 | D197: 9019999.428 | E197: 14242104.36 | F197: 4747368.12 | G197: 2373684.06 | H197: 14242104.36 | I197: 474736.812 | J197: 56825996.4 | L197: =L196-(152570*(Analysis!E$15)) -> -132735.9 | M197: -31146478.93 | N197: -25219821 | O197: -39820770 | P197: -13273590 | Q197: -6636795 | R197: -39820770 | S197: -1327359 | T197: -157245583.9
A198: 195 | B198: =B197-((152570*(Analysis!E$15))-((152570*(Analysis!E$15)*(Analysis!E$19)))) -> 47369.9336 | C198: 11700373.6 | D198: 9000287.384 | E198: 14210980.08 | F198: 4736993.36 | G198: 2368496.68 | H198: 14210980.08 | I198: 473699.336 | J198: 56701810.52 | L198: =L197-(152570*(Analysis!E$15)) -> -133773.376 | M198: -31389922.68 | N198: -25416941.44 | O198: -40132012.8 | P198: -13377337.6 | Q198: -6688668.8 | R198: -40132012.8 | S198: -1337733.76 | T198: -158474629.9
A199: 196 | B199: =B198-((152570*(Analysis!E$15))-((152570*(Analysis!E$15)*(Analysis!E$19)))) -> 47266.186 | C199: 11674747.94 | D199: 8980575.34 | E199: 14179855.8 | F199: 4726618.6 | G199: 2363309.3 | H199: 14179855.8 | I199: 472661.86 | J199: 56577624.64 | L199: =L198-(152570*(Analysis!E$15)) -> -134810.852 | M199: -31633366.42 | N199: -25614061.88 | O199: -40443255.6 | P199: -13481085.2 | Q199: -6740542.6 | R199: -40443255.6 | S199: -1348108.52 | T199: -159703675.8
A200: 197 | B200: =B199-((152570*(Analysis!E$15))-((152570*(Analysis!E$15)*(Analysis!E$19)))) -> 47162.4384 | C200: 11649122.28 | D200: 8960863.296 | E200: 14148731.52 | F200: 4716243.84 | G200: 2358121.92 | H200: 14148731.52 | I200: 471624.384 | J200: 56453438.76 | L200: =L199-(152570*(Analysis!E$15)) -> -135848.328 | M200: -31876810.17 | N200: -25811182.32 | O200: -40754498.4 | P200: -13584832.8 | Q200: -6792416.4 | R200: -40754498.4 | S200: -1358483.28 | T200: -160932721.8
... 801 more rows

Sheet Jordanelle_Benefits
B1: BENEFITS
C2: With Sedimentation Management | L2: Without Management
B3: Reservoir Capacity | C3: Water Value | D3: Irrigation | E3: M&I | F3: Flood Control | G3: Recreation | H3: Hydropower | I3: Fish and Widlife | J3: Total Benefits | K3: Reservoir Capacity | L3: Water Value | M3: Irrigation | N3: M&I | O3: Flood Control | P3: Recreation | Q3: Hydropower | R3: Fish and Widlife | S3: Total Benefits
A4: 1 | B4: =Res_Info!D3 -> 259314.88 | C4: =B4*247 -> 64050775.36 | D4: =B4*190 -> 49269827.2 | E4: =B4*300 -> 77794464 | F4: =B4*100 -> 25931488 | G4: =B4*50 -> 12965744 | H4: =B4*300 -> 77794464 | I4: =B4*10 -> 2593148.8 | J4: =SUM(C4:I4) -> 310399911.4 | K4: =Res_Info!D3 -> 259314.88 | L4: =0.95*(247*K4) -> 60848236.59 | M4: =K4*190 -> 49269827.2 | N4: =K4*300 -> 77794464 | O4: =K4*100 -> 25931488 | P4: =K4*50 -> 12965744 | Q4: =K4*300 -> 77794464 | R4: =K4*10 -> 2593148.8 | S4: =SUM(L4:R4) -> 307197372.6
A5: 2 | B5: =B4-((320300*(Analysis!E$15))-((320300*(Analysis!E$15)*(Analysis!E$19)))) -> 259097.076 | C5: =B5*247 -> 63996977.77 | D5: =B5*190 -> 49228444.44 | E5: =B5*300 -> 77729122.8 | F5: =B5*100 -> 25909707.6 | G5: =B5*50 -> 12954853.8 | H5: =B5*300 -> 77729122.8 | I5: =B5*10 -> 2590970.76 | J5: =SUM(C5:I5) -> 310139200 | K5: =K4-(320300*(Analysis!E$15)) -> 257136.84 | L5: =0.95*(247*K5) -> 60337159.51 | M5: =K5*190 -> 48855999.6 | N5: =K5*300 -> 77141052 | O5: =K5*100 -> 25713684 | P5: =K5*50 -> 12856842 | Q5: =K5*300 -> 77141052 | R5: =K5*10 -> 2571368.4 | S5: =SUM(L5:R5) -> 304617157.5
A6: 3 | B6: =B5-((320300*(Analysis!E$15))-((320300*(Analysis!E$15)*(Analysis!E$19)))) -> 258879.272 | C6: 63943180.18 | D6: 49187061.68 | E6: 77663781.6 | F6: 25887927.2 | G6: 12943963.6 | H6: 77663781.6 | I6: 2588792.72 | J6: 309878488.6 | K6: =K5-(320300*(Analysis!E$15)) -> 254958.8 | L6: =0.95*(247*K6) -> 59826082.42 | M6: =K6*190 -> 48442172 | N6: =K6*300 -> 76487640 | O6: =K6*100 -> 25495880 | P6: =K6*50 -> 12747940 | Q6: =K6*300 -> 76487640 | R6: =K6*10 -> 2549588 | S6: 302036942.4
A7: 4 | B7: =B6-((320300*(Analysis!E$15))-((320300*(Analysis!E$15)*(Analysis!E$19)))) -> 258661.468 | C7: 63889382.6 | D7: 49145678.92 | E7: 77598440.4 | F7: 25866146.8 | G7: 12933073.4 | H7: 77598440.4 | I7: 2586614.68 | J7: 309617777.2 | K7: =K6-(320300*(Analysis!E$15)) -> 252780.76 | L7: =0.95*(247*K7) -> 59315005.33 | M7: =K7*190 -> 48028344.4 | N7: =K7*300 -> 75834228 | O7: =K7*100 -> 25278076 | P7: =K7*50 -> 12639038 | Q7: =K7*300 -> 75834228 | R7: =K7*10 -> 2527807.6 | S7: 299456727.3
A8: 5 | B8: =B7-((320300*(Analysis!E$15))-((320300*(Analysis!E$15)*(Analysis!E$19)))) -> 258443.664 | C8: 63835585.01 | D8: 49104296.16 | E8: 77533099.2 | F8: 25844366.4 | G8: 12922183.2 | H8: 77533099.2 | I8: 2584436.64 | J8: 309357065.8 | K8: =K7-(320300*(Analysis!E$15)) -> 250602.72 | L8: 58803928.25 | M8: 47614516.8 | N8: 75180816 | O8: 25060272 | P8: 12530136 | Q8: 75180816 | R8: 2506027.2 | S8: 296876512.2
A9: 6 | B9: =B8-((320300*(Analysis!E$15))-((320300*(Analysis!E$15)*(Analysis!E$19)))) -> 258225.86 | C9: 63781787.42 | D9: 49062913.4 | E9: 77467758 | F9: 25822586 | G9: 12911293 | H9: 77467758 | I9: 2582258.6 | J9: 309096354.4 | K9: =K8-(320300*(Analysis!E$15)) -> 248424.68 | L9: 58292851.16 | M9: 47200689.2 | N9: 74527404 | O9: 24842468 | P9: 12421234 | Q9: 74527404 | R9: 2484246.8 | S9: 294296297.2
A10: 7 | B10: =B9-((320300*(Analysis!E$15))-((320300*(Analysis!E$15)*(Analysis!E$19)))) -> 258008.056 | C10: 63727989.83 | D10: 49021530.64 | E10: 77402416.8 | F10: 25800805.6 | G10: 12900402.8 | H10: 77402416.8 | I10: 2580080.56 | J10: 308835643 | K10: =K9-(320300*(Analysis!E$15)) -> 246246.64 | L10: 57781774.08 | M10: 46786861.6 | N10: 73873992 | O10: 24624664 | P10: 12312332 | Q10: 73873992 | R10: 2462466.4 | S10: 291716082.1
A11: 8 | B11: =B10-((320300*(Analysis!E$15))-((320300*(Analysis!E$15)*(Analysis!E$19)))) -> 257790.252 | C11: 63674192.24 | D11: 48980147.88 | E11: 77337075.6 | F11: 25779025.2 | G11: 12889512.6 | H11: 77337075.6 | I11: 2577902.52 | J11: 308574931.6 | K11: =K10-(320300*(Analysis!E$15)) -> 244068.6 | L11: 57270696.99 | M11: 46373034 | N11: 73220580 | O11: 24406860 | P11: 12203430 | Q11: 73220580 | R11: 2440686 | S11: 289135867
A12: 9 | B12: =B11-((320300*(Analysis!E$15))-((320300*(Analysis!E$15)*(Analysis!E$19)))) -> 257572.448 | C12: 63620394.66 | D12: 48938765.12 | E12: 77271734.4 | F12: 25757244.8 | G12: 12878622.4 | H12: 77271734.4 | I12: 2575724.48 | J12: 308314220.3 | K12: =K11-(320300*(Analysis!E$15)) -> 241890.56 | L12: 56759619.9 | M12: 45959206.4 | N12: 72567168 | O12: 24189056 | P12: 12094528 | Q12: 72567168 | R12: 2418905.6 | S12: 286555651.9
A13: 10 | B13: =B12-((320300*(Analysis!E$15))-((320300*(Analysis!E$15)*(Analysis!E$19)))) -> 257354.644 | C13: 63566597.07 | D13: 48897382.36 | E13: 77206393.2 | F13: 25735464.4 | G13: 12867732.2 | H13: 77206393.2 | I13: 2573546.44 | J13: 308053508.9 | K13: =K12-(320300*(Analysis!E$15)) -> 239712.52 | L13: 56248542.82 | M13: 45545378.8 | N13: 71913756 | O13: 23971252 | P13: 11985626 | Q13: 71913756 | R13: 2397125.2 | S13: 283975436.8
A14: 11 | B14: =B13-((320300*(Analysis!E$15))-((320300*(Analysis!E$15)*(Analysis!E$19)))) -> 257136.84 | C14: 63512799.48 | D14: 48855999.6 | E14: 77141052 | F14: 25713684 | G14: 12856842 | H14: 77141052 | I14: 2571368.4 | J14: 307792797.5 | K14: =K13-(320300*(Analysis!E$15)) -> 237534.48 | L14: 55737465.73 | M14: 45131551.2 | N14: 71260344 | O14: 23753448 | P14: 11876724 | Q14: 71260344 | R14: 2375344.8 | S14: 281395221.7
A15: 12 | B15: =B14-((320300*(Analysis!E$15))-((320300*(Analysis!E$15)*(Analysis!E$19)))) -> 256919.036 | C15: 63459001.89 | D15: 48814616.84 | E15: 77075710.8 | F15: 25691903.6 | G15: 12845951.8 | H15: 77075710.8 | I15: 2569190.36 | J15: 307532086.1 | K15: =K14-(320300*(Analysis!E$15)) -> 235356.44 | L15: 55226388.65 | M15: 44717723.6 | N15: 70606932 | O15: 23535644 | P15: 11767822 | Q15: 70606932 | R15: 2353564.4 | S15: 278815006.6
A16: 13 | B16: =B15-((320300*(Analysis!E$15))-((320300*(Analysis!E$15)*(Analysis!E$19)))) -> 256701.232 | C16: 63405204.3 | D16: 48773234.08 | E16: 77010369.6 | F16: 25670123.2 | G16: 12835061.6 | H16: 77010369.6 | I16: 2567012.32 | J16: 307271374.7 | K16: =K15-(320300*(Analysis!E$15)) -> 233178.4 | L16: 54715311.56 | M16: 44303896 | N16: 69953520 | O16: 23317840 | P16: 11658920 | Q16: 69953520 | R16: 2331784 | S16: 276234791.6
A17: 14 | B17: =B16-((320300*(Analysis!E$15))-((320300*(Analysis!E$15)*(Analysis!E$19)))) -> 256483.428 | C17: 63351406.72 | D17: 48731851.32 | E17: 76945028.4 | F17: 25648342.8 | G17: 12824171.4 | H17: 76945028.4 | I17: 2564834.28 | J17: 307010663.3 | K17: =K16-(320300*(Analysis!E$15)) -> 231000.36 | L17: 54204234.47 | M17: 43890068.4 | N17: 69300108 | O17: 23100036 | P17: 11550018 | Q17: 69300108 | R17: 2310003.6 | S17: 273654576.5
A18: 15 | B18: =B17-((320300*(Analysis!E$15))-((320300*(Analysis!E$15)*(Analysis!E$19)))) -> 256265.624 | C18: 63297609.13 | D18: 48690468.56 | E18: 76879687.2 | F18: 25626562.4 | G18: 12813281.2 | H18: 76879687.2 | I18: 2562656.24 | J18: 306749951.9 | K18: =K17-(320300*(Analysis!E$15)) -> 228822.32 | L18: 53693157.39 | M18: 43476240.8 | N18: 68646696 | O18: 22882232 | P18: 11441116 | Q18: 68646696 | R18: 2288223.2 | S18: 271074361.4
A19: 16 | B19: =B18-((320300*(Analysis!E$15))-((320300*(Analysis!E$15)*(Analysis!E$19)))) -> 256047.82 | C19: 63243811.54 | D19: 48649085.8 | E19: 76814346 | F19: 25604782 | G19: 12802391 | H19: 76814346 | I19: 2560478.2 | J19: 306489240.5 | K19: =K18-(320300*(Analysis!E$15)) -> 226644.28 | L19: 53182080.3 | M19: 43062413.2 | N19: 67993284 | O19: 22664428 | P19: 11332214 | Q19: 67993284 | R19: 2266442.8 | S19: 268494146.3
A20: 17 | B20: =B19-((320300*(Analysis!E$15))-((320300*(Analysis!E$15)*(Analysis!E$19)))) -> 255830.016 | C20: 63190013.95 | D20: 48607703.04 | E20: 76749004.8 | F20: 25583001.6 | G20: 12791500.8 | H20: 76749004.8 | I20: 2558300.16 | J20: 306228529.2 | K20: =K19-(320300*(Analysis!E$15)) -> 224466.24 | L20: 52671003.22 | M20: 42648585.6 | N20: 67339872 | O20: 22446624 | P20: 11223312 | Q20: 67339872 | R20: 2244662.4 | S20: 265913931.2
A21: 18 | B21: =B20-((320300*(Analysis!E$15))-((320300*(Analysis!E$15)*(Analysis!E$19)))) -> 255612.212 | C21: 63136216.36 | D21: 48566320.28 | E21: 76683663.6 | F21: 25561221.2 | G21: 12780610.6 | H21: 76683663.6 | I21: 2556122.12 | J21: 305967817.8 | K21: =K20-(320300*(Analysis!E$15)) -> 222288.2 | L21: 52159926.13 | M21: 42234758 | N21: 66686460 | O21: 22228820 | P21: 11114410 | Q21: 66686460 | R21: 2222882 | S21: 263333716.1
A22: 19 | B22: =B21-((320300*(Analysis!E$15))-((320300*(Analysis!E$15)*(Analysis!E$19)))) -> 255394.408 | C22: 63082418.78 | D22: 48524937.52 | E22: 76618322.4 | F22: 25539440.8 | G22: 12769720.4 | H22: 76618322.4 | I22: 2553944.08 | J22: 305707106.4 | K22: =K21-(320300*(Analysis!E$15)) -> 220110.16 | L22: 51648849.04 | M22: 41820930.4 | N22: 66033048 | O22: 22011016 | P22: 11005508 | Q22: 66033048 | R22: 2201101.6 | S22: 260753501
A23: 20 | B23: =B22-((320300*(Analysis!E$15))-((320300*(Analysis!E$15)*(Analysis!E$19)))) -> 255176.604 | C23: 63028621.19 | D23: 48483554.76 | E23: 76552981.2 | F23: 25517660.4 | G23: 12758830.2 | H23: 76552981.2 | I23: 2551766.04 | J23: 305446395 | K23: =K22-(320300*(Analysis!E$15)) -> 217932.12 | L23: 51137771.96 | M23: 41407102.8 | N23: 65379636 | O23: 21793212 | P23: 10896606 | Q23: 65379636 | R23: 2179321.2 | S23: 258173286
A24: 21 | B24: =B23-((320300*(Analysis!E$15))-((320300*(Analysis!E$15)*(Analysis!E$19)))) -> 254958.8 | C24: 62974823.6 | D24: 48442172 | E24: 76487640 | F24: 25495880 | G24: 12747940 | H24: 76487640 | I24: 2549588 | J24: 305185683.6 | K24: =K23-(320300*(Analysis!E$15)) -> 215754.08 | L24: 50626694.87 | M24: 40993275.2 | N24: 64726224 | O24: 21575408 | P24: 10787704 | Q24: 64726224 | R24: 2157540.8 | S24: 255593070.9
A25: 22 | B25: =B24-((320300*(Analysis!E$15))-((320300*(Analysis!E$15)*(Analysis!E$19)))) -> 254740.996 | C25: 62921026.01 | D25: 48400789.24 | E25: 76422298.8 | F25: 25474099.6 | G25: 12737049.8 | H25: 76422298.8 | I25: 2547409.96 | J25: 304924972.2 | K25: =K24-(320300*(Analysis!E$15)) -> 213576.04 | L25: 50115617.79 | M25: 40579447.6 | N25: 64072812 | O25: 21357604 | P25: 10678802 | Q25: 64072812 | R25: 2135760.4 | S25: 253012855.8
A26: 23 | B26: =B25-((320300*(Analysis!E$15))-((320300*(Analysis!E$15)*(Analysis!E$19)))) -> 254523.192 | C26: 62867228.42 | D26: 48359406.48 | E26: 76356957.6 | F26: 25452319.2 | G26: 12726159.6 | H26: 76356957.6 | I26: 2545231.92 | J26: 304664260.8 | K26: =K25-(320300*(Analysis!E$15)) -> 211398 | L26: 49604540.7 | M26: 40165620 | N26: 63419400 | O26: 21139800 | P26: 10569900 | Q26: 63419400 | R26: 2113980 | S26: 250432640.7
A27: 24 | B27: =B26-((320300*(Analysis!E$15))-((320300*(Analysis!E$15)*(Analysis!E$19)))) -> 254305.388 | C27: 62813430.84 | D27: 48318023.72 | E27: 76291616.4 | F27: 25430538.8 | G27: 12715269.4 | H27: 76291616.4 | I27: 2543053.88 | J27: 304403549.4 | K27: =K26-(320300*(Analysis!E$15)) -> 209219.96 | L27: 49093463.61 | M27: 39751792.4 | N27: 62765988 | O27: 20921996 | P27: 10460998 | Q27: 62765988 | R27: 2092199.6 | S27: 247852425.6
A28: 25 | B28: =B27-((320300*(Analysis!E$15))-((320300*(Analysis!E$15)*(Analysis!E$19)))) -> 254087.584 | C28: 62759633.25 | D28: 48276640.96 | E28: 76226275.2 | F28: 25408758.4 | G28: 12704379.2 | H28: 76226275.2 | I28: 2540875.84 | J28: 304142838 | K28: =K27-(320300*(Analysis!E$15)) -> 207041.92 | L28: 48582386.53 | M28: 39337964.8 | N28: 62112576 | O28: 20704192 | P28: 10352096 | Q28: 62112576 | R28: 2070419.2 | S28: 245272210.5
A29: 26 | B29: =B28-((320300*(Analysis!E$15))-((320300*(Analysis!E$15)*(Analysis!E$19)))) -> 253869.78 | C29: 62705835.66 | D29: 48235258.2 | E29: 76160934 | F29: 25386978 | G29: 12693489 | H29: 76160934 | I29: 2538697.8 | J29: 303882126.7 | K29: =K28-(320300*(Analysis!E$15)) -> 204863.88 | L29: 48071309.44 | M29: 38924137.2 | N29: 61459164 | O29: 20486388 | P29: 10243194 | Q29: 61459164 | R29: 2048638.8 | S29: 242691995.4
A30: 27 | B30: =B29-((320300*(Analysis!E$15))-((320300*(Analysis!E$15)*(Analysis!E$19)))) -> 253651.976 | C30: 62652038.07 | D30: 48193875.44 | E30: 76095592.8 | F30: 25365197.6 | G30: 12682598.8 | H30: 76095592.8 | I30: 2536519.76 | J30: 303621415.3 | K30: =K29-(320300*(Analysis!E$15)) -> 202685.84 | L30: 47560232.36 | M30: 38510309.6 | N30: 60805752 | O30: 20268584 | P30: 10134292 | Q30: 60805752 | R30: 2026858.4 | S30: 240111780.4
A31: 28 | B31: =B30-((320300*(Analysis!E$15))-((320300*(Analysis!E$15)*(Analysis!E$19)))) -> 253434.172 | C31: 62598240.48 | D31: 48152492.68 | E31: 76030251.6 | F31: 25343417.2 | G31: 12671708.6 | H31: 76030251.6 | I31: 2534341.72 | J31: 303360703.9 | K31: =K30-(320300*(Analysis!E$15)) -> 200507.8 | L31: 47049155.27 | M31: 38096482 | N31: 60152340 | O31: 20050780 | P31: 10025390 | Q31: 60152340 | R31: 2005078 | S31: 237531565.3
A32: 29 | B32: =B31-((320300*(Analysis!E$15))-((320300*(Analysis!E$15)*(Analysis!E$19)))) -> 253216.368 | C32: 62544442.9 | D32: 48111109.92 | E32: 75964910.4 | F32: 25321636.8 | G32: 12660818.4 | H32: 75964910.4 | I32: 2532163.68 | J32: 303099992.5 | K32: =K31-(320300*(Analysis!E$15)) -> 198329.76 | L32: 46538078.18 | M32: 37682654.4 | N32: 59498928 | O32: 19832976 | P32: 9916488 | Q32: 59498928 | R32: 1983297.6 | S32: 234951350.2
A33: 30 | B33: =B32-((320300*(Analysis!E$15))-((320300*(Analysis!E$15)*(Analysis!E$19)))) -> 252998.564 | C33: 62490645.31 | D33: 48069727.16 | E33: 75899569.2 | F33: 25299856.4 | G33: 12649928.2 | H33: 75899569.2 | I33: 2529985.64 | J33: 302839281.1 | K33: =K32-(320300*(Analysis!E$15)) -> 196151.72 | L33: 46027001.1 | M33: 37268826.8 | N33: 58845516 | O33: 19615172 | P33: 9807586 | Q33: 58845516 | R33: 1961517.2 | S33: 232371135.1
A34: 31 | B34: =B33-((320300*(Analysis!E$15))-((320300*(Analysis!E$15)*(Analysis!E$19)))) -> 252780.76 | C34: 62436847.72 | D34: 48028344.4 | E34: 75834228 | F34: 25278076 | G34: 12639038 | H34: 75834228 | I34: 2527807.6 | J34: 302578569.7 | K34: =K33-(320300*(Analysis!E$15)) -> 193973.68 | L34: 45515924.01 | M34: 36854999.2 | N34: 58192104 | O34: 19397368 | P34: 9698684 | Q34: 58192104 | R34: 1939736.8 | S34: 229790920
A35: 32 | B35: =B34-((320300*(Analysis!E$15))-((320300*(Analysis!E$15)*(Analysis!E$19)))) -> 252562.956 | C35: 62383050.13 | D35: 47986961.64 | E35: 75768886.8 | F35: 25256295.6 | G35: 12628147.8 | H35: 75768886.8 | I35: 2525629.56 | J35: 302317858.3 | K35: =K34-(320300*(Analysis!E$15)) -> 191795.64 | L35: 45004846.93 | M35: 36441171.6 | N35: 57538692 | O35: 19179564 | P35: 9589782 | Q35: 57538692 | R35: 1917956.4 | S35: 227210704.9
A36: 33 | B36: =B35-((320300*(Analysis!E$15))-((320300*(Analysis!E$15)*(Analysis!E$19)))) -> 252345.152 | C36: 62329252.54 | D36: 47945578.88 | E36: 75703545.6 | F36: 25234515.2 | G36: 12617257.6 | H36: 75703545.6 | I36: 2523451.52 | J36: 302057146.9 | K36: =K35-(320300*(Analysis!E$15)) -> 189617.6 | L36: 44493769.84 | M36: 36027344 | N36: 56885280 | O36: 18961760 | P36: 9480880 | Q36: 56885280 | R36: 1896176 | S36: 224630489.8
A37: 34 | B37: =B36-((320300*(Analysis!E$15))-((320300*(Analysis!E$15)*(Analysis!E$19)))) -> 252127.348 | C37: 62275454.96 | D37: 47904196.12 | E37: 75638204.4 | F37: 25212734.8 | G37: 12606367.4 | H37: 75638204.4 | I37: 2521273.48 | J37: 301796435.6 | K37: =K36-(320300*(Analysis!E$15)) -> 187439.56 | L37: 43982692.75 | M37: 35613516.4 | N37: 56231868 | O37: 18743956 | P37: 9371978 | Q37: 56231868 | R37: 1874395.6 | S37: 222050274.8
A38: 35 | B38: =B37-((320300*(Analysis!E$15))-((320300*(Analysis!E$15)*(Analysis!E$19)))) -> 251909.544 | C38: 62221657.37 | D38: 47862813.36 | E38: 75572863.2 | F38: 25190954.4 | G38: 12595477.2 | H38: 75572863.2 | I38: 2519095.44 | J38: 301535724.2 | K38: =K37-(320300*(Analysis!E$15)) -> 185261.52 | L38: 43471615.67 | M38: 35199688.8 | N38: 55578456 | O38: 18526152 | P38: 9263076 | Q38: 55578456 | R38: 1852615.2 | S38: 219470059.7
A39: 36 | B39: =B38-((320300*(Analysis!E$15))-((320300*(Analysis!E$15)*(Analysis!E$19)))) -> 251691.74 | C39: 62167859.78 | D39: 47821430.6 | E39: 75507522 | F39: 25169174 | G39: 12584587 | H39: 75507522 | I39: 2516917.4 | J39: 301275012.8 | K39: =K38-(320300*(Analysis!E$15)) -> 183083.48 | L39: 42960538.58 | M39: 34785861.2 | N39: 54925044 | O39: 18308348 | P39: 9154174 | Q39: 54925044 | R39: 1830834.8 | S39: 216889844.6
A40: 37 | B40: =B39-((320300*(Analysis!E$15))-((320300*(Analysis!E$15)*(Analysis!E$19)))) -> 251473.936 | C40: 62114062.19 | D40: 47780047.84 | E40: 75442180.8 | F40: 25147393.6 | G40: 12573696.8 | H40: 75442180.8 | I40: 2514739.36 | J40: 301014301.4 | K40: =K39-(320300*(Analysis!E$15)) -> 180905.44 | L40: 42449461.5 | M40: 34372033.6 | N40: 54271632 | O40: 18090544 | P40: 9045272 | Q40: 54271632 | R40: 1809054.4 | S40: 214309629.5
A41: 38 | B41: =B40-((320300*(Analysis!E$15))-((320300*(Analysis!E$15)*(Analysis!E$19)))) -> 251256.132 | C41: 62060264.6 | D41: 47738665.08 | E41: 75376839.6 | F41: 25125613.2 | G41: 12562806.6 | H41: 75376839.6 | I41: 2512561.32 | J41: 300753590 | K41: =K40-(320300*(Analysis!E$15)) -> 178727.4 | L41: 41938384.41 | M41: 33958206 | N41: 53618220 | O41: 17872740 | P41: 8936370 | Q41: 53618220 | R41: 1787274 | S41: 211729414.4
A42: 39 | B42: =B41-((320300*(Analysis!E$15))-((320300*(Analysis!E$15)*(Analysis!E$19)))) -> 251038.328 | C42: 62006467.02 | D42: 47697282.32 | E42: 75311498.4 | F42: 25103832.8 | G42: 12551916.4 | H42: 75311498.4 | I42: 2510383.28 | J42: 300492878.6 | K42: =K41-(320300*(Analysis!E$15)) -> 176549.36 | L42: 41427307.32 | M42: 33544378.4 | N42: 52964808 | O42: 17654936 | P42: 8827468 | Q42: 52964808 | R42: 1765493.6 | S42: 209149199.3
A43: 40 | B43: =B42-((320300*(Analysis!E$15))-((320300*(Analysis!E$15)*(Analysis!E$19)))) -> 250820.524 | C43: 61952669.43 | D43: 47655899.56 | E43: 75246157.2 | F43: 25082052.4 | G43: 12541026.2 | H43: 75246157.2 | I43: 2508205.24 | J43: 300232167.2 | K43: =K42-(320300*(Analysis!E$15)) -> 174371.32 | L43: 40916230.24 | M43: 33130550.8 | N43: 52311396 | O43: 17437132 | P43: 8718566 | Q43: 52311396 | R43: 1743713.2 | S43: 206568984.2
A44: 41 | B44: =B43-((320300*(Analysis!E$15))-((320300*(Analysis!E$15)*(Analysis!E$19)))) -> 250602.72 | C44: 61898871.84 | D44: 47614516.8 | E44: 75180816 | F44: 25060272 | G44: 12530136 | H44: 75180816 | I44: 2506027.2 | J44: 299971455.8 | K44: =K43-(320300*(Analysis!E$15)) -> 172193.28 | L44: 40405153.15 | M44: 32716723.2 | N44: 51657984 | O44: 17219328 | P44: 8609664 | Q44: 51657984 | R44: 1721932.8 | S44: 203988769.2
A45: 42 | B45: =B44-((320300*(Analysis!E$15))-((320300*(Analysis!E$15)*(Analysis!E$19)))) -> 250384.916 | C45: 61845074.25 | D45: 47573134.04 | E45: 75115474.8 | F45: 25038491.6 | G45: 12519245.8 | H45: 75115474.8 | I45: 2503849.16 | J45: 299710744.5 | K45: =K44-(320300*(Analysis!E$15)) -> 170015.24 | L45: 39894076.07 | M45: 32302895.6 | N45: 51004572 | O45: 17001524 | P45: 8500762 | Q45: 51004572 | R45: 1700152.4 | S45: 201408554.1
A46: 43 | B46: =B45-((320300*(Analysis!E$15))-((320300*(Analysis!E$15)*(Analysis!E$19)))) -> 250167.112 | C46: 61791276.66 | D46: 47531751.28 | E46: 75050133.6 | F46: 25016711.2 | G46: 12508355.6 | H46: 75050133.6 | I46: 2501671.12 | J46: 299450033.1 | K46: =K45-(320300*(Analysis!E$15)) -> 167837.2 | L46: 39382998.98 | M46: 31889068 | N46: 50351160 | O46: 16783720 | P46: 8391860 | Q46: 50351160 | R46: 1678372 | S46: 198828339
A47: 44 | B47: =B46-((320300*(Analysis!E$15))-((320300*(Analysis!E$15)*(Analysis!E$19)))) -> 249949.308 | C47: 61737479.08 | D47: 47490368.52 | E47: 74984792.4 | F47: 24994930.8 | G47: 12497465.4 | H47: 74984792.4 | I47: 2499493.08 | J47: 299189321.7 | K47: =K46-(320300*(Analysis!E$15)) -> 165659.16 | L47: 38871921.89 | M47: 31475240.4 | N47: 49697748 | O47: 16565916 | P47: 8282958 | Q47: 49697748 | R47: 1656591.6 | S47: 196248123.9
A48: 45 | B48: =B47-((320300*(Analysis!E$15))-((320300*(Analysis!E$15)*(Analysis!E$19)))) -> 249731.504 | C48: 61683681.49 | D48: 47448985.76 | E48: 74919451.2 | F48: 24973150.4 | G48: 12486575.2 | H48: 74919451.2 | I48: 2497315.04 | J48: 298928610.3 | K48: =K47-(320300*(Analysis!E$15)) -> 163481.12 | L48: 38360844.81 | M48: 31061412.8 | N48: 49044336 | O48: 16348112 | P48: 8174056 | Q48: 49044336 | R48: 1634811.2 | S48: 193667908.8
A49: 46 | B49: =B48-((320300*(Analysis!E$15))-((320300*(Analysis!E$15)*(Analysis!E$19)))) -> 249513.7 | C49: 61629883.9 | D49: 47407603 | E49: 74854110 | F49: 24951370 | G49: 12475685 | H49: 74854110 | I49: 2495137 | J49: 298667898.9 | K49: =K48-(320300*(Analysis!E$15)) -> 161303.08 | L49: 37849767.72 | M49: 30647585.2 | N49: 48390924 | O49: 16130308 | P49: 8065154 | Q49: 48390924 | R49: 1613030.8 | S49: 191087693.7
A50: 47 | B50: =B49-((320300*(Analysis!E$15))-((320300*(Analysis!E$15)*(Analysis!E$19)))) -> 249295.896 | C50: 61576086.31 | D50: 47366220.24 | E50: 74788768.8 | F50: 24929589.6 | G50: 12464794.8 | H50: 74788768.8 | I50: 2492958.96 | J50: 298407187.5 | K50: =K49-(320300*(Analysis!E$15)) -> 159125.04 | L50: 37338690.64 | M50: 30233757.6 | N50: 47737512 | O50: 15912504 | P50: 7956252 | Q50: 47737512 | R50: 1591250.4 | S50: 188507478.6
A51: 48 | B51: =B50-((320300*(Analysis!E$15))-((320300*(Analysis!E$15)*(Analysis!E$19)))) -> 249078.092 | C51: 61522288.72 | D51: 47324837.48 | E51: 74723427.6 | F51: 24907809.2 | G51: 12453904.6 | H51: 74723427.6 | I51: 2490780.92 | J51: 298146476.1 | K51: =K50-(320300*(Analysis!E$15)) -> 156947 | L51: 36827613.55 | M51: 29819930 | N51: 47084100 | O51: 15694700 | P51: 7847350 | Q51: 47084100 | R51: 1569470 | S51: 185927263.5
A52: 49 | B52: =B51-((320300*(Analysis!E$15))-((320300*(Analysis!E$15)*(Analysis!E$19)))) -> 248860.288 | C52: 61468491.14 | D52: 47283454.72 | E52: 74658086.4 | F52: 24886028.8 | G52: 12443014.4 | H52: 74658086.4 | I52: 2488602.88 | J52: 297885764.7 | K52: =K51-(320300*(Analysis!E$15)) -> 154768.96 | L52: 36316536.46 | M52: 29406102.4 | N52: 46430688 | O52: 15476896 | P52: 7738448 | Q52: 46430688 | R52: 1547689.6 | S52: 183347048.5
A53: 50 | B53: =B52-((320300*(Analysis!E$15))-((320300*(Analysis!E$15)*(Analysis!E$19)))) -> 248642.484 | C53: 61414693.55 | D53: 47242071.96 | E53: 74592745.2 | F53: 24864248.4 | G53: 12432124.2 | H53: 74592745.2 | I53: 2486424.84 | J53: 297625053.3 | K53: =K52-(320300*(Analysis!E$15)) -> 152590.92 | L53: 35805459.38 | M53: 28992274.8 | N53: 45777276 | O53: 15259092 | P53: 7629546 | Q53: 45777276 | R53: 1525909.2 | S53: 180766833.4
A54: 51 | B54: =B53-((320300*(Analysis!E$15))-((320300*(Analysis!E$15)*(Analysis!E$19)))) -> 248424.68 | C54: 61360895.96 | D54: 47200689.2 | E54: 74527404 | F54: 24842468 | G54: 12421234 | H54: 74527404 | I54: 2484246.8 | J54: 297364342 | K54: =K53-(320300*(Analysis!E$15)) -> 150412.88 | L54: 35294382.29 | M54: 28578447.2 | N54: 45123864 | O54: 15041288 | P54: 7520644 | Q54: 45123864 | R54: 1504128.8 | S54: 178186618.3
A55: 52 | B55: =B54-((320300*(Analysis!E$15))-((320300*(Analysis!E$15)*(Analysis!E$19)))) -> 248206.876 | C55: 61307098.37 | D55: 47159306.44 | E55: 74462062.8 | F55: 24820687.6 | G55: 12410343.8 | H55: 74462062.8 | I55: 2482068.76 | J55: 297103630.6 | K55: =K54-(320300*(Analysis!E$15)) -> 148234.84 | L55: 34783305.21 | M55: 28164619.6 | N55: 44470452 | O55: 14823484 | P55: 7411742 | Q55: 44470452 | R55: 1482348.4 | S55: 175606403.2
A56: 53 | B56: =B55-((320300*(Analysis!E$15))-((320300*(Analysis!E$15)*(Analysis!E$19)))) -> 247989.072 | C56: 61253300.78 | D56: 47117923.68 | E56: 74396721.6 | F56: 24798907.2 | G56: 12399453.6 | H56: 74396721.6 | I56: 2479890.72 | J56: 296842919.2 | K56: =K55-(320300*(Analysis!E$15)) -> 146056.8 | L56: 34272228.12 | M56: 27750792 | N56: 43817040 | O56: 14605680 | P56: 7302840 | Q56: 43817040 | R56: 1460568 | S56: 173026188.1
A57: 54 | B57: =B56-((320300*(Analysis!E$15))-((320300*(Analysis!E$15)*(Analysis!E$19)))) -> 247771.268 | C57: 61199503.2 | D57: 47076540.92 | E57: 74331380.4 | F57: 24777126.8 | G57: 12388563.4 | H57: 74331380.4 | I57: 2477712.68 | J57: 296582207.8 | K57: =K56-(320300*(Analysis!E$15)) -> 143878.76 | L57: 33761151.03 | M57: 27336964.4 | N57: 43163628 | O57: 14387876 | P57: 7193938 | Q57: 43163628 | R57: 1438787.6 | S57: 170445973
A58: 55 | B58: =B57-((320300*(Analysis!E$15))-((320300*(Analysis!E$15)*(Analysis!E$19)))) -> 247553.464 | C58: 61145705.61 | D58: 47035158.16 | E58: 74266039.2 | F58: 24755346.4 | G58: 12377673.2 | H58: 74266039.2 | I58: 2475534.64 | J58: 296321496.4 | K58: =K57-(320300*(Analysis!E$15)) -> 141700.72 | L58: 33250073.95 | M58: 26923136.8 | N58: 42510216 | O58: 14170072 | P58: 7085036 | Q58: 42510216 | R58: 1417007.2 | S58: 167865757.9
A59: 56 | B59: =B58-((320300*(Analysis!E$15))-((320300*(Analysis!E$15)*(Analysis!E$19)))) -> 247335.66 | C59: 61091908.02 | D59: 46993775.4 | E59: 74200698 | F59: 24733566 | G59: 12366783 | H59: 74200698 | I59: 2473356.6 | J59: 296060785 | K59: =K58-(320300*(Analysis!E$15)) -> 139522.68 | L59: 32738996.86 | M59: 26509309.2 | N59: 41856804 | O59: 13952268 | P59: 6976134 | Q59: 41856804 | R59: 1395226.8 | S59: 165285542.9
A60: 57 | B60: =B59-((320300*(Analysis!E$15))-((320300*(Analysis!E$15)*(Analysis!E$19)))) -> 247117.856 | C60: 61038110.43 | D60: 46952392.64 | E60: 74135356.8 | F60: 24711785.6 | G60: 12355892.8 | H60: 74135356.8 | I60: 2471178.56 | J60: 295800073.6 | K60: =K59-(320300*(Analysis!E$15)) -> 137344.64 | L60: 32227919.78 | M60: 26095481.6 | N60: 41203392 | O60: 13734464 | P60: 6867232 | Q60: 41203392 | R60: 1373446.4 | S60: 162705327.8
A61: 58 | B61: =B60-((320300*(Analysis!E$15))-((320300*(Analysis!E$15)*(Analysis!E$19)))) -> 246900.052 | C61: 60984312.84 | D61: 46911009.88 | E61: 74070015.6 | F61: 24690005.2 | G61: 12345002.6 | H61: 74070015.6 | I61: 2469000.52 | J61: 295539362.2 | K61: =K60-(320300*(Analysis!E$15)) -> 135166.6 | L61: 31716842.69 | M61: 25681654 | N61: 40549980 | O61: 13516660 | P61: 6758330 | Q61: 40549980 | R61: 1351666 | S61: 160125112.7
A62: 59 | B62: =B61-((320300*(Analysis!E$15))-((320300*(Analysis!E$15)*(Analysis!E$19)))) -> 246682.248 | C62: 60930515.26 | D62: 46869627.12 | E62: 74004674.4 | F62: 24668224.8 | G62: 12334112.4 | H62: 74004674.4 | I62: 2466822.48 | J62: 295278650.9 | K62: =K61-(320300*(Analysis!E$15)) -> 132988.56 | L62: 31205765.6 | M62: 25267826.4 | N62: 39896568 | O62: 13298856 | P62: 6649428 | Q62: 39896568 | R62: 1329885.6 | S62: 157544897.6
A63: 60 | B63: =B62-((320300*(Analysis!E$15))-((320300*(Analysis!E$15)*(Analysis!E$19)))) -> 246464.444 | C63: 60876717.67 | D63: 46828244.36 | E63: 73939333.2 | F63: 24646444.4 | G63: 12323222.2 | H63: 73939333.2 | I63: 2464644.44 | J63: 295017939.5 | K63: =K62-(320300*(Analysis!E$15)) -> 130810.52 | L63: 30694688.52 | M63: 24853998.8 | N63: 39243156 | O63: 13081052 | P63: 6540526 | Q63: 39243156 | R63: 1308105.2 | S63: 154964682.5
A64: 61 | B64: =B63-((320300*(Analysis!E$15))-((320300*(Analysis!E$15)*(Analysis!E$19)))) -> 246246.64 | C64: 60822920.08 | D64: 46786861.6 | E64: 73873992 | F64: 24624664 | G64: 12312332 | H64: 73873992 | I64: 2462466.4 | J64: 294757228.1 | K64: =K63-(320300*(Analysis!E$15)) -> 128632.48 | L64: 30183611.43 | M64: 24440171.2 | N64: 38589744 | O64: 12863248 | P64: 6431624 | Q64: 38589744 | R64: 1286324.8 | S64: 152384467.4
A65: 62 | B65: =B64-((320300*(Analysis!E$15))-((320300*(Analysis!E$15)*(Analysis!E$19)))) -> 246028.836 | C65: 60769122.49 | D65: 46745478.84 | E65: 73808650.8 | F65: 24602883.6 | G65: 12301441.8 | H65: 73808650.8 | I65: 2460288.36 | J65: 294496516.7 | K65: =K64-(320300*(Analysis!E$15)) -> 126454.44 | L65: 29672534.35 | M65: 24026343.6 | N65: 37936332 | O65: 12645444 | P65: 6322722 | Q65: 37936332 | R65: 1264544.4 | S65: 149804252.3
A66: 63 | B66: =B65-((320300*(Analysis!E$15))-((320300*(Analysis!E$15)*(Analysis!E$19)))) -> 245811.032 | C66: 60715324.9 | D66: 46704096.08 | E66: 73743309.6 | F66: 24581103.2 | G66: 12290551.6 | H66: 73743309.6 | I66: 2458110.32 | J66: 294235805.3 | K66: =K65-(320300*(Analysis!E$15)) -> 124276.4 | L66: 29161457.26 | M66: 23612516 | N66: 37282920 | O66: 12427640 | P66: 6213820 | Q66: 37282920 | R66: 1242764 | S66: 147224037.3
A67: 64 | B67: =B66-((320300*(Analysis!E$15))-((320300*(Analysis!E$15)*(Analysis!E$19)))) -> 245593.228 | C67: 60661527.32 | D67: 46662713.32 | E67: 73677968.4 | F67: 24559322.8 | G67: 12279661.4 | H67: 73677968.4 | I67: 2455932.28 | J67: 293975093.9 | K67: =K66-(320300*(Analysis!E$15)) -> 122098.36 | L67: 28650380.17 | M67: 23198688.4 | N67: 36629508 | O67: 12209836 | P67: 6104918 | Q67: 36629508 | R67: 1220983.6 | S67: 144643822.2
A68: 65 | B68: =B67-((320300*(Analysis!E$15))-((320300*(Analysis!E$15)*(Analysis!E$19)))) -> 245375.424 | C68: 60607729.73 | D68: 46621330.56 | E68: 73612627.2 | F68: 24537542.4 | G68: 12268771.2 | H68: 73612627.2 | I68: 2453754.24 | J68: 293714382.5 | K68: =K67-(320300*(Analysis!E$15)) -> 119920.32 | L68: 28139303.09 | M68: 22784860.8 | N68: 35976096 | O68: 11992032 | P68: 5996016 | Q68: 35976096 | R68: 1199203.2 | S68: 142063607.1
A69: 66 | B69: =B68-((320300*(Analysis!E$15))-((320300*(Analysis!E$15)*(Analysis!E$19)))) -> 245157.62 | C69: =B69*247 -> 60553932.14 | D69: =B69*190 -> 46579947.8 | E69: =B69*300 -> 73547286 | F69: =B69*100 -> 24515762 | G69: =B69*50 -> 12257881 | H69: =B69*300 -> 73547286 | I69: =B69*10 -> 2451576.2 | J69: =SUM(C69:I69) -> 293453671.1 | K69: =K68-(320300*(Analysis!E$15)) -> 117742.28 | L69: 27628226 | M69: 22371033.2 | N69: 35322684 | O69: 11774228 | P69: 5887114 | Q69: 35322684 | R69: 1177422.8 | S69: =SUM(L69:R69) -> 139483392
A70: 67 | B70: =B69-((320300*(Analysis!E$15))-((320300*(Analysis!E$15)*(Analysis!E$19)))) -> 244939.816 | C70: 60500134.55 | D70: 46538565.04 | E70: 73481944.8 | F70: 24493981.6 | G70: 12246990.8 | H70: 73481944.8 | I70: 2449398.16 | J70: 293192959.8 | K70: =K69-(320300*(Analysis!E$15)) -> 115564.24 | L70: 27117148.92 | M70: 21957205.6 | N70: 34669272 | O70: 11556424 | P70: 5778212 | Q70: 34669272 | R70: 1155642.4 | S70: 136903176.9
A71: 68 | B71: =B70-((320300*(Analysis!E$15))-((320300*(Analysis!E$15)*(Analysis!E$19)))) -> 244722.012 | C71: 60446336.96 | D71: 46497182.28 | E71: 73416603.6 | F71: 24472201.2 | G71: 12236100.6 | H71: 73416603.6 | I71: 2447220.12 | J71: 292932248.4 | K71: =K70-(320300*(Analysis!E$15)) -> 113386.2 | L71: =0.95*(247*K71) -> 26606071.83 | M71: =K71*190 -> 21543378 | N71: =K71*300 -> 34015860 | O71: =K71*100 -> 11338620 | P71: =K71*50 -> 5669310 | Q71: =K71*300 -> 34015860 | R71: =K71*10 -> 1133862 | S71: 134322961.8
A72: 69 | B72: =B71-((320300*(Analysis!E$15))-((320300*(Analysis!E$15)*(Analysis!E$19)))) -> 244504.208 | C72: 60392539.38 | D72: 46455799.52 | E72: 73351262.4 | F72: 24450420.8 | G72: 12225210.4 | H72: 73351262.4 | I72: 2445042.08 | J72: 292671537 | K72: =K71-(320300*(Analysis!E$15)) -> 111208.16 | L72: 26094994.74 | M72: 21129550.4 | N72: 33362448 | O72: 11120816 | P72: 5560408 | Q72: 33362448 | R72: 1112081.6 | S72: 131742746.7
A73: 70 | B73: =B72-((320300*(Analysis!E$15))-((320300*(Analysis!E$15)*(Analysis!E$19)))) -> 244286.404 | C73: 60338741.79 | D73: 46414416.76 | E73: 73285921.2 | F73: 24428640.4 | G73: 12214320.2 | H73: 73285921.2 | I73: 2442864.04 | J73: 292410825.6 | K73: =K72-(320300*(Analysis!E$15)) -> 109030.12 | L73: 25583917.66 | M73: 20715722.8 | N73: 32709036 | O73: 10903012 | P73: 5451506 | Q73: 32709036 | R73: 1090301.2 | S73: 129162531.7
A74: 71 | B74: =B73-((320300*(Analysis!E$15))-((320300*(Analysis!E$15)*(Analysis!E$19)))) -> 244068.6 | C74: 60284944.2 | D74: 46373034 | E74: 73220580 | F74: 24406860 | G74: 12203430 | H74: 73220580 | I74: 2440686 | J74: 292150114.2 | K74: =K73-(320300*(Analysis!E$15)) -> 106852.08 | L74: 25072840.57 | M74: 20301895.2 | N74: 32055624 | O74: 10685208 | P74: 5342604 | Q74: 32055624 | R74: 1068520.8 | S74: 126582316.6
A75: 72 | B75: =B74-((320300*(Analysis!E$15))-((320300*(Analysis!E$15)*(Analysis!E$19)))) -> 243850.796 | C75: 60231146.61 | D75: 46331651.24 | E75: 73155238.8 | F75: 24385079.6 | G75: 12192539.8 | H75: 73155238.8 | I75: 2438507.96 | J75: 291889402.8 | K75: =K74-(320300*(Analysis!E$15)) -> 104674.04 | L75: 24561763.49 | M75: 19888067.6 | N75: 31402212 | O75: 10467404 | P75: 5233702 | Q75: 31402212 | R75: 1046740.4 | S75: 124002101.5
A76: 73 | B76: =B75-((320300*(Analysis!E$15))-((320300*(Analysis!E$15)*(Analysis!E$19)))) -> 243632.992 | C76: 60177349.02 | D76: 46290268.48 | E76: 73089897.6 | F76: 24363299.2 | G76: 12181649.6 | H76: 73089897.6 | I76: 2436329.92 | J76: 291628691.4 | K76: =K75-(320300*(Analysis!E$15)) -> 102496 | L76: 24050686.4 | M76: 19474240 | N76: 30748800 | O76: 10249600 | P76: 5124800 | Q76: 30748800 | R76: 1024960 | S76: 121421886.4
A77: 74 | B77: =B76-((320300*(Analysis!E$15))-((320300*(Analysis!E$15)*(Analysis!E$19)))) -> 243415.188 | C77: 60123551.44 | D77: 46248885.72 | E77: 73024556.4 | F77: 24341518.8 | G77: 12170759.4 | H77: 73024556.4 | I77: 2434151.88 | J77: 291367980 | K77: =K76-(320300*(Analysis!E$15)) -> 100317.96 | L77: 23539609.31 | M77: 19060412.4 | N77: 30095388 | O77: 10031796 | P77: 5015898 | Q77: 30095388 | R77: 1003179.6 | S77: 118841671.3
A78: 75 | B78: =B77-((320300*(Analysis!E$15))-((320300*(Analysis!E$15)*(Analysis!E$19)))) -> 243197.384 | C78: 60069753.85 | D78: 46207502.96 | E78: 72959215.2 | F78: 24319738.4 | G78: 12159869.2 | H78: 72959215.2 | I78: 2431973.84 | J78: 291107268.6 | K78: =K77-(320300*(Analysis!E$15)) -> 98139.92 | L78: 23028532.23 | M78: 18646584.8 | N78: 29441976 | O78: 9813992 | P78: 4906996 | Q78: 29441976 | R78: 981399.2 | S78: 116261456.2
A79: 76 | B79: =B78-((320300*(Analysis!E$15))-((320300*(Analysis!E$15)*(Analysis!E$19)))) -> 242979.58 | C79: 60015956.26 | D79: 46166120.2 | E79: 72893874 | F79: 24297958 | G79: 12148979 | H79: 72893874 | I79: 2429795.8 | J79: 290846557.3 | K79: =K78-(320300*(Analysis!E$15)) -> 95961.88 | L79: 22517455.14 | M79: 18232757.2 | N79: 28788564 | O79: 9596188 | P79: 4798094 | Q79: 28788564 | R79: 959618.8 | S79: 113681241.1
A80: 77 | B80: =B79-((320300*(Analysis!E$15))-((320300*(Analysis!E$15)*(Analysis!E$19)))) -> 242761.776 | C80: 59962158.67 | D80: 46124737.44 | E80: 72828532.8 | F80: 24276177.6 | G80: 12138088.8 | H80: 72828532.8 | I80: 2427617.76 | J80: 290585845.9 | K80: =K79-(320300*(Analysis!E$15)) -> 93783.84 | L80: 22006378.06 | M80: 17818929.6 | N80: 28135152 | O80: 9378384 | P80: 4689192 | Q80: 28135152 | R80: 937838.4 | S80: 111101026.1
A81: 78 | B81: =B80-((320300*(Analysis!E$15))-((320300*(Analysis!E$15)*(Analysis!E$19)))) -> 242543.972 | C81: 59908361.08 | D81: 46083354.68 | E81: 72763191.6 | F81: 24254397.2 | G81: 12127198.6 | H81: 72763191.6 | I81: 2425439.72 | J81: 290325134.5 | K81: =K80-(320300*(Analysis!E$15)) -> 91605.8 | L81: 21495300.97 | M81: 17405102 | N81: 27481740 | O81: 9160580 | P81: 4580290 | Q81: 27481740 | R81: 916058 | S81: 108520811
A82: 79 | B82: =B81-((320300*(Analysis!E$15))-((320300*(Analysis!E$15)*(Analysis!E$19)))) -> 242326.168 | C82: 59854563.5 | D82: 46041971.92 | E82: 72697850.4 | F82: 24232616.8 | G82: 12116308.4 | H82: 72697850.4 | I82: 2423261.68 | J82: 290064423.1 | K82: =K81-(320300*(Analysis!E$15)) -> 89427.76 | L82: 20984223.88 | M82: 16991274.4 | N82: 26828328 | O82: 8942776 | P82: 4471388 | Q82: 26828328 | R82: 894277.6 | S82: 105940595.9
A83: 80 | B83: =B82-((320300*(Analysis!E$15))-((320300*(Analysis!E$15)*(Analysis!E$19)))) -> 242108.364 | C83: 59800765.91 | D83: 46000589.16 | E83: 72632509.2 | F83: 24210836.4 | G83: 12105418.2 | H83: 72632509.2 | I83: 2421083.64 | J83: 289803711.7 | K83: =K82-(320300*(Analysis!E$15)) -> 87249.72 | L83: 20473146.8 | M83: 16577446.8 | N83: 26174916 | O83: 8724972 | P83: 4362486 | Q83: 26174916 | R83: 872497.2 | S83: 103360380.8
A84: 81 | B84: =B83-((320300*(Analysis!E$15))-((320300*(Analysis!E$15)*(Analysis!E$19)))) -> 241890.56 | C84: 59746968.32 | D84: 45959206.4 | E84: 72567168 | F84: 24189056 | G84: 12094528 | H84: 72567168 | I84: 2418905.6 | J84: 289543000.3 | K84: =K83-(320300*(Analysis!E$15)) -> 85071.68 | L84: 19962069.71 | M84: 16163619.2 | N84: 25521504 | O84: 8507168 | P84: 4253584 | Q84: 25521504 | R84: 850716.8 | S84: 100780165.7
A85: 82 | B85: =B84-((320300*(Analysis!E$15))-((320300*(Analysis!E$15)*(Analysis!E$19)))) -> 241672.756 | C85: 59693170.73 | D85: 45917823.64 | E85: 72501826.8 | F85: 24167275.6 | G85: 12083637.8 | H85: 72501826.8 | I85: 2416727.56 | J85: 289282288.9 | K85: =K84-(320300*(Analysis!E$15)) -> 82893.64 | L85: 19450992.63 | M85: 15749791.6 | N85: 24868092 | O85: 8289364 | P85: 4144682 | Q85: 24868092 | R85: 828936.4 | S85: 98199950.63
A86: 83 | B86: =B85-((320300*(Analysis!E$15))-((320300*(Analysis!E$15)*(Analysis!E$19)))) -> 241454.952 | C86: 59639373.14 | D86: 45876440.88 | E86: 72436485.6 | F86: 24145495.2 | G86: 12072747.6 | H86: 72436485.6 | I86: 2414549.52 | J86: 289021577.5 | K86: =K85-(320300*(Analysis!E$15)) -> 80715.6 | L86: 18939915.54 | M86: 15335964 | N86: 24214680 | O86: 8071560 | P86: 4035780 | Q86: 24214680 | R86: 807156 | S86: 95619735.54
A87: 84 | B87: =B86-((320300*(Analysis!E$15))-((320300*(Analysis!E$15)*(Analysis!E$19)))) -> 241237.148 | C87: 59585575.56 | D87: 45835058.12 | E87: 72371144.4 | F87: 24123714.8 | G87: 12061857.4 | H87: 72371144.4 | I87: 2412371.48 | J87: 288760866.2 | K87: =K86-(320300*(Analysis!E$15)) -> 78537.56 | L87: 18428838.45 | M87: 14922136.4 | N87: 23561268 | O87: 7853756 | P87: 3926878 | Q87: 23561268 | R87: 785375.6 | S87: 93039520.45
A88: 85 | B88: =B87-((320300*(Analysis!E$15))-((320300*(Analysis!E$15)*(Analysis!E$19)))) -> 241019.344 | C88: 59531777.97 | D88: 45793675.36 | E88: 72305803.2 | F88: 24101934.4 | G88: 12050967.2 | H88: 72305803.2 | I88: 2410193.44 | J88: 288500154.8 | K88: =K87-(320300*(Analysis!E$15)) -> 76359.52 | L88: 17917761.37 | M88: 14508308.8 | N88: 22907856 | O88: 7635952 | P88: 3817976 | Q88: 22907856 | R88: 763595.2 | S88: 90459305.37
A89: 86 | B89: =B88-((320300*(Analysis!E$15))-((320300*(Analysis!E$15)*(Analysis!E$19)))) -> 240801.54 | C89: 59477980.38 | D89: 45752292.6 | E89: 72240462 | F89: 24080154 | G89: 12040077 | H89: 72240462 | I89: 2408015.4 | J89: 288239443.4 | K89: =K88-(320300*(Analysis!E$15)) -> 74181.48 | L89: 17406684.28 | M89: 14094481.2 | N89: 22254444 | O89: 7418148 | P89: 3709074 | Q89: 22254444 | R89: 741814.8 | S89: 87879090.28
A90: 87 | B90: =B89-((320300*(Analysis!E$15))-((320300*(Analysis!E$15)*(Analysis!E$19)))) -> 240583.736 | C90: 59424182.79 | D90: 45710909.84 | E90: 72175120.8 | F90: 24058373.6 | G90: 12029186.8 | H90: 72175120.8 | I90: 2405837.36 | J90: 287978732 | K90: =K89-(320300*(Analysis!E$15)) -> 72003.44 | L90: 16895607.2 | M90: 13680653.6 | N90: 21601032 | O90: 7200344 | P90: 3600172 | Q90: 21601032 | R90: 720034.4 | S90: 85298875.2
A91: 88 | B91: =B90-((320300*(Analysis!E$15))-((320300*(Analysis!E$15)*(Analysis!E$19)))) -> 240365.932 | C91: 59370385.2 | D91: 45669527.08 | E91: 72109779.6 | F91: 24036593.2 | G91: 12018296.6 | H91: 72109779.6 | I91: 2403659.32 | J91: 287718020.6 | K91: =K90-(320300*(Analysis!E$15)) -> 69825.4 | L91: 16384530.11 | M91: 13266826 | N91: 20947620 | O91: 6982540 | P91: 3491270 | Q91: 20947620 | R91: 698254 | S91: 82718660.11
A92: 89 | B92: =B91-((320300*(Analysis!E$15))-((320300*(Analysis!E$15)*(Analysis!E$19)))) -> 240148.128 | C92: 59316587.62 | D92: 45628144.32 | E92: 72044438.4 | F92: 24014812.8 | G92: 12007406.4 | H92: 72044438.4 | I92: 2401481.28 | J92: 287457309.2 | K92: =K91-(320300*(Analysis!E$15)) -> 67647.36 | L92: 15873453.02 | M92: 12852998.4 | N92: 20294208 | O92: 6764736 | P92: 3382368 | Q92: 20294208 | R92: 676473.6 | S92: 80138445.02
A93: 90 | B93: =B92-((320300*(Analysis!E$15))-((320300*(Analysis!E$15)*(Analysis!E$19)))) -> 239930.324 | C93: 59262790.03 | D93: 45586761.56 | E93: 71979097.2 | F93: 23993032.4 | G93: 11996516.2 | H93: 71979097.2 | I93: 2399303.24 | J93: 287196597.8 | K93: =K92-(320300*(Analysis!E$15)) -> 65469.32 | L93: 15362375.94 | M93: 12439170.8 | N93: 19640796 | O93: 6546932 | P93: 3273466 | Q93: 19640796 | R93: 654693.2 | S93: 77558229.94
A94: 91 | B94: =B93-((320300*(Analysis!E$15))-((320300*(Analysis!E$15)*(Analysis!E$19)))) -> 239712.52 | C94: 59208992.44 | D94: 45545378.8 | E94: 71913756 | F94: 23971252 | G94: 11985626 | H94: 71913756 | I94: 2397125.2 | J94: 286935886.4 | K94: =K93-(320300*(Analysis!E$15)) -> 63291.28 | L94: 14851298.85 | M94: 12025343.2 | N94: 18987384 | O94: 6329128 | P94: 3164564 | Q94: 18987384 | R94: 632912.8 | S94: 74978014.85
A95: 92 | B95: =B94-((320300*(Analysis!E$15))-((320300*(Analysis!E$15)*(Analysis!E$19)))) -> 239494.716 | C95: 59155194.85 | D95: 45503996.04 | E95: 71848414.8 | F95: 23949471.6 | G95: 11974735.8 | H95: 71848414.8 | I95: 2394947.16 | J95: 286675175.1 | K95: =K94-(320300*(Analysis!E$15)) -> 61113.24 | L95: 14340221.77 | M95: 11611515.6 | N95: 18333972 | O95: 6111324 | P95: 3055662 | Q95: 18333972 | R95: 611132.4 | S95: 72397799.77
A96: 93 | B96: =B95-((320300*(Analysis!E$15))-((320300*(Analysis!E$15)*(Analysis!E$19)))) -> 239276.912 | C96: 59101397.26 | D96: 45462613.28 | E96: 71783073.6 | F96: 23927691.2 | G96: 11963845.6 | H96: 71783073.6 | I96: 2392769.12 | J96: 286414463.7 | K96: =K95-(320300*(Analysis!E$15)) -> 58935.2 | L96: 13829144.68 | M96: 11197688 | N96: 17680560 | O96: 5893520 | P96: 2946760 | Q96: 17680560 | R96: 589352 | S96: 69817584.68
A97: 94 | B97: =B96-((320300*(Analysis!E$15))-((320300*(Analysis!E$15)*(Analysis!E$19)))) -> 239059.108 | C97: 59047599.68 | D97: 45421230.52 | E97: 71717732.4 | F97: 23905910.8 | G97: 11952955.4 | H97: 71717732.4 | I97: 2390591.08 | J97: 286153752.3 | K97: =K96-(320300*(Analysis!E$15)) -> 56757.16 | L97: 13318067.59 | M97: 10783860.4 | N97: 17027148 | O97: 5675716 | P97: 2837858 | Q97: 17027148 | R97: 567571.6 | S97: 67237369.59
A98: 95 | B98: =B97-((320300*(Analysis!E$15))-((320300*(Analysis!E$15)*(Analysis!E$19)))) -> 238841.304 | C98: 58993802.09 | D98: 45379847.76 | E98: 71652391.2 | F98: 23884130.4 | G98: 11942065.2 | H98: 71652391.2 | I98: 2388413.04 | J98: 285893040.9 | K98: =K97-(320300*(Analysis!E$15)) -> 54579.12 | L98: 12806990.51 | M98: 10370032.8 | N98: 16373736 | O98: 5457912 | P98: 2728956 | Q98: 16373736 | R98: 545791.2 | S98: 64657154.51
A99: 96 | B99: =B98-((320300*(Analysis!E$15))-((320300*(Analysis!E$15)*(Analysis!E$19)))) -> 238623.5 | C99: 58940004.5 | D99: 45338465 | E99: 71587050 | F99: 23862350 | G99: 11931175 | H99: 71587050 | I99: 2386235 | J99: 285632329.5 | K99: =K98-(320300*(Analysis!E$15)) -> 52401.08 | L99: 12295913.42 | M99: 9956205.2 | N99: 15720324 | O99: 5240108 | P99: 2620054 | Q99: 15720324 | R99: 524010.8 | S99: 62076939.42
A100: 97 | B100: =B99-((320300*(Analysis!E$15))-((320300*(Analysis!E$15)*(Analysis!E$19)))) -> 238405.696 | C100: 58886206.91 | D100: 45297082.24 | E100: 71521708.8 | F100: 23840569.6 | G100: 11920284.8 | H100: 71521708.8 | I100: 2384056.96 | J100: 285371618.1 | K100: =K99-(320300*(Analysis!E$15)) -> 50223.04 | L100: 11784836.34 | M100: 9542377.6 | N100: 15066912 | O100: 5022304 | P100: 2511152 | Q100: 15066912 | R100: 502230.4 | S100: 59496724.34
A101: 98 | B101: =B100-((320300*(Analysis!E$15))-((320300*(Analysis!E$15)*(Analysis!E$19)))) -> 238187.892 | C101: 58832409.32 | D101: 45255699.48 | E101: 71456367.6 | F101: 23818789.2 | G101: 11909394.6 | H101: 71456367.6 | I101: 2381878.92 | J101: 285110906.7 | K101: =K100-(320300*(Analysis!E$15)) -> 48045 | L101: 11273759.25 | M101: 9128550 | N101: 14413500 | O101: 4804500 | P101: 2402250 | Q101: 14413500 | R101: 480450 | S101: 56916509.25
A102: 99 | B102: =B101-((320300*(Analysis!E$15))-((320300*(Analysis!E$15)*(Analysis!E$19)))) -> 237970.088 | C102: 58778611.74 | D102: 45214316.72 | E102: 71391026.4 | F102: 23797008.8 | G102: 11898504.4 | H102: 71391026.4 | I102: 2379700.88 | J102: 284850195.3 | K102: =K101-(320300*(Analysis!E$15)) -> 45866.96 | L102: 10762682.16 | M102: 8714722.4 | N102: 13760088 | O102: 4586696 | P102: 2293348 | Q102: 13760088 | R102: 458669.6 | S102: 54336294.16
A103: 100 | B103: =B102-((320300*(Analysis!E$15))-((320300*(Analysis!E$15)*(Analysis!E$19)))) -> 237752.284 | C103: 58724814.15 | D103: 45172933.96 | E103: 71325685.2 | F103: 23775228.4 | G103: 11887614.2 | H103: 71325685.2 | I103: 2377522.84 | J103: 284589483.9 | K103: =K102-(320300*(Analysis!E$15)) -> 43688.92 | L103: 10251605.08 | M103: 8300894.8 | N103: 13106676 | O103: 4368892 | P103: 2184446 | Q103: 13106676 | R103: 436889.2 | S103: 51756079.08
A104: 101 | B104: =B103-((320300*(Analysis!E$15))-((320300*(Analysis!E$15)*(Analysis!E$19)))) -> 237534.48 | C104: 58671016.56 | D104: =B104*190 -> 45131551.2 | E104: =B104*300 -> 71260344 | F104: =B104*100 -> 23753448 | G104: =B104*50 -> 11876724 | H104: =B104*300 -> 71260344 | I104: =B104*10 -> 2375344.8 | J104: 284328772.6 | K104: =K103-(320300*(Analysis!E$15)) -> 41510.88 | L104: 9740527.992 | M104: =K104*190 -> 7887067.2 | N104: =K104*300 -> 12453264 | O104: =K104*100 -> 4151088 | P104: =K104*50 -> 2075544 | Q104: =K104*300 -> 12453264 | R104: =K104*10 -> 415108.8 | S104: 49175863.99
A105: 102 | B105: =B104-((320300*(Analysis!E$15))-((320300*(Analysis!E$15)*(Analysis!E$19)))) -> 237316.676 | C105: 58617218.97 | D105: 45090168.44 | E105: 71195002.8 | F105: 23731667.6 | G105: 11865833.8 | H105: 71195002.8 | I105: 2373166.76 | J105: 284068061.2 | K105: =K104-(320300*(Analysis!E$15)) -> 39332.84 | L105: 9229450.906 | M105: 7473239.6 | N105: 11799852 | O105: 3933284 | P105: 1966642 | Q105: 11799852 | R105: 393328.4 | S105: 46595648.91
A106: 103 | B106: =B105-((320300*(Analysis!E$15))-((320300*(Analysis!E$15)*(Analysis!E$19)))) -> 237098.872 | C106: 58563421.38 | D106: 45048785.68 | E106: 71129661.6 | F106: 23709887.2 | G106: 11854943.6 | H106: 71129661.6 | I106: 2370988.72 | J106: 283807349.8 | K106: =K105-(320300*(Analysis!E$15)) -> 37154.8 | L106: 8718373.82 | M106: 7059412 | N106: 11146440 | O106: 3715480 | P106: 1857740 | Q106: 11146440 | R106: 371548 | S106: 44015433.82
A107: 104 | B107: =B106-((320300*(Analysis!E$15))-((320300*(Analysis!E$15)*(Analysis!E$19)))) -> 236881.068 | C107: 58509623.8 | D107: 45007402.92 | E107: 71064320.4 | F107: 23688106.8 | G107: 11844053.4 | H107: 71064320.4 | I107: 2368810.68 | J107: 283546638.4 | K107: =K106-(320300*(Analysis!E$15)) -> 34976.76 | L107: 8207296.734 | M107: 6645584.4 | N107: 10493028 | O107: 3497676 | P107: 1748838 | Q107: 10493028 | R107: 349767.6 | S107: 41435218.73
A108: 105 | B108: =B107-((320300*(Analysis!E$15))-((320300*(Analysis!E$15)*(Analysis!E$19)))) -> 236663.264 | C108: 58455826.21 | D108: 44966020.16 | E108: 70998979.2 | F108: 23666326.4 | G108: 11833163.2 | H108: 70998979.2 | I108: 2366632.64 | J108: 283285927 | K108: =K107-(320300*(Analysis!E$15)) -> 32798.72 | L108: 7696219.648 | M108: 6231756.8 | N108: 9839616 | O108: 3279872 | P108: 1639936 | Q108: 9839616 | R108: 327987.2 | S108: 38855003.65
A109: 106 | B109: =B108-((320300*(Analysis!E$15))-((320300*(Analysis!E$15)*(Analysis!E$19)))) -> 236445.46 | C109: 58402028.62 | D109: 44924637.4 | E109: 70933638 | F109: 23644546 | G109: 11822273 | H109: 70933638 | I109: 2364454.6 | J109: 283025215.6 | K109: =K108-(320300*(Analysis!E$15)) -> 30620.68 | L109: 7185142.562 | M109: 5817929.2 | N109: 9186204 | O109: 3062068 | P109: 1531034 | Q109: 9186204 | R109: 306206.8 | S109: 36274788.56
A110: 107 | B110: =B109-((320300*(Analysis!E$15))-((320300*(Analysis!E$15)*(Analysis!E$19)))) -> 236227.656 | C110: 58348231.03 | D110: 44883254.64 | E110: 70868296.8 | F110: 23622765.6 | G110: 11811382.8 | H110: 70868296.8 | I110: 2362276.56 | J110: 282764504.2 | K110: =K109-(320300*(Analysis!E$15)) -> 28442.64 | L110: 6674065.476 | M110: 5404101.6 | N110: 8532792 | O110: 2844264 | P110: 1422132 | Q110: 8532792 | R110: 284426.4 | S110: 33694573.48
A111: 108 | B111: =B110-((320300*(Analysis!E$15))-((320300*(Analysis!E$15)*(Analysis!E$19)))) -> 236009.852 | C111: 58294433.44 | D111: 44841871.88 | E111: 70802955.6 | F111: 23600985.2 | G111: 11800492.6 | H111: 70802955.6 | I111: 2360098.52 | J111: 282503792.8 | K111: =K110-(320300*(Analysis!E$15)) -> 26264.6 | L111: 6162988.39 | M111: 4990274 | N111: 7879380 | O111: 2626460 | P111: 1313230 | Q111: 7879380 | R111: 262646 | S111: 31114358.39
A112: 109 | B112: =B111-((320300*(Analysis!E$15))-((320300*(Analysis!E$15)*(Analysis!E$19)))) -> 235792.048 | C112: 58240635.86 | D112: 44800489.12 | E112: 70737614.4 | F112: 23579204.8 | G112: 11789602.4 | H112: 70737614.4 | I112: 2357920.48 | J112: 282243081.5 | K112: =K111-(320300*(Analysis!E$15)) -> 24086.56 | L112: 5651911.304 | M112: 4576446.4 | N112: 7225968 | O112: 2408656 | P112: 1204328 | Q112: 7225968 | R112: 240865.6 | S112: 28534143.3
A113: 110 | B113: =B112-((320300*(Analysis!E$15))-((320300*(Analysis!E$15)*(Analysis!E$19)))) -> 235574.244 | C113: 58186838.27 | D113: 44759106.36 | E113: 70672273.2 | F113: 23557424.4 | G113: 11778712.2 | H113: 70672273.2 | I113: 2355742.44 | J113: 281982370.1 | K113: =K112-(320300*(Analysis!E$15)) -> 21908.52 | L113: 5140834.218 | M113: 4162618.8 | N113: 6572556 | O113: 2190852 | P113: 1095426 | Q113: 6572556 | R113: 219085.2 | S113: 25953928.22
A114: 111 | B114: =B113-((320300*(Analysis!E$15))-((320300*(Analysis!E$15)*(Analysis!E$19)))) -> 235356.44 | C114: 58133040.68 | D114: 44717723.6 | E114: 70606932 | F114: 23535644 | G114: 11767822 | H114: 70606932 | I114: 2353564.4 | J114: 281721658.7 | K114: =K113-(320300*(Analysis!E$15)) -> 19730.48 | L114: 4629757.132 | M114: 3748791.2 | N114: 5919144 | O114: 1973048 | P114: 986524 | Q114: 5919144 | R114: 197304.8 | S114: 23373713.13
A115: 112 | B115: =B114-((320300*(Analysis!E$15))-((320300*(Analysis!E$15)*(Analysis!E$19)))) -> 235138.636 | C115: 58079243.09 | D115: 44676340.84 | E115: 70541590.8 | F115: 23513863.6 | G115: 11756931.8 | H115: 70541590.8 | I115: 2351386.36 | J115: 281460947.3 | K115: =K114-(320300*(Analysis!E$15)) -> 17552.44 | L115: 4118680.046 | M115: 3334963.6 | N115: 5265732 | O115: 1755244 | P115: 877622 | Q115: 5265732 | R115: 175524.4 | S115: 20793498.05
A116: 113 | B116: =B115-((320300*(Analysis!E$15))-((320300*(Analysis!E$15)*(Analysis!E$19)))) -> 234920.832 | C116: 58025445.5 | D116: 44634958.08 | E116: 70476249.6 | F116: 23492083.2 | G116: 11746041.6 | H116: 70476249.6 | I116: 2349208.32 | J116: 281200235.9 | K116: =K115-(320300*(Analysis!E$15)) -> 15374.4 | L116: 3607602.96 | M116: 2921136 | N116: 4612320 | O116: 1537440 | P116: 768720 | Q116: 4612320 | R116: 153744 | S116: 18213282.96
A117: 114 | B117: =B116-((320300*(Analysis!E$15))-((320300*(Analysis!E$15)*(Analysis!E$19)))) -> 234703.028 | C117: 57971647.92 | D117: 44593575.32 | E117: 70410908.4 | F117: 23470302.8 | G117: 11735151.4 | H117: 70410908.4 | I117: 2347030.28 | J117: 280939524.5 | K117: =K116-(320300*(Analysis!E$15)) -> 13196.36 | L117: 3096525.874 | M117: 2507308.4 | N117: 3958908 | O117: 1319636 | P117: 659818 | Q117: 3958908 | R117: 131963.6 | S117: 15633067.87
A118: 115 | B118: =B117-((320300*(Analysis!E$15))-((320300*(Analysis!E$15)*(Analysis!E$19)))) -> 234485.224 | C118: 57917850.33 | D118: 44552192.56 | E118: 70345567.2 | F118: 23448522.4 | G118: 11724261.2 | H118: 70345567.2 | I118: 2344852.24 | J118: 280678813.1 | K118: =K117-(320300*(Analysis!E$15)) -> 11018.32 | L118: 2585448.788 | M118: 2093480.8 | N118: 3305496 | O118: 1101832 | P118: 550916 | Q118: 3305496 | R118: 110183.2 | S118: 13052852.79
A119: 116 | B119: =B118-((320300*(Analysis!E$15))-((320300*(Analysis!E$15)*(Analysis!E$19)))) -> 234267.42 | C119: =B119*247 -> 57864052.74 | D119: =B119*190 -> 44510809.8 | E119: =B119*300 -> 70280226 | F119: =B119*100 -> 23426742 | G119: =B119*50 -> 11713371 | H119: =B119*300 -> 70280226 | I119: =B119*10 -> 2342674.2 | J119: =SUM(C119:I119) -> 280418101.7 | K119: =K118-(320300*(Analysis!E$15)) -> 8840.28 | L119: =0.95*(247*K119) -> 2074371.702 | M119: =K119*190 -> 1679653.2 | N119: =K119*300 -> 2652084 | O119: =K119*100 -> 884028 | P119: =K119*50 -> 442014 | Q119: =K119*300 -> 2652084 | R119: =K119*10 -> 88402.8 | S119: =SUM(L119:R119) -> 10472637.7
A120: 117 | B120: =B119-((320300*(Analysis!E$15))-((320300*(Analysis!E$15)*(Analysis!E$19)))) -> 234049.616 | C120: 57810255.15 | D120: 44469427.04 | E120: 70214884.8 | F120: 23404961.6 | G120: 11702480.8 | H120: 70214884.8 | I120: 2340496.16 | J120: 280157390.4 | K120: =K119-(320300*(Analysis!E$15)) -> 6662.24 | L120: 1563294.616 | M120: 1265825.6 | N120: 1998672 | O120: 666224 | P120: 333112 | Q120: 1998672 | R120: 66622.4 | S120: 7892422.616
A121: 118 | B121: =B120-((320300*(Analysis!E$15))-((320300*(Analysis!E$15)*(Analysis!E$19)))) -> 233831.812 | C121: 57756457.56 | D121: 44428044.28 | E121: 70149543.6 | F121: 23383181.2 | G121: 11691590.6 | H121: 70149543.6 | I121: 2338318.12 | J121: 279896679 | K121: =K120-(320300*(Analysis!E$15)) -> 4484.2 | L121: 1052217.53 | M121: 851998 | N121: 1345260 | O121: 448420 | P121: 224210 | Q121: 1345260 | R121: 44842 | S121: 5312207.53
A122: 119 | B122: =B121-((320300*(Analysis!E$15))-((320300*(Analysis!E$15)*(Analysis!E$19)))) -> 233614.008 | C122: 57702659.98 | D122: 44386661.52 | E122: 70084202.4 | F122: 23361400.8 | G122: 11680700.4 | H122: 70084202.4 | I122: 2336140.08 | J122: 279635967.6 | K122: =K121-(320300*(Analysis!E$15)) -> 2306.16 | L122: 541140.444 | M122: 438170.4 | N122: 691848 | O122: 230616 | P122: 115308 | Q122: 691848 | R122: 23061.6 | S122: 2731992.444
A123: 120 | B123: =B122-((320300*(Analysis!E$15))-((320300*(Analysis!E$15)*(Analysis!E$19)))) -> 233396.204 | C123: 57648862.39 | D123: 44345278.76 | E123: 70018861.2 | F123: 23339620.4 | G123: 11669810.2 | H123: 70018861.2 | I123: 2333962.04 | J123: 279375256.2 | K123: =K122-(320300*(Analysis!E$15)) -> 128.12 | L123: 30063.358 | M123: 24342.8 | N123: 38436 | O123: 12812 | P123: 6406 | Q123: 38436 | R123: 1281.2 | S123: 151777.358
A124: 121 | B124: =B123-((320300*(Analysis!E$15))-((320300*(Analysis!E$15)*(Analysis!E$19)))) -> 233178.4 | C124: 57595064.8 | D124: 44303896 | E124: 69953520 | F124: 23317840 | G124: 11658920 | H124: 69953520 | I124: 2331784 | J124: 279114544.8 | K124: =K123-(320300*(Analysis!E$15)) -> -2049.92 | L124: -481013.728 | M124: -389484.8 | N124: -614976 | O124: -204992 | P124: -102496 | Q124: -614976 | R124: -20499.2 | S124: -2428437.728
A125: 122 | B125: =B124-((320300*(Analysis!E$15))-((320300*(Analysis!E$15)*(Analysis!E$19)))) -> 232960.596 | C125: 57541267.21 | D125: 44262513.24 | E125: 69888178.8 | F125: 23296059.6 | G125: 11648029.8 | H125: 69888178.8 | I125: 2329605.96 | J125: 278853833.4 | K125: =K124-(320300*(Analysis!E$15)) -> -4227.96 | L125: -992090.814 | M125: -803312.4 | N125: -1268388 | O125: -422796 | P125: -211398 | Q125: -1268388 | R125: -42279.6 | S125: -5008652.814
A126: 123 | B126: =B125-((320300*(Analysis!E$15))-((320300*(Analysis!E$15)*(Analysis!E$19)))) -> 232742.792 | C126: 57487469.62 | D126: 44221130.48 | E126: 69822837.6 | F126: 23274279.2 | G126: 11637139.6 | H126: 69822837.6 | I126: 2327427.92 | J126: 278593122 | K126: =K125-(320300*(Analysis!E$15)) -> -6406 | L126: -1503167.9 | M126: -1217140 | N126: -1921800 | O126: -640600 | P126: -320300 | Q126: -1921800 | R126: -64060 | S126: -7588867.9
A127: 124 | B127: =B126-((320300*(Analysis!E$15))-((320300*(Analysis!E$15)*(Analysis!E$19)))) -> 232524.988 | C127: 57433672.04 | D127: 44179747.72 | E127: 69757496.4 | F127: 23252498.8 | G127: 11626249.4 | H127: 69757496.4 | I127: 2325249.88 | J127: 278332410.6 | K127: =K126-(320300*(Analysis!E$15)) -> -8584.04 | L127: -2014244.986 | M127: -1630967.6 | N127: -2575212 | O127: -858404 | P127: -429202 | Q127: -2575212 | R127: -85840.4 | S127: -10169082.99
A128: 125 | B128: =B127-((320300*(Analysis!E$15))-((320300*(Analysis!E$15)*(Analysis!E$19)))) -> 232307.184 | C128: 57379874.45 | D128: 44138364.96 | E128: 69692155.2 | F128: 23230718.4 | G128: 11615359.2 | H128: 69692155.2 | I128: 2323071.84 | J128: 278071699.2 | K128: =K127-(320300*(Analysis!E$15)) -> -10762.08 | L128: -2525322.072 | M128: -2044795.2 | N128: -3228624 | O128: -1076208 | P128: -538104 | Q128: -3228624 | R128: -107620.8 | S128: -12749298.07
A129: 126 | B129: =B128-((320300*(Analysis!E$15))-((320300*(Analysis!E$15)*(Analysis!E$19)))) -> 232089.38 | C129: 57326076.86 | D129: 44096982.2 | E129: 69626814 | F129: 23208938 | G129: 11604469 | H129: 69626814 | I129: 2320893.8 | J129: 277810987.9 | K129: =K128-(320300*(Analysis!E$15)) -> -12940.12 | L129: -3036399.158 | M129: -2458622.8 | N129: -3882036 | O129: -1294012 | P129: -647006 | Q129: -3882036 | R129: -129401.2 | S129: -15329513.16
A130: 127 | B130: =B129-((320300*(Analysis!E$15))-((320300*(Analysis!E$15)*(Analysis!E$19)))) -> 231871.576 | C130: 57272279.27 | D130: 44055599.44 | E130: 69561472.8 | F130: 23187157.6 | G130: 11593578.8 | H130: 69561472.8 | I130: 2318715.76 | J130: 277550276.5 | K130: =K129-(320300*(Analysis!E$15)) -> -15118.16 | L130: -3547476.244 | M130: -2872450.4 | N130: -4535448 | O130: -1511816 | P130: -755908 | Q130: -4535448 | R130: -151181.6 | S130: -17909728.24
A131: 128 | B131: =B130-((320300*(Analysis!E$15))-((320300*(Analysis!E$15)*(Analysis!E$19)))) -> 231653.772 | C131: 57218481.68 | D131: 44014216.68 | E131: 69496131.6 | F131: 23165377.2 | G131: 11582688.6 | H131: 69496131.6 | I131: 2316537.72 | J131: 277289565.1 | K131: =K130-(320300*(Analysis!E$15)) -> -17296.2 | L131: -4058553.33 | M131: -3286278 | N131: -5188860 | O131: -1729620 | P131: -864810 | Q131: -5188860 | R131: -172962 | S131: -20489943.33
A132: 129 | B132: =B131-((320300*(Analysis!E$15))-((320300*(Analysis!E$15)*(Analysis!E$19)))) -> 231435.968 | C132: 57164684.1 | D132: 43972833.92 | E132: 69430790.4 | F132: 23143596.8 | G132: 11571798.4 | H132: 69430790.4 | I132: 2314359.68 | J132: 277028853.7 | K132: =K131-(320300*(Analysis!E$15)) -> -19474.24 | L132: -4569630.416 | M132: -3700105.6 | N132: -5842272 | O132: -1947424 | P132: -973712 | Q132: -5842272 | R132: -194742.4 | S132: -23070158.42
A133: 130 | B133: =B132-((320300*(Analysis!E$15))-((320300*(Analysis!E$15)*(Analysis!E$19)))) -> 231218.164 | C133: 57110886.51 | D133: 43931451.16 | E133: 69365449.2 | F133: 23121816.4 | G133: 11560908.2 | H133: 69365449.2 | I133: 2312181.64 | J133: 276768142.3 | K133: =K132-(320300*(Analysis!E$15)) -> -21652.28 | L133: -5080707.502 | M133: -4113933.2 | N133: -6495684 | O133: -2165228 | P133: -1082614 | Q133: -6495684 | R133: -216522.8 | S133: -25650373.5
A134: 131 | B134: =B133-((320300*(Analysis!E$15))-((320300*(Analysis!E$15)*(Analysis!E$19)))) -> 231000.36 | C134: 57057088.92 | D134: 43890068.4 | E134: 69300108 | F134: 23100036 | G134: 11550018 | H134: 69300108 | I134: 2310003.6 | J134: 276507430.9 | K134: =K133-(320300*(Analysis!E$15)) -> -23830.32 | L134: -5591784.588 | M134: -4527760.8 | N134: -7149096 | O134: -2383032 | P134: -1191516 | Q134: -7149096 | R134: -238303.2 | S134: -28230588.59
A135: 132 | B135: =B134-((320300*(Analysis!E$15))-((320300*(Analysis!E$15)*(Analysis!E$19)))) -> 230782.556 | C135: 57003291.33 | D135: 43848685.64 | E135: 69234766.8 | F135: 23078255.6 | G135: 11539127.8 | H135: 69234766.8 | I135: 2307825.56 | J135: 276246719.5 | K135: =K134-(320300*(Analysis!E$15)) -> -26008.36 | L135: -6102861.674 | M135: -4941588.4 | N135: -7802508 | O135: -2600836 | P135: -1300418 | Q135: -7802508 | R135: -260083.6 | S135: -30810803.67
A136: 133 | B136: =B135-((320300*(Analysis!E$15))-((320300*(Analysis!E$15)*(Analysis!E$19)))) -> 230564.752 | C136: 56949493.74 | D136: 43807302.88 | E136: 69169425.6 | F136: 23056475.2 | G136: 11528237.6 | H136: 69169425.6 | I136: 2305647.52 | J136: 275986008.1 | K136: =K135-(320300*(Analysis!E$15)) -> -28186.4 | L136: -6613938.76 | M136: -5355416 | N136: -8455920 | O136: -2818640 | P136: -1409320 | Q136: -8455920 | R136: -281864 | S136: -33391018.76
A137: 134 | B137: =B136-((320300*(Analysis!E$15))-((320300*(Analysis!E$15)*(Analysis!E$19)))) -> 230346.948 | C137: 56895696.16 | D137: 43765920.12 | E137: 69104084.4 | F137: 23034694.8 | G137: 11517347.4 | H137: 69104084.4 | I137: 2303469.48 | J137: 275725296.8 | K137: =K136-(320300*(Analysis!E$15)) -> -30364.44 | L137: -7125015.846 | M137: -5769243.6 | N137: -9109332 | O137: -3036444 | P137: -1518222 | Q137: -9109332 | R137: -303644.4 | S137: -35971233.85
A138: 135 | B138: =B137-((320300*(Analysis!E$15))-((320300*(Analysis!E$15)*(Analysis!E$19)))) -> 230129.144 | C138: 56841898.57 | D138: 43724537.36 | E138: 69038743.2 | F138: 23012914.4 | G138: 11506457.2 | H138: 69038743.2 | I138: 2301291.44 | J138: 275464585.4 | K138: =K137-(320300*(Analysis!E$15)) -> -32542.48 | L138: -7636092.932 | M138: -6183071.2 | N138: -9762744 | O138: -3254248 | P138: -1627124 | Q138: -9762744 | R138: -325424.8 | S138: -38551448.93
A139: 136 | B139: =B138-((320300*(Analysis!E$15))-((320300*(Analysis!E$15)*(Analysis!E$19)))) -> 229911.34 | C139: 56788100.98 | D139: 43683154.6 | E139: 68973402 | F139: 22991134 | G139: 11495567 | H139: 68973402 | I139: 2299113.4 | J139: 275203874 | K139: =K138-(320300*(Analysis!E$15)) -> -34720.52 | L139: -8147170.018 | M139: -6596898.8 | N139: -10416156 | O139: -3472052 | P139: -1736026 | Q139: -10416156 | R139: -347205.2 | S139: -41131664.02
A140: 137 | B140: =B139-((320300*(Analysis!E$15))-((320300*(Analysis!E$15)*(Analysis!E$19)))) -> 229693.536 | C140: 56734303.39 | D140: 43641771.84 | E140: 68908060.8 | F140: 22969353.6 | G140: 11484676.8 | H140: 68908060.8 | I140: 2296935.36 | J140: 274943162.6 | K140: =K139-(320300*(Analysis!E$15)) -> -36898.56 | L140: -8658247.104 | M140: -7010726.4 | N140: -11069568 | O140: -3689856 | P140: -1844928 | Q140: -11069568 | R140: -368985.6 | S140: -43711879.1
A141: 138 | B141: =B140-((320300*(Analysis!E$15))-((320300*(Analysis!E$15)*(Analysis!E$19)))) -> 229475.732 | C141: 56680505.8 | D141: 43600389.08 | E141: 68842719.6 | F141: 22947573.2 | G141: 11473786.6 | H141: 68842719.6 | I141: 2294757.32 | J141: 274682451.2 | K141: =K140-(320300*(Analysis!E$15)) -> -39076.6 | L141: -9169324.19 | M141: -7424554 | N141: -11722980 | O141: -3907660 | P141: -1953830 | Q141: -11722980 | R141: -390766 | S141: -46292094.19
A142: 139 | B142: =B141-((320300*(Analysis!E$15))-((320300*(Analysis!E$15)*(Analysis!E$19)))) -> 229257.928 | C142: 56626708.22 | D142: 43559006.32 | E142: 68777378.4 | F142: 22925792.8 | G142: 11462896.4 | H142: 68777378.4 | I142: 2292579.28 | J142: 274421739.8 | K142: =K141-(320300*(Analysis!E$15)) -> -41254.64 | L142: -9680401.276 | M142: -7838381.6 | N142: -12376392 | O142: -4125464 | P142: -2062732 | Q142: -12376392 | R142: -412546.4 | S142: -48872309.28
A143: 140 | B143: =B142-((320300*(Analysis!E$15))-((320300*(Analysis!E$15)*(Analysis!E$19)))) -> 229040.124 | C143: 56572910.63 | D143: 43517623.56 | E143: 68712037.2 | F143: 22904012.4 | G143: 11452006.2 | H143: 68712037.2 | I143: 2290401.24 | J143: 274161028.4 | K143: =K142-(320300*(Analysis!E$15)) -> -43432.68 | L143: -10191478.36 | M143: -8252209.2 | N143: -13029804 | O143: -4343268 | P143: -2171634 | Q143: -13029804 | R143: -434326.8 | S143: -51452524.36
A144: 141 | B144: =B143-((320300*(Analysis!E$15))-((320300*(Analysis!E$15)*(Analysis!E$19)))) -> 228822.32 | C144: 56519113.04 | D144: 43476240.8 | E144: 68646696 | F144: 22882232 | G144: 11441116 | H144: 68646696 | I144: 2288223.2 | J144: 273900317 | K144: =K143-(320300*(Analysis!E$15)) -> -45610.72 | L144: -10702555.45 | M144: -8666036.8 | N144: -13683216 | O144: -4561072 | P144: -2280536 | Q144: -13683216 | R144: -456107.2 | S144: -54032739.45
A145: 142 | B145: =B144-((320300*(Analysis!E$15))-((320300*(Analysis!E$15)*(Analysis!E$19)))) -> 228604.516 | C145: 56465315.45 | D145: 43434858.04 | E145: 68581354.8 | F145: 22860451.6 | G145: 11430225.8 | H145: 68581354.8 | I145: 2286045.16 | J145: 273639605.7 | K145: =K144-(320300*(Analysis!E$15)) -> -47788.76 | L145: -11213632.53 | M145: -9079864.4 | N145: -14336628 | O145: -4778876 | P145: -2389438 | Q145: -14336628 | R145: -477887.6 | S145: -56612954.53
A146: 143 | B146: =B145-((320300*(Analysis!E$15))-((320300*(Analysis!E$15)*(Analysis!E$19)))) -> 228386.712 | C146: 56411517.86 | D146: 43393475.28 | E146: 68516013.6 | F146: 22838671.2 | G146: 11419335.6 | H146: 68516013.6 | I146: 2283867.12 | J146: 273378894.3 | K146: =K145-(320300*(Analysis!E$15)) -> -49966.8 | L146: -11724709.62 | M146: -9493692 | N146: -14990040 | O146: -4996680 | P146: -2498340 | Q146: -14990040 | R146: -499668 | S146: -59193169.62
A147: 144 | B147: =B146-((320300*(Analysis!E$15))-((320300*(Analysis!E$15)*(Analysis!E$19)))) -> 228168.908 | C147: 56357720.28 | D147: 43352092.52 | E147: 68450672.4 | F147: 22816890.8 | G147: 11408445.4 | H147: 68450672.4 | I147: 2281689.08 | J147: 273118182.9 | K147: =K146-(320300*(Analysis!E$15)) -> -52144.84 | L147: -12235786.71 | M147: -9907519.6 | N147: -15643452 | O147: -5214484 | P147: -2607242 | Q147: -15643452 | R147: -521448.4 | S147: -61773384.71
A148: 145 | B148: =B147-((320300*(Analysis!E$15))-((320300*(Analysis!E$15)*(Analysis!E$19)))) -> 227951.104 | C148: 56303922.69 | D148: 43310709.76 | E148: 68385331.2 | F148: 22795110.4 | G148: 11397555.2 | H148: 68385331.2 | I148: 2279511.04 | J148: 272857471.5 | K148: =K147-(320300*(Analysis!E$15)) -> -54322.88 | L148: -12746863.79 | M148: -10321347.2 | N148: -16296864 | O148: -5432288 | P148: -2716144 | Q148: -16296864 | R148: -543228.8 | S148: -64353599.79
A149: 146 | B149: =B148-((320300*(Analysis!E$15))-((320300*(Analysis!E$15)*(Analysis!E$19)))) -> 227733.3 | C149: 56250125.1 | D149: 43269327 | E149: 68319990 | F149: 22773330 | G149: 11386665 | H149: 68319990 | I149: 2277333 | J149: 272596760.1 | K149: =K148-(320300*(Analysis!E$15)) -> -56500.92 | L149: -13257940.88 | M149: -10735174.8 | N149: -16950276 | O149: -5650092 | P149: -2825046 | Q149: -16950276 | R149: -565009.2 | S149: -66933814.88
A150: 147 | B150: =B149-((320300*(Analysis!E$15))-((320300*(Analysis!E$15)*(Analysis!E$19)))) -> 227515.496 | C150: 56196327.51 | D150: 43227944.24 | E150: 68254648.8 | F150: 22751549.6 | G150: 11375774.8 | H150: 68254648.8 | I150: 2275154.96 | J150: 272336048.7 | K150: =K149-(320300*(Analysis!E$15)) -> -58678.96 | L150: -13769017.96 | M150: -11149002.4 | N150: -17603688 | O150: -5867896 | P150: -2933948 | Q150: -17603688 | R150: -586789.6 | S150: -69514029.96
A151: 148 | B151: =B150-((320300*(Analysis!E$15))-((320300*(Analysis!E$15)*(Analysis!E$19)))) -> 227297.692 | C151: 56142529.92 | D151: 43186561.48 | E151: 68189307.6 | F151: 22729769.2 | G151: 11364884.6 | H151: 68189307.6 | I151: 2272976.92 | J151: 272075337.3 | K151: =K150-(320300*(Analysis!E$15)) -> -60857 | L151: -14280095.05 | M151: -11562830 | N151: -18257100 | O151: -6085700 | P151: -3042850 | Q151: -18257100 | R151: -608570 | S151: -72094245.05
A152: 149 | B152: =B151-((320300*(Analysis!E$15))-((320300*(Analysis!E$15)*(Analysis!E$19)))) -> 227079.888 | C152: 56088732.34 | D152: 43145178.72 | E152: 68123966.4 | F152: 22707988.8 | G152: 11353994.4 | H152: 68123966.4 | I152: 2270798.88 | J152: 271814625.9 | K152: =K151-(320300*(Analysis!E$15)) -> -63035.04 | L152: -14791172.14 | M152: -11976657.6 | N152: -18910512 | O152: -6303504 | P152: -3151752 | Q152: -18910512 | R152: -630350.4 | S152: -74674460.14
A153: 150 | B153: =B152-((320300*(Analysis!E$15))-((320300*(Analysis!E$15)*(Analysis!E$19)))) -> 226862.084 | C153: 56034934.75 | D153: 43103795.96 | E153: 68058625.2 | F153: 22686208.4 | G153: 11343104.2 | H153: 68058625.2 | I153: 2268620.84 | J153: 271553914.5 | K153: =K152-(320300*(Analysis!E$15)) -> -65213.08 | L153: -15302249.22 | M153: -12390485.2 | N153: -19563924 | O153: -6521308 | P153: -3260654 | Q153: -19563924 | R153: -652130.8 | S153: -77254675.22
A154: 151 | B154: =B153-((320300*(Analysis!E$15))-((320300*(Analysis!E$15)*(Analysis!E$19)))) -> 226644.28 | C154: 55981137.16 | D154: 43062413.2 | E154: 67993284 | F154: 22664428 | G154: 11332214 | H154: 67993284 | I154: 2266442.8 | J154: 271293203.2 | K154: =K153-(320300*(Analysis!E$15)) -> -67391.12 | L154: -15813326.31 | M154: -12804312.8 | N154: -20217336 | O154: -6739112 | P154: -3369556 | Q154: -20217336 | R154: -673911.2 | S154: -79834890.31
A155: 152 | B155: =B154-((320300*(Analysis!E$15))-((320300*(Analysis!E$15)*(Analysis!E$19)))) -> 226426.476 | C155: 55927339.57 | D155: 43021030.44 | E155: 67927942.8 | F155: 22642647.6 | G155: 11321323.8 | H155: 67927942.8 | I155: 2264264.76 | J155: 271032491.8 | K155: =K154-(320300*(Analysis!E$15)) -> -69569.16 | L155: -16324403.39 | M155: -13218140.4 | N155: -20870748 | O155: -6956916 | P155: -3478458 | Q155: -20870748 | R155: -695691.6 | S155: -82415105.39
A156: 153 | B156: =B155-((320300*(Analysis!E$15))-((320300*(Analysis!E$15)*(Analysis!E$19)))) -> 226208.672 | C156: 55873541.98 | D156: 42979647.68 | E156: 67862601.6 | F156: 22620867.2 | G156: 11310433.6 | H156: 67862601.6 | I156: 2262086.72 | J156: 270771780.4 | K156: =K155-(320300*(Analysis!E$15)) -> -71747.2 | L156: -16835480.48 | M156: -13631968 | N156: -21524160 | O156: -7174720 | P156: -3587360 | Q156: -21524160 | R156: -717472 | S156: -84995320.48
A157: 154 | B157: =B156-((320300*(Analysis!E$15))-((320300*(Analysis!E$15)*(Analysis!E$19)))) -> 225990.868 | C157: 55819744.4 | D157: 42938264.92 | E157: 67797260.4 | F157: 22599086.8 | G157: 11299543.4 | H157: 67797260.4 | I157: 2259908.68 | J157: 270511069 | K157: =K156-(320300*(Analysis!E$15)) -> -73925.24 | L157: -17346557.57 | M157: -14045795.6 | N157: -22177572 | O157: -7392524 | P157: -3696262 | Q157: -22177572 | R157: -739252.4 | S157: -87575535.57
A158: 155 | B158: =B157-((320300*(Analysis!E$15))-((320300*(Analysis!E$15)*(Analysis!E$19)))) -> 225773.064 | C158: 55765946.81 | D158: 42896882.16 | E158: 67731919.2 | F158: 22577306.4 | G158: 11288653.2 | H158: 67731919.2 | I158: 2257730.64 | J158: 270250357.6 | K158: =K157-(320300*(Analysis!E$15)) -> -76103.28 | L158: -17857634.65 | M158: -14459623.2 | N158: -22830984 | O158: -7610328 | P158: -3805164 | Q158: -22830984 | R158: -761032.8 | S158: -90155750.65
A159: 156 | B159: =B158-((320300*(Analysis!E$15))-((320300*(Analysis!E$15)*(Analysis!E$19)))) -> 225555.26 | C159: 55712149.22 | D159: 42855499.4 | E159: 67666578 | F159: 22555526 | G159: 11277763 | H159: 67666578 | I159: 2255552.6 | J159: 269989646.2 | K159: =K158-(320300*(Analysis!E$15)) -> -78281.32 | L159: -18368711.74 | M159: -14873450.8 | N159: -23484396 | O159: -7828132 | P159: -3914066 | Q159: -23484396 | R159: -782813.2 | S159: -92735965.74
A160: 157 | B160: =B159-((320300*(Analysis!E$15))-((320300*(Analysis!E$15)*(Analysis!E$19)))) -> 225337.456 | C160: 55658351.63 | D160: 42814116.64 | E160: 67601236.8 | F160: 22533745.6 | G160: 11266872.8 | H160: 67601236.8 | I160: 2253374.56 | J160: 269728934.8 | K160: =K159-(320300*(Analysis!E$15)) -> -80459.36 | L160: -18879788.82 | M160: -15287278.4 | N160: -24137808 | O160: -8045936 | P160: -4022968 | Q160: -24137808 | R160: -804593.6 | S160: -95316180.82
A161: 158 | B161: =B160-((320300*(Analysis!E$15))-((320300*(Analysis!E$15)*(Analysis!E$19)))) -> 225119.652 | C161: 55604554.04 | D161: 42772733.88 | E161: 67535895.6 | F161: 22511965.2 | G161: 11255982.6 | H161: 67535895.6 | I161: 2251196.52 | J161: 269468223.4 | K161: =K160-(320300*(Analysis!E$15)) -> -82637.4 | L161: -19390865.91 | M161: -15701106 | N161: -24791220 | O161: -8263740 | P161: -4131870 | Q161: -24791220 | R161: -826374 | S161: -97896395.91
A162: 159 | B162: =B161-((320300*(Analysis!E$15))-((320300*(Analysis!E$15)*(Analysis!E$19)))) -> 224901.848 | C162: 55550756.46 | D162: 42731351.12 | E162: 67470554.4 | F162: 22490184.8 | G162: 11245092.4 | H162: 67470554.4 | I162: 2249018.48 | J162: 269207512.1 | K162: =K161-(320300*(Analysis!E$15)) -> -84815.44 | L162: -19901943 | M162: -16114933.6 | N162: -25444632 | O162: -8481544 | P162: -4240772 | Q162: -25444632 | R162: -848154.4 | S162: -100476611
A163: 160 | B163: =B162-((320300*(Analysis!E$15))-((320300*(Analysis!E$15)*(Analysis!E$19)))) -> 224684.044 | C163: 55496958.87 | D163: 42689968.36 | E163: 67405213.2 | F163: 22468404.4 | G163: 11234202.2 | H163: 67405213.2 | I163: 2246840.44 | J163: 268946800.7 | K163: =K162-(320300*(Analysis!E$15)) -> -86993.48 | L163: -20413020.08 | M163: -16528761.2 | N163: -26098044 | O163: -8699348 | P163: -4349674 | Q163: -26098044 | R163: -869934.8 | S163: -103056826.1
A164: 161 | B164: =B163-((320300*(Analysis!E$15))-((320300*(Analysis!E$15)*(Analysis!E$19)))) -> 224466.24 | C164: 55443161.28 | D164: 42648585.6 | E164: 67339872 | F164: 22446624 | G164: 11223312 | H164: 67339872 | I164: 2244662.4 | J164: 268686089.3 | K164: =K163-(320300*(Analysis!E$15)) -> -89171.52 | L164: -20924097.17 | M164: -16942588.8 | N164: -26751456 | O164: -8917152 | P164: -4458576 | Q164: -26751456 | R164: -891715.2 | S164: -105637041.2
A165: 162 | B165: =B164-((320300*(Analysis!E$15))-((320300*(Analysis!E$15)*(Analysis!E$19)))) -> 224248.436 | C165: 55389363.69 | D165: 42607202.84 | E165: 67274530.8 | F165: 22424843.6 | G165: 11212421.8 | H165: 67274530.8 | I165: 2242484.36 | J165: 268425377.9 | K165: =K164-(320300*(Analysis!E$15)) -> -91349.56 | L165: -21435174.25 | M165: -17356416.4 | N165: -27404868 | O165: -9134956 | P165: -4567478 | Q165: -27404868 | R165: -913495.6 | S165: -108217256.3
A166: 163 | B166: =B165-((320300*(Analysis!E$15))-((320300*(Analysis!E$15)*(Analysis!E$19)))) -> 224030.632 | C166: 55335566.1 | D166: 42565820.08 | E166: 67209189.6 | F166: 22403063.2 | G166: 11201531.6 | H166: 67209189.6 | I166: 2240306.32 | J166: 268164666.5 | K166: =K165-(320300*(Analysis!E$15)) -> -93527.6 | L166: -21946251.34 | M166: -17770244 | N166: -28058280 | O166: -9352760 | P166: -4676380 | Q166: -28058280 | R166: -935276 | S166: -110797471.3
A167: 164 | B167: =B166-((320300*(Analysis!E$15))-((320300*(Analysis!E$15)*(Analysis!E$19)))) -> 223812.828 | C167: 55281768.52 | D167: 42524437.32 | E167: 67143848.4 | F167: 22381282.8 | G167: 11190641.4 | H167: 67143848.4 | I167: 2238128.28 | J167: 267903955.1 | K167: =K166-(320300*(Analysis!E$15)) -> -95705.64 | L167: -22457328.43 | M167: -18184071.6 | N167: -28711692 | O167: -9570564 | P167: -4785282 | Q167: -28711692 | R167: -957056.4 | S167: -113377686.4
A168: 165 | B168: =B167-((320300*(Analysis!E$15))-((320300*(Analysis!E$15)*(Analysis!E$19)))) -> 223595.024 | C168: 55227970.93 | D168: 42483054.56 | E168: 67078507.2 | F168: 22359502.4 | G168: 11179751.2 | H168: 67078507.2 | I168: 2235950.24 | J168: 267643243.7 | K168: =K167-(320300*(Analysis!E$15)) -> -97883.68 | L168: -22968405.51 | M168: -18597899.2 | N168: -29365104 | O168: -9788368 | P168: -4894184 | Q168: -29365104 | R168: -978836.8 | S168: -115957901.5
A169: 166 | B169: =B168-((320300*(Analysis!E$15))-((320300*(Analysis!E$15)*(Analysis!E$19)))) -> 223377.22 | C169: 55174173.34 | D169: 42441671.8 | E169: 67013166 | F169: 22337722 | G169: 11168861 | H169: 67013166 | I169: 2233772.2 | J169: 267382532.3 | K169: =K168-(320300*(Analysis!E$15)) -> -100061.72 | L169: -23479482.6 | M169: -19011726.8 | N169: -30018516 | O169: -10006172 | P169: -5003086 | Q169: -30018516 | R169: -1000617.2 | S169: -118538116.6
A170: 167 | B170: =B169-((320300*(Analysis!E$15))-((320300*(Analysis!E$15)*(Analysis!E$19)))) -> 223159.416 | C170: 55120375.75 | D170: 42400289.04 | E170: 66947824.8 | F170: 22315941.6 | G170: 11157970.8 | H170: 66947824.8 | I170: 2231594.16 | J170: 267121821 | K170: =K169-(320300*(Analysis!E$15)) -> -102239.76 | L170: -23990559.68 | M170: -19425554.4 | N170: -30671928 | O170: -10223976 | P170: -5111988 | Q170: -30671928 | R170: -1022397.6 | S170: -121118331.7
A171: 168 | B171: =B170-((320300*(Analysis!E$15))-((320300*(Analysis!E$15)*(Analysis!E$19)))) -> 222941.612 | C171: 55066578.16 | D171: 42358906.28 | E171: 66882483.6 | F171: 22294161.2 | G171: 11147080.6 | H171: 66882483.6 | I171: 2229416.12 | J171: 266861109.6 | K171: =K170-(320300*(Analysis!E$15)) -> -104417.8 | L171: -24501636.77 | M171: -19839382 | N171: -31325340 | O171: -10441780 | P171: -5220890 | Q171: -31325340 | R171: -1044178 | S171: -123698546.8
A172: 169 | B172: =B171-((320300*(Analysis!E$15))-((320300*(Analysis!E$15)*(Analysis!E$19)))) -> 222723.808 | C172: 55012780.58 | D172: 42317523.52 | E172: 66817142.4 | F172: 22272380.8 | G172: 11136190.4 | H172: 66817142.4 | I172: 2227238.08 | J172: 266600398.2 | K172: =K171-(320300*(Analysis!E$15)) -> -106595.84 | L172: -25012713.86 | M172: -20253209.6 | N172: -31978752 | O172: -10659584 | P172: -5329792 | Q172: -31978752 | R172: -1065958.4 | S172: -126278761.9
A173: 170 | B173: =B172-((320300*(Analysis!E$15))-((320300*(Analysis!E$15)*(Analysis!E$19)))) -> 222506.004 | C173: 54958982.99 | D173: 42276140.76 | E173: 66751801.2 | F173: 22250600.4 | G173: 11125300.2 | H173: 66751801.2 | I173: 2225060.04 | J173: 266339686.8 | K173: =K172-(320300*(Analysis!E$15)) -> -108773.88 | L173: -25523790.94 | M173: -20667037.2 | N173: -32632164 | O173: -10877388 | P173: -5438694 | Q173: -32632164 | R173: -1087738.8 | S173: -128858976.9
A174: 171 | B174: =B173-((320300*(Analysis!E$15))-((320300*(Analysis!E$15)*(Analysis!E$19)))) -> 222288.2 | C174: 54905185.4 | D174: 42234758 | E174: 66686460 | F174: 22228820 | G174: 11114410 | H174: 66686460 | I174: 2222882 | J174: 266078975.4 | K174: =K173-(320300*(Analysis!E$15)) -> -110951.92 | L174: -26034868.03 | M174: -21080864.8 | N174: -33285576 | O174: -11095192 | P174: -5547596 | Q174: -33285576 | R174: -1109519.2 | S174: -131439192
A175: 172 | B175: =B174-((320300*(Analysis!E$15))-((320300*(Analysis!E$15)*(Analysis!E$19)))) -> 222070.396 | C175: 54851387.81 | D175: 42193375.24 | E175: 66621118.8 | F175: 22207039.6 | G175: 11103519.8 | H175: 66621118.8 | I175: 2220703.96 | J175: 265818264 | K175: =K174-(320300*(Analysis!E$15)) -> -113129.96 | L175: -26545945.11 | M175: -21494692.4 | N175: -33938988 | O175: -11312996 | P175: -5656498 | Q175: -33938988 | R175: -1131299.6 | S175: -134019407.1
A176: 173 | B176: =B175-((320300*(Analysis!E$15))-((320300*(Analysis!E$15)*(Analysis!E$19)))) -> 221852.592 | C176: 54797590.22 | D176: 42151992.48 | E176: 66555777.6 | F176: 22185259.2 | G176: 11092629.6 | H176: 66555777.6 | I176: 2218525.92 | J176: 265557552.6 | K176: =K175-(320300*(Analysis!E$15)) -> -115308 | L176: -27057022.2 | M176: -21908520 | N176: -34592400 | O176: -11530800 | P176: -5765400 | Q176: -34592400 | R176: -1153080 | S176: -136599622.2
A177: 174 | B177: =B176-((320300*(Analysis!E$15))-((320300*(Analysis!E$15)*(Analysis!E$19)))) -> 221634.788 | C177: 54743792.64 | D177: 42110609.72 | E177: 66490436.4 | F177: 22163478.8 | G177: 11081739.4 | H177: 66490436.4 | I177: 2216347.88 | J177: 265296841.2 | K177: =K176-(320300*(Analysis!E$15)) -> -117486.04 | L177: -27568099.29 | M177: -22322347.6 | N177: -35245812 | O177: -11748604 | P177: -5874302 | Q177: -35245812 | R177: -1174860.4 | S177: -139179837.3
A178: 175 | B178: =B177-((320300*(Analysis!E$15))-((320300*(Analysis!E$15)*(Analysis!E$19)))) -> 221416.984 | C178: 54689995.05 | D178: 42069226.96 | E178: 66425095.2 | F178: 22141698.4 | G178: 11070849.2 | H178: 66425095.2 | I178: 2214169.84 | J178: 265036129.8 | K178: =K177-(320300*(Analysis!E$15)) -> -119664.08 | L178: -28079176.37 | M178: -22736175.2 | N178: -35899224 | O178: -11966408 | P178: -5983204 | Q178: -35899224 | R178: -1196640.8 | S178: -141760052.4
A179: 176 | B179: =B178-((320300*(Analysis!E$15))-((320300*(Analysis!E$15)*(Analysis!E$19)))) -> 221199.18 | C179: 54636197.46 | D179: 42027844.2 | E179: 66359754 | F179: 22119918 | G179: 11059959 | H179: 66359754 | I179: 2211991.8 | J179: 264775418.5 | K179: =K178-(320300*(Analysis!E$15)) -> -121842.12 | L179: -28590253.46 | M179: -23150002.8 | N179: -36552636 | O179: -12184212 | P179: -6092106 | Q179: -36552636 | R179: -1218421.2 | S179: -144340267.5
A180: 177 | B180: =B179-((320300*(Analysis!E$15))-((320300*(Analysis!E$15)*(Analysis!E$19)))) -> 220981.376 | C180: 54582399.87 | D180: 41986461.44 | E180: 66294412.8 | F180: 22098137.6 | G180: 11049068.8 | H180: 66294412.8 | I180: 2209813.76 | J180: 264514707.1 | K180: =K179-(320300*(Analysis!E$15)) -> -124020.16 | L180: -29101330.54 | M180: -23563830.4 | N180: -37206048 | O180: -12402016 | P180: -6201008 | Q180: -37206048 | R180: -1240201.6 | S180: -146920482.5
A181: 178 | B181: =B180-((320300*(Analysis!E$15))-((320300*(Analysis!E$15)*(Analysis!E$19)))) -> 220763.572 | C181: 54528602.28 | D181: 41945078.68 | E181: 66229071.6 | F181: 22076357.2 | G181: 11038178.6 | H181: 66229071.6 | I181: 2207635.72 | J181: 264253995.7 | K181: =K180-(320300*(Analysis!E$15)) -> -126198.2 | L181: -29612407.63 | M181: -23977658 | N181: -37859460 | O181: -12619820 | P181: -6309910 | Q181: -37859460 | R181: -1261982 | S181: -149500697.6
A182: 179 | B182: =B181-((320300*(Analysis!E$15))-((320300*(Analysis!E$15)*(Analysis!E$19)))) -> 220545.768 | C182: 54474804.7 | D182: 41903695.92 | E182: 66163730.4 | F182: 22054576.8 | G182: 11027288.4 | H182: 66163730.4 | I182: 2205457.68 | J182: 263993284.3 | K182: =K181-(320300*(Analysis!E$15)) -> -128376.24 | L182: -30123484.72 | M182: -24391485.6 | N182: -38512872 | O182: -12837624 | P182: -6418812 | Q182: -38512872 | R182: -1283762.4 | S182: -152080912.7
A183: 180 | B183: =B182-((320300*(Analysis!E$15))-((320300*(Analysis!E$15)*(Analysis!E$19)))) -> 220327.964 | C183: =B183*247 -> 54421007.11 | D183: =B183*190 -> 41862313.16 | E183: =B183*300 -> 66098389.2 | F183: =B183*100 -> 22032796.4 | G183: =B183*50 -> 11016398.2 | H183: =B183*300 -> 66098389.2 | I183: =B183*10 -> 2203279.64 | J183: =SUM(C183:I183) -> 263732572.9 | K183: =K182-(320300*(Analysis!E$15)) -> -130554.28 | L183: =0.95*(247*K183) -> -30634561.8 | M183: =K183*190 -> -24805313.2 | N183: =K183*300 -> -39166284 | O183: =K183*100 -> -13055428 | P183: =K183*50 -> -6527714 | Q183: =K183*300 -> -39166284 | R183: =K183*10 -> -1305542.8 | S183: =SUM(L183:R183) -> -154661127.8
A184: 181 | B184: =B183-((320300*(Analysis!E$15))-((320300*(Analysis!E$15)*(Analysis!E$19)))) -> 220110.16 | C184: 54367209.52 | D184: 41820930.4 | E184: 66033048 | F184: 22011016 | G184: 11005508 | H184: 66033048 | I184: 2201101.6 | J184: 263471861.5 | K184: =K183-(320300*(Analysis!E$15)) -> -132732.32 | L184: -31145638.89 | M184: -25219140.8 | N184: -39819696 | O184: -13273232 | P184: -6636616 | Q184: -39819696 | R184: -1327323.2 | S184: -157241342.9
A185: 182 | B185: =B184-((320300*(Analysis!E$15))-((320300*(Analysis!E$15)*(Analysis!E$19)))) -> 219892.356 | C185: 54313411.93 | D185: 41779547.64 | E185: 65967706.8 | F185: 21989235.6 | G185: 10994617.8 | H185: 65967706.8 | I185: 2198923.56 | J185: 263211150.1 | K185: =K184-(320300*(Analysis!E$15)) -> -134910.36 | L185: -31656715.97 | M185: -25632968.4 | N185: -40473108 | O185: -13491036 | P185: -6745518 | Q185: -40473108 | R185: -1349103.6 | S185: -159821558
A186: 183 | B186: =B185-((320300*(Analysis!E$15))-((320300*(Analysis!E$15)*(Analysis!E$19)))) -> 219674.552 | C186: 54259614.34 | D186: 41738164.88 | E186: 65902365.6 | F186: 21967455.2 | G186: 10983727.6 | H186: 65902365.6 | I186: 2196745.52 | J186: 262950438.7 | K186: =K185-(320300*(Analysis!E$15)) -> -137088.4 | L186: -32167793.06 | M186: -26046796 | N186: -41126520 | O186: -13708840 | P186: -6854420 | Q186: -41126520 | R186: -1370884 | S186: -162401773.1
A187: 184 | B187: =B186-((320300*(Analysis!E$15))-((320300*(Analysis!E$15)*(Analysis!E$19)))) -> 219456.748 | C187: 54205816.76 | D187: 41696782.12 | E187: 65837024.4 | F187: 21945674.8 | G187: 10972837.4 | H187: 65837024.4 | I187: 2194567.48 | J187: 262689727.4 | K187: =K186-(320300*(Analysis!E$15)) -> -139266.44 | L187: -32678870.15 | M187: -26460623.6 | N187: -41779932 | O187: -13926644 | P187: -6963322 | Q187: -41779932 | R187: -1392664.4 | S187: -164981988.1
A188: 185 | B188: =B187-((320300*(Analysis!E$15))-((320300*(Analysis!E$15)*(Analysis!E$19)))) -> 219238.944 | C188: 54152019.17 | D188: 41655399.36 | E188: 65771683.2 | F188: 21923894.4 | G188: 10961947.2 | H188: 65771683.2 | I188: 2192389.44 | J188: 262429016 | K188: =K187-(320300*(Analysis!E$15)) -> -141444.48 | L188: -33189947.23 | M188: -26874451.2 | N188: -42433344 | O188: -14144448 | P188: -7072224 | Q188: -42433344 | R188: -1414444.8 | S188: -167562203.2
A189: 186 | B189: =B188-((320300*(Analysis!E$15))-((320300*(Analysis!E$15)*(Analysis!E$19)))) -> 219021.14 | C189: 54098221.58 | D189: 41614016.6 | E189: 65706342 | F189: 21902114 | G189: 10951057 | H189: 65706342 | I189: 2190211.4 | J189: 262168304.6 | K189: =K188-(320300*(Analysis!E$15)) -> -143622.52 | L189: -33701024.32 | M189: -27288278.8 | N189: -43086756 | O189: -14362252 | P189: -7181126 | Q189: -43086756 | R189: -1436225.2 | S189: -170142418.3
A190: 187 | B190: =B189-((320300*(Analysis!E$15))-((320300*(Analysis!E$15)*(Analysis!E$19)))) -> 218803.336 | C190: 54044423.99 | D190: 41572633.84 | E190: 65641000.8 | F190: 21880333.6 | G190: 10940166.8 | H190: 65641000.8 | I190: 2188033.36 | J190: 261907593.2 | K190: =K189-(320300*(Analysis!E$15)) -> -145800.56 | L190: -34212101.4 | M190: -27702106.4 | N190: -43740168 | O190: -14580056 | P190: -7290028 | Q190: -43740168 | R190: -1458005.6 | S190: -172722633.4
A191: 188 | B191: =B190-((320300*(Analysis!E$15))-((320300*(Analysis!E$15)*(Analysis!E$19)))) -> 218585.532 | C191: 53990626.4 | D191: 41531251.08 | E191: 65575659.6 | F191: 21858553.2 | G191: 10929276.6 | H191: 65575659.6 | I191: 2185855.32 | J191: 261646881.8 | K191: =K190-(320300*(Analysis!E$15)) -> -147978.6 | L191: -34723178.49 | M191: -28115934 | N191: -44393580 | O191: -14797860 | P191: -7398930 | Q191: -44393580 | R191: -1479786 | S191: -175302848.5
A192: 189 | B192: =B191-((320300*(Analysis!E$15))-((320300*(Analysis!E$15)*(Analysis!E$19)))) -> 218367.728 | C192: 53936828.82 | D192: 41489868.32 | E192: 65510318.4 | F192: 21836772.8 | G192: 10918386.4 | H192: 65510318.4 | I192: 2183677.28 | J192: 261386170.4 | K192: =K191-(320300*(Analysis!E$15)) -> -150156.64 | L192: -35234255.58 | M192: -28529761.6 | N192: -45046992 | O192: -15015664 | P192: -7507832 | Q192: -45046992 | R192: -1501566.4 | S192: -177883063.6
A193: 190 | B193: =B192-((320300*(Analysis!E$15))-((320300*(Analysis!E$15)*(Analysis!E$19)))) -> 218149.924 | C193: 53883031.23 | D193: 41448485.56 | E193: 65444977.2 | F193: 21814992.4 | G193: 10907496.2 | H193: 65444977.2 | I193: 2181499.24 | J193: 261125459 | K193: =K192-(320300*(Analysis!E$15)) -> -152334.68 | L193: -35745332.66 | M193: -28943589.2 | N193: -45700404 | O193: -15233468 | P193: -7616734 | Q193: -45700404 | R193: -1523346.8 | S193: -180463278.7
A194: 191 | B194: =B193-((320300*(Analysis!E$15))-((320300*(Analysis!E$15)*(Analysis!E$19)))) -> 217932.12 | C194: 53829233.64 | D194: 41407102.8 | E194: 65379636 | F194: 21793212 | G194: 10896606 | H194: 65379636 | I194: 2179321.2 | J194: 260864747.6 | K194: =K193-(320300*(Analysis!E$15)) -> -154512.72 | L194: -36256409.75 | M194: -29357416.8 | N194: -46353816 | O194: -15451272 | P194: -7725636 | Q194: -46353816 | R194: -1545127.2 | S194: -183043493.7
A195: 192 | B195: =B194-((320300*(Analysis!E$15))-((320300*(Analysis!E$15)*(Analysis!E$19)))) -> 217714.316 | C195: 53775436.05 | D195: 41365720.04 | E195: 65314294.8 | F195: 21771431.6 | G195: 10885715.8 | H195: 65314294.8 | I195: 2177143.16 | J195: 260604036.3 | K195: =K194-(320300*(Analysis!E$15)) -> -156690.76 | L195: -36767486.83 | M195: -29771244.4 | N195: -47007228 | O195: -15669076 | P195: -7834538 | Q195: -47007228 | R195: -1566907.6 | S195: -185623708.8
A196: 193 | B196: =B195-((320300*(Analysis!E$15))-((320300*(Analysis!E$15)*(Analysis!E$19)))) -> 217496.512 | C196: 53721638.46 | D196: 41324337.28 | E196: 65248953.6 | F196: 21749651.2 | G196: 10874825.6 | H196: 65248953.6 | I196: 2174965.12 | J196: 260343324.9 | K196: =K195-(320300*(Analysis!E$15)) -> -158868.8 | L196: -37278563.92 | M196: -30185072 | N196: -47660640 | O196: -15886880 | P196: -7943440 | Q196: -47660640 | R196: -1588688 | S196: -188203923.9
A197: 194 | B197: =B196-((320300*(Analysis!E$15))-((320300*(Analysis!E$15)*(Analysis!E$19)))) -> 217278.708 | C197: 53667840.88 | D197: 41282954.52 | E197: 65183612.4 | F197: 21727870.8 | G197: 10863935.4 | H197: 65183612.4 | I197: 2172787.08 | J197: 260082613.5 | K197: =K196-(320300*(Analysis!E$15)) -> -161046.84 | L197: -37789641.01 | M197: -30598899.6 | N197: -48314052 | O197: -16104684 | P197: -8052342 | Q197: -48314052 | R197: -1610468.4 | S197: -190784139
A198: 195 | B198: =B197-((320300*(Analysis!E$15))-((320300*(Analysis!E$15)*(Analysis!E$19)))) -> 217060.904 | C198: 53614043.29 | D198: 41241571.76 | E198: 65118271.2 | F198: 21706090.4 | G198: 10853045.2 | H198: 65118271.2 | I198: 2170609.04 | J198: 259821902.1 | K198: =K197-(320300*(Analysis!E$15)) -> -163224.88 | L198: -38300718.09 | M198: -31012727.2 | N198: -48967464 | O198: -16322488 | P198: -8161244 | Q198: -48967464 | R198: -1632248.8 | S198: -193364354.1
A199: 196 | B199: =B198-((320300*(Analysis!E$15))-((320300*(Analysis!E$15)*(Analysis!E$19)))) -> 216843.1 | C199: 53560245.7 | D199: 41200189 | E199: 65052930 | F199: 21684310 | G199: 10842155 | H199: 65052930 | I199: 2168431 | J199: 259561190.7 | K199: =K198-(320300*(Analysis!E$15)) -> -165402.92 | L199: -38811795.18 | M199: -31426554.8 | N199: -49620876 | O199: -16540292 | P199: -8270146 | Q199: -49620876 | R199: -1654029.2 | S199: -195944569.2
A200: 197 | B200: =B199-((320300*(Analysis!E$15))-((320300*(Analysis!E$15)*(Analysis!E$19)))) -> 216625.296 | C200: 53506448.11 | D200: 41158806.24 | E200: 64987588.8 | F200: 21662529.6 | G200: 10831264.8 | H200: 64987588.8 | I200: 2166252.96 | J200: 259300479.3 | K200: =K199-(320300*(Analysis!E$15)) -> -167580.96 | L200: -39322872.26 | M200: -31840382.4 | N200: -50274288 | O200: -16758096 | P200: -8379048 | Q200: -50274288 | R200: -1675809.6 | S200: -198524784.3
... 801 more rows

Sheet Flaming_Gorge_Benefits
B1: BENEFITS
C2: With Sedimentation Management | L2: Without Management
B3: Reservoir Capacity | C3: Water Value | D3: Irrigation | E3: M&I | F3: Flood Control | G3: Recreation | H3: Hydropower | I3: Fish and Widlife | J3: Total Annual Benefits | K3: Reservoir Capacity | L3: Water Value | M3: Irrigation | N3: M&I | O3: Flood Control | P3: Recreation | Q3: Hydropower | R3: Fish and Widlife | S3: Total Annual Benefits
A4: 1 | B4: =Res_Info!D2 -> 2346024.341 | C4: =B4*247 -> 579468012.2 | D4: =B4*190 -> 445744624.8 | E4: =B4*300 -> 703807302.2 | F4: =B4*100 -> 234602434.1 | G4: =B4*50 -> 117301217 | H4: =B4*300 -> 703807302.2 | I4: =B4*10 -> 23460243.41 | J4: =SUM(C4:I4) -> 2808191136 | K4: =Res_Info!D2 -> 2346024.341 | L4: =0.95*(247*K4) -> 550494611.6 | M4: =K4*190 -> 445744624.8 | N4: =K4*300 -> 703807302.2 | O4: =K4*100 -> 234602434.1 | P4: =K4*50 -> 117301217 | Q4: =K4*300 -> 703807302.2 | R4: =K4*10 -> 23460243.41 | S4: =SUM(L4:R4) -> 2779217735
A5: 2 | B5: =B4-((3788799*(Analysis!E$15))-((3788799*(Analysis!E$15)*(Analysis!E$19)))) -> 2343447.957 | C5: =B5*247 -> 578831645.5 | D5: =B5*190 -> 445255111.9 | E5: =B5*300 -> 703034387.2 | F5: =B5*100 -> 234344795.7 | G5: =B5*50 -> 117172397.9 | H5: =B5*300 -> 703034387.2 | I5: =B5*10 -> 23434479.57 | J5: =SUM(C5:I5) -> 2805107205 | K5: =K4-(3788799*(Analysis!E$15)) -> 2320260.508 | L5: =0.95*(247*K5) -> 544449128.1 | M5: =K5*190 -> 440849496.4 | N5: =K5*300 -> 696078152.3 | O5: =K5*100 -> 232026050.8 | P5: =K5*50 -> 116013025.4 | Q5: =K5*300 -> 696078152.3 | R5: =K5*10 -> 23202605.08 | S5: =SUM(L5:R5) -> 2748696610
A6: 3 | B6: =B5-((3788799*(Analysis!E$15))-((3788799*(Analysis!E$15)*(Analysis!E$19)))) -> 2340871.574 | C6: 578195278.8 | D6: 444765599.1 | E6: 702261472.2 | F6: 234087157.4 | G6: 117043578.7 | H6: 702261472.2 | I6: 23408715.74 | J6: 2802023274 | K6: =K5-(3788799*(Analysis!E$15)) -> 2294496.674 | L6: =0.95*(247*K6) -> 538403644.6 | M6: =K6*190 -> 435954368.1 | N6: =K6*300 -> 688349002.3 | O6: =K6*100 -> 229449667.4 | P6: =K6*50 -> 114724833.7 | Q6: =K6*300 -> 688349002.3 | R6: =K6*10 -> 22944966.74 | S6: 2718175485
A7: 4 | B7: =B6-((3788799*(Analysis!E$15))-((3788799*(Analysis!E$15)*(Analysis!E$19)))) -> 2338295.191 | C7: 577558912.1 | D7: 444276086.3 | E7: 701488557.3 | F7: 233829519.1 | G7: 116914759.5 | H7: 701488557.3 | I7: 23382951.91 | J7: 2798939343 | K7: =K6-(3788799*(Analysis!E$15)) -> 2268732.841 | L7: =0.95*(247*K7) -> 532358161.2 | M7: =K7*190 -> 431059239.8 | N7: =K7*300 -> 680619852.4 | O7: =K7*100 -> 226873284.1 | P7: =K7*50 -> 113436642.1 | Q7: =K7*300 -> 680619852.4 | R7: =K7*10 -> 22687328.41 | S7: 2687654360
A8: 5 | B8: =B7-((3788799*(Analysis!E$15))-((3788799*(Analysis!E$15)*(Analysis!E$19)))) -> 2335718.808 | C8: 576922545.5 | D8: 443786573.4 | E8: 700715642.3 | F8: 233571880.8 | G8: 116785940.4 | H8: 700715642.3 | I8: 23357188.08 | J8: 2795855413 | K8: =K7-(3788799*(Analysis!E$15)) -> 2242969.008 | L8: 526312677.7 | M8: 426164111.5 | N8: 672890702.4 | O8: 224296900.8 | P8: 112148450.4 | Q8: 672890702.4 | R8: 22429690.08 | S8: 2657133235
A9: 6 | B9: =B8-((3788799*(Analysis!E$15))-((3788799*(Analysis!E$15)*(Analysis!E$19)))) -> 2333142.424 | C9: 576286178.8 | D9: 443297060.6 | E9: 699942727.3 | F9: 233314242.4 | G9: 116657121.2 | H9: 699942727.3 | I9: 23331424.24 | J9: 2792771482 | K9: =K8-(3788799*(Analysis!E$15)) -> 2217205.175 | L9: 520267194.3 | M9: 421268983.2 | N9: 665161552.4 | O9: 221720517.5 | P9: 110860258.7 | Q9: 665161552.4 | R9: 22172051.75 | S9: 2626612110
A10: 7 | B10: =B9-((3788799*(Analysis!E$15))-((3788799*(Analysis!E$15)*(Analysis!E$19)))) -> 2330566.041 | C10: 575649812.1 | D10: 442807547.8 | E10: 699169812.3 | F10: 233056604.1 | G10: 116528302 | H10: 699169812.3 | I10: 23305660.41 | J10: 2789687551 | K10: =K9-(3788799*(Analysis!E$15)) -> 2191441.342 | L10: 514221710.8 | M10: 416373854.9 | N10: 657432402.5 | O10: 219144134.2 | P10: 109572067.1 | Q10: 657432402.5 | R10: 21914413.42 | S10: 2596090985
A11: 8 | B11: =B10-((3788799*(Analysis!E$15))-((3788799*(Analysis!E$15)*(Analysis!E$19)))) -> 2327989.658 | C11: 575013445.4 | D11: 442318034.9 | E11: 698396897.3 | F11: 232798965.8 | G11: 116399482.9 | H11: 698396897.3 | I11: 23279896.58 | J11: 2786603620 | K11: =K10-(3788799*(Analysis!E$15)) -> 2165677.508 | L11: 508176227.3 | M11: 411478726.6 | N11: 649703252.5 | O11: 216567750.8 | P11: 108283875.4 | Q11: 649703252.5 | R11: 21656775.08 | S11: 2565569860
A12: 9 | B12: =B11-((3788799*(Analysis!E$15))-((3788799*(Analysis!E$15)*(Analysis!E$19)))) -> 2325413.274 | C12: 574377078.7 | D12: 441828522.1 | E12: 697623982.3 | F12: 232541327.4 | G12: 116270663.7 | H12: 697623982.3 | I12: 23254132.74 | J12: 2783519689 | K12: =K11-(3788799*(Analysis!E$15)) -> 2139913.675 | L12: 502130743.9 | M12: 406583598.3 | N12: 641974102.6 | O12: 213991367.5 | P12: 106995683.8 | Q12: 641974102.6 | R12: 21399136.75 | S12: 2535048735
A13: 10 | B13: =B12-((3788799*(Analysis!E$15))-((3788799*(Analysis!E$15)*(Analysis!E$19)))) -> 2322836.891 | C13: 573740712.1 | D13: 441339009.3 | E13: 696851067.3 | F13: 232283689.1 | G13: 116141844.5 | H13: 696851067.3 | I13: 23228368.91 | J13: 2780435758 | K13: =K12-(3788799*(Analysis!E$15)) -> 2114149.842 | L13: 496085260.4 | M13: 401688470 | N13: 634244952.6 | O13: 211414984.2 | P13: 105707492.1 | Q13: 634244952.6 | R13: 21141498.42 | S13: 2504527610
A14: 11 | B14: =B13-((3788799*(Analysis!E$15))-((3788799*(Analysis!E$15)*(Analysis!E$19)))) -> 2320260.508 | C14: 573104345.4 | D14: 440849496.4 | E14: 696078152.3 | F14: 232026050.8 | G14: 116013025.4 | H14: 696078152.3 | I14: 23202605.08 | J14: 2777351828 | K14: =K13-(3788799*(Analysis!E$15)) -> 2088386.009 | L14: 490039777 | M14: 396793341.7 | N14: 626515802.6 | O14: 208838600.9 | P14: 104419300.4 | Q14: 626515802.6 | R14: 20883860.09 | S14: 2474006485
A15: 12 | B15: =B14-((3788799*(Analysis!E$15))-((3788799*(Analysis!E$15)*(Analysis!E$19)))) -> 2317684.124 | C15: 572467978.7 | D15: 440359983.6 | E15: 695305237.3 | F15: 231768412.4 | G15: 115884206.2 | H15: 695305237.3 | I15: 23176841.24 | J15: 2774267897 | K15: =K14-(3788799*(Analysis!E$15)) -> 2062622.176 | L15: 483994293.5 | M15: 391898213.4 | N15: 618786652.7 | O15: 206262217.6 | P15: 103131108.8 | Q15: 618786652.7 | R15: 20626221.76 | S15: 2443485360
A16: 13 | B16: =B15-((3788799*(Analysis!E$15))-((3788799*(Analysis!E$15)*(Analysis!E$19)))) -> 2315107.741 | C16: 571831612 | D16: 439870470.8 | E16: 694532322.3 | F16: 231510774.1 | G16: 115755387 | H16: 694532322.3 | I16: 23151077.41 | J16: 2771183966 | K16: =K15-(3788799*(Analysis!E$15)) -> 2036858.342 | L16: 477948810 | M16: 387003085.1 | N16: 611057502.7 | O16: 203685834.2 | P16: 101842917.1 | Q16: 611057502.7 | R16: 20368583.42 | S16: 2412964235
A17: 14 | B17: =B16-((3788799*(Analysis!E$15))-((3788799*(Analysis!E$15)*(Analysis!E$19)))) -> 2312531.358 | C17: 571195245.3 | D17: 439380958 | E17: 693759407.3 | F17: 231253135.8 | G17: 115626567.9 | H17: 693759407.3 | I17: 23125313.58 | J17: 2768100035 | K17: =K16-(3788799*(Analysis!E$15)) -> 2011094.509 | L17: 471903326.6 | M17: 382107956.7 | N17: 603328352.8 | O17: 201109450.9 | P17: 100554725.5 | Q17: 603328352.8 | R17: 20110945.09 | S17: 2382443110
A18: 15 | B18: =B17-((3788799*(Analysis!E$15))-((3788799*(Analysis!E$15)*(Analysis!E$19)))) -> 2309954.974 | C18: 570558878.7 | D18: 438891445.1 | E18: 692986492.3 | F18: 230995497.4 | G18: 115497748.7 | H18: 692986492.3 | I18: 23099549.74 | J18: 2765016104 | K18: =K17-(3788799*(Analysis!E$15)) -> 1985330.676 | L18: 465857843.1 | M18: 377212828.4 | N18: 595599202.8 | O18: 198533067.6 | P18: 99266533.8 | Q18: 595599202.8 | R18: 19853306.76 | S18: 2351921985
A19: 16 | B19: =B18-((3788799*(Analysis!E$15))-((3788799*(Analysis!E$15)*(Analysis!E$19)))) -> 2307378.591 | C19: 569922512 | D19: 438401932.3 | E19: 692213577.3 | F19: 230737859.1 | G19: 115368929.5 | H19: 692213577.3 | I19: 23073785.91 | J19: 2761932173 | K19: =K18-(3788799*(Analysis!E$15)) -> 1959566.843 | L19: 459812359.7 | M19: 372317700.1 | N19: 587870052.8 | O19: 195956684.3 | P19: 97978342.14 | Q19: 587870052.8 | R19: 19595668.43 | S19: 2321400860
A20: 17 | B20: =B19-((3788799*(Analysis!E$15))-((3788799*(Analysis!E$15)*(Analysis!E$19)))) -> 2304802.208 | C20: 569286145.3 | D20: 437912419.5 | E20: 691440662.3 | F20: 230480220.8 | G20: 115240110.4 | H20: 691440662.3 | I20: 23048022.08 | J20: 2758848243 | K20: =K19-(3788799*(Analysis!E$15)) -> 1933803.01 | L20: 453766876.2 | M20: 367422571.8 | N20: 580140902.9 | O20: 193380301 | P20: 96690150.48 | Q20: 580140902.9 | R20: 19338030.1 | S20: 2290879735
A21: 18 | B21: =B20-((3788799*(Analysis!E$15))-((3788799*(Analysis!E$15)*(Analysis!E$19)))) -> 2302225.824 | C21: 568649778.6 | D21: 437422906.6 | E21: 690667747.3 | F21: 230222582.4 | G21: 115111291.2 | H21: 690667747.3 | I21: 23022258.24 | J21: 2755764312 | K21: =K20-(3788799*(Analysis!E$15)) -> 1908039.176 | L21: 447721392.7 | M21: 362527443.5 | N21: 572411752.9 | O21: 190803917.6 | P21: 95401958.82 | Q21: 572411752.9 | R21: 19080391.76 | S21: 2260358610
A22: 19 | B22: =B21-((3788799*(Analysis!E$15))-((3788799*(Analysis!E$15)*(Analysis!E$19)))) -> 2299649.441 | C22: 568013411.9 | D22: 436933393.8 | E22: 689894832.3 | F22: 229964944.1 | G22: 114982472.1 | H22: 689894832.3 | I22: 22996494.41 | J22: 2752680381 | K22: =K21-(3788799*(Analysis!E$15)) -> 1882275.343 | L22: 441675909.3 | M22: 357632315.2 | N22: 564682603 | O22: 188227534.3 | P22: 94113767.16 | Q22: 564682603 | R22: 18822753.43 | S22: 2229837485
A23: 20 | B23: =B22-((3788799*(Analysis!E$15))-((3788799*(Analysis!E$15)*(Analysis!E$19)))) -> 2297073.058 | C23: 567377045.3 | D23: 436443881 | E23: 689121917.3 | F23: 229707305.8 | G23: 114853652.9 | H23: 689121917.3 | I23: 22970730.58 | J23: 2749596450 | K23: =K22-(3788799*(Analysis!E$15)) -> 1856511.51 | L23: 435630425.8 | M23: 352737186.9 | N23: 556953453 | O23: 185651151 | P23: 92825575.5 | Q23: 556953453 | R23: 18565115.1 | S23: 2199316360
A24: 21 | B24: =B23-((3788799*(Analysis!E$15))-((3788799*(Analysis!E$15)*(Analysis!E$19)))) -> 2294496.674 | C24: 566740678.6 | D24: 435954368.1 | E24: 688349002.3 | F24: 229449667.4 | G24: 114724833.7 | H24: 688349002.3 | I24: 22944966.74 | J24: 2746512519 | K24: =K23-(3788799*(Analysis!E$15)) -> 1830747.677 | L24: 429584942.4 | M24: 347842058.6 | N24: 549224303 | O24: 183074767.7 | P24: 91537383.84 | Q24: 549224303 | R24: 18307476.77 | S24: 2168795235
A25: 22 | B25: =B24-((3788799*(Analysis!E$15))-((3788799*(Analysis!E$15)*(Analysis!E$19)))) -> 2291920.291 | C25: 566104311.9 | D25: 435464855.3 | E25: 687576087.3 | F25: 229192029.1 | G25: 114596014.6 | H25: 687576087.3 | I25: 22919202.91 | J25: 2743428588 | K25: =K24-(3788799*(Analysis!E$15)) -> 1804983.844 | L25: 423539458.9 | M25: 342946930.3 | N25: 541495153.1 | O25: 180498384.4 | P25: 90249192.18 | Q25: 541495153.1 | R25: 18049838.44 | S25: 2138274110
A26: 23 | B26: =B25-((3788799*(Analysis!E$15))-((3788799*(Analysis!E$15)*(Analysis!E$19)))) -> 2289343.908 | C26: 565467945.2 | D26: 434975342.5 | E26: 686803172.3 | F26: 228934390.8 | G26: 114467195.4 | H26: 686803172.3 | I26: 22893439.08 | J26: 2740344658 | K26: =K25-(3788799*(Analysis!E$15)) -> 1779220.01 | L26: 417493975.4 | M26: 338051802 | N26: 533766003.1 | O26: 177922001 | P26: 88961000.52 | Q26: 533766003.1 | R26: 17792200.1 | S26: 2107752985
A27: 24 | B27: =B26-((3788799*(Analysis!E$15))-((3788799*(Analysis!E$15)*(Analysis!E$19)))) -> 2286767.524 | C27: 564831578.5 | D27: 434485829.6 | E27: 686030257.3 | F27: 228676752.4 | G27: 114338376.2 | H27: 686030257.3 | I27: 22867675.24 | J27: 2737260727 | K27: =K26-(3788799*(Analysis!E$15)) -> 1753456.177 | L27: 411448492 | M27: 333156673.7 | N27: 526036853.2 | O27: 175345617.7 | P27: 87672808.86 | Q27: 526036853.2 | R27: 17534561.77 | S27: 2077231860
A28: 25 | B28: =B27-((3788799*(Analysis!E$15))-((3788799*(Analysis!E$15)*(Analysis!E$19)))) -> 2284191.141 | C28: 564195211.9 | D28: 433996316.8 | E28: 685257342.3 | F28: 228419114.1 | G28: 114209557.1 | H28: 685257342.3 | I28: 22841911.41 | J28: 2734176796 | K28: =K27-(3788799*(Analysis!E$15)) -> 1727692.344 | L28: 405403008.5 | M28: 328261545.4 | N28: 518307703.2 | O28: 172769234.4 | P28: 86384617.2 | Q28: 518307703.2 | R28: 17276923.44 | S28: 2046710735
A29: 26 | B29: =B28-((3788799*(Analysis!E$15))-((3788799*(Analysis!E$15)*(Analysis!E$19)))) -> 2281614.758 | C29: 563558845.2 | D29: 433506804 | E29: 684484427.3 | F29: 228161475.8 | G29: 114080737.9 | H29: 684484427.3 | I29: 22816147.58 | J29: 2731092865 | K29: =K28-(3788799*(Analysis!E$15)) -> 1701928.511 | L29: 399357525.1 | M29: 323366417.1 | N29: 510578553.2 | O29: 170192851.1 | P29: 85096425.54 | Q29: 510578553.2 | R29: 17019285.11 | S29: 2016189610
A30: 27 | B30: =B29-((3788799*(Analysis!E$15))-((3788799*(Analysis!E$15)*(Analysis!E$19)))) -> 2279038.374 | C30: 562922478.5 | D30: 433017291.2 | E30: 683711512.3 | F30: 227903837.4 | G30: 113951918.7 | H30: 683711512.3 | I30: 22790383.74 | J30: 2728008934 | K30: =K29-(3788799*(Analysis!E$15)) -> 1676164.678 | L30: 393312041.6 | M30: 318471288.7 | N30: 502849403.3 | O30: 167616467.8 | P30: 83808233.88 | Q30: 502849403.3 | R30: 16761646.78 | S30: 1985668485
A31: 28 | B31: =B30-((3788799*(Analysis!E$15))-((3788799*(Analysis!E$15)*(Analysis!E$19)))) -> 2276461.991 | C31: 562286111.8 | D31: 432527778.3 | E31: 682938597.3 | F31: 227646199.1 | G31: 113823099.6 | H31: 682938597.3 | I31: 22764619.91 | J31: 2724925003 | K31: =K30-(3788799*(Analysis!E$15)) -> 1650400.844 | L31: 387266558.1 | M31: 313576160.4 | N31: 495120253.3 | O31: 165040084.4 | P31: 82520042.22 | Q31: 495120253.3 | R31: 16504008.44 | S31: 1955147360
A32: 29 | B32: =B31-((3788799*(Analysis!E$15))-((3788799*(Analysis!E$15)*(Analysis!E$19)))) -> 2273885.608 | C32: 561649745.1 | D32: 432038265.5 | E32: 682165682.4 | F32: 227388560.8 | G32: 113694280.4 | H32: 682165682.4 | I32: 22738856.08 | J32: 2721841073 | K32: =K31-(3788799*(Analysis!E$15)) -> 1624637.011 | L32: 381221074.7 | M32: 308681032.1 | N32: 487391103.4 | O32: 162463701.1 | P32: 81231850.56 | Q32: 487391103.4 | R32: 16246370.11 | S32: 1924626235
A33: 30 | B33: =B32-((3788799*(Analysis!E$15))-((3788799*(Analysis!E$15)*(Analysis!E$19)))) -> 2271309.225 | C33: 561013378.5 | D33: 431548752.7 | E33: 681392767.4 | F33: 227130922.5 | G33: 113565461.2 | H33: 681392767.4 | I33: 22713092.25 | J33: 2718757142 | K33: =K32-(3788799*(Analysis!E$15)) -> 1598873.178 | L33: 375175591.2 | M33: 303785903.8 | N33: 479661953.4 | O33: 159887317.8 | P33: 79943658.9 | Q33: 479661953.4 | R33: 15988731.78 | S33: 1894105110
A34: 31 | B34: =B33-((3788799*(Analysis!E$15))-((3788799*(Analysis!E$15)*(Analysis!E$19)))) -> 2268732.841 | C34: 560377011.8 | D34: 431059239.8 | E34: 680619852.4 | F34: 226873284.1 | G34: 113436642.1 | H34: 680619852.4 | I34: 22687328.41 | J34: 2715673211 | K34: =K33-(3788799*(Analysis!E$15)) -> 1573109.345 | L34: 369130107.8 | M34: 298890775.5 | N34: 471932803.4 | O34: 157310934.5 | P34: 78655467.24 | Q34: 471932803.4 | R34: 15731093.45 | S34: 1863583985
A35: 32 | B35: =B34-((3788799*(Analysis!E$15))-((3788799*(Analysis!E$15)*(Analysis!E$19)))) -> 2266156.458 | C35: 559740645.1 | D35: 430569727 | E35: 679846937.4 | F35: 226615645.8 | G35: 113307822.9 | H35: 679846937.4 | I35: 22661564.58 | J35: 2712589280 | K35: =K34-(3788799*(Analysis!E$15)) -> 1547345.512 | L35: 363084624.3 | M35: 293995647.2 | N35: 464203653.5 | O35: 154734551.2 | P35: 77367275.58 | Q35: 464203653.5 | R35: 15473455.12 | S35: 1833062860
A36: 33 | B36: =B35-((3788799*(Analysis!E$15))-((3788799*(Analysis!E$15)*(Analysis!E$19)))) -> 2263580.075 | C36: 559104278.4 | D36: 430080214.2 | E36: 679074022.4 | F36: 226358007.5 | G36: 113179003.7 | H36: 679074022.4 | I36: 22635800.75 | J36: 2709505349 | K36: =K35-(3788799*(Analysis!E$15)) -> 1521581.678 | L36: 357039140.8 | M36: 289100518.9 | N36: 456474503.5 | O36: 152158167.8 | P36: 76079083.92 | Q36: 456474503.5 | R36: 15215816.78 | S36: 1802541735
A37: 34 | B37: =B36-((3788799*(Analysis!E$15))-((3788799*(Analysis!E$15)*(Analysis!E$19)))) -> 2261003.691 | C37: 558467911.7 | D37: 429590701.3 | E37: 678301107.4 | F37: 226100369.1 | G37: 113050184.6 | H37: 678301107.4 | I37: 22610036.91 | J37: 2706421418 | K37: =K36-(3788799*(Analysis!E$15)) -> 1495817.845 | L37: 350993657.4 | M37: 284205390.6 | N37: 448745353.6 | O37: 149581784.5 | P37: 74790892.26 | Q37: 448745353.6 | R37: 14958178.45 | S37: 1772020610
A38: 35 | B38: =B37-((3788799*(Analysis!E$15))-((3788799*(Analysis!E$15)*(Analysis!E$19)))) -> 2258427.308 | C38: 557831545.1 | D38: 429101188.5 | E38: 677528192.4 | F38: 225842730.8 | G38: 112921365.4 | H38: 677528192.4 | I38: 22584273.08 | J38: 2703337488 | K38: =K37-(3788799*(Analysis!E$15)) -> 1470054.012 | L38: 344948173.9 | M38: 279310262.3 | N38: 441016203.6 | O38: 147005401.2 | P38: 73502700.6 | Q38: 441016203.6 | R38: 14700540.12 | S38: 1741499485
A39: 36 | B39: =B38-((3788799*(Analysis!E$15))-((3788799*(Analysis!E$15)*(Analysis!E$19)))) -> 2255850.925 | C39: 557195178.4 | D39: 428611675.7 | E39: 676755277.4 | F39: 225585092.5 | G39: 112792546.2 | H39: 676755277.4 | I39: 22558509.25 | J39: 2700253557 | K39: =K38-(3788799*(Analysis!E$15)) -> 1444290.179 | L39: 338902690.5 | M39: 274415134 | N39: 433287053.6 | O39: 144429017.9 | P39: 72214508.94 | Q39: 433287053.6 | R39: 14442901.79 | S39: 1710978360
A40: 37 | B40: =B39-((3788799*(Analysis!E$15))-((3788799*(Analysis!E$15)*(Analysis!E$19)))) -> 2253274.541 | C40: 556558811.7 | D40: 428122162.8 | E40: 675982362.4 | F40: 225327454.1 | G40: 112663727.1 | H40: 675982362.4 | I40: 22532745.41 | J40: 2697169626 | K40: =K39-(3788799*(Analysis!E$15)) -> 1418526.346 | L40: 332857207 | M40: 269520005.7 | N40: 425557903.7 | O40: 141852634.6 | P40: 70926317.28 | Q40: 425557903.7 | R40: 14185263.46 | S40: 1680457235
A41: 38 | B41: =B40-((3788799*(Analysis!E$15))-((3788799*(Analysis!E$15)*(Analysis!E$19)))) -> 2250698.158 | C41: 555922445 | D41: 427632650 | E41: 675209447.4 | F41: 225069815.8 | G41: 112534907.9 | H41: 675209447.4 | I41: 22506981.58 | J41: 2694085695 | K41: =K40-(3788799*(Analysis!E$15)) -> 1392762.512 | L41: 326811723.5 | M41: 264624877.4 | N41: 417828753.7 | O41: 139276251.2 | P41: 69638125.62 | Q41: 417828753.7 | R41: 13927625.12 | S41: 1649936110
A42: 39 | B42: =B41-((3788799*(Analysis!E$15))-((3788799*(Analysis!E$15)*(Analysis!E$19)))) -> 2248121.775 | C42: 555286078.3 | D42: 427143137.2 | E42: 674436532.4 | F42: 224812177.5 | G42: 112406088.7 | H42: 674436532.4 | I42: 22481217.75 | J42: 2691001764 | K42: =K41-(3788799*(Analysis!E$15)) -> 1366998.679 | L42: 320766240.1 | M42: 259729749 | N42: 410099603.8 | O42: 136699867.9 | P42: 68349933.96 | Q42: 410099603.8 | R42: 13669986.79 | S42: 1619414985
A43: 40 | B43: =B42-((3788799*(Analysis!E$15))-((3788799*(Analysis!E$15)*(Analysis!E$19)))) -> 2245545.391 | C43: 554649711.7 | D43: 426653624.4 | E43: 673663617.4 | F43: 224554539.1 | G43: 112277269.6 | H43: 673663617.4 | I43: 22455453.91 | J43: 2687917833 | K43: =K42-(3788799*(Analysis!E$15)) -> 1341234.846 | L43: 314720756.6 | M43: 254834620.7 | N43: 402370453.8 | O43: 134123484.6 | P43: 67061742.3 | Q43: 402370453.8 | R43: 13412348.46 | S43: 1588893860
A44: 41 | B44: =B43-((3788799*(Analysis!E$15))-((3788799*(Analysis!E$15)*(Analysis!E$19)))) -> 2242969.008 | C44: 554013345 | D44: 426164111.5 | E44: 672890702.4 | F44: 224296900.8 | G44: 112148450.4 | H44: 672890702.4 | I44: 22429690.08 | J44: 2684833903 | K44: =K43-(3788799*(Analysis!E$15)) -> 1315471.013 | L44: 308675273.2 | M44: 249939492.4 | N44: 394641303.8 | O44: 131547101.3 | P44: 65773550.64 | Q44: 394641303.8 | R44: 13154710.13 | S44: 1558372735
A45: 42 | B45: =B44-((3788799*(Analysis!E$15))-((3788799*(Analysis!E$15)*(Analysis!E$19)))) -> 2240392.625 | C45: 553376978.3 | D45: 425674598.7 | E45: 672117787.4 | F45: 224039262.5 | G45: 112019631.2 | H45: 672117787.4 | I45: 22403926.25 | J45: 2681749972 | K45: =K44-(3788799*(Analysis!E$15)) -> 1289707.18 | L45: 302629789.7 | M45: 245044364.1 | N45: 386912153.9 | O45: 128970718 | P45: 64485358.98 | Q45: 386912153.9 | R45: 12897071.8 | S45: 1527851610
A46: 43 | B46: =B45-((3788799*(Analysis!E$15))-((3788799*(Analysis!E$15)*(Analysis!E$19)))) -> 2237816.241 | C46: 552740611.6 | D46: 425185085.9 | E46: 671344872.4 | F46: 223781624.1 | G46: 111890812.1 | H46: 671344872.4 | I46: 22378162.41 | J46: 2678666041 | K46: =K45-(3788799*(Analysis!E$15)) -> 1263943.346 | L46: 296584306.2 | M46: 240149235.8 | N46: 379183003.9 | O46: 126394334.6 | P46: 63197167.32 | Q46: 379183003.9 | R46: 12639433.46 | S46: 1497330485
A47: 44 | B47: =B46-((3788799*(Analysis!E$15))-((3788799*(Analysis!E$15)*(Analysis!E$19)))) -> 2235239.858 | C47: 552104244.9 | D47: 424695573 | E47: 670571957.4 | F47: 223523985.8 | G47: 111761992.9 | H47: 670571957.4 | I47: 22352398.58 | J47: 2675582110 | K47: =K46-(3788799*(Analysis!E$15)) -> 1238179.513 | L47: 290538822.8 | M47: 235254107.5 | N47: 371453854 | O47: 123817951.3 | P47: 61908975.66 | Q47: 371453854 | R47: 12381795.13 | S47: 1466809360
A48: 45 | B48: =B47-((3788799*(Analysis!E$15))-((3788799*(Analysis!E$15)*(Analysis!E$19)))) -> 2232663.475 | C48: 551467878.3 | D48: 424206060.2 | E48: 669799042.4 | F48: 223266347.5 | G48: 111633173.7 | H48: 669799042.4 | I48: 22326634.75 | J48: 2672498179 | K48: =K47-(3788799*(Analysis!E$15)) -> 1212415.68 | L48: 284493339.3 | M48: 230358979.2 | N48: 363724704 | O48: 121241568 | P48: 60620784 | Q48: 363724704 | R48: 12124156.8 | S48: 1436288235
A49: 46 | B49: =B48-((3788799*(Analysis!E$15))-((3788799*(Analysis!E$15)*(Analysis!E$19)))) -> 2230087.091 | C49: 550831511.6 | D49: 423716547.4 | E49: 669026127.4 | F49: 223008709.1 | G49: 111504354.6 | H49: 669026127.4 | I49: 22300870.91 | J49: 2669414248 | K49: =K48-(3788799*(Analysis!E$15)) -> 1186651.847 | L49: 278447855.9 | M49: 225463850.9 | N49: 355995554 | O49: 118665184.7 | P49: 59332592.34 | Q49: 355995554 | R49: 11866518.47 | S49: 1405767110
A50: 47 | B50: =B49-((3788799*(Analysis!E$15))-((3788799*(Analysis!E$15)*(Analysis!E$19)))) -> 2227510.708 | C50: 550195144.9 | D50: 423227034.5 | E50: 668253212.4 | F50: 222751070.8 | G50: 111375535.4 | H50: 668253212.4 | I50: 22275107.08 | J50: 2666330318 | K50: =K49-(3788799*(Analysis!E$15)) -> 1160888.014 | L50: 272402372.4 | M50: 220568722.6 | N50: 348266404.1 | O50: 116088801.4 | P50: 58044400.68 | Q50: 348266404.1 | R50: 11608880.14 | S50: 1375245985
A51: 48 | B51: =B50-((3788799*(Analysis!E$15))-((3788799*(Analysis!E$15)*(Analysis!E$19)))) -> 2224934.325 | C51: 549558778.2 | D51: 422737521.7 | E51: 667480297.4 | F51: 222493432.5 | G51: 111246716.2 | H51: 667480297.4 | I51: 22249343.25 | J51: 2663246387 | K51: =K50-(3788799*(Analysis!E$15)) -> 1135124.18 | L51: 266356888.9 | M51: 215673594.3 | N51: 340537254.1 | O51: 113512418 | P51: 56756209.02 | Q51: 340537254.1 | R51: 11351241.8 | S51: 1344724860
A52: 49 | B52: =B51-((3788799*(Analysis!E$15))-((3788799*(Analysis!E$15)*(Analysis!E$19)))) -> 2222357.941 | C52: 548922411.5 | D52: 422248008.9 | E52: 666707382.4 | F52: 222235794.1 | G52: 111117897.1 | H52: 666707382.4 | I52: 22223579.41 | J52: 2660162456 | K52: =K51-(3788799*(Analysis!E$15)) -> 1109360.347 | L52: 260311405.5 | M52: 210778466 | N52: 332808104.2 | O52: 110936034.7 | P52: 55468017.36 | Q52: 332808104.2 | R52: 11093603.47 | S52: 1314203735
A53: 50 | B53: =B52-((3788799*(Analysis!E$15))-((3788799*(Analysis!E$15)*(Analysis!E$19)))) -> 2219781.558 | C53: 548286044.9 | D53: 421758496 | E53: 665934467.4 | F53: 221978155.8 | G53: 110989077.9 | H53: 665934467.4 | I53: 22197815.58 | J53: 2657078525 | K53: =K52-(3788799*(Analysis!E$15)) -> 1083596.514 | L53: 254265922 | M53: 205883337.7 | N53: 325078954.2 | O53: 108359651.4 | P53: 54179825.7 | Q53: 325078954.2 | R53: 10835965.14 | S53: 1283682610
A54: 51 | B54: =B53-((3788799*(Analysis!E$15))-((3788799*(Analysis!E$15)*(Analysis!E$19)))) -> 2217205.175 | C54: 547649678.2 | D54: 421268983.2 | E54: 665161552.4 | F54: 221720517.5 | G54: 110860258.7 | H54: 665161552.4 | I54: 22172051.75 | J54: 2653994594 | K54: =K53-(3788799*(Analysis!E$15)) -> 1057832.681 | L54: 248220438.5 | M54: 200988209.4 | N54: 317349804.2 | O54: 105783268.1 | P54: 52891634.04 | Q54: 317349804.2 | R54: 10578326.81 | S54: 1253161485
A55: 52 | B55: =B54-((3788799*(Analysis!E$15))-((3788799*(Analysis!E$15)*(Analysis!E$19)))) -> 2214628.791 | C55: 547013311.5 | D55: 420779470.4 | E55: 664388637.4 | F55: 221462879.1 | G55: 110731439.6 | H55: 664388637.4 | I55: 22146287.91 | J55: 2650910663 | K55: =K54-(3788799*(Analysis!E$15)) -> 1032068.848 | L55: 242174955.1 | M55: 196093081 | N55: 309620654.3 | O55: 103206884.8 | P55: 51603442.38 | Q55: 309620654.3 | R55: 10320688.48 | S55: 1222640360
A56: 53 | B56: =B55-((3788799*(Analysis!E$15))-((3788799*(Analysis!E$15)*(Analysis!E$19)))) -> 2212052.408 | C56: 546376944.8 | D56: 420289957.6 | E56: 663615722.4 | F56: 221205240.8 | G56: 110602620.4 | H56: 663615722.4 | I56: 22120524.08 | J56: 2647826733 | K56: =K55-(3788799*(Analysis!E$15)) -> 1006305.014 | L56: 236129471.6 | M56: 191197952.7 | N56: 301891504.3 | O56: 100630501.4 | P56: 50315250.72 | Q56: 301891504.3 | R56: 10063050.14 | S56: 1192119235
A57: 54 | B57: =B56-((3788799*(Analysis!E$15))-((3788799*(Analysis!E$15)*(Analysis!E$19)))) -> 2209476.025 | C57: 545740578.1 | D57: 419800444.7 | E57: 662842807.5 | F57: 220947602.5 | G57: 110473801.2 | H57: 662842807.5 | I57: 22094760.25 | J57: 2644742802 | K57: =K56-(3788799*(Analysis!E$15)) -> 980541.1812 | L57: 230083988.2 | M57: 186302824.4 | N57: 294162354.4 | O57: 98054118.12 | P57: 49027059.06 | Q57: 294162354.4 | R57: 9805411.812 | S57: 1161598110
A58: 55 | B58: =B57-((3788799*(Analysis!E$15))-((3788799*(Analysis!E$15)*(Analysis!E$19)))) -> 2206899.642 | C58: 545104211.5 | D58: 419310931.9 | E58: 662069892.5 | F58: 220689964.2 | G58: 110344982.1 | H58: 662069892.5 | I58: 22068996.42 | J58: 2641658871 | K58: =K57-(3788799*(Analysis!E$15)) -> 954777.348 | L58: 224038504.7 | M58: 181407696.1 | N58: 286433204.4 | O58: 95477734.8 | P58: 47738867.4 | Q58: 286433204.4 | R58: 9547773.48 | S58: 1131076985
A59: 56 | B59: =B58-((3788799*(Analysis!E$15))-((3788799*(Analysis!E$15)*(Analysis!E$19)))) -> 2204323.258 | C59: 544467844.8 | D59: 418821419.1 | E59: 661296977.5 | F59: 220432325.8 | G59: 110216162.9 | H59: 661296977.5 | I59: 22043232.58 | J59: 2638574940 | K59: =K58-(3788799*(Analysis!E$15)) -> 929013.5148 | L59: 217993021.2 | M59: 176512567.8 | N59: 278704054.4 | O59: 92901351.48 | P59: 46450675.74 | Q59: 278704054.4 | R59: 9290135.148 | S59: 1100555860
A60: 57 | B60: =B59-((3788799*(Analysis!E$15))-((3788799*(Analysis!E$15)*(Analysis!E$19)))) -> 2201746.875 | C60: 543831478.1 | D60: 418331906.2 | E60: 660524062.5 | F60: 220174687.5 | G60: 110087343.7 | H60: 660524062.5 | I60: 22017468.75 | J60: 2635491009 | K60: =K59-(3788799*(Analysis!E$15)) -> 903249.6816 | L60: 211947537.8 | M60: 171617439.5 | N60: 270974904.5 | O60: 90324968.16 | P60: 45162484.08 | Q60: 270974904.5 | R60: 9032496.816 | S60: 1070034735
A61: 58 | B61: =B60-((3788799*(Analysis!E$15))-((3788799*(Analysis!E$15)*(Analysis!E$19)))) -> 2199170.492 | C61: 543195111.4 | D61: 417842393.4 | E61: 659751147.5 | F61: 219917049.2 | G61: 109958524.6 | H61: 659751147.5 | I61: 21991704.92 | J61: 2632407078 | K61: =K60-(3788799*(Analysis!E$15)) -> 877485.8484 | L61: 205902054.3 | M61: 166722311.2 | N61: 263245754.5 | O61: 87748584.84 | P61: 43874292.42 | Q61: 263245754.5 | R61: 8774858.484 | S61: 1039513610
A62: 59 | B62: =B61-((3788799*(Analysis!E$15))-((3788799*(Analysis!E$15)*(Analysis!E$19)))) -> 2196594.108 | C62: 542558744.7 | D62: 417352880.6 | E62: 658978232.5 | F62: 219659410.8 | G62: 109829705.4 | H62: 658978232.5 | I62: 21965941.08 | J62: 2629323148 | K62: =K61-(3788799*(Analysis!E$15)) -> 851722.0152 | L62: 199856570.9 | M62: 161827182.9 | N62: 255516604.6 | O62: 85172201.52 | P62: 42586100.76 | Q62: 255516604.6 | R62: 8517220.152 | S62: 1008992485
A63: 60 | B63: =B62-((3788799*(Analysis!E$15))-((3788799*(Analysis!E$15)*(Analysis!E$19)))) -> 2194017.725 | C63: 541922378.1 | D63: 416863367.7 | E63: 658205317.5 | F63: 219401772.5 | G63: 109700886.2 | H63: 658205317.5 | I63: 21940177.25 | J63: 2626239217 | K63: =K62-(3788799*(Analysis!E$15)) -> 825958.182 | L63: 193811087.4 | M63: 156932054.6 | N63: 247787454.6 | O63: 82595818.2 | P63: 41297909.1 | Q63: 247787454.6 | R63: 8259581.82 | S63: 978471360.3
A64: 61 | B64: =B63-((3788799*(Analysis!E$15))-((3788799*(Analysis!E$15)*(Analysis!E$19)))) -> 2191441.342 | C64: 541286011.4 | D64: 416373854.9 | E64: 657432402.5 | F64: 219144134.2 | G64: 109572067.1 | H64: 657432402.5 | I64: 21914413.42 | J64: 2623155286 | K64: =K63-(3788799*(Analysis!E$15)) -> 800194.3488 | L64: 187765603.9 | M64: 152036926.3 | N64: 240058304.6 | O64: 80019434.88 | P64: 40009717.44 | Q64: 240058304.6 | R64: 8001943.488 | S64: 947950235.3
A65: 62 | B65: =B64-((3788799*(Analysis!E$15))-((3788799*(Analysis!E$15)*(Analysis!E$19)))) -> 2188864.958 | C65: 540649644.7 | D65: 415884342.1 | E65: 656659487.5 | F65: 218886495.8 | G65: 109443247.9 | H65: 656659487.5 | I65: 21888649.58 | J65: 2620071355 | K65: =K64-(3788799*(Analysis!E$15)) -> 774430.5156 | L65: 181720120.5 | M65: 147141798 | N65: 232329154.7 | O65: 77443051.56 | P65: 38721525.78 | Q65: 232329154.7 | R65: 7744305.156 | S65: 917429110.3
A66: 63 | B66: =B65-((3788799*(Analysis!E$15))-((3788799*(Analysis!E$15)*(Analysis!E$19)))) -> 2186288.575 | C66: 540013278 | D66: 415394829.2 | E66: 655886572.5 | F66: 218628857.5 | G66: 109314428.7 | H66: 655886572.5 | I66: 21862885.75 | J66: 2616987424 | K66: =K65-(3788799*(Analysis!E$15)) -> 748666.6824 | L66: 175674637 | M66: 142246669.7 | N66: 224600004.7 | O66: 74866668.24 | P66: 37433334.12 | Q66: 224600004.7 | R66: 7486666.824 | S66: 886907985.3
A67: 64 | B67: =B66-((3788799*(Analysis!E$15))-((3788799*(Analysis!E$15)*(Analysis!E$19)))) -> 2183712.192 | C67: 539376911.3 | D67: 414905316.4 | E67: 655113657.5 | F67: 218371219.2 | G67: 109185609.6 | H67: 655113657.5 | I67: 21837121.92 | J67: 2613903493 | K67: =K66-(3788799*(Analysis!E$15)) -> 722902.8492 | L67: 169629153.6 | M67: 137351541.3 | N67: 216870854.8 | O67: 72290284.92 | P67: 36145142.46 | Q67: 216870854.8 | R67: 7229028.492 | S67: 856386860.3
A68: 65 | B68: =B67-((3788799*(Analysis!E$15))-((3788799*(Analysis!E$15)*(Analysis!E$19)))) -> 2181135.808 | C68: 538740544.7 | D68: 414415803.6 | E68: 654340742.5 | F68: 218113580.8 | G68: 109056790.4 | H68: 654340742.5 | I68: 21811358.08 | J68: 2610819563 | K68: =K67-(3788799*(Analysis!E$15)) -> 697139.016 | L68: 163583670.1 | M68: 132456413 | N68: 209141704.8 | O68: 69713901.6 | P68: 34856950.8 | Q68: 209141704.8 | R68: 6971390.16 | S68: 825865735.3
A69: 66 | B69: =B68-((3788799*(Analysis!E$15))-((3788799*(Analysis!E$15)*(Analysis!E$19)))) -> 2178559.425 | C69: =B69*247 -> 538104178 | D69: =B69*190 -> 413926290.7 | E69: =B69*300 -> 653567827.5 | F69: =B69*100 -> 217855942.5 | G69: =B69*50 -> 108927971.2 | H69: =B69*300 -> 653567827.5 | I69: =B69*10 -> 21785594.25 | J69: =SUM(C69:I69) -> 2607735632 | K69: =K68-(3788799*(Analysis!E$15)) -> 671375.1828 | L69: =0.95*(247*K69) -> 157538186.6 | M69: =K69*190 -> 127561284.7 | N69: =K69*300 -> 201412554.8 | O69: =K69*100 -> 67137518.28 | P69: =K69*50 -> 33568759.14 | Q69: =K69*300 -> 201412554.8 | R69: =K69*10 -> 6713751.828 | S69: =SUM(L69:R69) -> 795344610.3
A70: 67 | B70: =B69-((3788799*(Analysis!E$15))-((3788799*(Analysis!E$15)*(Analysis!E$19)))) -> 2175983.042 | C70: 537467811.3 | D70: 413436777.9 | E70: 652794912.5 | F70: 217598304.2 | G70: 108799152.1 | H70: 652794912.5 | I70: 21759830.42 | J70: 2604651701 | K70: =K69-(3788799*(Analysis!E$15)) -> 645611.3496 | L70: 151492703.2 | M70: 122666156.4 | N70: 193683404.9 | O70: 64561134.96 | P70: 32280567.48 | Q70: 193683404.9 | R70: 6456113.496 | S70: 764823485.3
A71: 68 | B71: =B70-((3788799*(Analysis!E$15))-((3788799*(Analysis!E$15)*(Analysis!E$19)))) -> 2173406.658 | C71: 536831444.6 | D71: 412947265.1 | E71: 652021997.5 | F71: 217340665.8 | G71: 108670332.9 | H71: 652021997.5 | I71: 21734066.58 | J71: 2601567770 | K71: =K70-(3788799*(Analysis!E$15)) -> 619847.5164 | L71: 145447219.7 | M71: 117771028.1 | N71: 185954254.9 | O71: 61984751.64 | P71: 30992375.82 | Q71: 185954254.9 | R71: 6198475.164 | S71: 734302360.3
A72: 69 | B72: =B71-((3788799*(Analysis!E$15))-((3788799*(Analysis!E$15)*(Analysis!E$19)))) -> 2170830.275 | C72: 536195077.9 | D72: 412457752.3 | E72: 651249082.5 | F72: 217083027.5 | G72: 108541513.8 | H72: 651249082.5 | I72: 21708302.75 | J72: 2598483839 | K72: =K71-(3788799*(Analysis!E$15)) -> 594083.6832 | L72: 139401736.3 | M72: 112875899.8 | N72: 178225105 | O72: 59408368.32 | P72: 29704184.16 | Q72: 178225105 | R72: 5940836.832 | S72: 703781235.3
A73: 70 | B73: =B72-((3788799*(Analysis!E$15))-((3788799*(Analysis!E$15)*(Analysis!E$19)))) -> 2168253.892 | C73: 535558711.3 | D73: 411968239.4 | E73: 650476167.5 | F73: 216825389.2 | G73: 108412694.6 | H73: 650476167.5 | I73: 21682538.92 | J73: 2595399908 | K73: =K72-(3788799*(Analysis!E$15)) -> 568319.85 | L73: 133356252.8 | M73: 107980771.5 | N73: 170495955 | O73: 56831985 | P73: 28415992.5 | Q73: 170495955 | R73: 5683198.5 | S73: 673260110.3
A74: 71 | B74: =B73-((3788799*(Analysis!E$15))-((3788799*(Analysis!E$15)*(Analysis!E$19)))) -> 2165677.508 | C74: 534922344.6 | D74: 411478726.6 | E74: 649703252.5 | F74: 216567750.8 | G74: 108283875.4 | H74: 649703252.5 | I74: 21656775.08 | J74: 2592315978 | K74: =K73-(3788799*(Analysis!E$15)) -> 542556.0168 | L74: 127310769.3 | M74: 103085643.2 | N74: 162766805 | O74: 54255601.68 | P74: 27127800.84 | Q74: 162766805 | R74: 5425560.168 | S74: 642738985.3
A75: 72 | B75: =B74-((3788799*(Analysis!E$15))-((3788799*(Analysis!E$15)*(Analysis!E$19)))) -> 2163101.125 | C75: 534285977.9 | D75: 410989213.8 | E75: 648930337.5 | F75: 216310112.5 | G75: 108155056.3 | H75: 648930337.5 | I75: 21631011.25 | J75: 2589232047 | K75: =K74-(3788799*(Analysis!E$15)) -> 516792.1836 | L75: 121265285.9 | M75: 98190514.88 | N75: 155037655.1 | O75: 51679218.36 | P75: 25839609.18 | Q75: 155037655.1 | R75: 5167921.836 | S75: 612217860.3
A76: 73 | B76: =B75-((3788799*(Analysis!E$15))-((3788799*(Analysis!E$15)*(Analysis!E$19)))) -> 2160524.742 | C76: 533649611.2 | D76: 410499700.9 | E76: 648157422.5 | F76: 216052474.2 | G76: 108026237.1 | H76: 648157422.5 | I76: 21605247.42 | J76: 2586148116 | K76: =K75-(3788799*(Analysis!E$15)) -> 491028.3504 | L76: 115219802.4 | M76: 93295386.58 | N76: 147308505.1 | O76: 49102835.04 | P76: 24551417.52 | Q76: 147308505.1 | R76: 4910283.504 | S76: 581696735.3
A77: 74 | B77: =B76-((3788799*(Analysis!E$15))-((3788799*(Analysis!E$15)*(Analysis!E$19)))) -> 2157948.358 | C77: 533013244.5 | D77: 410010188.1 | E77: 647384507.5 | F77: 215794835.8 | G77: 107897417.9 | H77: 647384507.5 | I77: 21579483.58 | J77: 2583064185 | K77: =K76-(3788799*(Analysis!E$15)) -> 465264.5172 | L77: 109174319 | M77: 88400258.27 | N77: 139579355.2 | O77: 46526451.72 | P77: 23263225.86 | Q77: 139579355.2 | R77: 4652645.172 | S77: 551175610.3
A78: 75 | B78: =B77-((3788799*(Analysis!E$15))-((3788799*(Analysis!E$15)*(Analysis!E$19)))) -> 2155371.975 | C78: 532376877.9 | D78: 409520675.3 | E78: 646611592.5 | F78: 215537197.5 | G78: 107768598.8 | H78: 646611592.5 | I78: 21553719.75 | J78: 2579980254 | K78: =K77-(3788799*(Analysis!E$15)) -> 439500.684 | L78: 103128835.5 | M78: 83505129.96 | N78: 131850205.2 | O78: 43950068.4 | P78: 21975034.2 | Q78: 131850205.2 | R78: 4395006.84 | S78: 520654485.3
A79: 76 | B79: =B78-((3788799*(Analysis!E$15))-((3788799*(Analysis!E$15)*(Analysis!E$19)))) -> 2152795.592 | C79: 531740511.2 | D79: 409031162.4 | E79: 645838677.5 | F79: 215279559.2 | G79: 107639779.6 | H79: 645838677.5 | I79: 21527955.92 | J79: 2576896323 | K79: =K78-(3788799*(Analysis!E$15)) -> 413736.8508 | L79: 97083352.04 | M79: 78610001.65 | N79: 124121055.2 | O79: 41373685.08 | P79: 20686842.54 | Q79: 124121055.2 | R79: 4137368.508 | S79: 490133360.3
A80: 77 | B80: =B79-((3788799*(Analysis!E$15))-((3788799*(Analysis!E$15)*(Analysis!E$19)))) -> 2150219.208 | C80: 531104144.5 | D80: 408541649.6 | E80: 645065762.5 | F80: 215021920.8 | G80: 107510960.4 | H80: 645065762.5 | I80: 21502192.08 | J80: 2573812393 | K80: =K79-(3788799*(Analysis!E$15)) -> 387973.0176 | L80: 91037868.58 | M80: 73714873.34 | N80: 116391905.3 | O80: 38797301.76 | P80: 19398650.88 | Q80: 116391905.3 | R80: 3879730.176 | S80: 459612235.3
A81: 78 | B81: =B80-((3788799*(Analysis!E$15))-((3788799*(Analysis!E$15)*(Analysis!E$19)))) -> 2147642.825 | C81: 530467777.8 | D81: 408052136.8 | E81: 644292847.5 | F81: 214764282.5 | G81: 107382141.3 | H81: 644292847.5 | I81: 21476428.25 | J81: 2570728462 | K81: =K80-(3788799*(Analysis!E$15)) -> 362209.1844 | L81: 84992385.12 | M81: 68819745.04 | N81: 108662755.3 | O81: 36220918.44 | P81: 18110459.22 | Q81: 108662755.3 | R81: 3622091.844 | S81: 429091110.3
A82: 79 | B82: =B81-((3788799*(Analysis!E$15))-((3788799*(Analysis!E$15)*(Analysis!E$19)))) -> 2145066.442 | C82: 529831411.1 | D82: 407562623.9 | E82: 643519932.6 | F82: 214506644.2 | G82: 107253322.1 | H82: 643519932.6 | I82: 21450664.42 | J82: 2567644531 | K82: =K81-(3788799*(Analysis!E$15)) -> 336445.3512 | L82: 78946901.66 | M82: 63924616.73 | N82: 100933605.4 | O82: 33644535.12 | P82: 16822267.56 | Q82: 100933605.4 | R82: 3364453.512 | S82: 398569985.3
A83: 80 | B83: =B82-((3788799*(Analysis!E$15))-((3788799*(Analysis!E$15)*(Analysis!E$19)))) -> 2142490.059 | C83: 529195044.5 | D83: 407073111.1 | E83: 642747017.6 | F83: 214249005.9 | G83: 107124502.9 | H83: 642747017.6 | I83: 21424900.59 | J83: 2564560600 | K83: =K82-(3788799*(Analysis!E$15)) -> 310681.518 | L83: 72901418.2 | M83: 59029488.42 | N83: 93204455.4 | O83: 31068151.8 | P83: 15534075.9 | Q83: 93204455.4 | R83: 3106815.18 | S83: 368048860.3
A84: 81 | B84: =B83-((3788799*(Analysis!E$15))-((3788799*(Analysis!E$15)*(Analysis!E$19)))) -> 2139913.675 | C84: 528558677.8 | D84: 406583598.3 | E84: 641974102.6 | F84: 213991367.5 | G84: 106995683.8 | H84: 641974102.6 | I84: 21399136.75 | J84: 2561476669 | K84: =K83-(3788799*(Analysis!E$15)) -> 284917.6848 | L84: 66855934.74 | M84: 54134360.11 | N84: 85475305.44 | O84: 28491768.48 | P84: 14245884.24 | Q84: 85475305.44 | R84: 2849176.848 | S84: 337527735.3
A85: 82 | B85: =B84-((3788799*(Analysis!E$15))-((3788799*(Analysis!E$15)*(Analysis!E$19)))) -> 2137337.292 | C85: 527922311.1 | D85: 406094085.5 | E85: 641201187.6 | F85: 213733729.2 | G85: 106866864.6 | H85: 641201187.6 | I85: 21373372.92 | J85: 2558392738 | K85: =K84-(3788799*(Analysis!E$15)) -> 259153.8516 | L85: 60810451.28 | M85: 49239231.8 | N85: 77746155.48 | O85: 25915385.16 | P85: 12957692.58 | Q85: 77746155.48 | R85: 2591538.516 | S85: 307006610.3
A86: 83 | B86: =B85-((3788799*(Analysis!E$15))-((3788799*(Analysis!E$15)*(Analysis!E$19)))) -> 2134760.909 | C86: 527285944.4 | D86: 405604572.6 | E86: 640428272.6 | F86: 213476090.9 | G86: 106738045.4 | H86: 640428272.6 | I86: 21347609.09 | J86: 2555308808 | K86: =K85-(3788799*(Analysis!E$15)) -> 233390.0184 | L86: 54764967.82 | M86: 44344103.5 | N86: 70017005.52 | O86: 23339001.84 | P86: 11669500.92 | Q86: 70017005.52 | R86: 2333900.184 | S86: 276485485.3
A87: 84 | B87: =B86-((3788799*(Analysis!E$15))-((3788799*(Analysis!E$15)*(Analysis!E$19)))) -> 2132184.525 | C87: 526649577.7 | D87: 405115059.8 | E87: 639655357.6 | F87: 213218452.5 | G87: 106609226.3 | H87: 639655357.6 | I87: 21321845.25 | J87: 2552224877 | K87: =K86-(3788799*(Analysis!E$15)) -> 207626.1852 | L87: 48719484.36 | M87: 39448975.19 | N87: 62287855.56 | O87: 20762618.52 | P87: 10381309.26 | Q87: 62287855.56 | R87: 2076261.852 | S87: 245964360.3
A88: 85 | B88: =B87-((3788799*(Analysis!E$15))-((3788799*(Analysis!E$15)*(Analysis!E$19)))) -> 2129608.142 | C88: 526013211.1 | D88: 404625547 | E88: 638882442.6 | F88: 212960814.2 | G88: 106480407.1 | H88: 638882442.6 | I88: 21296081.42 | J88: 2549140946 | K88: =K87-(3788799*(Analysis!E$15)) -> 181862.352 | L88: 42674000.9 | M88: 34553846.88 | N88: 54558705.6 | O88: 18186235.2 | P88: 9093117.6 | Q88: 54558705.6 | R88: 1818623.52 | S88: 215443235.3
A89: 86 | B89: =B88-((3788799*(Analysis!E$15))-((3788799*(Analysis!E$15)*(Analysis!E$19)))) -> 2127031.759 | C89: 525376844.4 | D89: 404136034.1 | E89: 638109527.6 | F89: 212703175.9 | G89: 106351587.9 | H89: 638109527.6 | I89: 21270317.59 | J89: 2546057015 | K89: =K88-(3788799*(Analysis!E$15)) -> 156098.5188 | L89: 36628517.44 | M89: 29658718.57 | N89: 46829555.64 | O89: 15609851.88 | P89: 7804925.94 | Q89: 46829555.64 | R89: 1560985.188 | S89: 184922110.3
A90: 87 | B90: =B89-((3788799*(Analysis!E$15))-((3788799*(Analysis!E$15)*(Analysis!E$19)))) -> 2124455.375 | C90: 524740477.7 | D90: 403646521.3 | E90: 637336612.6 | F90: 212445537.5 | G90: 106222768.8 | H90: 637336612.6 | I90: 21244553.75 | J90: 2542973084 | K90: =K89-(3788799*(Analysis!E$15)) -> 130334.6856 | L90: 30583033.98 | M90: 24763590.26 | N90: 39100405.68 | O90: 13033468.56 | P90: 6516734.28 | Q90: 39100405.68 | R90: 1303346.856 | S90: 154400985.3
A91: 88 | B91: =B90-((3788799*(Analysis!E$15))-((3788799*(Analysis!E$15)*(Analysis!E$19)))) -> 2121878.992 | C91: 524104111 | D91: 403157008.5 | E91: 636563697.6 | F91: 212187899.2 | G91: 106093949.6 | H91: 636563697.6 | I91: 21218789.92 | J91: 2539889153 | K91: =K90-(3788799*(Analysis!E$15)) -> 104570.8524 | L91: 24537550.52 | M91: 19868461.96 | N91: 31371255.72 | O91: 10457085.24 | P91: 5228542.62 | Q91: 31371255.72 | R91: 1045708.524 | S91: 123879860.3
A92: 89 | B92: =B91-((3788799*(Analysis!E$15))-((3788799*(Analysis!E$15)*(Analysis!E$19)))) -> 2119302.609 | C92: 523467744.3 | D92: 402667495.6 | E92: 635790782.6 | F92: 211930260.9 | G92: 105965130.4 | H92: 635790782.6 | I92: 21193026.09 | J92: 2536805223 | K92: =K91-(3788799*(Analysis!E$15)) -> 78807.0192 | L92: 18492067.06 | M92: 14973333.65 | N92: 23642105.76 | O92: 7880701.92 | P92: 3940350.96 | Q92: 23642105.76 | R92: 788070.192 | S92: 93358735.3
A93: 90 | B93: =B92-((3788799*(Analysis!E$15))-((3788799*(Analysis!E$15)*(Analysis!E$19)))) -> 2116726.225 | C93: 522831377.7 | D93: 402177982.8 | E93: 635017867.6 | F93: 211672622.5 | G93: 105836311.3 | H93: 635017867.6 | I93: 21167262.25 | J93: 2533721292 | K93: =K92-(3788799*(Analysis!E$15)) -> 53043.186 | L93: 12446583.59 | M93: 10078205.34 | N93: 15912955.8 | O93: 5304318.6 | P93: 2652159.3 | Q93: 15912955.8 | R93: 530431.86 | S93: 62837610.29
A94: 91 | B94: =B93-((3788799*(Analysis!E$15))-((3788799*(Analysis!E$15)*(Analysis!E$19)))) -> 2114149.842 | C94: 522195011 | D94: 401688470 | E94: 634244952.6 | F94: 211414984.2 | G94: 105707492.1 | H94: 634244952.6 | I94: 21141498.42 | J94: 2530637361 | K94: =K93-(3788799*(Analysis!E$15)) -> 27279.3528 | L94: 6401100.135 | M94: 5183077.032 | N94: 8183805.84 | O94: 2727935.28 | P94: 1363967.64 | Q94: 8183805.84 | R94: 272793.528 | S94: 32316485.29
A95: 92 | B95: =B94-((3788799*(Analysis!E$15))-((3788799*(Analysis!E$15)*(Analysis!E$19)))) -> 2111573.459 | C95: 521558644.3 | D95: 401198957.1 | E95: 633472037.6 | F95: 211157345.9 | G95: 105578672.9 | H95: 633472037.6 | I95: 21115734.59 | J95: 2527553430 | K95: =K94-(3788799*(Analysis!E$15)) -> 1515.5196 | L95: 355616.6741 | M95: 287948.724 | N95: 454655.88 | O95: 151551.96 | P95: 75775.98 | Q95: 454655.88 | R95: 15155.196 | S95: 1795360.294
A96: 93 | B96: =B95-((3788799*(Analysis!E$15))-((3788799*(Analysis!E$15)*(Analysis!E$19)))) -> 2108997.075 | C96: 520922277.6 | D96: 400709444.3 | E96: 632699122.6 | F96: 210899707.5 | G96: 105449853.8 | H96: 632699122.6 | I96: 21089970.75 | J96: 2524469499 | K96: =K95-(3788799*(Analysis!E$15)) -> -24248.3136 | L96: -5689866.786 | M96: -4607179.584 | N96: -7274494.08 | O96: -2424831.36 | P96: -1212415.68 | Q96: -7274494.08 | R96: -242483.136 | S96: -28725764.71
A97: 94 | B97: =B96-((3788799*(Analysis!E$15))-((3788799*(Analysis!E$15)*(Analysis!E$19)))) -> 2106420.692 | C97: 520285910.9 | D97: 400219931.5 | E97: 631926207.6 | F97: 210642069.2 | G97: 105321034.6 | H97: 631926207.6 | I97: 21064206.92 | J97: 2521385568 | K97: =K96-(3788799*(Analysis!E$15)) -> -50012.1468 | L97: -11735350.25 | M97: -9502307.892 | N97: -15003644.04 | O97: -5001214.68 | P97: -2500607.34 | Q97: -15003644.04 | R97: -500121.468 | S97: -59246889.71
A98: 95 | B98: =B97-((3788799*(Analysis!E$15))-((3788799*(Analysis!E$15)*(Analysis!E$19)))) -> 2103844.309 | C98: 519649544.3 | D98: 399730418.7 | E98: 631153292.6 | F98: 210384430.9 | G98: 105192215.4 | H98: 631153292.6 | I98: 21038443.09 | J98: 2518301638 | K98: =K97-(3788799*(Analysis!E$15)) -> -75775.98 | L98: -17780833.71 | M98: -14397436.2 | N98: -22732794 | O98: -7577598 | P98: -3788799 | Q98: -22732794 | R98: -757759.8 | S98: -89768014.71
A99: 96 | B99: =B98-((3788799*(Analysis!E$15))-((3788799*(Analysis!E$15)*(Analysis!E$19)))) -> 2101267.925 | C99: 519013177.6 | D99: 399240905.8 | E99: 630380377.6 | F99: 210126792.5 | G99: 105063396.3 | H99: 630380377.6 | I99: 21012679.25 | J99: 2515217707 | K99: =K98-(3788799*(Analysis!E$15)) -> -101539.8132 | L99: -23826317.17 | M99: -19292564.51 | N99: -30461943.96 | O99: -10153981.32 | P99: -5076990.66 | Q99: -30461943.96 | R99: -1015398.132 | S99: -120289139.7
A100: 97 | B100: =B99-((3788799*(Analysis!E$15))-((3788799*(Analysis!E$15)*(Analysis!E$19)))) -> 2098691.542 | C100: 518376810.9 | D100: 398751393 | E100: 629607462.6 | F100: 209869154.2 | G100: 104934577.1 | H100: 629607462.6 | I100: 20986915.42 | J100: 2512133776 | K100: =K99-(3788799*(Analysis!E$15)) -> -127303.6464 | L100: -29871800.63 | M100: -24187692.82 | N100: -38191093.92 | O100: -12730364.64 | P100: -6365182.32 | Q100: -38191093.92 | R100: -1273036.464 | S100: -150810264.7
A101: 98 | B101: =B100-((3788799*(Analysis!E$15))-((3788799*(Analysis!E$15)*(Analysis!E$19)))) -> 2096115.159 | C101: 517740444.2 | D101: 398261880.2 | E101: 628834547.6 | F101: 209611515.9 | G101: 104805757.9 | H101: 628834547.6 | I101: 20961151.59 | J101: 2509049845 | K101: =K100-(3788799*(Analysis!E$15)) -> -153067.4796 | L101: -35917284.09 | M101: -29082821.12 | N101: -45920243.88 | O101: -15306747.96 | P101: -7653373.98 | Q101: -45920243.88 | R101: -1530674.796 | S101: -181331389.7
A102: 99 | B102: =B101-((3788799*(Analysis!E$15))-((3788799*(Analysis!E$15)*(Analysis!E$19)))) -> 2093538.775 | C102: 517104077.5 | D102: 397772367.3 | E102: 628061632.6 | F102: 209353877.5 | G102: 104676938.8 | H102: 628061632.6 | I102: 20935387.75 | J102: 2505965914 | K102: =K101-(3788799*(Analysis!E$15)) -> -178831.3128 | L102: -41962767.55 | M102: -33977949.43 | N102: -53649393.84 | O102: -17883131.28 | P102: -8941565.64 | Q102: -53649393.84 | R102: -1788313.128 | S102: -211852514.7
A103: 100 | B103: =B102-((3788799*(Analysis!E$15))-((3788799*(Analysis!E$15)*(Analysis!E$19)))) -> 2090962.392 | C103: 516467710.9 | D103: 397282854.5 | E103: 627288717.6 | F103: 209096239.2 | G103: 104548119.6 | H103: 627288717.6 | I103: 20909623.92 | J103: 2502881983 | K103: =K102-(3788799*(Analysis!E$15)) -> -204595.146 | L103: -48008251.01 | M103: -38873077.74 | N103: -61378543.8 | O103: -20459514.6 | P103: -10229757.3 | Q103: -61378543.8 | R103: -2045951.46 | S103: -242373639.7
A104: 101 | B104: =B103-((3788799*(Analysis!E$15))-((3788799*(Analysis!E$15)*(Analysis!E$19)))) -> 2088386.009 | C104: 515831344.2 | D104: =B104*190 -> 396793341.7 | E104: =B104*300 -> 626515802.6 | F104: =B104*100 -> 208838600.9 | G104: =B104*50 -> 104419300.4 | H104: =B104*300 -> 626515802.6 | I104: =B104*10 -> 20883860.09 | J104: 2499798053 | K104: =K103-(3788799*(Analysis!E$15)) -> -230358.9792 | L104: -54053734.47 | M104: =K104*190 -> -43768206.05 | N104: =K104*300 -> -69107693.76 | O104: =K104*100 -> -23035897.92 | P104: =K104*50 -> -11517948.96 | Q104: =K104*300 -> -69107693.76 | R104: =K104*10 -> -2303589.792 | S104: -272894764.7
A105: 102 | B105: =B104-((3788799*(Analysis!E$15))-((3788799*(Analysis!E$15)*(Analysis!E$19)))) -> 2085809.625 | C105: 515194977.5 | D105: 396303828.8 | E105: 625742887.6 | F105: 208580962.5 | G105: 104290481.3 | H105: 625742887.6 | I105: 20858096.25 | J105: 2496714122 | K105: =K104-(3788799*(Analysis!E$15)) -> -256122.8124 | L105: -60099217.93 | M105: -48663334.36 | N105: -76836843.72 | O105: -25612281.24 | P105: -12806140.62 | Q105: -76836843.72 | R105: -2561228.124 | S105: -303415889.7
A106: 103 | B106: =B105-((3788799*(Analysis!E$15))-((3788799*(Analysis!E$15)*(Analysis!E$19)))) -> 2083233.242 | C106: 514558610.8 | D106: 395814316 | E106: 624969972.6 | F106: 208323324.2 | G106: 104161662.1 | H106: 624969972.6 | I106: 20832332.42 | J106: 2493630191 | K106: =K105-(3788799*(Analysis!E$15)) -> -281886.6456 | L106: -66144701.39 | M106: -53558462.66 | N106: -84565993.68 | O106: -28188664.56 | P106: -14094332.28 | Q106: -84565993.68 | R106: -2818866.456 | S106: -333937014.7
A107: 104 | B107: =B106-((3788799*(Analysis!E$15))-((3788799*(Analysis!E$15)*(Analysis!E$19)))) -> 2080656.859 | C107: 513922244.1 | D107: 395324803.2 | E107: 624197057.7 | F107: 208065685.9 | G107: 104032842.9 | H107: 624197057.7 | I107: 20806568.59 | J107: 2490546260 | K107: =K106-(3788799*(Analysis!E$15)) -> -307650.4788 | L107: -72190184.85 | M107: -58453590.97 | N107: -92295143.64 | O107: -30765047.88 | P107: -15382523.94 | Q107: -92295143.64 | R107: -3076504.788 | S107: -364458139.7
A108: 105 | B108: =B107-((3788799*(Analysis!E$15))-((3788799*(Analysis!E$15)*(Analysis!E$19)))) -> 2078080.476 | C108: 513285877.5 | D108: 394835290.3 | E108: 623424142.7 | F108: 207808047.6 | G108: 103904023.8 | H108: 623424142.7 | I108: 20780804.76 | J108: 2487462329 | K108: =K107-(3788799*(Analysis!E$15)) -> -333414.312 | L108: -78235668.31 | M108: -63348719.28 | N108: -100024293.6 | O108: -33341431.2 | P108: -16670715.6 | Q108: -100024293.6 | R108: -3334143.12 | S108: -394979264.7
A109: 106 | B109: =B108-((3788799*(Analysis!E$15))-((3788799*(Analysis!E$15)*(Analysis!E$19)))) -> 2075504.092 | C109: 512649510.8 | D109: 394345777.5 | E109: 622651227.7 | F109: 207550409.2 | G109: 103775204.6 | H109: 622651227.7 | I109: 20755040.92 | J109: 2484378398 | K109: =K108-(3788799*(Analysis!E$15)) -> -359178.1452 | L109: -84281151.77 | M109: -68243847.59 | N109: -107753443.6 | O109: -35917814.52 | P109: -17958907.26 | Q109: -107753443.6 | R109: -3591781.452 | S109: -425500389.7
A110: 107 | B110: =B109-((3788799*(Analysis!E$15))-((3788799*(Analysis!E$15)*(Analysis!E$19)))) -> 2072927.709 | C110: 512013144.1 | D110: 393856264.7 | E110: 621878312.7 | F110: 207292770.9 | G110: 103646385.4 | H110: 621878312.7 | I110: 20729277.09 | J110: 2481294468 | K110: =K109-(3788799*(Analysis!E$15)) -> -384941.9784 | L110: -90326635.23 | M110: -73138975.9 | N110: -115482593.5 | O110: -38494197.84 | P110: -19247098.92 | Q110: -115482593.5 | R110: -3849419.784 | S110: -456021514.7
A111: 108 | B111: =B110-((3788799*(Analysis!E$15))-((3788799*(Analysis!E$15)*(Analysis!E$19)))) -> 2070351.326 | C111: 511376777.4 | D111: 393366751.9 | E111: 621105397.7 | F111: 207035132.6 | G111: 103517566.3 | H111: 621105397.7 | I111: 20703513.26 | J111: 2478210537 | K111: =K110-(3788799*(Analysis!E$15)) -> -410705.8116 | L111: -96372118.69 | M111: -78034104.2 | N111: -123211743.5 | O111: -41070581.16 | P111: -20535290.58 | Q111: -123211743.5 | R111: -4107058.116 | S111: -486542639.7
A112: 109 | B112: =B111-((3788799*(Analysis!E$15))-((3788799*(Analysis!E$15)*(Analysis!E$19)))) -> 2067774.942 | C112: 510740410.7 | D112: 392877239 | E112: 620332482.7 | F112: 206777494.2 | G112: 103388747.1 | H112: 620332482.7 | I112: 20677749.42 | J112: 2475126606 | K112: =K111-(3788799*(Analysis!E$15)) -> -436469.6448 | L112: -102417602.2 | M112: -82929232.51 | N112: -130940893.4 | O112: -43646964.48 | P112: -21823482.24 | Q112: -130940893.4 | R112: -4364696.448 | S112: -517063764.7
A113: 110 | B113: =B112-((3788799*(Analysis!E$15))-((3788799*(Analysis!E$15)*(Analysis!E$19)))) -> 2065198.559 | C113: 510104044.1 | D113: 392387726.2 | E113: 619559567.7 | F113: 206519855.9 | G113: 103259927.9 | H113: 619559567.7 | I113: 20651985.59 | J113: 2472042675 | K113: =K112-(3788799*(Analysis!E$15)) -> -462233.478 | L113: -108463085.6 | M113: -87824360.82 | N113: -138670043.4 | O113: -46223347.8 | P113: -23111673.9 | Q113: -138670043.4 | R113: -4622334.78 | S113: -547584889.7
A114: 111 | B114: =B113-((3788799*(Analysis!E$15))-((3788799*(Analysis!E$15)*(Analysis!E$19)))) -> 2062622.176 | C114: 509467677.4 | D114: 391898213.4 | E114: 618786652.7 | F114: 206262217.6 | G114: 103131108.8 | H114: 618786652.7 | I114: 20626221.76 | J114: 2468958744 | K114: =K113-(3788799*(Analysis!E$15)) -> -487997.3112 | L114: -114508569.1 | M114: -92719489.13 | N114: -146399193.4 | O114: -48799731.12 | P114: -24399865.56 | Q114: -146399193.4 | R114: -4879973.112 | S114: -578106014.7
A115: 112 | B115: =B114-((3788799*(Analysis!E$15))-((3788799*(Analysis!E$15)*(Analysis!E$19)))) -> 2060045.792 | C115: 508831310.7 | D115: 391408700.5 | E115: 618013737.7 | F115: 206004579.2 | G115: 103002289.6 | H115: 618013737.7 | I115: 20600457.92 | J115: 2465874813 | K115: =K114-(3788799*(Analysis!E$15)) -> -513761.1444 | L115: -120554052.5 | M115: -97614617.44 | N115: -154128343.3 | O115: -51376114.44 | P115: -25688057.22 | Q115: -154128343.3 | R115: -5137611.444 | S115: -608627139.7
A116: 113 | B116: =B115-((3788799*(Analysis!E$15))-((3788799*(Analysis!E$15)*(Analysis!E$19)))) -> 2057469.409 | C116: 508194944 | D116: 390919187.7 | E116: 617240822.7 | F116: 205746940.9 | G116: 102873470.4 | H116: 617240822.7 | I116: 20574694.09 | J116: 2462790883 | K116: =K115-(3788799*(Analysis!E$15)) -> -539524.9776 | L116: -126599536 | M116: -102509745.7 | N116: -161857493.3 | O116: -53952497.76 | P116: -26976248.88 | Q116: -161857493.3 | R116: -5395249.776 | S116: -639148264.7
A117: 114 | B117: =B116-((3788799*(Analysis!E$15))-((3788799*(Analysis!E$15)*(Analysis!E$19)))) -> 2054893.026 | C117: 507558577.3 | D117: 390429674.9 | E117: 616467907.7 | F117: 205489302.6 | G117: 102744651.3 | H117: 616467907.7 | I117: 20548930.26 | J117: 2459706952 | K117: =K116-(3788799*(Analysis!E$15)) -> -565288.8108 | L117: -132645019.5 | M117: -107404874.1 | N117: -169586643.2 | O117: -56528881.08 | P117: -28264440.54 | Q117: -169586643.2 | R117: -5652888.108 | S117: -669669389.7
A118: 115 | B118: =B117-((3788799*(Analysis!E$15))-((3788799*(Analysis!E$15)*(Analysis!E$19)))) -> 2052316.642 | C118: 506922210.7 | D118: 389940162 | E118: 615694992.7 | F118: 205231664.2 | G118: 102615832.1 | H118: 615694992.7 | I118: 20523166.42 | J118: 2456623021 | K118: =K117-(3788799*(Analysis!E$15)) -> -591052.644 | L118: -138690502.9 | M118: -112300002.4 | N118: -177315793.2 | O118: -59105264.4 | P118: -29552632.2 | Q118: -177315793.2 | R118: -5910526.44 | S118: -700190514.7
A119: 116 | B119: =B118-((3788799*(Analysis!E$15))-((3788799*(Analysis!E$15)*(Analysis!E$19)))) -> 2049740.259 | C119: 506285844 | D119: 389450649.2 | E119: 614922077.7 | F119: 204974025.9 | G119: 102487012.9 | H119: 614922077.7 | I119: 20497402.59 | J119: 2453539090 | K119: =K118-(3788799*(Analysis!E$15)) -> -616816.4772 | L119: -144735986.4 | M119: -117195130.7 | N119: -185044943.2 | O119: -61681647.72 | P119: -30840823.86 | Q119: -185044943.2 | R119: -6168164.772 | S119: -730711639.7
A120: 117 | B120: =B119-((3788799*(Analysis!E$15))-((3788799*(Analysis!E$15)*(Analysis!E$19)))) -> 2047163.876 | C120: 505649477.3 | D120: 388961136.4 | E120: 614149162.7 | F120: 204716387.6 | G120: 102358193.8 | H120: 614149162.7 | I120: 20471638.76 | J120: 2450455159 | K120: =K119-(3788799*(Analysis!E$15)) -> -642580.3104 | L120: -150781469.8 | M120: -122090259 | N120: -192774093.1 | O120: -64258031.04 | P120: -32129015.52 | Q120: -192774093.1 | R120: -6425803.104 | S120: -761232764.7
A121: 118 | B121: =B120-((3788799*(Analysis!E$15))-((3788799*(Analysis!E$15)*(Analysis!E$19)))) -> 2044587.492 | C121: 505013110.6 | D121: 388471623.5 | E121: 613376247.7 | F121: 204458749.2 | G121: 102229374.6 | H121: 613376247.7 | I121: 20445874.92 | J121: 2447371228 | K121: =K120-(3788799*(Analysis!E$15)) -> -668344.1436 | L121: -156826953.3 | M121: -126985387.3 | N121: -200503243.1 | O121: -66834414.36 | P121: -33417207.18 | Q121: -200503243.1 | R121: -6683441.436 | S121: -791753889.7
A122: 119 | B122: =B121-((3788799*(Analysis!E$15))-((3788799*(Analysis!E$15)*(Analysis!E$19)))) -> 2042011.109 | C122: 504376743.9 | D122: 387982110.7 | E122: 612603332.7 | F122: 204201110.9 | G122: 102100555.5 | H122: 612603332.7 | I122: 20420111.09 | J122: 2444287298 | K122: =K121-(3788799*(Analysis!E$15)) -> -694107.9768 | L122: -162872436.8 | M122: -131880515.6 | N122: -208232393 | O122: -69410797.68 | P122: -34705398.84 | Q122: -208232393 | R122: -6941079.768 | S122: -822275014.7
A123: 120 | B123: =B122-((3788799*(Analysis!E$15))-((3788799*(Analysis!E$15)*(Analysis!E$19)))) -> 2039434.726 | C123: 503740377.3 | D123: 387492597.9 | E123: 611830417.7 | F123: 203943472.6 | G123: 101971736.3 | H123: 611830417.7 | I123: 20394347.26 | J123: 2441203367 | K123: =K122-(3788799*(Analysis!E$15)) -> -719871.81 | L123: -168917920.2 | M123: -136775643.9 | N123: -215961543 | O123: -71987181 | P123: -35993590.5 | Q123: -215961543 | R123: -7198718.1 | S123: -852796139.7
A124: 121 | B124: =B123-((3788799*(Analysis!E$15))-((3788799*(Analysis!E$15)*(Analysis!E$19)))) -> 2036858.342 | C124: 503104010.6 | D124: 387003085.1 | E124: 611057502.7 | F124: 203685834.2 | G124: 101842917.1 | H124: 611057502.7 | I124: 20368583.42 | J124: 2438119436 | K124: =K123-(3788799*(Analysis!E$15)) -> -745635.6432 | L124: -174963403.7 | M124: -141670772.2 | N124: -223690693 | O124: -74563564.32 | P124: -37281782.16 | Q124: -223690693 | R124: -7456356.432 | S124: -883317264.7
A125: 122 | B125: =B124-((3788799*(Analysis!E$15))-((3788799*(Analysis!E$15)*(Analysis!E$19)))) -> 2034281.959 | C125: 502467643.9 | D125: 386513572.2 | E125: 610284587.7 | F125: 203428195.9 | G125: 101714098 | H125: 610284587.7 | I125: 20342819.59 | J125: 2435035505 | K125: =K124-(3788799*(Analysis!E$15)) -> -771399.4764 | L125: -181008887.1 | M125: -146565900.5 | N125: -231419842.9 | O125: -77139947.64 | P125: -38569973.82 | Q125: -231419842.9 | R125: -7713994.764 | S125: -913838389.7
A126: 123 | B126: =B125-((3788799*(Analysis!E$15))-((3788799*(Analysis!E$15)*(Analysis!E$19)))) -> 2031705.576 | C126: 501831277.2 | D126: 386024059.4 | E126: 609511672.7 | F126: 203170557.6 | G126: 101585278.8 | H126: 609511672.7 | I126: 20317055.76 | J126: 2431951574 | K126: =K125-(3788799*(Analysis!E$15)) -> -797163.3096 | L126: -187054370.6 | M126: -151461028.8 | N126: -239148992.9 | O126: -79716330.96 | P126: -39858165.48 | Q126: -239148992.9 | R126: -7971633.096 | S126: -944359514.7
A127: 124 | B127: =B126-((3788799*(Analysis!E$15))-((3788799*(Analysis!E$15)*(Analysis!E$19)))) -> 2029129.192 | C127: 501194910.5 | D127: 385534546.6 | E127: 608738757.7 | F127: 202912919.2 | G127: 101456459.6 | H127: 608738757.7 | I127: 20291291.92 | J127: 2428867643 | K127: =K126-(3788799*(Analysis!E$15)) -> -822927.1428 | L127: -193099854.1 | M127: -156356157.1 | N127: -246878142.8 | O127: -82292714.28 | P127: -41146357.14 | Q127: -246878142.8 | R127: -8229271.428 | S127: -974880639.7
A128: 125 | B128: =B127-((3788799*(Analysis!E$15))-((3788799*(Analysis!E$15)*(Analysis!E$19)))) -> 2026552.809 | C128: 500558543.9 | D128: 385045033.7 | E128: 607965842.7 | F128: 202655280.9 | G128: 101327640.5 | H128: 607965842.7 | I128: 20265528.09 | J128: 2425783713 | K128: =K127-(3788799*(Analysis!E$15)) -> -848690.976 | L128: -199145337.5 | M128: -161251285.4 | N128: -254607292.8 | O128: -84869097.6 | P128: -42434548.8 | Q128: -254607292.8 | R128: -8486909.76 | S128: -1005401765
A129: 126 | B129: =B128-((3788799*(Analysis!E$15))-((3788799*(Analysis!E$15)*(Analysis!E$19)))) -> 2023976.426 | C129: 499922177.2 | D129: =B129*190 -> 384555520.9 | E129: =B129*300 -> 607192927.7 | F129: =B129*100 -> 202397642.6 | G129: =B129*50 -> 101198821.3 | H129: =B129*300 -> 607192927.7 | I129: =B129*10 -> 20239764.26 | J129: 2422699782 | K129: =K128-(3788799*(Analysis!E$15)) -> -874454.8092 | L129: -205190821 | M129: =K129*190 -> -166146413.7 | N129: =K129*300 -> -262336442.8 | O129: =K129*100 -> -87445480.92 | P129: =K129*50 -> -43722740.46 | Q129: =K129*300 -> -262336442.8 | R129: =K129*10 -> -8744548.092 | S129: -1035922890
A130: 127 | B130: =B129-((3788799*(Analysis!E$15))-((3788799*(Analysis!E$15)*(Analysis!E$19)))) -> 2021400.042 | C130: 499285810.5 | D130: 384066008.1 | E130: 606420012.7 | F130: 202140004.2 | G130: 101070002.1 | H130: 606420012.7 | I130: 20214000.42 | J130: 2419615851 | K130: =K129-(3788799*(Analysis!E$15)) -> -900218.6424 | L130: -211236304.4 | M130: -171041542.1 | N130: -270065592.7 | O130: -90021864.24 | P130: -45010932.12 | Q130: -270065592.7 | R130: -9002186.424 | S130: -1066444015
A131: 128 | B131: =B130-((3788799*(Analysis!E$15))-((3788799*(Analysis!E$15)*(Analysis!E$19)))) -> 2018823.659 | C131: 498649443.8 | D131: 383576495.2 | E131: 605647097.7 | F131: 201882365.9 | G131: 100941183 | H131: 605647097.7 | I131: 20188236.59 | J131: 2416531920 | K131: =K130-(3788799*(Analysis!E$15)) -> -925982.4756 | L131: -217281787.9 | M131: -175936670.4 | N131: -277794742.7 | O131: -92598247.56 | P131: -46299123.78 | Q131: -277794742.7 | R131: -9259824.756 | S131: -1096965140
A132: 129 | B132: =B131-((3788799*(Analysis!E$15))-((3788799*(Analysis!E$15)*(Analysis!E$19)))) -> 2016247.276 | C132: 498013077.1 | D132: 383086982.4 | E132: 604874182.8 | F132: 201624727.6 | G132: 100812363.8 | H132: 604874182.8 | I132: 20162472.76 | J132: 2413447989 | K132: =K131-(3788799*(Analysis!E$15)) -> -951746.3088 | L132: -223327271.4 | M132: -180831798.7 | N132: -285523892.6 | O132: -95174630.88 | P132: -47587315.44 | Q132: -285523892.6 | R132: -9517463.088 | S132: -1127486265
A133: 130 | B133: =B132-((3788799*(Analysis!E$15))-((3788799*(Analysis!E$15)*(Analysis!E$19)))) -> 2013670.893 | C133: =B133*247 -> 497376710.5 | D133: =B133*190 -> 382597469.6 | E133: =B133*300 -> 604101267.8 | F133: =B133*100 -> 201367089.3 | G133: =B133*50 -> 100683544.6 | H133: =B133*300 -> 604101267.8 | I133: =B133*10 -> 20136708.93 | J133: =SUM(C133:I133) -> 2410364058 | K133: =K132-(3788799*(Analysis!E$15)) -> -977510.142 | L133: =0.95*(247*K133) -> -229372754.8 | M133: =K133*190 -> -185726927 | N133: =K133*300 -> -293253042.6 | O133: =K133*100 -> -97751014.2 | P133: =K133*50 -> -48875507.1 | Q133: =K133*300 -> -293253042.6 | R133: =K133*10 -> -9775101.42 | S133: =SUM(L133:R133) -> -1158007390
A134: 131 | B134: =B133-((3788799*(Analysis!E$15))-((3788799*(Analysis!E$15)*(Analysis!E$19)))) -> 2011094.509 | C134: 496740343.8 | D134: 382107956.7 | E134: 603328352.8 | F134: 201109450.9 | G134: 100554725.5 | H134: 603328352.8 | I134: 20110945.09 | J134: 2407280128 | K134: =K133-(3788799*(Analysis!E$15)) -> -1003273.975 | L134: -235418238.3 | M134: -190622055.3 | N134: -300982192.6 | O134: -100327397.5 | P134: -50163698.76 | Q134: -300982192.6 | R134: -10032739.75 | S134: -1188528515
A135: 132 | B135: =B134-((3788799*(Analysis!E$15))-((3788799*(Analysis!E$15)*(Analysis!E$19)))) -> 2008518.126 | C135: 496103977.1 | D135: 381618443.9 | E135: 602555437.8 | F135: 200851812.6 | G135: 100425906.3 | H135: 602555437.8 | I135: 20085181.26 | J135: 2404196197 | K135: =K134-(3788799*(Analysis!E$15)) -> -1029037.808 | L135: -241463721.7 | M135: -195517183.6 | N135: -308711342.5 | O135: -102903780.8 | P135: -51451890.42 | Q135: -308711342.5 | R135: -10290378.08 | S135: -1219049640
A136: 133 | B136: =B135-((3788799*(Analysis!E$15))-((3788799*(Analysis!E$15)*(Analysis!E$19)))) -> 2005941.743 | C136: 495467610.4 | D136: 381128931.1 | E136: 601782522.8 | F136: 200594174.3 | G136: 100297087.1 | H136: 601782522.8 | I136: 20059417.43 | J136: 2401112266 | K136: =K135-(3788799*(Analysis!E$15)) -> -1054801.642 | L136: -247509205.2 | M136: -200412311.9 | N136: -316440492.5 | O136: -105480164.2 | P136: -52740082.08 | Q136: -316440492.5 | R136: -10548016.42 | S136: -1249570765
A137: 134 | B137: =B136-((3788799*(Analysis!E$15))-((3788799*(Analysis!E$15)*(Analysis!E$19)))) -> 2003365.359 | C137: 494831243.7 | D137: 380639418.3 | E137: 601009607.8 | F137: 200336535.9 | G137: 100168268 | H137: 601009607.8 | I137: 20033653.59 | J137: 2398028335 | K137: =K136-(3788799*(Analysis!E$15)) -> -1080565.475 | L137: -253554688.7 | M137: -205307440.2 | N137: -324169642.4 | O137: -108056547.5 | P137: -54028273.74 | Q137: -324169642.4 | R137: -10805654.75 | S137: -1280091890
A138: 135 | B138: =B137-((3788799*(Analysis!E$15))-((3788799*(Analysis!E$15)*(Analysis!E$19)))) -> 2000788.976 | C138: 494194877.1 | D138: 380149905.4 | E138: 600236692.8 | F138: 200078897.6 | G138: 100039448.8 | H138: 600236692.8 | I138: 20007889.76 | J138: 2394944404 | K138: =K137-(3788799*(Analysis!E$15)) -> -1106329.308 | L138: -259600172.1 | M138: -210202568.5 | N138: -331898792.4 | O138: -110632930.8 | P138: -55316465.4 | Q138: -331898792.4 | R138: -11063293.08 | S138: -1310613015
A139: 136 | B139: =B138-((3788799*(Analysis!E$15))-((3788799*(Analysis!E$15)*(Analysis!E$19)))) -> 1998212.593 | C139: 493558510.4 | D139: 379660392.6 | E139: 599463777.8 | F139: 199821259.3 | G139: 99910629.63 | H139: 599463777.8 | I139: 19982125.93 | J139: 2391860473 | K139: =K138-(3788799*(Analysis!E$15)) -> -1132093.141 | L139: -265645655.6 | M139: -215097696.8 | N139: -339627942.4 | O139: -113209314.1 | P139: -56604657.06 | Q139: -339627942.4 | R139: -11320931.41 | S139: -1341134140
A140: 137 | B140: =B139-((3788799*(Analysis!E$15))-((3788799*(Analysis!E$15)*(Analysis!E$19)))) -> 1995636.209 | C140: 492922143.7 | D140: 379170879.8 | E140: 598690862.8 | F140: 199563620.9 | G140: 99781810.46 | H140: 598690862.8 | I140: 19956362.09 | J140: 2388776543 | K140: =K139-(3788799*(Analysis!E$15)) -> -1157856.974 | L140: -271691139 | M140: -219992825.1 | N140: -347357092.3 | O140: -115785697.4 | P140: -57892848.72 | Q140: -347357092.3 | R140: -11578569.74 | S140: -1371655265
A141: 138 | B141: =B140-((3788799*(Analysis!E$15))-((3788799*(Analysis!E$15)*(Analysis!E$19)))) -> 1993059.826 | C141: 492285777 | D141: 378681366.9 | E141: 597917947.8 | F141: 199305982.6 | G141: 99652991.3 | H141: 597917947.8 | I141: 19930598.26 | J141: 2385692612 | K141: =K140-(3788799*(Analysis!E$15)) -> -1183620.808 | L141: -277736622.5 | M141: -224887953.4 | N141: -355086242.3 | O141: -118362080.8 | P141: -59181040.38 | Q141: -355086242.3 | R141: -11836208.08 | S141: -1402176390
A142: 139 | B142: =B141-((3788799*(Analysis!E$15))-((3788799*(Analysis!E$15)*(Analysis!E$19)))) -> 1990483.443 | C142: 491649410.3 | D142: 378191854.1 | E142: 597145032.8 | F142: 199048344.3 | G142: 99524172.13 | H142: 597145032.8 | I142: 19904834.43 | J142: 2382608681 | K142: =K141-(3788799*(Analysis!E$15)) -> -1209384.641 | L142: -283782106 | M142: -229783081.8 | N142: -362815392.2 | O142: -120938464.1 | P142: -60469232.04 | Q142: -362815392.2 | R142: -12093846.41 | S142: -1432697515
A143: 140 | B143: =B142-((3788799*(Analysis!E$15))-((3788799*(Analysis!E$15)*(Analysis!E$19)))) -> 1987907.059 | C143: 491013043.7 | D143: 377702341.3 | E143: 596372117.8 | F143: 198790705.9 | G143: 99395352.97 | H143: 596372117.8 | I143: 19879070.59 | J143: 2379524750 | K143: =K142-(3788799*(Analysis!E$15)) -> -1235148.474 | L143: -289827589.4 | M143: -234678210.1 | N143: -370544542.2 | O143: -123514847.4 | P143: -61757423.7 | Q143: -370544542.2 | R143: -12351484.74 | S143: -1463218640
A144: 141 | B144: =B143-((3788799*(Analysis!E$15))-((3788799*(Analysis!E$15)*(Analysis!E$19)))) -> 1985330.676 | C144: 490376677 | D144: 377212828.4 | E144: 595599202.8 | F144: 198533067.6 | G144: 99266533.8 | H144: 595599202.8 | I144: 19853306.76 | J144: 2376440819 | K144: =K143-(3788799*(Analysis!E$15)) -> -1260912.307 | L144: -295873072.9 | M144: -239573338.4 | N144: -378273692.2 | O144: -126091230.7 | P144: -63045615.36 | Q144: -378273692.2 | R144: -12609123.07 | S144: -1493739765
A145: 142 | B145: =B144-((3788799*(Analysis!E$15))-((3788799*(Analysis!E$15)*(Analysis!E$19)))) -> 1982754.293 | C145: 489740310.3 | D145: 376723315.6 | E145: 594826287.8 | F145: 198275429.3 | G145: 99137714.63 | H145: 594826287.8 | I145: 19827542.93 | J145: 2373356888 | K145: =K144-(3788799*(Analysis!E$15)) -> -1286676.14 | L145: -301918556.3 | M145: -244468466.7 | N145: -386002842.1 | O145: -128667614 | P145: -64333807.02 | Q145: -386002842.1 | R145: -12866761.4 | S145: -1524260890
A146: 143 | B146: =B145-((3788799*(Analysis!E$15))-((3788799*(Analysis!E$15)*(Analysis!E$19)))) -> 1980177.909 | C146: 489103943.6 | D146: 376233802.8 | E146: 594053372.8 | F146: 198017790.9 | G146: 99008895.47 | H146: 594053372.8 | I146: 19801779.09 | J146: 2370272958 | K146: =K145-(3788799*(Analysis!E$15)) -> -1312439.974 | L146: -307964039.8 | M146: -249363595 | N146: -393731992.1 | O146: -131243997.4 | P146: -65621998.68 | Q146: -393731992.1 | R146: -13124399.74 | S146: -1554782015
A147: 144 | B147: =B146-((3788799*(Analysis!E$15))-((3788799*(Analysis!E$15)*(Analysis!E$19)))) -> 1977601.526 | C147: 488467576.9 | D147: 375744289.9 | E147: 593280457.8 | F147: 197760152.6 | G147: 98880076.3 | H147: 593280457.8 | I147: 19776015.26 | J147: 2367189027 | K147: =K146-(3788799*(Analysis!E$15)) -> -1338203.807 | L147: -314009523.3 | M147: -254258723.3 | N147: -401461142 | O147: -133820380.7 | P147: -66910190.34 | Q147: -401461142 | R147: -13382038.07 | S147: -1585303140
A148: 145 | B148: =B147-((3788799*(Analysis!E$15))-((3788799*(Analysis!E$15)*(Analysis!E$19)))) -> 1975025.143 | C148: 487831210.3 | D148: 375254777.1 | E148: 592507542.8 | F148: 197502514.3 | G148: 98751257.14 | H148: 592507542.8 | I148: 19750251.43 | J148: 2364105096 | K148: =K147-(3788799*(Analysis!E$15)) -> -1363967.64 | L148: -320055006.7 | M148: -259153851.6 | N148: -409190292 | O148: -136396764 | P148: -68198382 | Q148: -409190292 | R148: -13639676.4 | S148: -1615824265
A149: 146 | B149: =B148-((3788799*(Analysis!E$15))-((3788799*(Analysis!E$15)*(Analysis!E$19)))) -> 1972448.759 | C149: 487194843.6 | D149: 374765264.3 | E149: 591734627.8 | F149: 197244875.9 | G149: 98622437.97 | H149: 591734627.8 | I149: 19724487.59 | J149: 2361021165 | K149: =K148-(3788799*(Analysis!E$15)) -> -1389731.473 | L149: -326100490.2 | M149: -264048979.9 | N149: -416919442 | O149: -138973147.3 | P149: -69486573.66 | Q149: -416919442 | R149: -13897314.73 | S149: -1646345390
A150: 147 | B150: =B149-((3788799*(Analysis!E$15))-((3788799*(Analysis!E$15)*(Analysis!E$19)))) -> 1969872.376 | C150: 486558476.9 | D150: 374275751.5 | E150: 590961712.8 | F150: 196987237.6 | G150: 98493618.8 | H150: 590961712.8 | I150: 19698723.76 | J150: 2357937234 | K150: =K149-(3788799*(Analysis!E$15)) -> -1415495.306 | L150: -332145973.6 | M150: -268944108.2 | N150: -424648591.9 | O150: -141549530.6 | P150: -70774765.32 | Q150: -424648591.9 | R150: -14154953.06 | S150: -1676866515
A151: 148 | B151: =B150-((3788799*(Analysis!E$15))-((3788799*(Analysis!E$15)*(Analysis!E$19)))) -> 1967295.993 | C151: 485922110.2 | D151: 373786238.6 | E151: 590188797.8 | F151: 196729599.3 | G151: 98364799.64 | H151: 590188797.8 | I151: 19672959.93 | J151: 2354853303 | K151: =K150-(3788799*(Analysis!E$15)) -> -1441259.14 | L151: -338191457.1 | M151: -273839236.5 | N151: -432377741.9 | O151: -144125914 | P151: -72062956.98 | Q151: -432377741.9 | R151: -14412591.4 | S151: -1707387640
A152: 149 | B152: =B151-((3788799*(Analysis!E$15))-((3788799*(Analysis!E$15)*(Analysis!E$19)))) -> 1964719.609 | C152: 485285743.5 | D152: 373296725.8 | E152: 589415882.8 | F152: 196471960.9 | G152: 98235980.47 | H152: 589415882.8 | I152: 19647196.09 | J152: 2351769372 | K152: =K151-(3788799*(Analysis!E$15)) -> -1467022.973 | L152: -344236940.6 | M152: -278734364.8 | N152: -440106891.8 | O152: -146702297.3 | P152: -73351148.64 | Q152: -440106891.8 | R152: -14670229.73 | S152: -1737908765
A153: 150 | B153: =B152-((3788799*(Analysis!E$15))-((3788799*(Analysis!E$15)*(Analysis!E$19)))) -> 1962143.226 | C153: 484649376.9 | D153: 372807213 | E153: 588642967.8 | F153: 196214322.6 | G153: 98107161.31 | H153: 588642967.8 | I153: 19621432.26 | J153: 2348685442 | K153: =K152-(3788799*(Analysis!E$15)) -> -1492786.806 | L153: -350282424 | M153: -283629493.1 | N153: -447836041.8 | O153: -149278680.6 | P153: -74639340.3 | Q153: -447836041.8 | R153: -14927868.06 | S153: -1768429890
A154: 151 | B154: =B153-((3788799*(Analysis!E$15))-((3788799*(Analysis!E$15)*(Analysis!E$19)))) -> 1959566.843 | C154: 484013010.2 | D154: 372317700.1 | E154: 587870052.8 | F154: 195956684.3 | G154: 97978342.14 | H154: 587870052.8 | I154: 19595668.43 | J154: 2345601511 | K154: =K153-(3788799*(Analysis!E$15)) -> -1518550.639 | L154: -356327907.5 | M154: -288524621.4 | N154: -455565191.8 | O154: -151855063.9 | P154: -75927531.96 | Q154: -455565191.8 | R154: -15185506.39 | S154: -1798951015
A155: 152 | B155: =B154-((3788799*(Analysis!E$15))-((3788799*(Analysis!E$15)*(Analysis!E$19)))) -> 1956990.459 | C155: 483376643.5 | D155: 371828187.3 | E155: 587097137.8 | F155: 195699045.9 | G155: 97849522.97 | H155: 587097137.8 | I155: 19569904.59 | J155: 2342517580 | K155: =K154-(3788799*(Analysis!E$15)) -> -1544314.472 | L155: -362373390.9 | M155: -293419749.8 | N155: -463294341.7 | O155: -154431447.2 | P155: -77215723.62 | Q155: -463294341.7 | R155: -15443144.72 | S155: -1829472140
A156: 153 | B156: =B155-((3788799*(Analysis!E$15))-((3788799*(Analysis!E$15)*(Analysis!E$19)))) -> 1954414.076 | C156: 482740276.8 | D156: 371338674.5 | E156: 586324222.8 | F156: 195441407.6 | G156: 97720703.81 | H156: 586324222.8 | I156: 19544140.76 | J156: 2339433649 | K156: =K155-(3788799*(Analysis!E$15)) -> -1570078.306 | L156: -368418874.4 | M156: -298314878.1 | N156: -471023491.7 | O156: -157007830.6 | P156: -78503915.28 | Q156: -471023491.7 | R156: -15700783.06 | S156: -1859993265
A157: 154 | B157: =B156-((3788799*(Analysis!E$15))-((3788799*(Analysis!E$15)*(Analysis!E$19)))) -> 1951837.693 | C157: 482103910.1 | D157: 370849161.6 | E157: 585551307.9 | F157: 195183769.3 | G157: 97591884.64 | H157: 585551307.9 | I157: 19518376.93 | J157: 2336349718 | K157: =K156-(3788799*(Analysis!E$15)) -> -1595842.139 | L157: -374464357.9 | M157: -303210006.4 | N157: -478752641.6 | O157: -159584213.9 | P157: -79792106.94 | Q157: -478752641.6 | R157: -15958421.39 | S157: -1890514390
A158: 155 | B158: =B157-((3788799*(Analysis!E$15))-((3788799*(Analysis!E$15)*(Analysis!E$19)))) -> 1949261.31 | C158: 481467543.5 | D158: 370359648.8 | E158: 584778392.9 | F158: 194926131 | G158: 97463065.48 | H158: 584778392.9 | I158: 19492613.1 | J158: 2333265787 | K158: =K157-(3788799*(Analysis!E$15)) -> -1621605.972 | L158: -380509841.3 | M158: -308105134.7 | N158: -486481791.6 | O158: -162160597.2 | P158: -81080298.6 | Q158: -486481791.6 | R158: -16216059.72 | S158: -1921035515
A159: 156 | B159: =B158-((3788799*(Analysis!E$15))-((3788799*(Analysis!E$15)*(Analysis!E$19)))) -> 1946684.926 | C159: 480831176.8 | D159: 369870136 | E159: 584005477.9 | F159: 194668492.6 | G159: 97334246.31 | H159: 584005477.9 | I159: 19466849.26 | J159: 2330181857 | K159: =K158-(3788799*(Analysis!E$15)) -> -1647369.805 | L159: -386555324.8 | M159: -313000263 | N159: -494210941.6 | O159: -164736980.5 | P159: -82368490.26 | Q159: -494210941.6 | R159: -16473698.05 | S159: -1951556640
A160: 157 | B160: =B159-((3788799*(Analysis!E$15))-((3788799*(Analysis!E$15)*(Analysis!E$19)))) -> 1944108.543 | C160: 480194810.1 | D160: 369380623.1 | E160: 583232562.9 | F160: 194410854.3 | G160: 97205427.14 | H160: 583232562.9 | I160: 19441085.43 | J160: 2327097926 | K160: =K159-(3788799*(Analysis!E$15)) -> -1673133.638 | L160: -392600808.3 | M160: -317895391.3 | N160: -501940091.5 | O160: -167313363.8 | P160: -83656681.92 | Q160: -501940091.5 | R160: -16731336.38 | S160: -1982077765
A161: 158 | B161: =B160-((3788799*(Analysis!E$15))-((3788799*(Analysis!E$15)*(Analysis!E$19)))) -> 1941532.16 | C161: 479558443.4 | D161: 368891110.3 | E161: 582459647.9 | F161: 194153216 | G161: 97076607.98 | H161: 582459647.9 | I161: 19415321.6 | J161: 2324013995 | K161: =K160-(3788799*(Analysis!E$15)) -> -1698897.472 | L161: -398646291.7 | M161: -322790519.6 | N161: -509669241.5 | O161: -169889747.2 | P161: -84944873.58 | Q161: -509669241.5 | R161: -16988974.72 | S161: -2012598890
A162: 159 | B162: =B161-((3788799*(Analysis!E$15))-((3788799*(Analysis!E$15)*(Analysis!E$19)))) -> 1938955.776 | C162: 478922076.7 | D162: 368401597.5 | E162: 581686732.9 | F162: 193895577.6 | G162: 96947788.81 | H162: 581686732.9 | I162: 19389557.76 | J162: 2320930064 | K162: =K161-(3788799*(Analysis!E$15)) -> -1724661.305 | L162: -404691775.2 | M162: -327685647.9 | N162: -517398391.4 | O162: -172466130.5 | P162: -86233065.24 | Q162: -517398391.4 | R162: -17246613.05 | S162: -2043120015
A163: 160 | B163: =B162-((3788799*(Analysis!E$15))-((3788799*(Analysis!E$15)*(Analysis!E$19)))) -> 1936379.393 | C163: 478285710.1 | D163: 367912084.7 | E163: 580913817.9 | F163: 193637939.3 | G163: 96818969.65 | H163: 580913817.9 | I163: 19363793.93 | J163: 2317846133 | K163: =K162-(3788799*(Analysis!E$15)) -> -1750425.138 | L163: -410737258.6 | M163: -332580776.2 | N163: -525127541.4 | O163: -175042513.8 | P163: -87521256.9 | Q163: -525127541.4 | R163: -17504251.38 | S163: -2073641140
A164: 161 | B164: =B163-((3788799*(Analysis!E$15))-((3788799*(Analysis!E$15)*(Analysis!E$19)))) -> 1933803.01 | C164: 477649343.4 | D164: 367422571.8 | E164: 580140902.9 | F164: 193380301 | G164: 96690150.48 | H164: 580140902.9 | I164: 19338030.1 | J164: 2314762202 | K164: =K163-(3788799*(Analysis!E$15)) -> -1776188.971 | L164: -416782742.1 | M164: -337475904.5 | N164: -532856691.4 | O164: -177618897.1 | P164: -88809448.56 | Q164: -532856691.4 | R164: -17761889.71 | S164: -2104162265
A165: 162 | B165: =B164-((3788799*(Analysis!E$15))-((3788799*(Analysis!E$15)*(Analysis!E$19)))) -> 1931226.626 | C165: 477012976.7 | D165: 366933059 | E165: 579367987.9 | F165: 193122662.6 | G165: 96561331.31 | H165: 579367987.9 | I165: 19312266.26 | J165: 2311678272 | K165: =K164-(3788799*(Analysis!E$15)) -> -1801952.804 | L165: -422828225.6 | M165: -342371032.8 | N165: -540585841.3 | O165: -180195280.4 | P165: -90097640.22 | Q165: -540585841.3 | R165: -18019528.04 | S165: -2134683390
A166: 163 | B166: =B165-((3788799*(Analysis!E$15))-((3788799*(Analysis!E$15)*(Analysis!E$19)))) -> 1928650.243 | C166: 476376610 | D166: 366443546.2 | E166: 578595072.9 | F166: 192865024.3 | G166: 96432512.15 | H166: 578595072.9 | I166: 19286502.43 | J166: 2308594341 | K166: =K165-(3788799*(Analysis!E$15)) -> -1827716.638 | L166: -428873709 | M166: -347266161.1 | N166: -548314991.3 | O166: -182771663.8 | P166: -91385831.88 | Q166: -548314991.3 | R166: -18277166.38 | S166: -2165204515
A167: 164 | B167: =B166-((3788799*(Analysis!E$15))-((3788799*(Analysis!E$15)*(Analysis!E$19)))) -> 1926073.86 | C167: 475740243.3 | D167: 365954033.3 | E167: 577822157.9 | F167: 192607386 | G167: 96303692.98 | H167: 577822157.9 | I167: 19260738.6 | J167: 2305510410 | K167: =K166-(3788799*(Analysis!E$15)) -> -1853480.471 | L167: -434919192.5 | M167: -352161289.5 | N167: -556044141.2 | O167: -185348047.1 | P167: -92674023.54 | Q167: -556044141.2 | R167: -18534804.71 | S167: -2195725640
A168: 165 | B168: =B167-((3788799*(Analysis!E$15))-((3788799*(Analysis!E$15)*(Analysis!E$19)))) -> 1923497.476 | C168: 475103876.7 | D168: 365464520.5 | E168: 577049242.9 | F168: 192349747.6 | G168: 96174873.82 | H168: 577049242.9 | I168: 19234974.76 | J168: 2302426479 | K168: =K167-(3788799*(Analysis!E$15)) -> -1879244.304 | L168: -440964675.9 | M168: -357056417.8 | N168: -563773291.2 | O168: -187924430.4 | P168: -93962215.2 | Q168: -563773291.2 | R168: -18792443.04 | S168: -2226246765
A169: 166 | B169: =B168-((3788799*(Analysis!E$15))-((3788799*(Analysis!E$15)*(Analysis!E$19)))) -> 1920921.093 | C169: 474467510 | D169: 364975007.7 | E169: 576276327.9 | F169: 192092109.3 | G169: 96046054.65 | H169: 576276327.9 | I169: 19209210.93 | J169: 2299342548 | K169: =K168-(3788799*(Analysis!E$15)) -> -1905008.137 | L169: -447010159.4 | M169: -361951546.1 | N169: -571502441.2 | O169: -190500813.7 | P169: -95250406.86 | Q169: -571502441.2 | R169: -19050081.37 | S169: -2256767890
A170: 167 | B170: =B169-((3788799*(Analysis!E$15))-((3788799*(Analysis!E$15)*(Analysis!E$19)))) -> 1918344.71 | C170: 473831143.3 | D170: 364485494.8 | E170: 575503412.9 | F170: 191834471 | G170: 95917235.48 | H170: 575503412.9 | I170: 19183447.1 | J170: 2296258617 | K170: =K169-(3788799*(Analysis!E$15)) -> -1930771.97 | L170: -453055642.9 | M170: -366846674.4 | N170: -579231591.1 | O170: -193077197 | P170: -96538598.52 | Q170: -579231591.1 | R170: -19307719.7 | S170: -2287289015
A171: 168 | B171: =B170-((3788799*(Analysis!E$15))-((3788799*(Analysis!E$15)*(Analysis!E$19)))) -> 1915768.326 | C171: 473194776.6 | D171: 363995982 | E171: 574730497.9 | F171: 191576832.6 | G171: 95788416.32 | H171: 574730497.9 | I171: 19157683.26 | J171: 2293174687 | K171: =K170-(3788799*(Analysis!E$15)) -> -1956535.804 | L171: -459101126.3 | M171: -371741802.7 | N171: -586960741.1 | O171: -195653580.4 | P171: -97826790.18 | Q171: -586960741.1 | R171: -19565358.04 | S171: -2317810140
A172: 169 | B172: =B171-((3788799*(Analysis!E$15))-((3788799*(Analysis!E$15)*(Analysis!E$19)))) -> 1913191.943 | C172: 472558409.9 | D172: 363506469.2 | E172: 573957582.9 | F172: 191319194.3 | G172: 95659597.15 | H172: 573957582.9 | I172: 19131919.43 | J172: 2290090756 | K172: =K171-(3788799*(Analysis!E$15)) -> -1982299.637 | L172: -465146609.8 | M172: -376636931 | N172: -594689891 | O172: -198229963.7 | P172: -99114981.84 | Q172: -594689891 | R172: -19822996.37 | S172: -2348331265
A173: 170 | B173: =B172-((3788799*(Analysis!E$15))-((3788799*(Analysis!E$15)*(Analysis!E$19)))) -> 1910615.56 | C173: 471922043.3 | D173: 363016956.3 | E173: 573184667.9 | F173: 191061556 | G173: 95530777.99 | H173: 573184667.9 | I173: 19106155.6 | J173: 2287006825 | K173: =K172-(3788799*(Analysis!E$15)) -> -2008063.47 | L173: -471192093.2 | M173: -381532059.3 | N173: -602419041 | O173: -200806347 | P173: -100403173.5 | Q173: -602419041 | R173: -20080634.7 | S173: -2378852390
A174: 171 | B174: =B173-((3788799*(Analysis!E$15))-((3788799*(Analysis!E$15)*(Analysis!E$19)))) -> 1908039.176 | C174: 471285676.6 | D174: 362527443.5 | E174: 572411752.9 | F174: 190803917.6 | G174: 95401958.82 | H174: 572411752.9 | I174: 19080391.76 | J174: 2283922894 | K174: =K173-(3788799*(Analysis!E$15)) -> -2033827.303 | L174: -477237576.7 | M174: -386427187.6 | N174: -610148191 | O174: -203382730.3 | P174: -101691365.2 | Q174: -610148191 | R174: -20338273.03 | S174: -2409373515
A175: 172 | B175: =B174-((3788799*(Analysis!E$15))-((3788799*(Analysis!E$15)*(Analysis!E$19)))) -> 1905462.793 | C175: 470649309.9 | D175: 362037930.7 | E175: 571638837.9 | F175: 190546279.3 | G175: 95273139.65 | H175: 571638837.9 | I175: 19054627.93 | J175: 2280838963 | K175: =K174-(3788799*(Analysis!E$15)) -> -2059591.136 | L175: -483283060.2 | M175: -391322315.9 | N175: -617877340.9 | O175: -205959113.6 | P175: -102979556.8 | Q175: -617877340.9 | R175: -20595911.36 | S175: -2439894640
A176: 173 | B176: =B175-((3788799*(Analysis!E$15))-((3788799*(Analysis!E$15)*(Analysis!E$19)))) -> 1902886.41 | C176: 470012943.2 | D176: 361548417.9 | E176: 570865922.9 | F176: 190288641 | G176: 95144320.49 | H176: 570865922.9 | I176: 19028864.1 | J176: 2277755032 | K176: =K175-(3788799*(Analysis!E$15)) -> -2085354.97 | L176: -489328543.6 | M176: -396217444.2 | N176: -625606490.9 | O176: -208535497 | P176: -104267748.5 | Q176: -625606490.9 | R176: -20853549.7 | S176: -2470415765
A177: 174 | B177: =B176-((3788799*(Analysis!E$15))-((3788799*(Analysis!E$15)*(Analysis!E$19)))) -> 1900310.026 | C177: 469376576.5 | D177: 361058905 | E177: 570093007.9 | F177: 190031002.6 | G177: 95015501.32 | H177: 570093007.9 | I177: 19003100.26 | J177: 2274671102 | K177: =K176-(3788799*(Analysis!E$15)) -> -2111118.803 | L177: -495374027.1 | M177: -401112572.5 | N177: -633335640.8 | O177: -211111880.3 | P177: -105555940.1 | Q177: -633335640.8 | R177: -21111188.03 | S177: -2500936890
A178: 175 | B178: =B177-((3788799*(Analysis!E$15))-((3788799*(Analysis!E$15)*(Analysis!E$19)))) -> 1897733.643 | C178: 468740209.9 | D178: 360569392.2 | E178: 569320092.9 | F178: 189773364.3 | G178: 94886682.16 | H178: 569320092.9 | I178: 18977336.43 | J178: 2271587171 | K178: =K177-(3788799*(Analysis!E$15)) -> -2136882.636 | L178: -501419510.5 | M178: -406007700.8 | N178: -641064790.8 | O178: -213688263.6 | P178: -106844131.8 | Q178: -641064790.8 | R178: -21368826.36 | S178: -2531458015
A179: 176 | B179: =B178-((3788799*(Analysis!E$15))-((3788799*(Analysis!E$15)*(Analysis!E$19)))) -> 1895157.26 | C179: 468103843.2 | D179: 360079879.4 | E179: 568547177.9 | F179: 189515726 | G179: 94757862.99 | H179: 568547177.9 | I179: 18951572.6 | J179: 2268503240 | K179: =K178-(3788799*(Analysis!E$15)) -> -2162646.469 | L179: -507464994 | M179: -410902829.1 | N179: -648793940.8 | O179: -216264646.9 | P179: -108132323.5 | Q179: -648793940.8 | R179: -21626464.69 | S179: -2561979140
A180: 177 | B180: =B179-((3788799*(Analysis!E$15))-((3788799*(Analysis!E$15)*(Analysis!E$19)))) -> 1892580.876 | C180: 467467476.5 | D180: 359590366.5 | E180: 567774262.9 | F180: 189258087.6 | G180: 94629043.82 | H180: 567774262.9 | I180: 18925808.76 | J180: 2265419309 | K180: =K179-(3788799*(Analysis!E$15)) -> -2188410.302 | L180: -513510477.5 | M180: -415797957.5 | N180: -656523090.7 | O180: -218841030.2 | P180: -109420515.1 | Q180: -656523090.7 | R180: -21884103.02 | S180: -2592500265
A181: 178 | B181: =B180-((3788799*(Analysis!E$15))-((3788799*(Analysis!E$15)*(Analysis!E$19)))) -> 1890004.493 | C181: 466831109.8 | D181: 359100853.7 | E181: 567001347.9 | F181: 189000449.3 | G181: 94500224.66 | H181: 567001347.9 | I181: 18900044.93 | J181: 2262335378 | K181: =K180-(3788799*(Analysis!E$15)) -> -2214174.136 | L181: -519555960.9 | M181: -420693085.8 | N181: -664252240.7 | O181: -221417413.6 | P181: -110708706.8 | Q181: -664252240.7 | R181: -22141741.36 | S181: -2623021390
A182: 179 | B182: =B181-((3788799*(Analysis!E$15))-((3788799*(Analysis!E$15)*(Analysis!E$19)))) -> 1887428.11 | C182: 466194743.1 | D182: 358611340.9 | E182: 566228433 | F182: 188742811 | G182: 94371405.49 | H182: 566228433 | I182: 18874281.1 | J182: 2259251447 | K182: =K181-(3788799*(Analysis!E$15)) -> -2239937.969 | L182: -525601444.4 | M182: -425588214.1 | N182: -671981390.6 | O182: -223993796.9 | P182: -111996898.4 | Q182: -671981390.6 | R182: -22399379.69 | S182: -2653542515
A183: 180 | B183: =B182-((3788799*(Analysis!E$15))-((3788799*(Analysis!E$15)*(Analysis!E$19)))) -> 1884851.727 | C183: 465558376.5 | D183: 358121828 | E183: 565455518 | F183: 188485172.7 | G183: 94242586.33 | H183: 565455518 | I183: 18848517.27 | J183: 2256167517 | K183: =K182-(3788799*(Analysis!E$15)) -> -2265701.802 | L183: -531646927.8 | M183: -430483342.4 | N183: -679710540.6 | O183: -226570180.2 | P183: -113285090.1 | Q183: -679710540.6 | R183: -22657018.02 | S183: -2684063640
A184: 181 | B184: =B183-((3788799*(Analysis!E$15))-((3788799*(Analysis!E$15)*(Analysis!E$19)))) -> 1882275.343 | C184: 464922009.8 | D184: 357632315.2 | E184: 564682603 | F184: 188227534.3 | G184: 94113767.16 | H184: 564682603 | I184: 18822753.43 | J184: 2253083586 | K184: =K183-(3788799*(Analysis!E$15)) -> -2291465.635 | L184: -537692411.3 | M184: -435378470.7 | N184: -687439690.6 | O184: -229146563.5 | P184: -114573281.8 | Q184: -687439690.6 | R184: -22914656.35 | S184: -2714584765
A185: 182 | B185: =B184-((3788799*(Analysis!E$15))-((3788799*(Analysis!E$15)*(Analysis!E$19)))) -> 1879698.96 | C185: 464285643.1 | D185: 357142802.4 | E185: 563909688 | F185: 187969896 | G185: 93984947.99 | H185: 563909688 | I185: 18796989.6 | J185: 2249999655 | K185: =K184-(3788799*(Analysis!E$15)) -> -2317229.468 | L185: -543737894.8 | M185: -440273599 | N185: -695168840.5 | O185: -231722946.8 | P185: -115861473.4 | Q185: -695168840.5 | R185: -23172294.68 | S185: -2745105890
A186: 183 | B186: =B185-((3788799*(Analysis!E$15))-((3788799*(Analysis!E$15)*(Analysis!E$19)))) -> 1877122.577 | C186: 463649276.4 | D186: 356653289.5 | E186: 563136773 | F186: 187712257.7 | G186: 93856128.83 | H186: 563136773 | I186: 18771225.77 | J186: 2246915724 | K186: =K185-(3788799*(Analysis!E$15)) -> -2342993.302 | L186: -549783378.2 | M186: -445168727.3 | N186: -702897990.5 | O186: -234299330.2 | P186: -117149665.1 | Q186: -702897990.5 | R186: -23429933.02 | S186: -2775627015
A187: 184 | B187: =B186-((3788799*(Analysis!E$15))-((3788799*(Analysis!E$15)*(Analysis!E$19)))) -> 1874546.193 | C187: 463012909.7 | D187: 356163776.7 | E187: 562363858 | F187: 187454619.3 | G187: 93727309.66 | H187: 562363858 | I187: 18745461.93 | J187: 2243831793 | K187: =K186-(3788799*(Analysis!E$15)) -> -2368757.135 | L187: -555828861.7 | M187: -450063855.6 | N187: -710627140.4 | O187: -236875713.5 | P187: -118437856.7 | Q187: -710627140.4 | R187: -23687571.35 | S187: -2806148140
A188: 185 | B188: =B187-((3788799*(Analysis!E$15))-((3788799*(Analysis!E$15)*(Analysis!E$19)))) -> 1871969.81 | C188: 462376543.1 | D188: 355674263.9 | E188: 561590943 | F188: 187196981 | G188: 93598490.5 | H188: 561590943 | I188: 18719698.1 | J188: 2240747862 | K188: =K187-(3788799*(Analysis!E$15)) -> -2394520.968 | L188: -561874345.1 | M188: -454958983.9 | N188: -718356290.4 | O188: -239452096.8 | P188: -119726048.4 | Q188: -718356290.4 | R188: -23945209.68 | S188: -2836669265
A189: 186 | B189: =B188-((3788799*(Analysis!E$15))-((3788799*(Analysis!E$15)*(Analysis!E$19)))) -> 1869393.427 | C189: 461740176.4 | D189: 355184751.1 | E189: 560818028 | F189: 186939342.7 | G189: 93469671.33 | H189: 560818028 | I189: 18693934.27 | J189: 2237663932 | K189: =K188-(3788799*(Analysis!E$15)) -> -2420284.801 | L189: -567919828.6 | M189: -459854112.2 | N189: -726085440.4 | O189: -242028480.1 | P189: -121014240.1 | Q189: -726085440.4 | R189: -24202848.01 | S189: -2867190390
A190: 187 | B190: =B189-((3788799*(Analysis!E$15))-((3788799*(Analysis!E$15)*(Analysis!E$19)))) -> 1866817.043 | C190: 461103809.7 | D190: 354695238.2 | E190: 560045113 | F190: 186681704.3 | G190: 93340852.16 | H190: 560045113 | I190: 18668170.43 | J190: 2234580001 | K190: =K189-(3788799*(Analysis!E$15)) -> -2446048.634 | L190: -573965312.1 | M190: -464749240.5 | N190: -733814590.3 | O190: -244604863.4 | P190: -122302431.7 | Q190: -733814590.3 | R190: -24460486.34 | S190: -2897711515
A191: 188 | B191: =B190-((3788799*(Analysis!E$15))-((3788799*(Analysis!E$15)*(Analysis!E$19)))) -> 1864240.66 | C191: 460467443 | D191: 354205725.4 | E191: 559272198 | F191: 186424066 | G191: 93212033 | H191: 559272198 | I191: 18642406.6 | J191: 2231496070 | K191: =K190-(3788799*(Analysis!E$15)) -> -2471812.468 | L191: -580010795.5 | M191: -469644368.8 | N191: -741543740.3 | O191: -247181246.8 | P191: -123590623.4 | Q191: -741543740.3 | R191: -24718124.68 | S191: -2928232640
A192: 189 | B192: =B191-((3788799*(Analysis!E$15))-((3788799*(Analysis!E$15)*(Analysis!E$19)))) -> 1861664.277 | C192: 459831076.3 | D192: 353716212.6 | E192: 558499283 | F192: 186166427.7 | G192: 93083213.83 | H192: 558499283 | I192: 18616642.77 | J192: 2228412139 | K192: =K191-(3788799*(Analysis!E$15)) -> -2497576.301 | L192: -586056279 | M192: -474539497.2 | N192: -749272890.2 | O192: -249757630.1 | P192: -124878815 | Q192: -749272890.2 | R192: -24975763.01 | S192: -2958753765
A193: 190 | B193: =B192-((3788799*(Analysis!E$15))-((3788799*(Analysis!E$15)*(Analysis!E$19)))) -> 1859087.893 | C193: 459194709.7 | D193: 353226699.7 | E193: 557726368 | F193: 185908789.3 | G193: 92954394.67 | H193: 557726368 | I193: 18590878.93 | J193: 2225328208 | K193: =K192-(3788799*(Analysis!E$15)) -> -2523340.134 | L193: -592101762.4 | M193: -479434625.5 | N193: -757002040.2 | O193: -252334013.4 | P193: -126167006.7 | Q193: -757002040.2 | R193: -25233401.34 | S193: -2989274890
A194: 191 | B194: =B193-((3788799*(Analysis!E$15))-((3788799*(Analysis!E$15)*(Analysis!E$19)))) -> 1856511.51 | C194: 458558343 | D194: 352737186.9 | E194: 556953453 | F194: 185651151 | G194: 92825575.5 | H194: 556953453 | I194: 18565115.1 | J194: 2222244277 | K194: =K193-(3788799*(Analysis!E$15)) -> -2549103.967 | L194: -598147245.9 | M194: -484329753.8 | N194: -764731190.2 | O194: -254910396.7 | P194: -127455198.4 | Q194: -764731190.2 | R194: -25491039.67 | S194: -3019796015
A195: 192 | B195: =B194-((3788799*(Analysis!E$15))-((3788799*(Analysis!E$15)*(Analysis!E$19)))) -> 1853935.127 | C195: 457921976.3 | D195: 352247674.1 | E195: 556180538 | F195: 185393512.7 | G195: 92696756.33 | H195: 556180538 | I195: 18539351.27 | J195: 2219160347 | K195: =K194-(3788799*(Analysis!E$15)) -> -2574867.8 | L195: -604192729.4 | M195: -489224882.1 | N195: -772460340.1 | O195: -257486780 | P195: -128743390 | Q195: -772460340.1 | R195: -25748678 | S195: -3050317140
A196: 193 | B196: =B195-((3788799*(Analysis!E$15))-((3788799*(Analysis!E$15)*(Analysis!E$19)))) -> 1851358.743 | C196: 457285609.6 | D196: 351758161.2 | E196: 555407623 | F196: 185135874.3 | G196: 92567937.17 | H196: 555407623 | I196: 18513587.43 | J196: 2216076416 | K196: =K195-(3788799*(Analysis!E$15)) -> -2600631.634 | L196: -610238212.8 | M196: -494120010.4 | N196: -780189490.1 | O196: -260063163.4 | P196: -130031581.7 | Q196: -780189490.1 | R196: -26006316.34 | S196: -3080838265
A197: 194 | B197: =B196-((3788799*(Analysis!E$15))-((3788799*(Analysis!E$15)*(Analysis!E$19)))) -> 1848782.36 | C197: =B197*247 -> 456649242.9 | D197: =B197*190 -> 351268648.4 | E197: =B197*300 -> 554634708 | F197: =B197*100 -> 184878236 | G197: =B197*50 -> 92439118 | H197: =B197*300 -> 554634708 | I197: =B197*10 -> 18487823.6 | J197: =SUM(C197:I197) -> 2212992485 | K197: =K196-(3788799*(Analysis!E$15)) -> -2626395.467 | L197: =0.95*(247*K197) -> -616283696.3 | M197: =K197*190 -> -499015138.7 | N197: =K197*300 -> -787918640 | O197: =K197*100 -> -262639546.7 | P197: =K197*50 -> -131319773.3 | Q197: =K197*300 -> -787918640 | R197: =K197*10 -> -26263954.67 | S197: =SUM(L197:R197) -> -3111359390
A198: 195 | B198: =B197-((3788799*(Analysis!E$15))-((3788799*(Analysis!E$15)*(Analysis!E$19)))) -> 1846205.977 | C198: 456012876.2 | D198: 350779135.6 | E198: 553861793 | F198: 184620597.7 | G198: 92310298.84 | H198: 553861793 | I198: 18462059.77 | J198: 2209908554 | K198: =K197-(3788799*(Analysis!E$15)) -> -2652159.3 | L198: -622329179.7 | M198: -503910267 | N198: -795647790 | O198: -265215930 | P198: -132607965 | Q198: -795647790 | R198: -26521593 | S198: -3141880515
A199: 196 | B199: =B198-((3788799*(Analysis!E$15))-((3788799*(Analysis!E$15)*(Analysis!E$19)))) -> 1843629.593 | C199: 455376509.6 | D199: 350289622.7 | E199: 553088878 | F199: 184362959.3 | G199: 92181479.67 | H199: 553088878 | I199: 18436295.93 | J199: 2206824623 | K199: =K198-(3788799*(Analysis!E$15)) -> -2677923.133 | L199: -628374663.2 | M199: -508805395.3 | N199: -803376940 | O199: -267792313.3 | P199: -133896156.7 | Q199: -803376940 | R199: -26779231.33 | S199: -3172401640
A200: 197 | B200: =B199-((3788799*(Analysis!E$15))-((3788799*(Analysis!E$15)*(Analysis!E$19)))) -> 1841053.21 | C200: 454740142.9 | D200: 349800109.9 | E200: 552315963 | F200: 184105321 | G200: 92052660.5 | H200: 552315963 | I200: 18410532.1 | J200: 2203740692 | K200: =K199-(3788799*(Analysis!E$15)) -> -2703686.966 | L200: -634420146.7 | M200: -513700523.6 | N200: -811106089.9 | O200: -270368696.6 | P200: -135184348.3 | Q200: -811106089.9 | R200: -27036869.66 | S200: -3202922765
... 801 more rows

Sheet Jordanelle_Costs
B1: COSTS | I1: BENEFITS
B2: With Sediment Management | I2: Without Sediment Management
B3: Reservoir Capacity | C3: Initial Cost | D3: Annual O&M | E3: Decommissioning Cost | F3: Annual Sediment Management Cost | G3: Total Annual Cost | I3: Reservoir Capacity | J3: Initial Cost | K3: Annual O&M | L3: Decommissioning Cost | M3: Total Annual Cost
A4: 1 | B4: =Res_Info!D3 -> 259314.88 | C4: -70114522 | D4: -800000 | E4: -50000000 | F4: =-((320300*(Analysis!$E$15))-((320300*(Analysis!$E$15)*(Analysis!$E$19))))*11000 -> -2395844 | G4: =SUM(C4:F4) -> -123310366 | I4: =Res_Info!D3 -> 259314.88 | J4: -70114522 | K4: -800000 | L4: -50000000 | M4: =SUM(J4:L4) -> -120914522
A5: 2 | B5: =B4-((320300*(Analysis!$E$15))-((320300*(Analysis!$E$15)*(Analysis!$E$19)))) -> 259097.076 | D5: -800000 | F5: =-((320300*(Analysis!$E$15))-((320300*(Analysis!$E$15)*(Analysis!$E$19))))*11000 -> -2395844 | G5: =SUM(C5:F5) -> -3195844 | I5: =I4-((320300*(Analysis!$E$15))) -> 257136.84 | K5: -800000 | M5: =SUM(J5:L5) -> -800000
A6: 3 | B6: =B5-((320300*(Analysis!$E$15))-((320300*(Analysis!$E$15)*(Analysis!$E$19)))) -> 258879.272 | D6: -800000 | F6: =-((320300*(Analysis!$E$15))-((320300*(Analysis!$E$15)*(Analysis!$E$19))))*11000 -> -2395844 | G6: -3195844 | I6: =I5-((320300*(Analysis!$E$15))) -> 254958.8 | K6: -800000 | M6: -800000
A7: 4 | B7: =B6-((320300*(Analysis!$E$15))-((320300*(Analysis!$E$15)*(Analysis!$E$19)))) -> 258661.468 | D7: -800000 | F7: =-((320300*(Analysis!$E$15))-((320300*(Analysis!$E$15)*(Analysis!$E$19))))*11000 -> -2395844 | G7: -3195844 | I7: =I6-((320300*(Analysis!$E$15))) -> 252780.76 | K7: -800000 | M7: -800000
A8: 5 | B8: =B7-((320300*(Analysis!$E$15))-((320300*(Analysis!$E$15)*(Analysis!$E$19)))) -> 258443.664 | D8: -800000 | F8: =-((320300*(Analysis!$E$15))-((320300*(Analysis!$E$15)*(Analysis!$E$19))))*11000 -> -2395844 | G8: -3195844 | I8: =I7-((320300*(Analysis!$E$15))) -> 250602.72 | K8: -800000 | M8: -800000
A9: 6 | B9: =B8-((320300*(Analysis!$E$15))-((320300*(Analysis!$E$15)*(Analysis!$E$19)))) -> 258225.86 | D9: -800000 | F9: =-((320300*(Analysis!$E$15))-((320300*(Analysis!$E$15)*(Analysis!$E$19))))*11000 -> -2395844 | G9: -3195844 | I9: =I8-((320300*(Analysis!$E$15))) -> 248424.68 | K9: -800000 | M9: -800000
A10: 7 | B10: =B9-((320300*(Analysis!$E$15))-((320300*(Analysis!$E$15)*(Analysis!$E$19)))) -> 258008.056 | D10: -800000 | F10: =-((320300*(Analysis!$E$15))-((320300*(Analysis!$E$15)*(Analysis!$E$19))))*11000 -> -2395844 | G10: -3195844 | I10: =I9-((320300*(Analysis!$E$15))) -> 246246.64 | K10: -800000 | M10: -800000
A11: 8 | B11: =B10-((320300*(Analysis!$E$15))-((320300*(Analysis!$E$15)*(Analysis!$E$19)))) -> 257790.252 | D11: -800000 | F11: =-((320300*(Analysis!$E$15))-((320300*(Analysis!$E$15)*(Analysis!$E$19))))*11000 -> -2395844 | G11: -3195844 | I11: =I10-((320300*(Analysis!$E$15))) -> 244068.6 | K11: -800000 | M11: -800000
A12: 9 | B12: =B11-((320300*(Analysis!$E$15))-((320300*(Analysis!$E$15)*(Analysis!$E$19)))) -> 257572.448 | D12: -800000 | F12: =-((320300*(Analysis!$E$15))-((320300*(Analysis!$E$15)*(Analysis!$E$19))))*11000 -> -2395844 | G12: -3195844 | I12: =I11-((320300*(Analysis!$E$15))) -> 241890.56 | K12: -800000 | M12: -800000
A13: 10 | B13: =B12-((320300*(Analysis!$E$15))-((320300*(Analysis!$E$15)*(Analysis!$E$19)))) -> 257354.644 | D13: -800000 | F13: =-((320300*(Analysis!$E$15))-((320300*(Analysis!$E$15)*(Analysis!$E$19))))*11000 -> -2395844 | G13: -3195844 | I13: =I12-((320300*(Analysis!$E$15))) -> 239712.52 | K13: -800000 | M13: -800000
A14: 11 | B14: =B13-((320300*(Analysis!$E$15))-((320300*(Analysis!$E$15)*(Analysis!$E$19)))) -> 257136.84 | D14: -800000 | F14: =-((320300*(Analysis!$E$15))-((320300*(Analysis!$E$15)*(Analysis!$E$19))))*11000 -> -2395844 | G14: -3195844 | I14: =I13-((320300*(Analysis!$E$15))) -> 237534.48 | K14: -800000 | M14: -800000
A15: 12 | B15: =B14-((320300*(Analysis!$E$15))-((320300*(Analysis!$E$15)*(Analysis!$E$19)))) -> 256919.036 | D15: -800000 | F15: =-((320300*(Analysis!$E$15))-((320300*(Analysis!$E$15)*(Analysis!$E$19))))*11000 -> -2395844 | G15: -3195844 | I15: =I14-((320300*(Analysis!$E$15))) -> 235356.44 | K15: -800000 | M15: -800000
A16: 13 | B16: =B15-((320300*(Analysis!$E$15))-((320300*(Analysis!$E$15)*(Analysis!$E$19)))) -> 256701.232 | D16: -800000 | F16: =-((320300*(Analysis!$E$15))-((320300*(Analysis!$E$15)*(Analysis!$E$19))))*11000 -> -2395844 | G16: -3195844 | I16: =I15-((320300*(Analysis!$E$15))) -> 233178.4 | K16: -800000 | M16: -800000
A17: 14 | B17: =B16-((320300*(Analysis!$E$15))-((320300*(Analysis!$E$15)*(Analysis!$E$19)))) -> 256483.428 | D17: -800000 | F17: =-((320300*(Analysis!$E$15))-((320300*(Analysis!$E$15)*(Analysis!$E$19))))*11000 -> -2395844 | G17: -3195844 | I17: =I16-((320300*(Analysis!$E$15))) -> 231000.36 | K17: -800000 | M17: -800000
A18: 15 | B18: =B17-((320300*(Analysis!$E$15))-((320300*(Analysis!$E$15)*(Analysis!$E$19)))) -> 256265.624 | D18: -800000 | F18: =-((320300*(Analysis!$E$15))-((320300*(Analysis!$E$15)*(Analysis!$E$19))))*11000 -> -2395844 | G18: -3195844 | I18: =I17-((320300*(Analysis!$E$15))) -> 228822.32 | K18: -800000 | M18: -800000
A19: 16 | B19: =B18-((320300*(Analysis!$E$15))-((320300*(Analysis!$E$15)*(Analysis!$E$19)))) -> 256047.82 | D19: -800000 | F19: =-((320300*(Analysis!$E$15))-((320300*(Analysis!$E$15)*(Analysis!$E$19))))*11000 -> -2395844 | G19: -3195844 | I19: =I18-((320300*(Analysis!$E$15))) -> 226644.28 | K19: -800000 | M19: -800000
A20: 17 | B20: =B19-((320300*(Analysis!$E$15))-((320300*(Analysis!$E$15)*(Analysis!$E$19)))) -> 255830.016 | D20: -800000 | F20: =-((320300*(Analysis!$E$15))-((320300*(Analysis!$E$15)*(Analysis!$E$19))))*11000 -> -2395844 | G20: -3195844 | I20: =I19-((320300*(Analysis!$E$15))) -> 224466.24 | K20: -800000 | M20: -800000
A21: 18 | B21: =B20-((320300*(Analysis!$E$15))-((320300*(Analysis!$E$15)*(Analysis!$E$19)))) -> 255612.212 | D21: -800000 | F21: =-((320300*(Analysis!$E$15))-((320300*(Analysis!$E$15)*(Analysis!$E$19))))*11000 -> -2395844 | G21: -3195844 | I21: =I20-((320300*(Analysis!$E$15))) -> 222288.2 | K21: -800000 | M21: -800000
A22: 19 | B22: =B21-((320300*(Analysis!$E$15))-((320300*(Analysis!$E$15)*(Analysis!$E$19)))) -> 255394.408 | D22: -800000 | F22: =-((320300*(Analysis!$E$15))-((320300*(Analysis!$E$15)*(Analysis!$E$19))))*11000 -> -2395844 | G22: -3195844 | I22: =I21-((320300*(Analysis!$E$15))) -> 220110.16 | K22: -800000 | M22: -800000
